Workbook

Sheet Deckblatt
H1: 2017-05-05
B3: Gesetz für den Vorrang Erneuerbarer Energien (EEG)
B4: Erhebungsbogen zur Erfassung Ihrer EEG-Jahresabrechnung 2016 als Verteilnetzbetreiber
B5: (Version 3.10 vom 05.05.2017)
B6: Zusammenstellung der detaillierten Angaben Ihrer Endabrechnung nach § 72 EEG Ihrer aufgenommenen und vergüteten und an die TransnetBW GmbH als zuständigen Übertragungsnetzbetreiber weitergereichten EEG-Strommengen im Zeitraum vom 01.01.2016 bis 31.12.2016
B8: Verbindliche detaillierte Angaben zu Ihrer Bescheinigung der Daten gemäß § 72 EEG
B11: Netzbetreiber : | C11: Gammertinger Energie- und Wasserversorgung GmbH
B13: BNetzA-Nr.: | C13: 10000066
B15: Datenstand : | C15: 2017-05-09
B17: Ausgleichsbilanzkreis 2017 * : | C17: 11XENBW-N-EEG--3
B22: Wichtige Hinweise zum Ausfüllen der Formulare:
B24: - Auszufüllen sind jeweils nur die gelb hinterlegten Felder in gelb hinterlgeten Tabellenblättern
B25: - Eine anlagenscharfe Endabrechnung ist zwingend vorzunehmen und ist die Grundlage für die Durchführung der EEG-Jahresabrechnung
B27: * Bitte geben Sie hier Ihren Ausgleichsbilanzkreis für den physikalischen Ausgleich an. Der energetische und monetäre Ausgleich zwischen ÜNB und VNB für das Jahr 2016 wird im September 2017 durchgeführt.
B28: Die Energie wird hierfür in Form eines gleichbleibenden Bandes vom 1. September 00:00 Uhr bis 30. September 24:00 Uhr geliefert (die Lieferung/Rücklieferung erfolgt in Form von Fahrplananmeldungen).
B30: - Nachdem alle im Importprotokoll aufgeführten Fehler behoben sind, senden Sie die Datei bitte an folgende E-Mail-Adresse:
B31: eeg-vnb@transnetbw.de

Sheet Zeitplan

Sheet Importprotokoll
A1: Prüfungsschritt/Fehlernummer: | B1: Fehlerbeschreibung | C1: Anlagenschlüssel (sofern möglich) | D1: Zeile (bei Schritt 1 u. 2) | E1: Tabellenblatt (nur bei Schritt 1 und 2) | F1: Spalte (nur bei Schritt 2, sofern möglich)
A2: E0001 | B2: Die Testatdaten wurden am 09.05.2017 um 14:50:02 erfolgreich berechnet. | D2: Daten Prüfungsvermerk

Sheet Daten Prüfungsvermerk
D1: =Deckblatt!H1 -> 2017-05-05
A3: Netzbetreiber : | B3: =Deckblatt!C11 -> Gammertinger Energie- und Wasserversorgung GmbH
A5: Zusammenstellung der Angaben der Endabrechnung nach § 72 EEG Ihrer aufgenommenen und vergüteten und an die TransnetBW GmbH als zuständigen Übertragungsnetzbetreiber weitergereichten EEG-Strommengen im Zeitraum 01.01.2016 bis 31.12.2016
A8: Daten Prüfungsvermerk | G8: Nachträglich von Eigenversorgern erhaltene EEG-Umlage für in Vorjahren gemeldete EEG-umlagepflichtige Strommengen
A10: Einspeisevergütung
B11: kaufmännisch abgenommene Strommenge | C11: Einspeisevergütung | G11: Jahr | H11: EEG-Umlageart | J11: erhaltene Zahlung für Vorjahre
B12: [kWh] | C12: [EUR] | J12: [EUR]
A13: Wasserkraft | B13: 106818 | C13: 12465.66 | G13: 2014 | H13: EEG-Umlage nach § 61 Abs. 1 Satz 1 Nr. 1 EEG 2014 (30% der vollen Umlage) | J13: 0
A14: Deponie-, Klär-, Grubengas | B14: 0 | C14: 0 | H14: EEG-Umlage nach § 61 Abs. 1 Satz 2 EEG 2014 (volle Umlage) | J14: 0
A15: Biomasse | B15: 0 | C15: 0 | G15: 2015 | H15: EEG-Umlage nach § 61 Abs. 1 Satz 1 Nr. 1 EEG 2014 (30% der vollen Umlage) | J15: 0
A16: Geothermie | B16: 0 | C16: 0 | H16: EEG-Umlage nach § 61 Abs. 1 Satz 2 EEG 2014 (volle Umlage) | J16: 0
A17: Windenergie an Land | B17: 0 | C17: 0 | H17: Summe: | J17: =SUM(J13:J16) -> 0
A18: Solare Strahlungsenergie | B18: 2600591 | C18: 937349.99 | J18: (6)
A20: Summe | B20: =SUM(B13:B18) -> 2707409 | C20: =SUM(C13:C18) -> 949815.65
C21: (1)
A22: Solarstrom-Selbstverbrauch durch Anlagenbetreiber oder Dritte nach § 33 Abs. 2 EEG 2009 - muss nicht separat im Testat ausgewiesen werden.
A23: Selbstverbrauchsvergütung [€] (in Zelle C18 oben enthalten): | C23: 1285.8
A24: Selbstverbrauchte Strommenge [kWh] (nicht in Zelle B18 oben enthalten): | C24: 12500
G25: Nachträgliche Korrekturen von Eigenversorgern nach §61 Abs. 3 i.V.m. § 62 Abs. 2 EEG 2017
A27: Direktvermarktung
B28: Marktprämie | C28: Marktprämienmodell | D28: sonstige Direktvermarktung | E28: GSP | G28: Korrektur für das KalenderjahrJahr | H28: EEG-Umlageart | I28: Änderung der umlagepflichtigen Strommengen [kWh] | J28: erhaltene Zahlungen
B29: [EUR] | C29: [kWh] | D29: [kWh] | E29: [kWh] | J29: [EUR]
A30: Wasserkraft | B30: 0 | C30: 0 | D30: 0 | E30: 0 | G30: 2014 | H30: EEG-Umlage nach § 61 Abs. 1 Satz 1 Nr. 1 EEG 2014 (30% der vollen Umlage) | I30: 0 | J30: 0
A31: Deponie-, Klär-, Grubengas | B31: 0 | C31: 0 | D31: 0 | E31: 0 | H31: EEG-Umlage nach § 61 Abs. 1 Satz 2 EEG 2014 (volle Umlage) | I31: 0 | J31: 0
A32: Biomasse | B32: 0 | C32: 0 | D32: 0 | E32: 0 | G32: 2015 | H32: EEG-Umlage nach § 61 Abs. 1 Satz 1 Nr. 1 EEG 2014 (30% der vollen Umlage) | I32: 0 | J32: 0
A33: Geothermie | B33: 0 | C33: 0 | D33: 0 | E33: 0 | H33: EEG-Umlage nach § 61 Abs. 1 Satz 2 EEG 2014 (volle Umlage) | I33: 0 | J33: 0
A34: Windenergie an Land | B34: 0 | C34: 0 | D34: 0 | E34: 0 | H34: Summe: | J34: =SUM(J30:J33) -> 0
A35: Solare Strahlungsenergie | B35: 0 | C35: 0 | D35: 0 | E35: 0 | J35: (8)
A37: Summe | B37: =SUM(B30:B35) -> 0 | C37: =SUM(C30:C35) -> 0 | D37: =SUM(D30:D35) -> 0 | E37: =SUM(E30:E35) -> 0
B38: (2)
A40: Förderung für Flexibilität
B41: Förderung [EUR] | G41: Nachträgliche finanzielle Förderungen aufgrund von Übergangsbestimmungen des EEG 2017
A43: Flexibilitätszuschlag und Flexibilitätsprämie | B43: 0
B44: (3) | G44: Jahr | H44: Übergansgbestimmung EEG 2017 | I44: Förderung [EUR] | J44: Summe
J45: [EUR]
G46: 2014 | H46: Erfolgte Meldung nach §71 Nr. 1 EEG 2017, unterlassene Meldung im Anlagenregister (§100 Abs. 1 Satz 5 i.V.m. §52 Abs. 3 EEG 2017) | I46: 0 | J46: =SUM(I46:I47) -> 0
A47: vermiedene Netzentgelte (vNE) | H47: Bestandschutz für Biomasseanlagen mit Baugenehmigung vor dem 23.01.2014 (§100 Abs. 4 Satz 2 ggf. i.V.m. §50b Satz 4 EEG 2017) | I47: 0
B48: vNE nach § 35 Abs. 2 EEG [EUR] | G48: 2015 | H48: Erfolgte Meldung nach §71 Nr. 1 EEG 2017, unterlassene Meldung im Anlagenregister (§100 Abs. 1 Satz 5 i.V.m. §52 Abs. 3 EEG 2017) | I48: 0 | J48: =SUM(I48:I49) -> 0
H49: Bestandschutz für Biomasseanlagen mit Baugenehmigung vor dem 23.01.2014 (§100 Abs. 4 Satz 2 ggf. i.V.m. §50b Satz 4 EEG 2017) | I49: 0
A50: Wasserkraft | B50: 1903.52 | H50: Summe: | J50: =SUM(J46:J49) -> 0
A51: Deponie-, Klär-, Grubengas | B51: 0 | J51: (9)
A52: Biomasse | B52: 0
A53: Geothermie | B53: 0
A54: Windenergie an Land | B54: 0
A55: Solare Strahlungsenergie | B55: 44800.24
A57: Summe | B57: =SUM(B50:B55) -> 46703.76
B58: (4)
A61: EEG-Umlage aus Eigenversorgung für 2016 | G61: Nachträgliche Korrekturen nach § 62 Abs. 1 EEG 2017
B62: Strommengen [kWh] | C62: Erhaltene Zahlungen [€] | D62: EEG-umlagepflichtige Strommengen [kWh] | G62: A: Grund für die nachträgliche Korrektur B: betrifft Abrechnung (Jahr) C: ggf. Name... (z.B. des Gerichts/Notars) D: ggf. Aktenzeichen/Urkundennummer | I62: Strommenge [kWh] | J62: finanzielle Förderung vor Abzug der vNE | K62: vNE | L62: finanzeille Förderung nach Abzug der vNE
A63: EEG-Umlage nach § 61 Abs. 1 Satz 1 Nr. 1 EEG 2014 (35% der vollen Umlage) | B63: 2692 | C63: 59.87 | D63: =B63 -> 2692 | J63: [EUR] | K63: [EUR] | L63: [EUR]
A64: EEG-Umlage nach § 61 Abs. 1 Satz 2 EEG 2014 (volle Umlage) | B64: 0 | C64: 0 | D64: =B64 -> 0 | G64: Einspeisevergütung
A65: EEG-Umlage nach § 61 Abs. 2 Nr. 4 EEG 2014 (keine Umlage) | B65: 0 | C65: 0 | D65: - | I65: 0 | J65: 0 | K65: 0 | L65: 0
A66: Summe | B66: =SUM(B63:B65) -> 2692 | C66: =SUM(C63:C65) -> 59.87 | D66: =SUM(D63:D64) -> 2692
C67: (5)
A68: Zinsbetrag entsprechend § 60 Abs. 4 EEG i. V. m. § 7 Abs. 4 AusglMechV | C68: 0
C69: (7) | G69: Zwischensumme | I69: =SUM(I65:I68) -> 0 | J69: =SUM(J65:J68) -> 0 | K69: =SUM(K65:K68) -> 0 | L69: =SUM(L65:L68) -> 0
G70: Marktprämie
A71: Zusammenstellung | I71: 0 | J71: 0 | K71: 0 | L71: 0
C73: [€]
A74: Einspeisevergütung | B74: (1) =Zelle C20 | C74: =C20 -> 949815.65
A75: + Marktprämie | B75: (2) = Zelle B37 | C75: =B37 -> 0 | G75: Zwischensumme | I75: =SUM(I71:I74) -> 0 | J75: =SUM(J71:J74) -> 0 | K75: =SUM(K71:K74) -> 0 | L75: =SUM(L71:L74) -> 0
A76: + Förderung für Flexibilität | B76: (3) = Zelle B43 | C76: =B43 -> 0 | G76: Grünstromprivileg
A77: - Vermiedene Netzentgelte | B77: (4) = Zelle B57 | C77: =B57 -> 46703.76 | I77: 0 | J77: 0 | K77: 0 | L77: 0
A78: Zwischenergebnis | B78: (Z1) = (1) + (2) + (3) - (4) | C78: =SUM(C74:C76)-C77 -> 903111.89 | D78: (Z1)
A80: - Eigenversorgung für 2016 | B80: (5) = Zelle C66 | C80: =C66 -> 59.87
A81: - Nachträglich von Eigenversorgern erhaltene EEG-Umlage für in Vorjahren gemeldete | B81: (6) = Zelle J17 | C81: =J17 -> 0 | G81: Zwischensumme | I81: =SUM(I77:I80) -> 0 | J81: =SUM(J77:J80) -> 0 | K81: =SUM(K77:K80) -> 0 | L81: =SUM(L77:L80) -> 0
A82: - Von Eigenversorgern erhaltene Zinsen | B82: (7) = Zelle C68 | C82: =C68 -> 0 | G82: Förderung für Flexibilität
A83: Zwischenergebnis | B83: (Z2) = (5) + (6) + (7) | C83: =SUM(C80:C82) -> 59.87 | D83: (Z2) | I83: 0 | J83: 0 | K83: 0 | L83: 0
A85: - Nachträgliche Korrekturen von Eigenversorgern nach §61 Abs. 3 i.V.m. § 62 Abs. 2 EEG 2017 | B85: (8) | C85: =J34 -> 0
A86: + Nachträgliche finanzielle Förderungen aufgrund von Übergangsbestimmungen des EEG 2017 | B86: (9) | C86: =J50 -> 0 | G86: Zwischensumme | I86: =SUM(I83:I85) -> 0 | J86: =SUM(J83:J85) -> 0 | K86: =SUM(K83:K85) -> 0 | L86: =SUM(L83:L85) -> 0
A87: + Nachträgliche Korrekturen nach § 62 Abs. 1 EEG 2017 | B87: (10) | C87: =L87 -> 0 | G87: Gesamtsumme | I87: =I69+I75+I81+I86 -> 0 | J87: =J69+J75+J81+J86 -> 0 | K87: =K69+K75+K81+K86 -> 0 | L87: =L69+L75+L81+L86 -> 0
L88: (10)
A89: Saldo | B89: =(Z1)-(Z2)-(8)+(9)+(10) | C89: =C78-C83-C85+C86+C87 -> 903052.02
A92: Auf dieser Seite werden die in dieser Datei erfassten Bewegungsdaten entsprechend den Energieträgern zusammengefasst. Die im blauen Rahmen enthaltenen Angaben sind in Ihrer Wirtschaftsprüferbescheinigung (Testat) aufzuführen. Abweichungen der Testatwerte von den hier aufgeführten Summen sind nur soweit zulässig, wie sie auf Rundungsfehler zurückzuführen sind. Beachten Sie bitte, dass die vermiedenen Netzentgelte innerhalb des Testats wie hier aufgeführt mit positiven Vorzeichen anzugeben sind.
A98: Die direktvermarktete Strommenge ist nicht in der Spalte "Jahresarbeit der EEG-Einspeisung" enthalten und darf analog im Testat in der Spalte "Strommenge [kWh]" ebenfalls nicht enthalten sein. Hinweis: Falls Sie vermiedene Netzentgelte oder Direktvermarktung ausweisen müssen, diese Angaben aber hier fehlen: Ergänzen Sie bitte die Bewegungsdaten in den Tabellenblättern "Festvergütung-GSP-sonst.DV" (Gilt für Einspeisung von Anlagen in Festvergütung, Grünstromprivileg und in der sonstigen Direktvermarktung), "Marktprämie" (gilt für Anlagen in der Marktprämie) und "vNE" (gilt für vNE für Anlagen in Festvergütung, Grünstromprivileg und Marktprämie), indem Sie für die betroffenen Anlagen in einer weiteren Zeile die entsprechende vNE- bzw. Direktvermarktungskategorie auswählen. Die vNE sind als positiver Wert einzutragen. Die direktvermarktete Strommenge ist in der Spalte "Strommenge der Kategorie [kWh]" einzutragen.
A108: zusätzliche Informationen, die nicht im Testat aufzuführen sind (zur Kontrolle):
B110: vermiedene Netzentgelte [€]
A111: HöS | B111: 0
A112: Hös/HS | B112: 0
A113: HS | B113: 0
A114: HS/MS | B114: 0
A115: MS | B115: 229.37
A116: MS/NS | B116: 0
A117: NS | B117: 46474.39
A118: Summe | B118: =SUM(B111:B117) -> 46703.76
B121: Anzahl Anlagen
A122: Wasserkraft | B122: 1
A123: Deponie-, Klär-, Grubengas | B123: 0
A124: Biomasse | B124: 0
A125: Geothermie | B125: 0
A126: Windenergie an Land | B126: 0
A127: Solare Strahlungsenergie | B127: 198
A128: Summe | B128: =SUM(B122:B127) -> 199

Sheet Daten Prüfungsvermerk (vorl.)
D1: =Deckblatt!H1 -> 2017-05-05
A3: Netzbetreiber : | B3: =Deckblatt!C11 -> Gammertinger Energie- und Wasserversorgung GmbH
A5: Zusammenstellung der Angaben der Endabrechnung nach § 72 EEG Ihrer aufgenommenen und vergüteten und an die TransnetBW GmbH als zuständigen Übertragungsnetzbetreiber weitergereichten EEG-Strommengen im Zeitraum 01.01.2016 bis 31.12.2016
A8: Daten Prüfungsvermerk (vorläufig) | G8: Nachträglich von Eigenversorgern erhaltene EEG-Umlage für in Vorjahren gemeldete EEG-umlagepflichtige Strommengen
A10: Einspeisevergütung
B11: kaufmännisch abgenommene Strommenge | C11: Einspeisevergütung | G11: Jahr | H11: EEG-Umlageart | J11: erhaltene Zahlung für Vorjahre
B12: [kWh] | C12: [EUR] | J12: [EUR]
A13: Wasserkraft | B13: 106818 | C13: 12465.66 | G13: 2014 | H13: EEG-Umlage nach § 61 Abs. 1 Satz 1 Nr. 1 EEG 2014 (30% der vollen Umlage) | J13: 0
A14: Deponie-, Klär-, Grubengas | B14: 0 | C14: 0 | H14: EEG-Umlage nach § 61 Abs. 1 Satz 2 EEG 2014 (volle Umlage) | J14: 0
A15: Biomasse | B15: 0 | C15: 0 | G15: 2015 | H15: EEG-Umlage nach § 61 Abs. 1 Satz 1 Nr. 1 EEG 2014 (30% der vollen Umlage) | J15: 0
A16: Geothermie | B16: 0 | C16: 0 | H16: EEG-Umlage nach § 61 Abs. 1 Satz 2 EEG 2014 (volle Umlage) | J16: 0
A17: Windenergie an Land | B17: 0 | C17: 0 | H17: Summe: | J17: =SUM(J13:J16) -> 0
A18: Solare Strahlungsenergie | B18: 2600591 | C18: 937349.99 | J18: (6)
A20: Summe | B20: =SUM(B13:B18) -> 2707409 | C20: =SUM(C13:C18) -> 949815.65
C21: (1)
A22: Solarstrom-Selbstverbrauch durch Anlagenbetreiber oder Dritte nach § 33 Abs. 2 EEG 2009 - muss nicht separat im Testat ausgewiesen werden.
A23: Selbstverbrauchsvergütung [€] (in Zelle C18 oben enthalten): | C23: 1285.8
A24: Selbstverbrauchte Strommenge [kWh] (nicht in Zelle B18 oben enthalten): | C24: 12500
G25: Nachträgliche Korrekturen von Eigenversorgern nach §61 Abs. 3 i.V.m. § 62 Abs. 2 EEG 2017
A27: Direktvermarktung
B28: Marktprämie | C28: Marktprämienmodell | D28: sonstige Direktvermarktung | E28: GSP | G28: Korrektur für das KalenderjahrJahr | H28: EEG-Umlageart | I28: Änderung der umlagepflichtigen Strommengen [kWh] | J28: erhaltene Zahlungen
B29: [EUR] | C29: [kWh] | D29: [kWh] | E29: [kWh] | J29: [EUR]
A30: Wasserkraft | B30: 0 | C30: 0 | D30: 0 | E30: 0 | G30: 2014 | H30: EEG-Umlage nach § 61 Abs. 1 Satz 1 Nr. 1 EEG 2014 (30% der vollen Umlage) | I30: 0 | J30: 0
A31: Deponie-, Klär-, Grubengas | B31: 0 | C31: 0 | D31: 0 | E31: 0 | H31: EEG-Umlage nach § 61 Abs. 1 Satz 2 EEG 2014 (volle Umlage) | I31: 0 | J31: 0
A32: Biomasse | B32: 0 | C32: 0 | D32: 0 | E32: 0 | G32: 2015 | H32: EEG-Umlage nach § 61 Abs. 1 Satz 1 Nr. 1 EEG 2014 (30% der vollen Umlage) | I32: 0 | J32: 0
A33: Geothermie | B33: 0 | C33: 0 | D33: 0 | E33: 0 | H33: EEG-Umlage nach § 61 Abs. 1 Satz 2 EEG 2014 (volle Umlage) | I33: 0 | J33: 0
A34: Windenergie an Land | B34: 0 | C34: 0 | D34: 0 | E34: 0 | H34: Summe: | J34: =SUM(J30:J33) -> 0
A35: Solare Strahlungsenergie | B35: 0 | C35: 0 | D35: 0 | E35: 0 | J35: (8)
A37: Summe | B37: =SUM(B30:B35) -> 0 | C37: =SUM(C30:C35) -> 0 | D37: =SUM(D30:D35) -> 0 | E37: =SUM(E30:E35) -> 0
B38: (2)
A40: Förderung für Flexibilität
B41: Förderung [EUR] | G41: Nachträgliche finanzielle Förderungen aufgrund von Übergangsbestimmungen des EEG 2017
A43: Flexibilitätszuschlag und Flexibilitätsprämie | B43: 0
B44: (3) | G44: Jahr | H44: Übergansgbestimmung EEG 2017 | I44: Förderung [EUR] | J44: Summe
J45: [EUR]
G46: 2014 | H46: Erfolgte Meldung nach §71 Nr. 1 EEG 2017, unterlassene Meldung im Anlagenregister (§100 Abs. 1 Satz 5 i.V.m. §52 Abs. 3 EEG 2017) | I46: 0 | J46: =SUM(I46:I47) -> 0
A47: vermiedene Netzentgelte (vNE) | H47: Bestandschutz für Biomasseanlagen mit Baugenehmigung vor dem 23.01.2014 (§100 Abs. 4 Satz 2 ggf. i.V.m. §50b Satz 4 EEG 2017) | I47: 0
B48: vNE nach § 35 Abs. 2 EEG [EUR] | G48: 2015 | H48: Erfolgte Meldung nach §71 Nr. 1 EEG 2017, unterlassene Meldung im Anlagenregister (§100 Abs. 1 Satz 5 i.V.m. §52 Abs. 3 EEG 2017) | I48: 0 | J48: =SUM(I48:I49) -> 0
H49: Bestandschutz für Biomasseanlagen mit Baugenehmigung vor dem 23.01.2014 (§100 Abs. 4 Satz 2 ggf. i.V.m. §50b Satz 4 EEG 2017) | I49: 0
A50: Wasserkraft | B50: 1903.52 | H50: Summe: | J50: =SUM(J46:J49) -> 0
A51: Deponie-, Klär-, Grubengas | B51: 0 | J51: (9)
A52: Biomasse | B52: 0
A53: Geothermie | B53: 0
A54: Windenergie an Land | B54: 0
A55: Solare Strahlungsenergie | B55: 44800.24
A57: Summe | B57: =SUM(B50:B55) -> 46703.76
B58: (4)
A61: EEG-Umlage aus Eigenversorgung für 2016 | G61: Nachträgliche Korrekturen nach § 62 Abs. 1 EEG 2017
B62: Strommengen [kWh] | C62: Erhaltene Zahlungen [€] | D62: EEG-umlagepflichtige Strommengen [kWh] | G62: A: Grund für die nachträgliche Korrektur B: betrifft Abrechnung (Jahr) C: ggf. Name... (z.B. des Gerichts/Notars) D: ggf. Aktenzeichen/Urkundennummer | I62: Strommenge [kWh] | J62: finanzielle Förderung vor Abzug der vNE | K62: vNE | L62: finanzeille Förderung nach Abzug der vNE
A63: EEG-Umlage nach § 61 Abs. 1 Satz 1 Nr. 1 EEG 2014 (35% der vollen Umlage) | B63: 2692 | C63: 59.87 | D63: =B63 -> 2692 | J63: [EUR] | K63: [EUR] | L63: [EUR]
A64: EEG-Umlage nach § 61 Abs. 1 Satz 2 EEG 2014 (volle Umlage) | B64: 0 | C64: 0 | D64: =B64 -> 0 | G64: Einspeisevergütung
A65: EEG-Umlage nach § 61 Abs. 2 Nr. 4 EEG 2014 (keine Umlage) | B65: 0 | C65: 0 | D65: - | I65: 0 | J65: 0 | K65: 0 | L65: 0
A66: Summe | B66: =SUM(B63:B65) -> 2692 | C66: =SUM(C63:C65) -> 59.87 | D66: =SUM(D63:D64) -> 2692
C67: (5)
A68: Zinsbetrag entsprechend § 60 Abs. 4 EEG i. V. m. § 7 Abs. 4 AusglMechV | C68: 0
C69: (7) | G69: Zwischensumme | I69: =SUM(I65:I68) -> 0 | J69: =SUM(J65:J68) -> 0 | K69: =SUM(K65:K68) -> 0 | L69: =SUM(L65:L68) -> 0
G70: Marktprämie
A71: Zusammenstellung | I71: 0 | J71: 0 | K71: 0 | L71: 0
C73: [€]
A74: Einspeisevergütung | B74: (1) =Zelle C20 | C74: =C20 -> 949815.65
A75: + Marktprämie | B75: (2) = Zelle B37 | C75: =B37 -> 0 | G75: Zwischensumme | I75: =SUM(I71:I74) -> 0 | J75: =SUM(J71:J74) -> 0 | K75: =SUM(K71:K74) -> 0 | L75: =SUM(L71:L74) -> 0
A76: + Förderung für Flexibilität | B76: (3) = Zelle B43 | C76: =B43 -> 0 | G76: Grünstromprivileg
A77: - Vermiedene Netzentgelte | B77: (4) = Zelle B57 | C77: =B57 -> 46703.76 | I77: 0 | J77: 0 | K77: 0 | L77: 0
A78: Zwischenergebnis | B78: (Z1) = (1) + (2) + (3) - (4) | C78: =SUM(C74:C76)-C77 -> 903111.89 | D78: (Z1)
A80: - Eigenversorgung für 2016 | B80: (5) = Zelle C66 | C80: =C66 -> 59.87
A81: - Nachträglich von Eigenversorgern erhaltene EEG-Umlage für in Vorjahren gemeldete | B81: (6) = Zelle J17 | C81: =J17 -> 0 | G81: Zwischensumme | I81: =SUM(I77:I80) -> 0 | J81: =SUM(J77:J80) -> 0 | K81: =SUM(K77:K80) -> 0 | L81: =SUM(L77:L80) -> 0
A82: - Von Eigenversorgren erhaltene Zinsen | B82: (7) = Zelle C68 | C82: =C68 -> 0 | G82: Förderung für Flexibilität
A83: Zwischenergebnis | B83: (Z2) = (5) + (6) + (7) | C83: =SUM(C80:C82) -> 59.87 | D83: (Z2) | I83: 0 | J83: 0 | K83: 0 | L83: 0
A85: - Nachträgliche Korrekturen von Eigenversorgern nach §61 Abs. 3 i.V.m. § 62 Abs. 2 EEG 2017 | B85: (8) | C85: =J34 -> 0
A86: + Nachträgliche finanzielle Förderungen aufgrund von Übergangsbestimmungen des EEG 2017 | B86: (9) | C86: =J50 -> 0 | G86: Zwischensumme | I86: =SUM(I83:I85) -> 0 | J86: =SUM(J83:J85) -> 0 | K86: =SUM(K83:K85) -> 0 | L86: =SUM(L83:L85) -> 0
A87: + Nachträgliche Korrekturen nach § 62 Abs. 1 EEG 2017 | B87: (10) | C87: =L87 -> 0 | G87: Gesamtsumme | I87: =I69+I75+I81+I86 -> 0 | J87: =J69+J75+J81+J86 -> 0 | K87: =K69+K75+K81+K86 -> 0 | L87: =L69+L75+L81+L86 -> 0
L88: (10)
A89: Saldo | B89: =(Z1)-(Z2)+(8)+(9)+(10) | C89: =C78-C83-C85+C86+C87 -> 903052.02
A92: Auf dieser Seite werden die in dieser Datei erfassten Bewegungsdaten entsprechend den Energieträgern zusammengefasst. Die im blauen Rahmen enthaltenen Angaben sind in Ihrer Wirtschaftsprüferbescheinigung (Testat) aufzuführen. Abweichungen der Testatwerte von den hier aufgeführten Summen sind nur soweit zulässig, wie sie auf Rundungsfehler zurückzuführen sind. Beachten Sie bitte, dass die vermiedenen Netzentgelte innerhalb des Testats wie hier aufgeführt mit positiven Vorzeichen anzugeben sind.
A98: Die direktvermarktete Strommenge ist nicht in der Spalte "Jahresarbeit der EEG-Einspeisung" enthalten und darf analog im Testat in der Spalte "Strommenge [kWh]" ebenfalls nicht enthalten sein. Hinweis: Falls Sie vermiedene Netzentgelte oder Direktvermarktung ausweisen müssen, diese Angaben aber hier fehlen: Ergänzen Sie bitte die Bewegungsdaten in den Tabellenblättern "Festvergütung-GSP-sonst.DV" (Gilt für Einspeisung von Anlagen in Festvergütung, Grünstromprivileg und in der sonstigen Direktvermarktung), "Marktprämie" (gilt für Anlagen in der Marktprämie) und "vNE" (gilt für vNE für Anlagen in Festvergütung, Grünstromprivileg und Marktprämie), indem Sie für die betroffenen Anlagen in einer weiteren Zeile die entsprechende vNE- bzw. Direktvermarktungskategorie auswählen. Die vNE sind als positiver Wert einzutragen. Die direktvermarktete Strommenge ist in der Spalte "Strommenge der Kategorie [kWh]" einzutragen.
A108: zusätzliche Informationen, die nicht im Testat aufzuführen sind (zur Kontrolle):
B110: vermiedene Netzentgelte [€]
A111: HöS | B111: 0
A112: Hös/HS | B112: 0
A113: HS | B113: 0
A114: HS/MS | B114: 0
A115: MS | B115: 229.37
A116: MS/NS | B116: 0
A117: NS | B117: 46474.39
A118: Summe | B118: =SUM(B111:B117) -> 46703.76
B121: Anzahl Anlagen
A122: Wasserkraft | B122: 1
A123: Deponie-, Klär-, Grubengas | B123: 0
A124: Biomasse | B124: 0
A125: Geothermie | B125: 0
A126: Windenergie an Land | B126: 0
A127: Solare Strahlungsenergie | B127: 198
A128: Summe | B128: =SUM(B122:B127) -> 199

Sheet Stammdaten
A3: Netzbetreiber : | B3: =Deckblatt!C11 -> Gammertinger Energie- und Wasserversorgung GmbH
D5: Standort / Lage der Anlage (nicht des Anlagenbetreibers) | Y5: nur bei PV-Anlagen | AB5: nur bei Biomasseanlagen | AF5: nur bei Deponiegas, Klärgas und Grubengas | AG5: Geographische Koordinaten (nur bei Wind- und Solaranlagen) | AM5: nur bei Windenergieanlagen | AP5: Angabe zu Ausschreibungen | AR5: Zeitscheibe der Meldung
A6: Anlagenschlüssel | B6: Zählpunktbezeichnung | C6: BNetzA-MaStR-Nummer | D6: Ort / Gemarkung | E6: Bundesland | F6: PLZ | G6: Straße / Flurstück | H6: Gemeindeschlüssel | I6: Installierte Leistung [kW] | J6: Energieträger | K6: Inbetriebnahmedatum [TT.MM.JJJJ] | L6: Außerbetriebnahmedatum [TT.MM.JJJJ] | M6: Netzzugangsdatum [TT.MM.JJJJ] | N6: Netzabgangsdatum [TT.MM.JJJJ] | O6: Modernisierungsdatum [TT.MM.JJJJ] | P6: Einspeisespannungsebene | Q6: Anlageninstallation für Selbstverbrauch ausgelegt | R6: Kann der Strom aus der Anlage vor Einspeisung in das öffentliche Netz zwischengespeichert werden? | S6: Einspeisemanagement | T6: Anlage mit Lastgangzählung | U6: Anlage mit intelligentem Messsystem | V6: Zeitreihentyp für Bilanzierung der Stromerzeugung der Anlage | W6: Angaben nach § 71 EEG 2017: Erhält die Anlage im Meldejahr eine Steuerbegünstigung nach § 9 Abs. 1 Nummer 1 oder 3 des Stromsteuergesetzes? | X6: Angaben nach § 71 EEG 2017: Wurden für die Anlage im Meldejahr Regionalnachweise ausgestellt? | Y6: Bilanzierung Eigenverbrauch Wie wird bei der Anlage der Eigenverbrauch für die Bilanzierung berücksichtigt? - Auswahlfeld | Z6: Spezifizierung zu Bilanzierung Eigenverbrauch | AA6: Referenzanlage für Zeitreihenhochrechnung | AB6: KWK-Bonus | AC6: Technologie-Bonus | AD6: Datum der ersten Inanspruchnahme der Flexibilitätsprämie | AE6: Höchstbemessungsleistung nach § 101 Abs. 1 EEG | AF6: Technologiebonus Gas | AG6: Grad, nördliche Breite | AH6: Minuten, nördliche Breite | AI6: Sekunden, nördliche Breite | AJ6: Grad, östliche Länge | AK6: Minuten, östliche Länge | AL6: Sekunden, östliche länge | AM6: Schalloptimierung | AN6: Standortertrag bzw. Ertrag der Anlage, der für die Berechnung der Vergütung der Anlage angesetzt wurde Einheit: [kWh] mit 3 Nachkommastellen | AO6: Referenzertrag der Anlage Einheit: [kWh] mit 3 Nachkommastellen | AP6: Zuschlagswert der Anlage (sofern die Leistung einer Anlage über mehrere Ausschreibungen bezuschlagt wurde, ist ein mengengewichteter Durchschnittssatz anzugeben) [ct/kWh] | AQ6: bezuschlagte Leistung, sofern Bezuschlagung über Ausschreibung (Summe über alle Ausschreibungen, an denen die Anlage bezuschlagt wurde) [kW] | AR6: Gültig ab [TT.MM.JJJJ] | AS6: Gültig bis [TT.MM.JJJJ] | AT6: Grund für Stammdatenänderung bzw. Korrektur [Auswahlfeld] | AU6: Bemerkungsfeld als Freitext | AV6: nur eingeschränkte Prüfung möglich | AW6: Erläuterung für eingeschränkte Prüfung
A7: Pflichtfeld | B7: Pflichtfeld | C7: vorerst Optional / erst ab 2018 Pflicht | D7: Pflichtfeld | E7: Pflichtfeld | F7: Pflichtfeld | G7: Pflichtfeld | H7: vorerst Optional / erst ab 2017 Pflicht | I7: Pflichtfeld | J7: Pflichtfeld | K7: Pflichtfeld | L7: Pflichtfeld wenn Anlage außer Betrieb | M7: Pflichtfeld bei Netzübergang der Anlage | N7: Pflichtfeld bei Netzübergang der Anlage | O7: Pflichtfeld im Falle mind. einer erfolgten vergütungswirksamen Modernisierung (Datum der letzten vergütungswirksamen Modernisierung) | P7: Pflichtfeld | Q7: Pflichtfeld (bzw. ohne Angabe heißt "Nein") | R7: Pflichtfeld (bzw. ohne Angabe heißt "Nicht bekannt") | S7: Pflichtfeld | T7: Pflichtfeld (bzw. ohne Angabe heißt "Nein") | U7: Pflichtfeld (bzw. ohne Angabe heißt "Nicht bekannt") | V7: Pflichtfeld | W7: Pflichtfeld (bzw. ohne Angabe heißt "Nein") | X7: Pflichtfeld (bzw. ohne Angabe heißt "Nein") | Y7: vorerst optional, ab 2017 Pflichtfeld wenn Eingenverbrauch möglich bzw. wenn Spalte Q gleich "Ja" und Spalte U gleich "SOT". | Z7: Freitext - vorerst optional, ab 2017 Pflichtfeld wenn Eingenverbrauch möglich bzw. wenn Spalte Q gleich "Ja", Spalte U gleich "SOT" und Spalte X ungleich "Keine Berücksichtigung" | AA7: Pflichtfeld sofern Angabe bekannt und sofern die Hochrechnung nicht durch einen Dienstleister erfolgt (bzw. ohne Angabe heißt "Nein") | AB7: Pflichtfeld (bzw. ohne Angabe heißt "Nein") | AC7: Pflichtfeld (bzw. ohne Angabe heißt "Nein") | AD7: Pflichtfeld bei Inanspruchnahme der Prämie | AE7: Pflichtfeld bei Biogasanlagen mit Inbetriebnahme vor 01.08.2014 | AF7: Pflichtfeld (bzw. ohne Angabe heißt "Nein") | AG7: Optional | AH7: Optional | AI7: Optional | AJ7: Optional | AK7: Optional | AL7: Optional | AM7: Optional (bzw. ohne Angabe heißt "Nein") | AN7: vorerst optional, ab 2017 Pflichtfeld bei Windenergieanlagen | AO7: vorerst optional, ab 2017 Pflichtfeld bei Windenergieanlagen | AP7: ab 2017 Pflichtfeld bei Anlagen, deren anzulegender Wert durch eine Ausschreibung bestimmt wurde | AQ7: ab 2017 Pflichtfeld bei Anlagen, deren anzulegender Wert durch eine Ausschreibung bestimmt wurde | AR7: Pflichtfeld, wenn der gemeldete Datenstand nicht bereits ab Inbetriebnahme gültig ist. | AS7: Pflichtfeld, sofern der gemeldete Stand aktuell nicht mehr gültig ist. | AT7: Pflichtfeld wenn mehrere Stände für die Anlage in derselben Datei gemeldet werden. | AU7: Pflichtfeld, sofern in Spalte AT "Sonstiges" angegeben wurde. | AV7: optional - sofern Sondersachverhalte vorliegen | AW7: Plichtfeld sofern Spalte AV befüllt ist
A8: E1006601S725010021200160359400001 | B8: DE0002147250100001002120016003594 | D8: Gammertingen | E8: Baden-Württemberg | F8: 72501 | G8: Achalmstr. 16 | H8: 8437031 | I8: 1.3 | J8: Solar | K8: 2001-07-17 | P8: NS | Q8: Nein | R8: Nein | S8: Nicht regelbar | T8: Nein | U8: Nein | V8: SOT | W8: Nein | X8: Nein | AA8: Nein
A9: E1006601S725010021200030087200001 | B9: DE0002147250100001002120003000872 | D9: Gammertingen | E9: Baden-Württemberg | F9: 72501 | G9: Achalmstr. 3 | H9: 8437031 | I9: 10.56 | J9: Solar/Gebäude | K9: 2009-09-21 | P9: NS | Q9: Nein | R9: Nein | S9: Nicht regelbar | T9: Nein | U9: Nein | V9: SOT | W9: Nein | X9: Nein | AA9: Nein
A10: E1006601S725010021200050000200001 | B10: DE0002147250100001002120005000002 | D10: Gammertingen | E10: Baden-Württemberg | F10: 72501 | G10: Achalmstr. 5 | H10: 8437031 | I10: 7.36 | J10: Solar | K10: 2008-06-23 | P10: NS | Q10: Nein | R10: Nein | S10: Nicht regelbar | T10: Nein | U10: Nein | V10: SOT | W10: Nein | X10: Nein | AA10: Nein
A11: E1006001S725010021200090088700001 | B11: DE0002147250100001002120009000887 | D11: Gammertingen | E11: Baden-Württemberg | F11: 72501 | G11: Achalmstr. 9 | H11: 8437031 | I11: 5.28 | J11: Solar/Gebäude | K11: 2012-03-30 | P11: NS | Q11: Ja (keine Belieferung Dritter) | R11: Nein | S11: regelbar nach § 6 Abs. 2 EEG 2012 | T11: Nein | U11: Nein | V11: SOT | W11: Nein | X11: Nein | AA11: Nein
A12: E1006601S725010041200040282000001 | B12: DE0002147250100001004120004002820 | D12: Gammertingen | E12: Baden-Württemberg | F12: 72501 | G12: Alemannenweg 4 | H12: 8437031 | I12: 28.28 | J12: Solar/Gebäude | K12: 2010-06-01 | P12: NS | Q12: Nein | R12: Nein | S12: Nicht regelbar | T12: Nein | U12: Nein | V12: SOT | W12: Nein | X12: Nein | AA12: Nein
A13: E1006601S725010010100250003300001 | B13: DE0002147250100001001010025000033 | D13: Gammertingen | E13: Baden-Württemberg | F13: 72501 | G13: Alte Steige 25 | H13: 8437031 | I13: 6.65 | J13: Solar | K13: 2006-10-06 | P13: NS | Q13: Nein | R13: Nein | S13: Nicht regelbar | T13: Nein | U13: Nein | V13: SOT | W13: Nein | X13: Nein | AA13: Nein
A14: E1006601S725010010100080000100001 | B14: DE8002147250100001001010008000001 | D14: Gammertingen | E14: Baden-Württemberg | F14: 72501 | G14: Alte Steige 8 | H14: 8437031 | I14: 4.14 | J14: Solar/Gebäude | K14: 2010-09-30 | P14: NS | Q14: Nein | R14: Nein | S14: Nicht regelbar | T14: Nein | U14: Nein | V14: SOT | W14: Nein | X14: Nein | AA14: Nein
A15: E1006001S725010021800030363100001 | B15: DE8002147250100001002180003003631 | D15: Gammertingen | E15: Baden-Württemberg | F15: 72501 | G15: Augstbergweg 3 | H15: 8437031 | I15: 2.52 | J15: Solar/Gebäude | K15: 2011-06-24 | P15: NS | Q15: Nein | R15: Nein | S15: Nicht regelbar | T15: Nein | U15: Nein | V15: SOT | W15: Nein | X15: Nein | AA15: Nein
A16: E1006601S725010021800030363100001 | B16: DE0002147250100001002180003003631 | D16: Gammertingen | E16: Baden-Württemberg | F16: 72501 | G16: Augstbergweg 3 | H16: 8437031 | I16: 2.24 | J16: Solar | K16: 2001-08-28 | P16: NS | Q16: Nein | R16: Nein | S16: Nicht regelbar | T16: Nein | U16: Nein | V16: SOT | W16: Nein | X16: Nein | AA16: Nein
A17: E1006601S725010021800050010400001 | B17: DE0002147250100001002180005001004 | D17: Gammertingen | E17: Baden-Württemberg | F17: 72501 | G17: Augstbergweg 5 | H17: 8437031 | I17: 5.5 | J17: Solar | K17: 2008-04-22 | P17: NS | Q17: Nein | R17: Nein | S17: Nicht regelbar | T17: Nein | U17: Nein | V17: SOT | W17: Nein | X17: Nein | AA17: Nein
A18: E1006601S725010021800080100600001 | B18: DE8002147250100001002180008001006 | D18: Gammertingen | E18: Baden-Württemberg | F18: 72501 | G18: Augstbergweg 8 | H18: 8437031 | I18: 8.19 | J18: Solar/Gebäude | K18: 2011-08-30 | P18: NS | Q18: Nein | R18: Nein | S18: Nicht regelbar | T18: Nein | U18: Nein | V18: SOT | W18: Nein | X18: Nein | AA18: Nein
A19: E1006601S725010010200100409400001 | B19: DE0002147250100001001020010004094 | D19: Gammertingen | E19: Baden-Württemberg | F19: 72501 | G19: August-Reiser-Str. 10 | H19: 8437031 | I19: 3.22 | J19: Solar | K19: 2002-12-13 | P19: NS | Q19: Nein | R19: Nein | S19: Nicht regelbar | T19: Nein | U19: Nein | V19: SOT | W19: Nein | X19: Nein | AA19: Nein
A20: E1006601S725010022600170117100001 | B20: DE0002147250100001002260017001171 | D20: Gammertingen | E20: Baden-Württemberg | F20: 72501 | G20: Äussere Lochern 17 | H20: 8437031 | I20: 4.99 | J20: Solar | K20: 2005-06-02 | P20: NS | Q20: Nein | R20: Nein | S20: Nicht regelbar | T20: Nein | U20: Nein | V20: SOT | W20: Nein | X20: Nein | AA20: Nein
A21: E1006601S725010022600290118700001 | B21: DE8002147250100001002260029001187 | D21: Gammertingen | E21: Baden-Württemberg | F21: 72501 | G21: Äußere Lochern 29 | H21: 8437031 | I21: 5.04 | J21: Solar/Gebäude | K21: 2011-05-27 | P21: NS | Q21: Ja (keine Belieferung Dritter) | R21: Nein | S21: Nicht regelbar | T21: Nein | U21: Nein | V21: SOT | W21: Nein | X21: Nein | AA21: Nein
A22: E1006601S725010022600030114300001 | B22: DE0002147250100001002260003001143 | D22: Gammertingen | E22: Baden-Württemberg | F22: 72501 | G22: Äussere Lochern 3 | H22: 8437031 | I22: 2 | J22: Solar | K22: 2000-08-31 | P22: NS | Q22: Nein | R22: Nein | S22: Nicht regelbar | T22: Nein | U22: Nein | V22: SOT | W22: Nein | X22: Nein | AA22: Nein
A23: E1006601S725010022600060114900001 | B23: DE0002147250100001002260006001149 | D23: Gammertingen | E23: Baden-Württemberg | F23: 72501 | G23: Äussere Lochern 6 | H23: 8437031 | I23: 4.2 | J23: Solar | K23: 2003-12-11 | P23: NS | Q23: Nein | R23: Nein | S23: Nicht regelbar | T23: Nein | U23: Nein | V23: SOT | W23: Nein | X23: Nein | AA23: Nein
A24: E1006601S725010022600080345200001 | B24: DE0002147250100001002260008003452 | D24: Gammertingen | E24: Baden-Württemberg | F24: 72501 | G24: Äussere Lochern 8 | H24: 8437031 | I24: 2 | J24: Solar | K24: 2001-01-22 | P24: NS | Q24: Nein | R24: Nein | S24: Nicht regelbar | T24: Nein | U24: Nein | V24: SOT | W24: Nein | X24: Nein | AA24: Nein
A25: E1006601S725010022600080345200002 | B25: DE0002147250100001002260008003452 | D25: Gammertingen | E25: Baden-Württemberg | F25: 72501 | G25: Äußere Lochern 8 | H25: 8437031 | I25: 2.05 | J25: Solar | K25: 2007-10-02 | P25: NS | Q25: Nein | R25: Nein | S25: Nicht regelbar | T25: Nein | U25: Nein | V25: SOT | W25: Nein | X25: Nein | AA25: Nein
A26: E1006601S725010031700030232100001 | B26: DE0002147250100001003170003002321 | D26: Gammertingen | E26: Baden-Württemberg | F26: 72501 | G26: Beethovenstr. 3 | H26: 8437031 | I26: 4.42 | J26: Solar | K26: 2003-08-27 | P26: NS | Q26: Nein | R26: Nein | S26: Nicht regelbar | T26: Nein | U26: Nein | V26: SOT | W26: Nein | X26: Nein | AA26: Nein
A27: E1006001S725010021000130084900001 | B27: DE8002147250100001002100013000849 | D27: Gammertingen | E27: Baden-Württemberg | F27: 72501 | G27: Birkenweg 13 | H27: 8437031 | I27: 14.28 | J27: Solar/Gebäude | K27: 2011-12-20 | P27: NS | Q27: Nein | R27: Nein | S27: Nicht regelbar | T27: Nein | U27: Nein | V27: SOT | W27: Nein | X27: Nein | AA27: Nein
A28: E1006001S725010031400040202900001 | B28: DE0002147250100001003140004002029 | D28: Gammertingen | E28: Baden-Württemberg | F28: 72501 | G28: Bohlhalde 4 | H28: 8437031 | I28: 10.533 | J28: Solar/Gebäude | K28: 2012-03-30 | P28: NS | Q28: Ja (keine Belieferung Dritter) | R28: Nein | S28: regelbar nach § 6 Abs. 2 EEG 2012 | T28: Nein | U28: Nein | V28: SOT | W28: Nein | X28: Nein | AA28: Nein
A29: E1006001S725010022700190122600001 | B29: DE0002147250100001002270019001226 | D29: Gammertingen | E29: Baden-Württemberg | F29: 72501 | G29: Breslauer Str. 19 | H29: 8437031 | I29: 3.36 | J29: Solar/Gebäude | K29: 2012-07-27 | P29: NS | Q29: Ja (keine Belieferung Dritter) | R29: Nein | S29: 70%-Begrenzung | T29: Nein | U29: Nein | V29: SOT | W29: Nein | X29: Nein | AA29: Nein
A30: E1006601S725010022700310125400001 | B30: DE0002147250100001002270031001254 | D30: Gammertingen | E30: Baden-Württemberg | F30: 72501 | G30: Breslauer Str. 31 | H30: 8437031 | I30: 5.58 | J30: Solar/Gebäude | K30: 2009-07-22 | P30: NS | Q30: Nein | R30: Nein | S30: Nicht regelbar | T30: Nein | U30: Nein | V30: SOT | W30: Nein | X30: Nein | AA30: Nein
A31: E1006001S725010022700070120500001 | B31: DE8002147250100001002270007001205 | D31: Gammertingen | E31: Baden-Württemberg | F31: 72501 | G31: Breslauer Straße 7 | H31: 8437031 | I31: 9.24 | J31: Solar/Gebäude | K31: 2011-09-28 | P31: NS | Q31: Nein | R31: Nein | S31: Nicht regelbar | T31: Nein | U31: Nein | V31: SOT | W31: Nein | X31: Nein | AA31: Nein
A32: E1006601S725010041700010385300001 | B32: DE0002147250100001004170001003853 | D32: Gammertingen | E32: Baden-Württemberg | F32: 72501 | G32: Bubenhofenstr. 1 | H32: 8437031 | I32: 2.04 | J32: Solar | K32: 2002-03-27 | P32: NS | Q32: Nein | R32: Nein | S32: Nicht regelbar | T32: Nein | U32: Nein | V32: SOT | W32: Nein | X32: Nein | AA32: Nein
A33: E1006601S725010041700160300700001 | B33: DE8002147250100001004170016003007 | D33: Gammertingen | E33: Baden-Württemberg | F33: 72501 | G33: Bubenhofenstr. 16 | H33: 8437031 | I33: 3.36 | J33: Solar/Gebäude | K33: 2010-12-22 | P33: NS | Q33: Nein | R33: Nein | S33: Nicht regelbar | T33: Nein | U33: Nein | V33: SOT | W33: Nein | X33: Nein | AA33: Nein
A34: E1006001S725010041700040299200001 | B34: DE0002147250100001004170004002992 | D34: Gammertingen | E34: Baden-Württemberg | F34: 72501 | G34: Bubenhofenstr. 4/1 | H34: 8437031 | I34: 8.19 | J34: Solar/Gebäude | K34: 2011-12-31 | P34: NS | Q34: Nein | R34: Nein | S34: Nicht regelbar | T34: Nein | U34: Nein | V34: SOT | W34: Nein | X34: Nein | AA34: Nein
A35: E1006601S725010041700050299200001 | B35: DE0002147250100001004170005002992 | D35: Gammertingen | E35: Baden-Württemberg | F35: 72501 | G35: Bubenhofenstr. 5 | H35: 8437031 | I35: 9.1 | J35: Solar | K35: 2003-10-14 | P35: NS | Q35: Nein | R35: Nein | S35: Nicht regelbar | T35: Nein | U35: Nein | V35: SOT | W35: Nein | X35: Nein | AA35: Nein
A36: E1006601S725010041700070299700001 | B36: DE0002147250100001004170007002997 | D36: Gammertingen | E36: Baden-Württemberg | F36: 72501 | G36: Bubenhofenstr. 7 | H36: 8437031 | I36: 2 | J36: Solar | K36: 2000-04-01 | P36: NS | Q36: Nein | R36: Nein | S36: Nicht regelbar | T36: Nein | U36: Nein | V36: SOT | W36: Nein | X36: Nein | AA36: Nein
A37: E1006601S725010021100100086100001 | B37: DE0002147250100001002110010000861 | D37: Gammertingen | E37: Baden-Württemberg | F37: 72501 | G37: Buchenweg 10 | H37: 8437031 | I37: 6.63 | J37: Solar | K37: 2006-03-17 | P37: NS | Q37: Nein | R37: Nein | S37: Nicht regelbar | T37: Nein | U37: Nein | V37: SOT | W37: Nein | X37: Nein | AA37: Nein
A38: E1006601S725010021100030085200001 | B38: DE0002147250100001002110003000852 | D38: Gammertingen | E38: Baden-Württemberg | F38: 72501 | G38: Buchenweg 3 | H38: 8437031 | I38: 9 | J38: Solar/Gebäude | K38: 2010-08-25 | P38: NS | Q38: Nein | R38: Nein | S38: Nicht regelbar | T38: Nein | U38: Nein | V38: SOT | W38: Nein | X38: Nein | AA38: Nein
A39: E1006601S725010023100140403100001 | B39: DE0002147250100001002310014004031 | D39: Gammertingen | E39: Baden-Württemberg | F39: 72501 | G39: Burladinger Str. 14 | H39: 8437031 | I39: 29.93 | J39: Solar/Gebäude | K39: 2010-03-16 | P39: NS | Q39: Nein | R39: Nein | S39: Nicht regelbar | T39: Nein | U39: Nein | V39: SOT | W39: Nein | X39: Nein | AA39: Nein
A40: E1006601S725010023100220000100001 | B40: DE0002147250100001002310022000001 | D40: Gammertingen | E40: Baden-Württemberg | F40: 72501 | G40: Burladinger Str. 22 | H40: 8437031 | I40: 125.58 | J40: Solar/Gebäude | K40: 2010-06-30 | P40: NS | Q40: Nein | R40: Nein | S40: regelbar nach § 6 Abs. 1 EEG 2012 | T40: Ja | U40: Nein | V40: SOL | W40: Nein | X40: Nein | AA40: Ja
A41: E1006601S725010023100220000300001 | B41: DE8002147250100001002310022000003 | D41: Gammertingen | E41: Baden-Württemberg | F41: 72501 | G41: Burladinger Str. 22 | H41: 8437031 | I41: 491.92 | J41: Solar/Gebäude | K41: 2010-12-31 | P41: NS | Q41: Nein | R41: Nein | S41: regelbar nach § 6 Abs. 1 EEG 2012 | T41: Ja | U41: Nein | V41: SOL | W41: Nein | X41: Nein | AA41: Ja
A42: E1006001S725010023100050135800001 | B42: DE0002147250100001002310005001358 | D42: Gammertingen | E42: Baden-Württemberg | F42: 72501 | G42: Burladinger Str. 5 | H42: 8437031 | I42: 29.8 | J42: Solar/Gebäude | K42: 2011-12-29 | P42: NS | Q42: Nein | R42: Nein | S42: Nicht regelbar | T42: Nein | U42: Nein | V42: SOT | W42: Nein | X42: Nein | AA42: Nein
A43: E1006601S725010023100060000200001 | B43: DE8002147250100001002310006000002 | D43: Gammertingen | E43: Baden-Württemberg | F43: 72501 | G43: Burladinger Str. 6 | H43: 8437031 | I43: 30.36 | J43: Solar/Gebäude | K43: 2011-06-29 | P43: NS | Q43: Nein | R43: Nein | S43: regelbar nach § 9 Abs. 2 EEG 2014 | T43: Nein | U43: Nein | V43: SOT | W43: Nein | X43: Nein | AA43: Nein
A44: E1006601S725010023100080400000001 | B44: DE0002147250100001002310008004000 | D44: Gammertingen | E44: Baden-Württemberg | F44: 72501 | G44: Burladinger Str. 8 | H44: 8437031 | I44: 31.2 | J44: Solar | K44: 2007-11-12 | P44: NS | Q44: Nein | R44: Nein | S44: Nicht regelbar | T44: Nein | U44: Nein | V44: SOT | W44: Nein | X44: Nein | AA44: Nein
A45: E1006601S725010023100090405700001 | B45: DE0002147250100001002310009004057 | D45: Gammertingen | E45: Baden-Württemberg | F45: 72501 | G45: Burladinger Str. 9 | H45: 8437031 | I45: 12.825 | J45: Solar/Gebäude | K45: 2010-04-22 | P45: NS | Q45: Nein | R45: Nein | S45: Nicht regelbar | T45: Nein | U45: Nein | V45: SOT | W45: Nein | X45: Nein | AA45: Nein
A46: E1006001S725010042200010313800001 | B46: DE0002147250100001004220001003136 | D46: Gammertingen | E46: Baden-Württemberg | F46: 72501 | G46: Constantin-Hanner-Str. 1 | H46: 8437031 | I46: 9.8 | J46: Solar/Gebäude | K46: 2012-10-26 | P46: NS | Q46: Ja (keine Belieferung Dritter) | R46: Nein | S46: regelbar nach § 6 Abs. 2 EEG 2012 | T46: Nein | U46: Nein | V46: SOT | W46: Nein | X46: Nein | AA46: Nein
A47: E1006001S725010042200060314100001 | B47: DE0002147250100001004220006003141 | D47: Gammertingen | E47: Baden-Württemberg | F47: 72501 | G47: Constantin-Hanner-Str. 6 | H47: 8437031 | I47: 4.935 | J47: Solar/Gebäude | K47: 2012-05-29 | P47: NS | Q47: Ja (keine Belieferung Dritter) | R47: Nein | S47: regelbar nach § 6 Abs. 2 EEG 2012 | T47: Nein | U47: Nein | V47: SOT | W47: Nein | X47: Nein | AA47: Nein
A48: E1006001S725010020300060000100001 | B48: DE0002147250100001002030006000001 | D48: Gammertingen | E48: Baden-Württemberg | F48: 72501 | G48: Daimlerstr. 6 | H48: 8437031 | I48: 5 | J48: Solar/Gebäude | K48: 2016-11-23 | P48: NS | Q48: Ja (keine Belieferung Dritter) | R48: Nein | S48: 70%-Begrenzung | T48: Nein | U48: Nein | V48: SOT | W48: Nein | X48: Nein | AA48: Nein
A49: E1006601S725010020300100064100001 | B49: DE0002147250100001002030010000641 | D49: Gammertingen | E49: Baden-Württemberg | F49: 72501 | G49: Daimlerstr. 10 | H49: 8437031 | I49: 5.1 | J49: Solar | K49: 2005-11-09 | P49: NS | Q49: Nein | R49: Nein | S49: Nicht regelbar | T49: Nein | U49: Nein | V49: SOT | W49: Nein | X49: Nein | AA49: Nein
A50: E1006601S725010020300100064200001 | B50: DE0002147250100001002030010000642 | D50: Gammertingen | E50: Baden-Württemberg | F50: 72501 | G50: Daimlerstr. 10 | H50: 8437031 | I50: 8.28 | J50: Solar/Gebäude | K50: 2009-12-10 | P50: NS | Q50: Nein | R50: Nein | S50: Nicht regelbar | T50: Nein | U50: Nein | V50: SOT | W50: Nein | X50: Nein | AA50: Nein
A51: E1006601S725010020300150064900001 | B51: DE0002147250100001002030015000649 | D51: Gammertingen | E51: Baden-Württemberg | F51: 72501 | G51: Daimlerstr. 15 | H51: 8437031 | I51: 12.83 | J51: Solar | K51: 2007-06-19 | P51: NS | Q51: Nein | R51: Nein | S51: Nicht regelbar | T51: Nein | U51: Nein | V51: SOT | W51: Nein | X51: Nein | AA51: Nein
A52: E1006601S725010020300150065000001 | B52: DE0002147250100001002030015000650 | D52: Gammertingen | E52: Baden-Württemberg | F52: 72501 | G52: Daimlerstr. 15 | H52: 8437031 | I52: 19.43 | J52: Solar/Gebäude | K52: 2010-06-01 | P52: NS | Q52: Nein | R52: Nein | S52: Nicht regelbar | T52: Nein | U52: Nein | V52: SOT | W52: Nein | X52: Nein | AA52: Nein
A53: E1006601S725010020300150065100001 | B53: DE0002147250100001002030015000651 | D53: Gammertingen | E53: Baden-Württemberg | F53: 72501 | G53: Daimlerstr. 15 | H53: 8437031 | I53: 8.75 | J53: Solar/Gebäude | K53: 2010-06-01 | P53: NS | Q53: Nein | R53: Nein | S53: Nicht regelbar | T53: Nein | U53: Nein | V53: SOT | W53: Nein | X53: Nein | AA53: Nein
A54: E1006001S725010020300030063100001 | B54: DE0002147250100001002030003000631 | D54: Gammertingen | E54: Baden-Württemberg | F54: 72501 | G54: Daimlerstr. 3 | H54: 8437031 | I54: 6 | J54: Solar/Gebäude | K54: 2013-05-16 | P54: NS | Q54: Ja (keine Belieferung Dritter) | R54: Nein | S54: regelbar nach § 6 Abs. 2 EEG 2012 | T54: nein | U54: Nein | V54: SOT | W54: Nein | X54: Nein | AA54: Nein
A55: E1006001S725010022900020366400001 | B55: DE0002147250100001002290002003664 | D55: Gammertingen | E55: Baden-Württemberg | F55: 72501 | G55: Danziger Str. 2 | H55: 8437031 | I55: 17 | J55: Solar/Gebäude | K55: 2011-12-29 | P55: NS | Q55: Nein | R55: Nein | S55: Nicht regelbar | T55: Nein | U55: Nein | V55: SOT | W55: Nein | X55: Nein | AA55: Nein
A56: E1006601S725010022900020366200001 | B56: DE0002147250100001002290002003662 | D56: Gammertingen | E56: Baden-Württemberg | F56: 72501 | G56: Danziger Str. 2 | H56: 8437031 | I56: 14.3 | J56: Solar | K56: 2001-07-30 | P56: NS | Q56: Nein | R56: Nein | S56: Nicht regelbar | T56: Nein | U56: Nein | V56: SOT | W56: Nein | X56: Nein | AA56: Nein
A57: E1006601S725010022900020366300001 | B57: DE0002147250100001002290002003663 | D57: Gammertingen | E57: Baden-Württemberg | F57: 72501 | G57: Danziger Str. 2 | H57: 8437031 | I57: 4 | J57: Solar | K57: 2004-03-29 | P57: NS | Q57: Nein | R57: Nein | S57: Nicht regelbar | T57: Nein | U57: Nein | V57: SOT | W57: Nein | X57: Nein | AA57: Nein
A58: E1006601S725010022900030129700001 | B58: DE0002147250100001002290003001297 | D58: Gammertingen | E58: Baden-Württemberg | F58: 72501 | G58: Danziger Str. 3 | H58: 8437031 | I58: 4.68 | J58: Solar/Gebäude | K58: 2009-07-02 | P58: NS | Q58: Nein | R58: Nein | S58: Nicht regelbar | T58: Nein | U58: Nein | V58: SOT | W58: Nein | X58: Nein | AA58: Nein
A59: E1006601S725010022900030129800001 | B59: DE0002147250100001002290003001298 | D59: Gammertingen | E59: Baden-Württemberg | F59: 72501 | G59: Danziger Str. 3 | H59: 8437031 | I59: 4.68 | J59: Solar/Gebäude | K59: 2009-07-02 | P59: NS | Q59: Nein | R59: Nein | S59: Nicht regelbar | T59: Nein | U59: Nein | V59: SOT | W59: Nein | X59: Nein | AA59: Nein
A60: E1006001S725010022900060130300001 | B60: DE0002147250100001002290006001303 | D60: Gammertingen | E60: Baden-Württemberg | F60: 72501 | G60: Danziger Str. 6 | H60: 8437031 | I60: 29.4 | J60: Solar/Gebäude | K60: 2011-12-30 | P60: NS | Q60: Nein | R60: Nein | S60: Nicht regelbar | T60: Nein | U60: Nein | V60: SOT | W60: Nein | X60: Nein | AA60: Nein
A61: E1006601S725010023500140143000001 | B61: DE0002147250100001002350014001430 | D61: Gammertingen | E61: Baden-Württemberg | F61: 72501 | G61: Dresdener Str. 14 | H61: 8437031 | I61: 12.6 | J61: Solar/Gebäude | K61: 2010-06-30 | P61: NS | Q61: Nein | R61: Nein | S61: Nicht regelbar | T61: Nein | U61: Nein | V61: SOT | W61: Nein | X61: Nein | AA61: Nein
A62: E1006001S725010023500240144600001 | B62: DE0002147250100001002350024001446 | D62: Gammertingen | E62: Baden-Württemberg | F62: 72501 | G62: Dresdener Str. 24 | H62: 8437031 | I62: 11.04 | J62: Solar/Gebäude | K62: 2012-07-07 | P62: NS | Q62: Ja (keine Belieferung Dritter) | R62: Nein | S62: regelbar nach § 6 Abs. 2 EEG 2012 | T62: Nein | U62: Nein | V62: SOT | W62: Nein | X62: Nein | AA62: Nein
A63: E1006601S725010023500260144800001 | B63: DE0002147250100001002350026001448 | D63: Gammertingen | E63: Baden-Württemberg | F63: 72501 | G63: Dresdener Str. 26 | H63: 8437031 | I63: 5.75 | J63: Solar | K63: 2004-08-02 | P63: NS | Q63: Nein | R63: Nein | S63: Nicht regelbar | T63: Nein | U63: Nein | V63: SOT | W63: Nein | X63: Nein | AA63: Nein
A64: E1006601S725010023500280144900001 | B64: DE0002147250100001002350028001449 | D64: Gammertingen | E64: Baden-Württemberg | F64: 72501 | G64: Dresdener Str. 28 | H64: 8437031 | I64: 10.4 | J64: Solar/Gebäude | K64: 2009-05-22 | P64: NS | Q64: Nein | R64: Nein | S64: Nicht regelbar | T64: Nein | U64: Nein | V64: SOT | W64: Nein | X64: Nein | AA64: Nein
A65: E1006001S725010023500420000400001 | B65: DE0002147250100001002350042000004 | D65: Gammertingen | E65: Baden-Württemberg | F65: 72501 | G65: Dresdener Str. 42 | H65: 8437031 | I65: 5.2 | J65: Solar/Gebäude | K65: 2014-05-28 | P65: NS | Q65: Ja (keine Belieferung Dritter) | R65: Nein | S65: regelbar nach § 6 Abs. 2 EEG 2012 | T65: Nein | U65: Nein | V65: SOT | W65: Nein | X65: Nein | AA65: Nein
A66: E1006001S725010023500050000300001 | B66: DE0002147250100001002350050000003 | D66: Gammertingen | E66: Baden-Württemberg | F66: 72501 | G66: Dresdener Str. 50 | H66: 8437031 | I66: 8.13 | J66: Solar/Gebäude | K66: 2013-01-31 | P66: NS | Q66: Ja (keine Belieferung Dritter) | R66: Nein | S66: regelbar nach § 6 Abs. 2 EEG 2012 | T66: Nein | U66: Nein | V66: SOT | W66: Nein | X66: Nein | AA66: Nein
A67: E1006601S725010023500090141700001 | B67: DE0002147250100001002350009001417 | D67: Gammertingen | E67: Baden-Württemberg | F67: 72501 | G67: Dresdener Str. 9 | H67: 8437031 | I67: 8.46 | J67: Solar | K67: 2007-04-12 | P67: NS | Q67: Nein | R67: Nein | S67: Nicht regelbar | T67: Nein | U67: Nein | V67: SOT | W67: Nein | X67: Nein | AA67: Nein
A68: E1006001S725010024100110000300001 | B68: DE0002147250100001002410011000003 | D68: Gammertingen | E68: Baden-Württemberg | F68: 72501 | G68: Egertsbühl 11 | H68: 8437031 | I68: 7.8 | J68: Solar/Gebäude | K68: 2014-06-23 | P68: NS | Q68: Ja (keine Belieferung Dritter) | R68: Nein | S68: regelbar nach § 6 Abs. 2 EEG 2012 | T68: Nein | U68: Nein | V68: SOT | W68: Nein | X68: Nein | AA68: Nein
A69: E1006001S725010031100020000400001 | B69: DE0002147250100001003110002000004 | D69: Gammertingen | E69: Baden-Württemberg | F69: 72501 | G69: Eichendorffstr. 2/1 | H69: 8437031 | I69: 9.88 | J69: Solar/Gebäude | K69: 2015-04-20 | P69: NS | Q69: Ja (keine Belieferung Dritter) | R69: Nein | S69: 70%-Begrenzung | T69: Nein | U69: Ja | V69: SOT | W69: Nein | X69: Nein | AA69: Nein
A70: E1006601S725010031100250191100001 | B70: DE8002147250100001003110025001911 | D70: Gammertingen | E70: Baden-Württemberg | F70: 72501 | G70: Eichendorffstr. 25 | H70: 8437031 | I70: 5.7 | J70: Solar/Gebäude | K70: 2010-12-15 | P70: NS | Q70: Nein | R70: Nein | S70: Nicht regelbar | T70: Nein | U70: Nein | V70: SOT | W70: Nein | X70: Nein | AA70: Nein
A71: E1006601S725010031100040188200001 | B71: DE0002147250100001003110004001882 | D71: Gammertingen | E71: Baden-Württemberg | F71: 72501 | G71: Eichendorffstr. 4 | H71: 8437031 | I71: 6.48 | J71: Solar | K71: 2008-10-22 | P71: NS | Q71: Nein | R71: Nein | S71: Nicht regelbar | T71: Nein | U71: Nein | V71: SOT | W71: Nein | X71: Nein | AA71: Nein
A72: E1006601S725010031100040188300001 | B72: DE0002147250100001003110004001883 | D72: Gammertingen | E72: Baden-Württemberg | F72: 72501 | G72: Eichendorffstr. 4 | H72: 8437031 | I72: 4.68 | J72: Solar/Gebäude | K72: 2009-08-05 | P72: NS | Q72: Nein | R72: Nein | S72: Nicht regelbar | T72: Nein | U72: Nein | V72: SOT | W72: Nein | X72: Nein | AA72: Nein
A73: E1006601S725010023900050149600001 | B73: DE0002147250100001002390005001496 | D73: Gammertingen | E73: Baden-Württemberg | F73: 72501 | G73: Erfurter Str. 5 | H73: 8437031 | I73: 8.6 | J73: Solar | K73: 2008-09-16 | P73: NS | Q73: Nein | R73: Nein | S73: Nicht regelbar | T73: Nein | U73: Nein | V73: SOT | W73: Nein | X73: Nein | AA73: Nein
A74: E1006601S725010020800130076900001 | B74: DE0002147250100001002080013000769 | D74: Gammertingen | E74: Baden-Württemberg | F74: 72501 | G74: Eschenweg 13 | H74: 8437031 | I74: 27.2 | J74: Solar/Gebäude | K74: 2010-06-18 | P74: NS | Q74: Nein | R74: Nein | S74: Nicht regelbar | T74: Nein | U74: Nein | V74: SOT | W74: Nein | X74: Nein | AA74: Nein
A75: E1006001S725010020800170000100001 | B75: DE0002147250100001002080017000001 | D75: Gammertingen | E75: Baden-Württemberg | F75: 72501 | G75: Eschenweg 17 | H75: 8437031 | I75: 5.4 | J75: Solar/Gebäude | K75: 2015-06-26 | P75: NS | Q75: Ja (keine Belieferung Dritter) | R75: Nein | S75: 70%-Begrenzung | T75: Nein | U75: Ja | V75: SOT | W75: Nein | X75: Nein | AA75: Nein
A76: E1006001S725010020800250079200001 | B76: DE8002147250100001002080025000792 | D76: Gammertingen | E76: Baden-Württemberg | F76: 72501 | G76: Eschenweg 25 | H76: 8437031 | I76: 7.98 | J76: Solar/Gebäude | K76: 2011-12-19 | P76: NS | Q76: Nein | R76: Nein | S76: Nicht regelbar | T76: Nein | U76: Nein | V76: SOT | W76: Nein | X76: Nein | AA76: Nein
A77: E1006001S725010020800080076100001 | B77: DE8002147250100001002080008000761 | D77: Gammertingen | E77: Baden-Württemberg | F77: 72501 | G77: Eschenweg 8 | H77: 8437031 | I77: 14.44 | J77: Solar/Gebäude | K77: 2011-12-06 | P77: NS | Q77: Nein | R77: Nein | S77: Nicht regelbar | T77: Nein | U77: Nein | V77: SOT | W77: Nein | X77: Nein | AA77: Nein
A78: E1006001S725010020100160057100001 | B78: DE0002147250100001002010016000571 | D78: Gammertingen | E78: Baden-Württemberg | F78: 72501 | G78: Europastr. 16 | H78: 8437031 | I78: 5.4 | J78: Solar/Gebäude | K78: 2016-06-29 | P78: NS | Q78: Ja (keine Belieferung Dritter) | R78: Nein | S78: 70%-Begrenzung | T78: Nein | U78: Nein | V78: SOT | W78: Nein | X78: Nein | AA78: Nein
A79: E1006601S725010022400110111500001 | B79: DE8002147250100001002240011001115 | D79: Gammertingen | E79: Baden-Württemberg | F79: 72501 | G79: Fehlatalstr. 11 | H79: 8437031 | I79: 17.64 | J79: Solar/Gebäude | K79: 2011-08-30 | P79: NS | Q79: Nein | R79: Nein | S79: Nicht regelbar | T79: Nein | U79: Nein | V79: SOT | W79: Nein | X79: Nein | AA79: Nein
A80: E1006601S725010022400060111700001 | B80: DE0002147250100001002240006001117 | D80: Gammertingen | E80: Baden-Württemberg | F80: 72501 | G80: Fehlatalstr. 41 | H80: 8437031 | I80: 19.98 | J80: Solar/Gebäude | K80: 2009-11-18 | P80: NS | Q80: Nein | R80: Nein | S80: Nicht regelbar | T80: Nein | U80: Nein | V80: SOT | W80: Nein | X80: Nein | AA80: Nein
A81: E1006001S725010022400090111200001 | B81: DE0002147250100001002240009001112 | D81: Gammertingen | E81: Baden-Württemberg | F81: 72501 | G81: Fehlatalstr. 9 | H81: 8437031 | I81: 9.88 | J81: Solar/Gebäude | K81: 2012-12-18 | P81: NS | Q81: Ja (mit Belieferung Dritter) | R81: Nein | S81: regelbar nach § 6 Abs. 2 EEG 2012 | T81: Nein | U81: Nein | V81: SOT | W81: Nein | X81: Nein | AA81: Nein
A82: E1006001S725010020900150082800001 | B82: DE8002147250100001002090015000828 | D82: Gammertingen | E82: Baden-Württemberg | F82: 72501 | G82: Fichtenweg 15 | H82: 8437031 | I82: 22.94 | J82: Solar/Gebäude | K82: 2011-09-12 | P82: NS | Q82: Nein | R82: Nein | S82: Nicht regelbar | T82: Nein | U82: Nein | V82: SOT | W82: Nein | X82: Nein | AA82: Nein
A83: E1006601S725010040300050244300001 | B83: DE0002147250100001004030005002443 | D83: Gammertingen | E83: Baden-Württemberg | F83: 72501 | G83: Fidelisweg 5 | H83: 8437031 | I83: 7.7 | J83: Solar | K83: 2008-08-28 | P83: NS | Q83: Nein | R83: Nein | S83: Nicht regelbar | T83: Nein | U83: Nein | V83: SOT | W83: Nein | X83: Nein | AA83: Nein
A84: E1006601S725010042000110307200001 | B84: DE8002147250100001004200011003072 | D84: Gammertingen | E84: Baden-Württemberg | F84: 72501 | G84: Freiherrn-von-Speth-Str. 11 | H84: 8437031 | I84: 8.58 | J84: Solar/Gebäude | K84: 2011-03-30 | P84: NS | Q84: Nein | R84: Nein | S84: Nicht regelbar | T84: Nein | U84: Nein | V84: SOT | W84: Nein | X84: Nein | AA84: Nein
A85: E1006001S725010042000120000500001 | B85: DE0002147250100001004200012000005 | D85: Gammertingen | E85: Baden-Württemberg | F85: 72501 | G85: Freiherrn-von-Speth-Str. 12 | H85: 8437031 | I85: 9.4 | J85: Solar/Gebäude | K85: 2012-03-27 | P85: NS | Q85: Ja (keine Belieferung Dritter) | R85: Nein | S85: regelbar nach § 6 Abs. 2 EEG 2012 | T85: Nein | U85: Nein | V85: SOT | W85: Nein | X85: Nein | AA85: Nein
A86: E1006601S725010042000050346400001 | B86: DE0002147250100001004200005003064 | D86: Gammertingen | E86: Baden-Württemberg | F86: 72501 | G86: Freiherrn-von-Speth-Str. 5 | H86: 8437031 | I86: 6.38 | J86: Solar/Gebäude | K86: 2009-06-10 | P86: NS | Q86: Nein | R86: Nein | S86: Nicht regelbar | T86: Nein | U86: Nein | V86: SOT | W86: Nein | X86: Nein | AA86: Nein
A87: E1006601S725010030100220153900001 | B87: DE0002147250100001003010022001539 | D87: Gammertingen | E87: Baden-Württemberg | F87: 72501 | G87: Friedhofstr. 22 | H87: 8437031 | I87: 11.52 | J87: Solar | K87: 2006-11-02 | P87: NS | Q87: Nein | R87: Nein | S87: Nicht regelbar | T87: Nein | U87: Nein | V87: SOT | W87: Nein | X87: Nein | AA87: Nein
A88: E1006001S725010041600110000100001 | B88: DE0002147250100001004160011000001 | D88: Gammertingen | E88: Baden-Württemberg | F88: 72501 | G88: Gartenstr. 11 | H88: 8437031 | I88: 5.46 | J88: Solar/Gebäude | K88: 2014-10-30 | P88: NS | Q88: Ja (keine Belieferung Dritter) | R88: Nein | S88: 70%-Begrenzung | T88: Nein | U88: Ja | V88: SOT | W88: Nein | X88: Nein | AA88: Nein
A89: E1006601S725010041600020296200001 | B89: DE8002147250100001004160002002962 | D89: Gammertingen | E89: Baden-Württemberg | F89: 72501 | G89: Gartenstr. 2/2 | H89: 8437031 | I89: 28.2 | J89: Solar/Gebäude | K89: 2011-07-27 | P89: NS | Q89: Nein | R89: Nein | S89: Nicht regelbar | T89: Nein | U89: Nein | V89: SOT | W89: Nein | X89: Nein | AA89: Nein
A90: E1006601S725010041600040298200001 | B90: DE0002147250100001004160004002982 | D90: Gammertingen | E90: Baden-Württemberg | F90: 72501 | G90: Gartenstr. 4 | H90: 8437031 | I90: 29.725 | J90: Solar/Gebäude | K90: 2009-10-29 | P90: NS | Q90: Nein | R90: Nein | S90: Nicht regelbar | T90: Nein | U90: Nein | V90: SOT | W90: Nein | X90: Nein | AA90: Nein
A91: E1006601S725010041600040298300001 | B91: DE0002147250100001004160004002983 | D91: Gammertingen | E91: Baden-Württemberg | F91: 72501 | G91: Gartenstr. 4 | H91: 8437031 | I91: 9.84 | J91: Solar/Gebäude | K91: 2010-06-30 | P91: NS | Q91: Nein | R91: Nein | S91: Nicht regelbar | T91: Nein | U91: Nein | V91: SOT | W91: Nein | X91: Nein | AA91: Nein
A92: E1006601S725010041600060296800001 | B92: DE0002147250100001004160006002968 | D92: Gammertingen | E92: Baden-Württemberg | F92: 72501 | G92: Gartenstr. 6 | H92: 8437031 | I92: 10.66 | J92: Solar/Gebäude | K92: 2009-10-29 | P92: NS | Q92: Nein | R92: Nein | S92: Nicht regelbar | T92: Nein | U92: Nein | V92: SOT | W92: Nein | X92: Nein | AA92: Nein
A93: E1006601S725010030400070167100001 | B93: DE0002147250100001003040007001671 | D93: Gammertingen | E93: Baden-Württemberg | F93: 72501 | G93: Goethestr. 7 | H93: 8437031 | I93: 5.75 | J93: Solar/Gebäude | K93: 2009-06-23 | P93: NS | Q93: Nein | R93: Nein | S93: Nicht regelbar | T93: Nein | U93: Nein | V93: SOT | W93: Nein | X93: Nein | AA93: Nein
A94: E1006001S725010042300020314500001 | B94: DE0002147250100001004230002003145 | D94: Gammertingen | E94: Baden-Württemberg | F94: 72501 | G94: Graf-Arnold-Str. 2 | H94: 8437031 | I94: 5.46 | J94: Solar/Gebäude | K94: 2016-01-22 | P94: NS | Q94: Ja (keine Belieferung Dritter) | R94: Nein | S94: 70%-Begrenzung | T94: Nein | U94: Ja | V94: SOT | W94: Nein | X94: Nein | AA94: Nein
A95: E1006601S725010030400080167200001 | B95: DE8002147250100001003040008001672 | D95: Gammertingen | E95: Baden-Württemberg | F95: 72501 | G95: Goethestr. 8 | H95: 8437031 | I95: 8.05 | J95: Solar/Gebäude | K95: 2010-10-27 | P95: NS | Q95: Nein | R95: Nein | S95: Nicht regelbar | T95: Nein | U95: Nein | V95: SOT | W95: Nein | X95: Nein | AA95: Nein
A96: E1006601S725010042500100317400001 | B96: DE0002147250100001004250010003174 | D96: Gammertingen | E96: Baden-Württemberg | F96: 72501 | G96: Gräfin-Adelheid-Str. 10 | H96: 8437031 | I96: 10.915 | J96: Solar/Gebäude | K96: 2010-06-30 | P96: NS | Q96: Nein | R96: Nein | S96: Nicht regelbar | T96: Nein | U96: Nein | V96: SOT | W96: Nein | X96: Nein | AA96: Nein
A97: E1006001S725010042500060362800001 | B97: DE0002147250100001004250006003628 | D97: Gammertingen | E97: Baden-Württemberg | F97: 72501 | G97: Gräfin-Adelheid-Str. 6 | H97: 8437031 | I97: 9.8 | J97: Solar/Gebäude | K97: 2016-09-19 | P97: NS | Q97: Ja (keine Belieferung Dritter) | R97: Nein | S97: regelbar nach § 9 Abs. 2 EEG 2014 | T97: Nein | U97: Nein | V97: SOT | W97: Nein | X97: Nein | AA97: Nein
A98: E1006601S725010042500140317800001 | B98: DE0002147250100001004250014003178 | D98: Gammertingen | E98: Baden-Württemberg | F98: 72501 | G98: Gräfin-Adelheid-Str. 14 | H98: 8437031 | I98: 6.21 | J98: Solar | K98: 2004-09-30 | P98: NS | Q98: Nein | R98: Nein | S98: Nicht regelbar | T98: Nein | U98: Nein | V98: SOT | W98: Nein | X98: Nein | AA98: Nein
A99: E1006601S725010031550090197300001 | B99: DE0002147250100001003115009001973 | D99: Gammertingen | E99: Baden-Württemberg | F99: 72501 | G99: Hauffstr. 9 | H99: 8437031 | I99: 13.5 | J99: Solar/Gebäude | K99: 2010-06-01 | P99: NS | Q99: Nein | R99: Nein | S99: Nicht regelbar | T99: Nein | U99: Nein | V99: SOT | W99: Nein | X99: Nein | AA99: Nein
A100: E1006001S725010010300070011500001 | B100: DE0002147250100001001030007000115 | D100: Gammertingen | E100: Baden-Württemberg | F100: 72501 | G100: Hechinger Str. 7 | H100: 8437031 | I100: 9.69 | J100: Solar/Gebäude | K100: 2016-08-25 | P100: NS | Q100: Ja (keine Belieferung Dritter) | R100: Nein | S100: 70%-Begrenzung | T100: Nein | U100: Nein | V100: SOT | W100: Nein | X100: Nein | AA100: Nein
A101: E1006601S725010042900010368900001 | B101: DE0002147250100001004290001003689 | D101: Gammertingen | E101: Baden-Württemberg | F101: 72501 | G101: Heiligenbühlweg 1 | H101: 8437031 | I101: 4.056 | J101: Solar | K101: 2001-10-22 | P101: NS | Q101: Nein | R101: Nein | S101: Nicht regelbar | T101: Nein | U101: Nein | V101: SOT | W101: Nein | X101: Nein | AA101: Nein
A102: E1006001S725010042900070417700001 | B102: DE0002147250100001004290007004177 | D102: Gammertingen | E102: Baden-Württemberg | F102: 72501 | G102: Heiligenbühlweg 7 | H102: 8437031 | I102: 7.82 | J102: Solar/Gebäude | K102: 2012-03-29 | P102: NS | Q102: Nein | R102: Nein | S102: regelbar nach § 6 Abs. 2 EEG 2012 | T102: Nein | U102: Nein | V102: SOT | W102: Nein | X102: Nein | AA102: Nein
A103: E1006601S725010042900080389800001 | B103: DE0002147250100001004290008003898 | D103: Gammertingen | E103: Baden-Württemberg | F103: 72501 | G103: Heiligenbühlweg 8 | H103: 8437031 | I103: 4.59 | J103: Solar | K103: 2007-07-12 | P103: NS | Q103: Nein | R103: Nein | S103: Nicht regelbar | T103: Nein | U103: Nein | V103: SOT | W103: Nein | X103: Nein | AA103: Nein
A104: E1006601S725010042900080389900001 | B104: DE0002147250100001004290008003899 | D104: Gammertingen | E104: Baden-Württemberg | F104: 72501 | G104: Heiligenbühlweg 8 | H104: 8437031 | I104: 4.48 | J104: Solar/Gebäude | K104: 2010-04-29 | P104: NS | Q104: Nein | R104: Nein | S104: Nicht regelbar | T104: Nein | U104: Nein | V104: SOT | W104: Nein | X104: Nein | AA104: Nein
A105: E1006601S725010023000010000100001 | B105: DE0002147250100001002300001000001 | D105: Gammertingen | E105: Baden-Württemberg | F105: 72501 | G105: Herdleäcker 1 | H105: 8437031 | I105: 29.64 | J105: Solar | K105: 2007-07-17 | P105: NS | Q105: Nein | R105: Nein | S105: Nicht regelbar | T105: Nein | U105: Nein | V105: SOT | W105: Nein | X105: Nein | AA105: Nein
A106: E1006601S725010021300100000100001 | B106: DE0002147250100001002130010000001 | D106: Gammertingen | E106: Baden-Württemberg | F106: 72501 | G106: Hochbergstr. 10 | H106: 8437031 | I106: 9.8 | J106: Solar | K106: 2008-09-24 | P106: NS | Q106: Nein | R106: Nein | S106: Nicht regelbar | T106: Nein | U106: Nein | V106: SOT | W106: Nein | X106: Nein | AA106: Nein
A107: E1006001S725010021300320093100001 | B107: DE0002147250100001002130032000931 | D107: Gammertingen | E107: Baden-Württemberg | F107: 72501 | G107: Hochbergstr. 32 | H107: 8437031 | I107: 32.18 | J107: Solar/Gebäude | K107: 2012-10-24 | P107: NS | Q107: Ja (keine Belieferung Dritter) | R107: Nein | S107: regelbar nach § 6 Abs. 2 EEG 2012 | T107: Nein | U107: Nein | V107: SOT | W107: Nein | X107: Nein | AA107: Nein
A108: E1006601S725010021300340093200001 | B108: DE0002147250100001002130034000932 | D108: Gammertingen | E108: Baden-Württemberg | F108: 72501 | G108: Hochbergstr. 34 | H108: 8437031 | I108: 6.4 | J108: Solar | K108: 2006-04-19 | P108: NS | Q108: Nein | R108: Nein | S108: Nicht regelbar | T108: Nein | U108: Nein | V108: SOT | W108: Nein | X108: Nein | AA108: Nein
A109: E1006601S725010030600180404000001 | B109: DE0002147250100001003060018004040 | D109: Gammertingen | E109: Baden-Württemberg | F109: 72501 | G109: Hölderlinstr. 18 | H109: 8437031 | I109: 3.45 | J109: Solar | K109: 2002-11-13 | P109: NS | Q109: Nein | R109: Nein | S109: Nicht regelbar | T109: Nein | U109: Nein | V109: SOT | W109: Nein | X109: Nein | AA109: Nein
A110: E1006601S725010030600030176600001 | B110: DE0002147250100001003060003001766 | D110: Gammertingen | E110: Baden-Württemberg | F110: 72501 | G110: Hölderlinstr. 3 | H110: 8437031 | I110: 7.02 | J110: Solar/Gebäude | K110: 2009-02-11 | P110: NS | Q110: Nein | R110: Nein | S110: Nicht regelbar | T110: Nein | U110: Nein | V110: SOT | W110: Nein | X110: Nein | AA110: Nein
A111: E1006601S725010030600090000900001 | B111: DE0002147250100001003060009000009 | D111: Gammertingen | E111: Baden-Württemberg | F111: 72501 | G111: Hölderlinstr. 9 | H111: 8437031 | I111: 12.95 | J111: Solar | K111: 2008-07-28 | P111: NS | Q111: Nein | R111: Nein | S111: Nicht regelbar | T111: Nein | U111: Nein | V111: SOT | W111: Nein | X111: Nein | AA111: Nein
A112: E1006001S725010023800070149100001 | B112: DE0002147250100001002380007001491 | D112: Gammertingen | E112: Baden-Württemberg | F112: 72501 | G112: Jenaer Str. 7 | H112: 8437031 | I112: 9.25 | J112: Solar/Gebäude | K112: 2012-03-31 | P112: NS | Q112: Ja (keine Belieferung Dritter) | R112: Nein | S112: regelbar nach § 6 Abs. 2 EEG 2012 | T112: Nein | U112: Nein | V112: SOT | W112: Nein | X112: Nein | AA112: Nein
A113: E1006601S725010010800230000100001 | B113: DE0002147250100001001080023000001 | D113: Gammertingen | E113: Baden-Württemberg | F113: 72501 | G113: Kiverlinstr. 23 | H113: 8437031 | I113: 1 | J113: Solar | K113: 2004-01-01 | P113: NS | Q113: Nein | R113: Nein | S113: Nicht regelbar | T113: Nein | U113: Nein | V113: SOT | W113: Nein | X113: Nein | AA113: Nein
A114: E1006601S725010010800250000100001 | B114: DE0002147250100001001080025000001 | D114: Gammertingen | E114: Baden-Württemberg | F114: 72501 | G114: Kiverlinstr. 25 | H114: 8437031 | I114: 1 | J114: Solar | K114: 2004-01-01 | P114: NS | Q114: Nein | R114: Nein | S114: Nicht regelbar | T114: Nein | U114: Nein | V114: SOT | W114: Nein | X114: Nein | AA114: Nein
A115: E1006601S725010022800170128600001 | B115: DE0002147250100001002280017001286 | D115: Gammertingen | E115: Baden-Württemberg | F115: 72501 | G115: Kohlhalde 17 | H115: 8437031 | I115: 5.72 | J115: Solar/Gebäude | K115: 2009-06-29 | P115: NS | Q115: Nein | R115: Nein | S115: Nicht regelbar | T115: Nein | U115: Nein | V115: SOT | W115: Nein | X115: Nein | AA115: Nein
A116: E1006001S725010022800170128700001 | B116: DE0002147250100001002280017001287 | D116: Gammertingen | E116: Baden-Württemberg | F116: 72501 | G116: Kohlhalde 17 | H116: 8437031 | I116: 3.9 | J116: Solar/Gebäude | K116: 2016-04-06 | P116: NS | Q116: Ja (keine Belieferung Dritter) | R116: Nein | S116: 70%-Begrenzung | T116: Nein | U116: Nein | V116: SOT | W116: Nein | X116: Nein | AA116: Nein
A117: E1006601S725010022800060127000001 | B117: DE0002147250100001002280006001270 | D117: Gammertingen | E117: Baden-Württemberg | F117: 72501 | G117: Kohlhalde 6 | H117: 8437031 | I117: 5.34 | J117: Solar | K117: 2003-09-19 | P117: NS | Q117: Nein | R117: Nein | S117: Nicht regelbar | T117: Nein | U117: Nein | V117: SOT | W117: Nein | X117: Nein | AA117: Nein
A118: E1006601S725010022800060127100001 | B118: DE0002147250100001002280006001271 | D118: Gammertingen | E118: Baden-Württemberg | F118: 72501 | G118: Kohlhalde 6 | H118: 8437031 | I118: 2.04 | J118: Solar | K118: 2004-04-06 | P118: NS | Q118: Nein | R118: Nein | S118: Nicht regelbar | T118: Nein | U118: Nein | V118: SOT | W118: Nein | X118: Nein | AA118: Nein
A119: E1006601S725010024300020416100001 | B119: DE0002147250100001002430002004161 | D119: Gammertingen | E119: Baden-Württemberg | F119: 72501 | G119: Leipziger Str. 2 | H119: 8437031 | I119: 5.52 | J119: Solar | K119: 2007-10-12 | P119: NS | Q119: Nein | R119: Nein | S119: Nicht regelbar | T119: Nein | U119: Nein | V119: SOT | W119: Nein | X119: Nein | AA119: Nein
A120: E1006601S725010024300090410600001 | B120: DE0002147250100001002430009004106 | D120: Gammertingen | E120: Baden-Württemberg | F120: 72501 | G120: Leipziger Str. 9 | H120: 8437031 | I120: 2 | J120: Solar | K120: 2003-06-20 | P120: NS | Q120: Nein | R120: Nein | S120: Nicht regelbar | T120: Nein | U120: Nein | V120: SOT | W120: Nein | X120: Nein | AA120: Nein
A121: E1006601S725010040200060000100001 | B121: DE0002147250100001004020006000001 | D121: Gammertingen | E121: Baden-Württemberg | F121: 72501 | G121: Marktstr. 6 | H121: 8437031 | I121: 12.15 | J121: Solar/Gebäude | K121: 2010-06-22 | P121: NS | Q121: Nein | R121: Nein | S121: Nicht regelbar | T121: Nein | U121: Nein | V121: SOT | W121: Nein | X121: Nein | AA121: Nein
A122: E1006601S725010042100140358500001 | B122: DE0002147250100001004210014003585 | D122: Gammertingen | E122: Baden-Württemberg | F122: 72501 | G122: Mauren 14 | H122: 8437031 | I122: 8.5 | J122: Solar | K122: 2001-06-21 | P122: NS | Q122: Nein | R122: Nein | S122: Nicht regelbar | T122: Nein | U122: Nein | V122: SOT | W122: Nein | X122: Nein | AA122: Nein
A123: E1006001S725010042100150418200001 | B123: DE0002147250100001004210015004182 | D123: Gammertingen | E123: Baden-Württemberg | F123: 72501 | G123: Mauren 15 | H123: 8437031 | I123: 9.8 | J123: Solar/Gebäude | K123: 2013-03-15 | P123: NS | Q123: Ja (keine Belieferung Dritter) | R123: Nein | S123: regelbar nach § 6 Abs. 2 EEG 2012 | T123: Nein | U123: Nein | V123: SOT | W123: Nein | X123: Nein | AA123: Nein
A124: E1006001S725010042100200312600001 | B124: DE0002147250100001004210020003126 | D124: Gammertingen | E124: Baden-Württemberg | F124: 72501 | G124: Mauren 20 | H124: 8437031 | I124: 8.4 | J124: Solar/Gebäude | K124: 2012-05-22 | P124: NS | Q124: Ja (keine Belieferung Dritter) | R124: Nein | S124: regelbar nach § 6 Abs. 2 EEG 2012 | T124: Nein | U124: Nein | V124: SOT | W124: Nein | X124: Nein | AA124: Nein
A125: E1006601S725010024600020000200001 | B125: DE0002147250100001002460002000002 | D125: Gammertingen | E125: Baden-Württemberg | F125: 72501 | G125: Maybachstr. 2 | H125: 8437031 | I125: 38.5 | J125: Solar | K125: 2007-12-27 | P125: NS | Q125: Nein | R125: Nein | S125: regelbar nach § 9 Abs. 2 EEG 2014 | T125: Nein | U125: Nein | V125: SOT | W125: Nein | X125: Nein | AA125: Nein
A126: E1006601S725010020350100065300001 | B126: DE0002147250100001002035002000653 | D126: Gammertingen | E126: Baden-Württemberg | F126: 72501 | G126: Mittelberg 10 | H126: 8437031 | I126: 58.3 | J126: Solar/Gebäude | K126: 2010-06-30 | P126: NS | Q126: Nein | R126: Nein | S126: regelbar nach § 9 Abs. 2 EEG 2014 | T126: Ja | U126: Nein | V126: SOL | W126: Nein | X126: Nein | AA126: Nein
A127: E1006601S725010020350020000200001 | B127: DE0002147250100001002035002000002 | D127: Gammertingen | E127: Baden-Württemberg | F127: 72501 | G127: Mittelberg 2 | H127: 8437031 | I127: 104.5 | J127: Solar/Gebäude | K127: 2010-06-30 | P127: NS | Q127: Nein | R127: Nein | S127: regelbar nach § 6 Abs. 1 EEG 2012 | T127: Ja | U127: Nein | V127: SOL | W127: Nein | X127: Nein | AA127: Ja
A128: E1006601S725010031600100215500001 | B128: DE0002147250100001003160010002155 | D128: Gammertingen | E128: Baden-Württemberg | F128: 72501 | G128: Mozartstr. 10 | H128: 8437031 | I128: 9.25 | J128: Solar/Gebäude | K128: 2010-05-21 | P128: NS | Q128: Nein | R128: Nein | S128: Nicht regelbar | T128: Nein | U128: Nein | V128: SOT | W128: Nein | X128: Nein | AA128: Nein
A129: E1006001S725010031600110000100001 | B129: DE0002147250100001003160011000001 | D129: Gammertingen | E129: Baden-Württemberg | F129: 72501 | G129: Mozartstr. 11 | H129: 8437031 | I129: 6.44 | J129: Solar/Gebäude | K129: 2014-12-19 | P129: NS | Q129: Ja (keine Belieferung Dritter) | R129: Nein | S129: 70%-Begrenzung | T129: Nein | U129: Nein | V129: SOT | W129: Nein | X129: Nein | AA129: Nein
A130: E1006001S725010031600130000100001 | B130: DE0002147250100001003160013000001 | D130: Gammertingen | E130: Baden-Württemberg | F130: 72501 | G130: Mozartstr. 13 | H130: 8437031 | I130: 9.62 | J130: Solar/Gebäude | K130: 2014-02-25 | P130: NS | Q130: Ja (keine Belieferung Dritter) | R130: Nein | S130: regelbar nach § 6 Abs. 2 EEG 2012 | T130: Nein | U130: Nein | V130: SOT | W130: Nein | X130: Nein | AA130: Nein
A131: E1006601S725010031600060215000001 | B131: DE0002147250100001003160006002150 | D131: Gammertingen | E131: Baden-Württemberg | F131: 72501 | G131: Mozartstr. 6 | H131: 8437031 | I131: 9.625 | J131: Solar/Gebäude | K131: 2010-09-01 | P131: NS | Q131: Nein | R131: Nein | S131: Nicht regelbar | T131: Nein | U131: Nein | V131: SOT | W131: Nein | X131: Nein | AA131: Nein
A132: E1006601S725010040600020250000001 | B132: DE8002147250100001004060002002500 | D132: Gammertingen | E132: Baden-Württemberg | F132: 72501 | G132: Mühlburren 2 | H132: 8437031 | I132: 91.93 | J132: Solar/Gebäude | K132: 2010-12-31 | P132: NS | Q132: Nein | R132: Nein | S132: regelbar nach § 9 Abs. 2 EEG 2014 | T132: Ja | U132: Nein | V132: SOL | W132: Nein | X132: Nein | AA132: Nein
A133: E1006601S725010022000130104700001 | B133: DE0002147250100001002200013001047 | D133: Gammertingen | E133: Baden-Württemberg | F133: 72501 | G133: Neufraer Str. 13 | H133: 8437031 | I133: 5.845 | J133: Solar | K133: 2005-03-23 | P133: NS | Q133: Nein | R133: Nein | S133: Nicht regelbar | T133: Nein | U133: Nein | V133: SOT | W133: Nein | X133: Nein | AA133: Nein
A134: E1006601S725010022000070104000001 | B134: DE8002147250100001002200007001040 | D134: Gammertingen | E134: Baden-Württemberg | F134: 72501 | G134: Neufraer Str. 7 | H134: 8437031 | I134: 6.58 | J134: Solar/Gebäude | K134: 2010-12-31 | P134: NS | Q134: Ja (keine Belieferung Dritter) | R134: Nein | S134: Nicht regelbar | T134: Nein | U134: Nein | V134: SOT | W134: Nein | X134: Nein | AA134: Nein
A135: E1006601S725010031500110211100001 | B135: DE0002147250100001003150011002111 | D135: Gammertingen | E135: Baden-Württemberg | F135: 72501 | G135: Obere Bohlstr. 11 | H135: 8437031 | I135: 6.3 | J135: Solar/Gebäude | K135: 2009-05-19 | P135: NS | Q135: Nein | R135: Nein | S135: Nicht regelbar | T135: Nein | U135: Nein | V135: SOT | W135: Nein | X135: Nein | AA135: Nein
A136: E1006601S725010031500090210600001 | B136: DE0002147250100001003150009002106 | D136: Gammertingen | E136: Baden-Württemberg | F136: 72501 | G136: Obere Bohlstr. 9 | H136: 8437031 | I136: 4.5 | J136: Solar | K136: 2005-12-06 | P136: NS | Q136: Nein | R136: Nein | S136: Nicht regelbar | T136: Nein | U136: Nein | V136: SOT | W136: Nein | X136: Nein | AA136: Nein
A137: E1006601S725010020400050151200001 | B137: DE0002147250100001002400005001512 | D137: Gammertingen | E137: Baden-Württemberg | F137: 72501 | G137: Papstdorfer Weg 5 | H137: 8437031 | I137: 8.8 | J137: Solar/Gebäude | K137: 2009-05-06 | P137: NS | Q137: Nein | R137: Nein | S137: Nicht regelbar | T137: Nein | U137: Nein | V137: SOT | W137: Nein | X137: Nein | AA137: Nein
A138: E1006601S725010024000060151300001 | B138: DE0002147250100001002400006001513 | D138: Gammertingen | E138: Baden-Württemberg | F138: 72501 | G138: Papstdorfer Weg 6 | H138: 8437031 | I138: 10.98 | J138: Solar | K138: 2007-10-12 | P138: NS | Q138: Nein | R138: Nein | S138: Nicht regelbar | T138: Nein | U138: Nein | V138: SOT | W138: Nein | X138: Nein | AA138: Nein
A139: E1006601S725010024000060151400001 | B139: DE8002147250100001002400006001514 | D139: Gammertingen | E139: Baden-Württemberg | F139: 72501 | G139: Papstdorfer Weg 6 | H139: 8437031 | I139: 6.84 | J139: Solar/Gebäude | K139: 2010-09-30 | P139: NS | Q139: Nein | R139: Nein | S139: Nicht regelbar | T139: Nein | U139: Nein | V139: SOT | W139: Nein | X139: Nein | AA139: Nein
A140: E1006001S725010024200110000300001 | B140: DE0002147250100001002420011000003 | D140: Gammertingen | E140: Baden-Württemberg | F140: 72501 | G140: Potsdamer Str. 11 | H140: 8437031 | I140: 6.48 | J140: Solar/Gebäude | K140: 2014-12-23 | P140: NS | Q140: Ja (keine Belieferung Dritter) | R140: Nein | S140: 70%-Begrenzung | T140: Nein | U140: Nein | V140: SOT | W140: Nein | X140: Nein | AA140: Nein
A141: E1006001S725010024200040414700001 | B141: DE0002147250100001002420016004147 | D141: Gammertingen | E141: Baden-Württemberg | F141: 72501 | G141: Potsdamer Str. 4 | H141: 8437031 | I141: 7.595 | J141: Solar/Gebäude | K141: 2013-03-28 | P141: NS | Q141: Ja (keine Belieferung Dritter) | R141: Nein | S141: regelbar nach § 6 Abs. 2 EEG 2012 | T141: Nein | U141: Nein | V141: SOT | W141: Nein | X141: Nein | AA141: Nein
A142: E1006001S725010024200060000200001 | B142: DE8002147250100001002420006000002 | D142: Gammertingen | E142: Baden-Württemberg | F142: 72501 | G142: Potsdamer Str. 6 | H142: 8437031 | I142: 8.575 | J142: Solar/Gebäude | K142: 2011-11-18 | P142: NS | Q142: Nein | R142: Nein | S142: Nicht regelbar | T142: Nein | U142: Nein | V142: SOT | W142: Nein | X142: Nein | AA142: Nein
A143: E1006601S725010024200080000300001 | B143: DE0002147250100001002420008000003 | D143: Gammertingen | E143: Baden-Württemberg | F143: 72501 | G143: Potsdamer Str. 8 | H143: 8437031 | I143: 6.63 | J143: Solar | K143: 2008-12-22 | P143: NS | Q143: Nein | R143: Nein | S143: Nicht regelbar | T143: Nein | U143: Nein | V143: SOT | W143: Nein | X143: Nein | AA143: Nein
A144: E1006601S725010022300070110200001 | B144: DE0002147250100001002230007001102 | D144: Gammertingen | E144: Baden-Württemberg | F144: 72501 | G144: Raichbergweg 7 | H144: 8437031 | I144: 16.577 | J144: Solar/Gebäude | K144: 2010-04-09 | P144: NS | Q144: Nein | R144: Nein | S144: Nicht regelbar | T144: Nein | U144: Nein | V144: SOT | W144: Nein | X144: Nein | AA144: Nein
A145: E1006601S725010040800060251400001 | B145: DE0002147250100001004080006002514 | D145: Gammertingen | E145: Baden-Württemberg | F145: 72501 | G145: Reutlinger Str. 6 | H145: 8437031 | I145: 24.5 | J145: Solar | K145: 2007-09-29 | P145: NS | Q145: Nein | R145: Nein | S145: Nicht regelbar | T145: Nein | U145: Nein | V145: SOT | W145: Nein | X145: Nein | AA145: Nein
A146: E1006001S725010040800270000400001 | B146: DE0002147250100001004080027000004 | D146: Gammertingen | E146: Baden-Württemberg | F146: 72501 | G146: Reutlinger Str. 27 | H146: 8437031 | I146: 83.63 | J146: Solar/Gebäude | K146: 2016-10-07 | P146: NS | Q146: Ja (keine Belieferung Dritter) | R146: Nein | S146: regelbar nach § 9 Abs. 2 EEG 2014 | T146: Nein | U146: Nein | V146: SOT | W146: Nein | X146: Nein | AA146: Nein
A147: E1006001S725010031000010186300001 | B147: DE0002147250100001003100001001863 | D147: Gammertingen | E147: Baden-Württemberg | F147: 72501 | G147: Rilkeweg 1 | H147: 8437031 | I147: 4.875 | J147: Solar/Gebäude | K147: 2011-12-29 | P147: NS | Q147: Nein | R147: Nein | S147: Nicht regelbar | T147: Nein | U147: Nein | V147: SOT | W147: Nein | X147: Nein | AA147: Nein
A148: E1006601S725010020400030000200001 | B148: DE0002147250100001002040003000002 | D148: Gammertingen | E148: Baden-Württemberg | F148: 72501 | G148: Robert-Bosch-Str. 3 | H148: 8437031 | I148: 62.422 | J148: Solar | K148: 2008-06-23 | P148: NS | Q148: Nein | R148: Nein | S148: regelbar nach § 9 Abs. 2 EEG 2014 | T148: Nein | U148: Nein | V148: SOT | W148: Nein | X148: Nein | AA148: Nein
A149: E1006001S725010020400040065800001 | B149: DE0002147250100001002040004000658 | D149: Gammertingen | E149: Baden-Württemberg | F149: 72501 | G149: Robert-Bosch-Str. 4 | H149: 8437031 | I149: 9.87 | J149: Solar/Gebäude | K149: 2012-07-12 | P149: NS | Q149: Ja (keine Belieferung Dritter) | R149: Nein | S149: regelbar nach § 6 Abs. 2 EEG 2012 | T149: Nein | U149: Nein | V149: SOT | W149: Nein | X149: Nein | AA149: Nein
A150: E1006601S725010041550110404700001 | B150: DE0002147250100001004155011004047 | D150: Gammertingen | E150: Baden-Württemberg | F150: 72501 | G150: Robert-Seifert-Str. 11 | H150: 8437031 | I150: 3.52 | J150: Solar | K150: 2002-11-25 | P150: NS | Q150: Nein | R150: Nein | S150: Nicht regelbar | T150: Nein | U150: Nein | V150: SOT | W150: Nein | X150: Nein | AA150: Nein
A151: E1006601S725010041550140292700001 | B151: DE8002147250100001004155014002927 | D151: Gammertingen | E151: Baden-Württemberg | F151: 72501 | G151: Robert-Seifert-Str. 14 | H151: 8437031 | I151: 13.735 | J151: Solar/Gebäude | K151: 2010-09-23 | P151: NS | Q151: Nein | R151: Nein | S151: Nicht regelbar | T151: Nein | U151: Nein | V151: SOT | W151: Nein | X151: Nein | AA151: Nein
A152: E1006601S725010041550150292800001 | B152: DE0002147250100001004155015002928 | D152: Gammertingen | E152: Baden-Württemberg | F152: 72501 | G152: Robert-Seifert-Str. 15 | H152: 8437031 | I152: 7.48 | J152: Solar | K152: 2006-04-20 | P152: NS | Q152: Nein | R152: Nein | S152: Nicht regelbar | T152: Nein | U152: Nein | V152: SOT | W152: Nein | X152: Nein | AA152: Nein
A153: E1006601S725010041550190293300001 | B153: DE0002147250100001004155019002933 | D153: Gammertingen | E153: Baden-Württemberg | F153: 72501 | G153: Robert-Seifert-Str. 19 | H153: 8437031 | I153: 9.24 | J153: Solar/Gebäude | K153: 2010-06-29 | P153: NS | Q153: Nein | R153: Nein | S153: Nicht regelbar | T153: Nein | U153: Nein | V153: SOT | W153: Nein | X153: Nein | AA153: Nein
A154: E1006601S725010041550340418800001 | B154: DE0002147250100001004155034004188 | D154: Gammertingen | E154: Baden-Württemberg | F154: 72501 | G154: Robert-Seifert-Str. 34 | H154: 8437031 | I154: 2 | J154: Solar | K154: 2003-05-20 | P154: NS | Q154: Nein | R154: Nein | S154: Nicht regelbar | T154: Nein | U154: Nein | V154: SOT | W154: Nein | X154: Nein | AA154: Nein
A155: E1006601S725010041550350294900001 | B155: DE0002147250100001004155035002949 | D155: Gammertingen | E155: Baden-Württemberg | F155: 72501 | G155: Robert-Seifert-Str. 35 | H155: 8437031 | I155: 10.58 | J155: Solar/Gebäude | K155: 2009-03-24 | P155: NS | Q155: Nein | R155: Nein | S155: Nicht regelbar | T155: Nein | U155: Nein | V155: SOT | W155: Nein | X155: Nein | AA155: Nein
A156: E1006601S725010041550040291300001 | B156: DE0002147250100001004155004002913 | D156: Gammertingen | E156: Baden-Württemberg | F156: 72501 | G156: Robert-Seifert-Str. 4 | H156: 8437031 | I156: 8.46 | J156: Solar/Gebäude | K156: 2009-06-25 | P156: NS | Q156: Nein | R156: Nein | S156: Nicht regelbar | T156: Nein | U156: Nein | V156: SOT | W156: Nein | X156: Nein | AA156: Nein
A157: E1006601S725010041550450295600001 | B157: DE0002147250100001004155045002956 | D157: Gammertingen | E157: Baden-Württemberg | F157: 72501 | G157: Robert-Seifert-Str. 45 | H157: 8437031 | I157: 9.43 | J157: Solar/Gebäude | K157: 2010-06-01 | P157: NS | Q157: Nein | R157: Nein | S157: Nicht regelbar | T157: Nein | U157: Nein | V157: SOT | W157: Nein | X157: Nein | AA157: Nein
A158: E1006601S725010041550050291400001 | B158: DE8002147250100001004155005002914 | D158: Gammertingen | E158: Baden-Württemberg | F158: 72501 | G158: Robert-Seifert-Str. 5 | H158: 8437031 | I158: 13.475 | J158: Solar/Gebäude | K158: 2011-08-22 | P158: NS | Q158: Nein | R158: Nein | S158: Nicht regelbar | T158: Nein | U158: Nein | V158: SOT | W158: Nein | X158: Nein | AA158: Nein
A159: E1006601S725010041550070291700001 | B159: DE0002147250100001004155007002917 | D159: Gammertingen | E159: Baden-Württemberg | F159: 72501 | G159: Robert-Seifert-Str. 7 | H159: 8437031 | I159: 12.42 | J159: Solar/Gebäude | K159: 2009-03-12 | P159: NS | Q159: Nein | R159: Nein | S159: Nicht regelbar | T159: Nein | U159: Nein | V159: SOT | W159: Nein | X159: Nein | AA159: Nein
A160: E1006601S725010041550080291800001 | B160: DE0002147250100001004155008002918 | D160: Gammertingen | E160: Baden-Württemberg | F160: 72501 | G160: Robert-Seifert-Str. 8 | H160: 8437031 | I160: 10.2 | J160: Solar | K160: 2006-03-30 | P160: NS | Q160: Nein | R160: Nein | S160: Nicht regelbar | T160: Nein | U160: Nein | V160: SOT | W160: Nein | X160: Nein | AA160: Nein
A161: E1006601S725010023700030147700001 | B161: DE0002147250100001002370003001477 | D161: Gammertingen | E161: Baden-Württemberg | F161: 72501 | G161: Rostocker Str. 3 | H161: 8437031 | I161: 10.08 | J161: Solar/Gebäude | K161: 2010-06-25 | P161: NS | Q161: Nein | R161: Nein | S161: Nicht regelbar | T161: Nein | U161: Nein | V161: SOT | W161: Nein | X161: Nein | AA161: Nein
A162: E1006001S725010023700050000100001 | B162: DE8002147250100001002370005000001 | D162: Gammertingen | E162: Baden-Württemberg | F162: 72501 | G162: Rostocker Str. 5 | H162: 8437031 | I162: 11.96 | J162: Solar/Gebäude | K162: 2011-07-05 | P162: NS | Q162: Nein | R162: Nein | S162: Nicht regelbar | T162: Nein | U162: Nein | V162: SOT | W162: Nein | X162: Nein | AA162: Nein
A163: E1006601S725010011100020387200001 | B163: DE0002147250100001001110002003872 | D163: Gammertingen | E163: Baden-Württemberg | F163: 72501 | G163: Roter Dill 2 | H163: 8437031 | I163: 1.92 | J163: Solar | K163: 2002-04-30 | P163: NS | Q163: Nein | R163: Nein | S163: Nicht regelbar | T163: Nein | U163: Nein | V163: SOT | W163: Nein | X163: Nein | AA163: Nein
A164: E1006601S725010011100020387200002 | B164: DE0002147250100001001110002003872 | D164: Gammertingen | E164: Baden-Württemberg | F164: 72501 | G164: Roter Dill 2 | H164: 8437031 | I164: 1.92 | J164: Solar | K164: 2004-05-19 | P164: NS | Q164: Nein | R164: Nein | S164: Nicht regelbar | T164: Nein | U164: Nein | V164: SOT | W164: Nein | X164: Nein | AA164: Nein
A165: E1006001S725010042700120319600001 | B165: DE8002147250100001004270012003196 | D165: Gammertingen | E165: Baden-Württemberg | F165: 72501 | G165: Salierstr. 12 | H165: 8437031 | I165: 10.92 | J165: Solar/Gebäude | K165: 2011-10-19 | P165: NS | Q165: Nein | R165: Nein | S165: Nicht regelbar | T165: Nein | U165: Nein | V165: SOT | W165: Nein | X165: Nein | AA165: Nein
A166: E1006601S725010042700170342900001 | B166: DE0002147250100001004270017003429 | D166: Gammertingen | E166: Baden-Württemberg | F166: 72501 | G166: Salierstr. 17 | H166: 8437031 | I166: 7.35 | J166: Solar/Gebäude | K166: 2009-05-26 | P166: NS | Q166: Nein | R166: Nein | S166: Nicht regelbar | T166: Nein | U166: Nein | V166: SOT | W166: Nein | X166: Nein | AA166: Nein
A167: E1006001S725010042700210000300001 | B167: DE0002147250100001004270021000003 | D167: Gammertingen | E167: Baden-Württemberg | F167: 72501 | G167: Salierstr. 21 | H167: 8437031 | I167: 12.495 | J167: Solar/Gebäude | K167: 2012-03-30 | P167: NS | Q167: Ja (keine Belieferung Dritter) | R167: Nein | S167: regelbar nach § 6 Abs. 2 EEG 2012 | T167: Nein | U167: Nein | V167: SOT | W167: Nein | X167: Nein | AA167: Nein
A168: E1006601S725010022700240358500001 | B168: DE0002147250100001002270024003585 | D168: Gammertingen | E168: Baden-Württemberg | F168: 72501 | G168: Salierstr. 24 | H168: 8437031 | I168: 9.45 | J168: Solar/Gebäude | K168: 2010-04-14 | P168: NS | Q168: Nein | R168: Nein | S168: Nicht regelbar | T168: Nein | U168: Nein | V168: SOT | W168: Nein | X168: Nein | AA168: Nein
A169: E1006601S725010020200110058700001 | B169: DE0002147250100001002020011000587 | D169: Gammertingen | E169: Baden-Württemberg | F169: 72501 | G169: Schelmengartenstr. 11 | H169: 8437031 | I169: 8.575 | J169: Solar | K169: 2006-07-10 | P169: NS | Q169: Nein | R169: Nein | S169: Nicht regelbar | T169: Nein | U169: Nein | V169: SOT | W169: Nein | X169: Nein | AA169: Nein
A170: E1006601S725010020200150059000001 | B170: DE0002147250100001002020015000590 | D170: Gammertingen | E170: Baden-Württemberg | F170: 72501 | G170: Schelmengartenstr. 15 | H170: 8437031 | I170: 6.12 | J170: Solar/Gebäude | K170: 2010-06-29 | P170: NS | Q170: Nein | R170: Nein | S170: Nicht regelbar | T170: Nein | U170: Nein | V170: SOT | W170: Nein | X170: Nein | AA170: Nein
A171: E1006601S725010020200090058500001 | B171: DE0002147250100001002020009000585 | D171: Gammertingen | E171: Baden-Württemberg | F171: 72501 | G171: Schelmengartenstr. 9 | H171: 8437031 | I171: 7.98 | J171: Solar | K171: 2007-12-27 | P171: NS | Q171: Nein | R171: Nein | S171: Nicht regelbar | T171: Nein | U171: Nein | V171: SOT | W171: Nein | X171: Nein | AA171: Nein
A172: E1006601S725010030500010171400001 | B172: DE0002147250100001003050001001714 | D172: Gammertingen | E172: Baden-Württemberg | F172: 72501 | G172: Schillerstr. 1/1 | H172: 8437031 | I172: 6.3 | J172: Solar/Gebäude | K172: 2009-12-30 | P172: NS | Q172: Nein | R172: Nein | S172: Nicht regelbar | T172: Nein | U172: Nein | V172: SOT | W172: Nein | X172: Nein | AA172: Nein
A173: E1006601S725010030500010171500001 | B173: DE0002147250100001003050001001715 | D173: Gammertingen | E173: Baden-Württemberg | F173: 72501 | G173: Schillerstr. 1/1 | H173: 8437031 | I173: 6.3 | J173: Solar/Gebäude | K173: 2009-12-31 | P173: NS | Q173: Nein | R173: Nein | S173: Nicht regelbar | T173: Nein | U173: Nein | V173: SOT | W173: Nein | X173: Nein | AA173: Nein
A174: E1006601S725010030500190175400001 | B174: DE0002147250100001003050019001754 | D174: Gammertingen | E174: Baden-Württemberg | F174: 72501 | G174: Schillerstr. 19 | H174: 8437031 | I174: 4.73 | J174: Solar | K174: 2005-06-13 | P174: NS | Q174: Nein | R174: Nein | S174: Nicht regelbar | T174: Nein | U174: Nein | V174: SOT | W174: Nein | X174: Nein | AA174: Nein
A175: E1006601S725010030500220176000001 | B175: DE0002147250100001003050022001760 | D175: Gammertingen | E175: Baden-Württemberg | F175: 72501 | G175: Schillerstr. 22 | H175: 8437031 | I175: 7.56 | J175: Solar | K175: 2008-12-12 | P175: NS | Q175: Nein | R175: Nein | S175: Nicht regelbar | T175: Nein | U175: Nein | V175: SOT | W175: Nein | X175: Nein | AA175: Nein
A176: E1006601S725010030500050172100001 | B176: DE0002147250100001003050005001721 | D176: Gammertingen | E176: Baden-Württemberg | F176: 72501 | G176: Schillerstr. 5 | H176: 8437031 | I176: 8.65 | J176: Solar | K176: 2007-06-20 | P176: NS | Q176: Nein | R176: Nein | S176: Nicht regelbar | T176: Nein | U176: Nein | V176: SOT | W176: Nein | X176: Nein | AA176: Nein
A177: E1006001S725010030500030171800001 | B177: DE8002147250100001003050003001718 | D177: Gammertingen | E177: Baden-Württemberg | F177: 72501 | G177: Schillerstraße 3 | H177: 8437031 | I177: 7.25 | J177: Solar/Gebäude | K177: 2011-10-11 | P177: NS | Q177: Nein | R177: Nein | S177: Nicht regelbar | T177: Nein | U177: Nein | V177: SOT | W177: Nein | X177: Nein | AA177: Nein
A178: E1006001S725010011300060051900001 | B178: DE8002147250100001001130006000519 | D178: Gammertingen | E178: Baden-Württemberg | F178: 72501 | G178: Schwedengasse 6 | H178: 8437031 | I178: 18.845 | J178: Solar/Gebäude | K178: 2011-12-05 | P178: NS | Q178: Nein | R178: Nein | S178: Nicht regelbar | T178: Nein | U178: Nein | V178: SOT | W178: Nein | X178: Nein | AA178: Nein
A179: E1006601W725010011300060051800001 | B179: DE0002147250100001001130006000518 | D179: Gammertingen | E179: Baden-Württemberg | F179: 72501 | G179: Schwedengasse 6 | H179: 8437031 | I179: 40 | J179: Wasser | K179: 1950-01-15 | O179: 2012-01-10 | P179: NS | Q179: Nein | R179: Nein | S179: Nicht regelbar | T179: Ja | U179: Nein | V179: WAL | W179: Nein | X179: Nein | AA179: Nein
A180: E1006001S725010023600110410000001 | B180: DE0002147250100001002360011004100 | D180: Gammertingen | E180: Baden-Württemberg | F180: 72501 | G180: Schweriner Str. 11 | H180: 8437031 | I180: 3.975 | J180: Solar/Gebäude | K180: 2012-08-16 | P180: NS | Q180: Ja (keine Belieferung Dritter) | R180: Nein | S180: regelbar nach § 6 Abs. 2 EEG 2012 | T180: Nein | U180: Nein | V180: SOT | W180: Nein | X180: Nein | AA180: Nein
A181: E1006601S725010023600110409900001 | B181: DE0002147250100001002360011004099 | D181: Gammertingen | E181: Baden-Württemberg | F181: 72501 | G181: Schweriner Str. 11 | H181: 8437031 | I181: 3.23 | J181: Solar | K181: 2002-12-23 | P181: NS | Q181: Nein | R181: Nein | S181: Nicht regelbar | T181: Nein | U181: Nein | V181: SOT | W181: Nein | X181: Nein | AA181: Nein
A182: E1006601S725010023600210146900001 | B182: DE0002147250100001002360021001469 | D182: Gammertingen | E182: Baden-Württemberg | F182: 72501 | G182: Schweriner Str. 21 | H182: 8437031 | I182: 15.4 | J182: Solar/Gebäude | K182: 2009-12-30 | P182: NS | Q182: Nein | R182: Nein | S182: Nicht regelbar | T182: Nein | U182: Nein | V182: SOT | W182: Nein | X182: Nein | AA182: Nein
A183: E1006001S725010040900350270800001 | B183: DE0002147250100001004090035002708 | D183: Gammertingen | E183: Baden-Württemberg | F183: 72501 | G183: Sigmaringer Str. 35 | H183: 8437031 | I183: 12.48 | J183: Solar/Gebäude | K183: 2012-10-28 | P183: NS | Q183: Ja (keine Belieferung Dritter) | R183: Nein | S183: regelbar nach § 6 Abs. 2 EEG 2012 | T183: Nein | U183: Nein | V183: SOT | W183: Nein | X183: Nein | AA183: Nein
A184: E1006601S725010040900420000700001 | B184: DE0002147250100001004090042000007 | D184: Gammertingen | E184: Baden-Württemberg | F184: 72501 | G184: Sigmaringer Str. 42 | H184: 8437031 | I184: 59.68 | J184: Solar/Gebäude | K184: 2009-12-04 | P184: NS | Q184: Nein | R184: Nein | S184: regelbar nach § 9 Abs. 2 EEG 2014 | T184: Nein | U184: Nein | V184: SOT | W184: Nein | X184: Nein | AA184: Nein
A185: E1006601S725010040900440272500001 | B185: DE0002147250100001004090044002725 | D185: Gammertingen | E185: Baden-Württemberg | F185: 72501 | G185: Sigmaringer Str. 44 | H185: 8437031 | I185: 80.33 | J185: Solar/Gebäude | K185: 2009-12-30 | P185: NS | Q185: Nein | R185: Nein | S185: regelbar nach § 9 Abs. 2 EEG 2014 | T185: Nein | U185: Nein | V185: SOT | W185: Nein | X185: Nein | AA185: Nein
A186: E1006601S725010040900570274700001 | B186: DE0002147250100001004090057002747 | D186: Gammertingen | E186: Baden-Württemberg | F186: 72501 | G186: Sigmaringer Str. 57 | H186: 8437031 | I186: 6.4 | J186: Solar | K186: 2003-11-04 | P186: NS | Q186: Nein | R186: Nein | S186: Nicht regelbar | T186: Nein | U186: Nein | V186: SOT | W186: Nein | X186: Nein | AA186: Nein
A187: E1006601S725010040900570274800001 | B187: DE0002147250100001004090057002748 | D187: Gammertingen | E187: Baden-Württemberg | F187: 72501 | G187: Sigmaringer Str. 57 | H187: 8437031 | I187: 6.3 | J187: Solar | K187: 2005-08-12 | P187: NS | Q187: Nein | R187: Nein | S187: Nicht regelbar | T187: Nein | U187: Nein | V187: SOT | W187: Nein | X187: Nein | AA187: Nein
A188: E1006601S725010040900570274900001 | B188: DE0002147250100001004090057002749 | D188: Gammertingen | E188: Baden-Württemberg | F188: 72501 | G188: Sigmaringer Str. 57 | H188: 8437031 | I188: 16.2 | J188: Solar | K188: 2006-11-13 | P188: NS | Q188: Nein | R188: Nein | S188: Nicht regelbar | T188: Nein | U188: Nein | V188: SOT | W188: Nein | X188: Nein | AA188: Nein
A189: E1006001S725010040900630275800001 | B189: DE0002147250100001004090063002758 | D189: Gammertingen | E189: Baden-Württemberg | F189: 72501 | G189: Sigmaringer Str. 63 | H189: 8437031 | I189: 17.28 | J189: Solar/Gebäude | K189: 2013-05-31 | P189: NS | Q189: Ja (keine Belieferung Dritter) | R189: Nein | S189: regelbar nach § 6 Abs. 2 EEG 2012 | T189: Nein | U189: Nein | V189: SOT | W189: Nein | X189: Nein | AA189: Nein
A190: E1006601S725010040900730277100001 | B190: DE0002147250100001004090073002771 | D190: Gammertingen | E190: Baden-Württemberg | F190: 72501 | G190: Sigmaringer Str. 73 | H190: 8437031 | I190: 1 | J190: Solar | K190: 2006-07-06 | P190: NS | Q190: Nein | R190: Nein | S190: Nicht regelbar | T190: Nein | U190: Nein | V190: SOT | W190: Nein | X190: Nein | AA190: Nein
A191: E1006601S725010040900790278000001 | B191: DE0002147250100001004090079002780 | D191: Gammertingen | E191: Baden-Württemberg | F191: 72501 | G191: Sigmaringer Str. 79 | H191: 8437031 | I191: 30.015 | J191: Solar | K191: 2008-12-04 | P191: NS | Q191: Nein | R191: Nein | S191: regelbar nach § 9 Abs. 2 EEG 2014 | T191: Nein | U191: Nein | V191: SOT | W191: Nein | X191: Nein | AA191: Nein
A192: E1006601S725010040900790278200001 | B192: DE8002147250100001004090079002782 | D192: Gammertingen | E192: Baden-Württemberg | F192: 72501 | G192: Sigmaringer Str. 79 | H192: 8437031 | I192: 29 | J192: Solar/Gebäude | K192: 2011-07-05 | P192: NS | Q192: Nein | R192: Nein | S192: Nicht regelbar | T192: Nein | U192: Nein | V192: SOT | W192: Nein | X192: Nein | AA192: Nein
A193: E1006601S725010040900790278100001 | B193: DE0002147250100001004090079002781 | D193: Gammertingen | E193: Baden-Württemberg | F193: 72501 | G193: Sigmaringer Str. 79a | H193: 8437031 | I193: 10.56 | J193: Solar/Gebäude | K193: 2010-05-21 | P193: NS | Q193: Nein | R193: Nein | S193: Nicht regelbar | T193: Nein | U193: Nein | V193: SOT | W193: Nein | X193: Nein | AA193: Nein
A194: E1006001S725010031800150000100001 | B194: DE0002147250100001003180015000001 | D194: Gammertingen | E194: Baden-Württemberg | F194: 72501 | G194: Silcherstr. 15 | H194: 8437031 | I194: 5.3 | J194: Solar/Gebäude | K194: 2015-10-31 | P194: NS | Q194: Ja (keine Belieferung Dritter) | R194: Nein | S194: 70%-Begrenzung | T194: Nein | U194: Ja | V194: SOT | W194: Nein | X194: Nein | AA194: Nein
A195: E1006001S725010021900080101800001 | B195: DE0002147250100001002190008001018 | D195: Gammertingen | E195: Baden-Württemberg | F195: 72501 | G195: Stauffenweg 8 | H195: 8437031 | I195: 5.1 | J195: Solar/Gebäude | K195: 2014-01-29 | P195: NS | Q195: Ja (keine Belieferung Dritter) | R195: Nein | S195: regelbar nach § 6 Abs. 2 EEG 2012 | T195: Nein | U195: Nein | V195: SOT | W195: Nein | X195: Nein | AA195: Nein
A196: E1006601S725010022200080109300001 | B196: DE8002147250100001002220008001093 | D196: Gammertingen | E196: Baden-Württemberg | F196: 72501 | G196: Steinbeissstr. 8 | H196: 8437031 | I196: 10.34 | J196: Solar/Gebäude | K196: 2010-12-15 | P196: NS | Q196: Nein | R196: Nein | S196: Nicht regelbar | T196: Nein | U196: Nein | V196: SOT | W196: Nein | X196: Nein | AA196: Nein
A197: E1006601S725010022200070000200001 | B197: DE8002147250100001002220007000002 | D197: Gammertingen | E197: Baden-Württemberg | F197: 72501 | G197: Steinbeisstr. 7 | H197: 8437031 | I197: 83.43 | J197: Solar/Gebäude | K197: 2011-06-06 | P197: MS | Q197: Nein | R197: Nein | S197: regelbar nach § 9 Abs. 2 EEG 2014 | T197: Ja | U197: Nein | V197: SOL | W197: Nein | X197: Nein | AA197: Nein
A198: E1006001S725010020600130072200001 | B198: DE0002147250100001002060013000722 | D198: Gammertingen | E198: Baden-Württemberg | F198: 72501 | G198: Tannenweg 13 | H198: 8437031 | I198: 9.555 | J198: Solar/Gebäude | K198: 2012-10-18 | P198: NS | Q198: Ja (keine Belieferung Dritter) | R198: Nein | S198: regelbar nach § 6 Abs. 2 EEG 2012 | T198: Nein | U198: Nein | V198: SOT | W198: Nein | X198: Nein | AA198: Nein
A199: E1006601S725010022100180108000001 | B199: DE0002147250100001002210018001080 | D199: Gammertingen | E199: Baden-Württemberg | F199: 72501 | G199: Teckstr. 18 | H199: 8437031 | I199: 6.84 | J199: Solar | K199: 2008-08-06 | P199: NS | Q199: Nein | R199: Nein | S199: Nicht regelbar | T199: Nein | U199: Nein | V199: SOT | W199: Nein | X199: Nein | AA199: Nein
A200: E1006001S725010022100190108200001 | B200: DE0002147250100001002210019001082 | D200: Gammertingen | E200: Baden-Württemberg | F200: 72501 | G200: Teckstr. 19 | H200: 8437031 | I200: 5.88 | J200: Solar/Gebäude | K200: 2011-12-12 | P200: NS | Q200: Ja (keine Belieferung Dritter) | R200: Nein | S200: Nicht regelbar | T200: Nein | U200: Nein | V200: SOT | W200: Nein | X200: Nein | AA200: Nein
A201: E1006001S725010022100220000200001 | B201: DE0002147250100001002210022000002 | D201: Gammertingen | E201: Baden-Württemberg | F201: 72501 | G201: Teckstr. 22 | H201: 8437031 | I201: 7.14 | J201: Solar/Gebäude | K201: 2012-06-29 | P201: NS | Q201: Ja (keine Belieferung Dritter) | R201: Nein | S201: regelbar nach § 6 Abs. 2 EEG 2012 | T201: Nein | U201: Nein | V201: SOT | W201: Nein | X201: Nein | AA201: Nein
A202: E1006601S725010030800020183300001 | B202: DE0002147250100001003080002001833 | D202: Gammertingen | E202: Baden-Württemberg | F202: 72501 | G202: Uhlandstr. 6 | H202: 8437031 | I202: 7.2 | J202: Solar | K202: 2006-09-26 | P202: NS | Q202: Nein | R202: Nein | S202: Nicht regelbar | T202: Nein | U202: Nein | V202: SOT | W202: Nein | X202: Nein | AA202: Nein
A203: E1006601S725010030800060184200001 | B203: DE0002147250100001003080006001842 | D203: Gammertingen | E203: Baden-Württemberg | F203: 72501 | G203: Uhlandstr. 6 | H203: 8437031 | I203: 6.3 | J203: Solar/Gebäude | K203: 2009-12-21 | P203: NS | Q203: Nein | R203: Nein | S203: Nicht regelbar | T203: Nein | U203: Nein | V203: SOT | W203: Nein | X203: Nein | AA203: Nein
... 3 more rows

Sheet Direktvermarktung
A3: Netzbetreiber : | B3: =Deckblatt!C11 -> Gammertinger Energie- und Wasserversorgung GmbH
B5: Prozentualer Anteil der direkt vermarkteten Anlagen in der Marktprämie | N5: Prozentualer Anteil der Anlagen in der Ausfallvermarktung | Z5: Prozentualer Anteil der direkt vermarkteten Anlagen in der sonstigen Direktvermarktung
A6: Anlagenschlüssel | B6: Monat Januar 2016 | C6: Monat Februar 2016 | D6: Monat März 2016 | E6: Monat April 2016 | F6: Monat Mai 2016 | G6: Monat Juni 2016 | H6: Monat Juli 2016 | I6: Monat August 2016 | J6: Monat September 2016 | K6: Monat Oktober 2016 | L6: Monat November 2016 | M6: Monat Dezember 2016 | N6: Monat Januar 2016 | O6: Monat Februar 2016 | P6: Monat März 2016 | Q6: Monat April 2016 | R6: Monat Mai 2016 | S6: Monat Juni 2016 | T6: Monat Juli 2016 | U6: Monat August 2016 | V6: Monat September 2016 | W6: Monat Oktober 2016 | X6: Monat November 2016 | Y6: Monat Dezember 2016 | Z6: Monat Januar 2016 | AA6: Monat Februar 2016 | AB6: Monat März 2016 | AC6: Monat April 2016 | AD6: Monat Mai 2016 | AE6: Monat Juni 2016 | AF6: Monat Juli 2016 | AG6: Monat August 2016 | AH6: Monat September 2016 | AI6: Monat Oktober 2016 | AJ6: Monat November 2016 | AK6: Monat Dezember 2016

Sheet Einspeisevergütung_Sonst
G1: =Deckblatt!H1 -> 2017-05-05
A3: Netzbetreiber : | B3: =Deckblatt!C11 -> Gammertinger Energie- und Wasserversorgung GmbH
A5: Anlagenschlüssel | B5: Vergütungskategorie (Festvergütung, Eigenverbrauch oder sonstige Direktvermarktung) | C5: Monat, in dem Strommeng erzeugt bzw. gewälzt wurde | D5: erzeugte Strommenge in der jeweiligen Vergütungskategorie [kWh] | E5: tatsächlich ausbezahlte EEG-Mindestvergütung für Kategorien ohne festen Vergütungssatz [€] | F5: Vergütungssatz der angegebenen Kategorie [ct/kWh) | G5: berechnete EEG-Mindestvergütung [€]
A6: Pflichfeld | B6: Pflichtfeld (Kategorien | C6: Pflichtfeld bei Kategorien, die mit Marktwert zu vergüten sind (...MW) | D6: Pflichfeld | E6: Pflichtfeld bei Kategorien ohne festen Vergütungssatz
A7: E1006601S725010021200160359400001 | B7: SoK81a------01 | D7: 903 | F7: 50.62 | G7: 457.1
A8: E1006601S725010021200030087200001 | B8: SgK330------09 | D8: 11448 | F8: 43.01 | G8: 4923.78
A9: E1006601S725010021200050000200001 | B9: SoK111------08 | D9: 6937 | F9: 46.75 | G9: 3243.05
A10: E1006001S725010021200090088700001 | B10: SgK330------12 | D10: 3283 | F10: 24.43 | G10: 802.04
A11: E1006001S725010021200090088700001 | B11: SgK33410----12 | D11: 1127 | F11: 24.43 | G11: 275.33
A12: E1006001S725010021200090088700001 | B12: SgK33420----12 | D12: -1127 | F12: 16.38 | G12: -184.6
A13: E1006601S725010041200040282000001 | B13: SgK330------10 | D13: 24383 | F13: 39.14 | G13: 9543.51
A14: E1006601S725010010100250003300001 | B14: SoK111------06 | D14: 5876 | F14: 51.8 | G14: 3043.77
A15: E1006601S725010010100080000100001 | B15: SgK330---Jul10 | D15: 3420 | F15: 34.05 | G15: 1164.51
A16: E1006001S725010021800030363100001 | B16: SgK330------11 | D16: 2394 | F16: 28.74 | G16: 688.04
A17: E1006601S725010021800030363100001 | B17: SoK81a------01 | D17: 2123 | F17: 50.62 | G17: 1074.66
A18: E1006601S725010021800050010400001 | B18: SoK111------08 | D18: 5763 | F18: 46.75 | G18: 2694.2
A19: E1006601S725010021800080100600001 | B19: SgK330------11 | D19: 8077 | F19: 28.74 | G19: 2321.33
A20: E1006601S725010010200100409400001 | B20: SoK81a------02 | D20: 2495 | F20: 48.1 | G20: 1200.1
A21: E1006601S725010022600170117100001 | B21: SoK111------05 | D21: 4054 | F21: 54.53 | G21: 2210.65
A22: E1006601S725010022600290118700001 | B22: SgK330------11 | D22: 2522 | F22: 28.74 | G22: 724.82
A23: E1006601S725010022600290118700001 | B23: SgK33410----11 | D23: 1783 | F23: 28.74 | G23: 512.43
A24: E1006601S725010022600290118700001 | B24: SgK33420----11 | D24: -1292 | F24: 16.38 | G24: -211.63
A25: E1006601S725010022600290118700001 | B25: SgK33430----11 | D25: -491 | F25: 12 | G25: -58.92
A26: E1006601S725010022600030114300001 | B26: SoK81a------01 | D26: 1647 | F26: 50.62 | G26: 833.71
A27: E1006601S725010022600060114900001 | B27: SoK81a------03 | D27: 2813 | F27: 45.7 | G27: 1285.54
A28: E1006601S725010022600080345200001 | B28: SoK81a------01 | D28: 1681 | F28: 50.62 | G28: 850.92
A29: E1006601S725010022600080345200002 | B29: SoK111------07 | D29: 1749 | F29: 49.21 | G29: 860.68
A30: E1006601S725010031700030232100001 | B30: SoK81a------03 | D30: 3191 | F30: 45.7 | G30: 1458.29
A31: E1006001S725010021000130084900001 | B31: SgK330------11 | D31: 12675 | F31: 28.74 | G31: 3642.8
A32: E1006001S725010031400040202900001 | B32: SgK330------12 | D32: 9253 | F32: 24.43 | G32: 2260.51
A33: E1006001S725010031400040202900001 | B33: SgK33410----12 | D33: 924 | F33: 24.43 | G33: 225.73
A34: E1006001S725010031400040202900001 | B34: SgK33420----12 | D34: -924 | F34: 16.38 | G34: -151.35
A35: E1006001S725010022700190122600001 | B35: SgK3220--Jul12 | D35: 2521 | F35: 18.92 | G35: 476.97
A36: E1006601S725010022700310125400001 | B36: SgK330------09 | D36: 5762 | F36: 43.01 | G36: 2478.24
A37: E1006001S725010022700070120500001 | B37: SgK330------11 | D37: 9526 | F37: 28.74 | G37: 2737.77
A38: E1006601S725010041700010385300001 | B38: SoK81a------02 | D38: 1875 | F38: 48.1 | G38: 901.88
A39: E1006601S725010041700160300700001 | B39: SgK330---Okt10 | D39: 3563 | F39: 33.03 | G39: 1176.86
A40: E1006001S725010041700040299200001 | B40: SgK330------11 | D40: 8774 | F40: 28.74 | G40: 2521.65
A41: E1006601S725010041700050299200001 | B41: SoK81a------03 | D41: 8769 | F41: 45.7 | G41: 4007.43
A42: E1006601S725010041700070299700001 | B42: SoK81a------01 | D42: 1959 | F42: 50.62 | G42: 991.65
A43: E1006601S725010021100100086100001 | B43: SoK111------06 | D43: 6168 | F43: 51.8 | G43: 3195.02
A44: E1006601S725010021100030085200001 | B44: SgK330---Jul10 | D44: 7716 | F44: 34.05 | G44: 2627.3
A45: E1006601S725010023100140403100001 | B45: SgK330------10 | D45: 28618 | F45: 39.14 | G45: 11201.09
A46: E1006601S725010023100220000100001 | B46: SgK330------10 | D46: 18370.8 | F46: 39.14 | G46: 7190.33
A47: E1006601S725010023100220000100001 | B47: SgK331------10 | D47: 42865.1 | F47: 37.23 | G47: 15958.68
A48: E1006601S725010023100220000100001 | B48: SgK332------10 | D48: 15664.1 | F48: 35.23 | G48: 5518.46
A49: E1006601S725010023100220000300001 | B49: SgK332---Okt10 | D49: 466600 | F49: 29.73 | G49: 138720.18
A50: E1006001S725010023100050135800001 | B50: SgK330------11 | D50: 26558 | F50: 28.74 | G50: 7632.77
A51: E1006601S725010023100060000200001 | B51: SgK330------11 | D51: 29998 | F51: 28.74 | G51: 8621.43
A52: E1006601S725010023100060000200001 | B52: SgK331------11 | D52: 360 | F52: 27.33 | G52: 98.39
A53: E1006601S725010023100080400000001 | B53: SoK111------07 | D53: 30726.9 | F53: 49.21 | G53: 15120.71
A54: E1006601S725010023100080400000001 | B54: SoK112------07 | D54: 1229.1 | F54: 46.82 | G54: 575.46
A55: E1006601S725010023100090405700001 | B55: SgK330------10 | D55: 11857 | F55: 39.14 | G55: 4640.83
A56: E1006001S725010042200010313800001 | B56: SgK3220--Okt12 | D56: 10579 | F56: 18.36 | G56: 1942.3
A57: E1006001S725010042200060314100001 | B57: SgK3220--Mai12 | D57: 3853 | F57: 19.31 | G57: 744.01
A58: E1006001S725010020300060000100001 | B58: SgK5120--Nov16 | D58: 31 | F58: 12.31 | G58: 3.82
A59: E1006601S725010020300100064100001 | B59: SoK111------05 | D59: 4735 | F59: 54.53 | G59: 2582
A60: E1006601S725010020300100064200001 | B60: SgK330------09 | D60: 7437 | F60: 43.01 | G60: 3198.65
A61: E1006601S725010020300150064900001 | B61: SoK111------07 | D61: 13145 | F61: 49.21 | G61: 6468.65
A62: E1006601S725010020300150065000001 | B62: SgK330------10 | D62: 18331 | F62: 39.14 | G62: 7174.75
A63: E1006601S725010020300150065100001 | B63: SgK330------10 | D63: 8845 | F63: 39.14 | G63: 3461.93
A64: E1006001S725010020300030063100001 | B64: SgK3220--Mai13 | D64: 3950 | F64: 15.63 | G64: 617.39
A65: E1006001S725010022900020366400001 | B65: SgK330------11 | D65: 10854 | F65: 28.74 | G65: 3119.44
A66: E1006601S725010022900020366200001 | B66: SoK81a------01 | D66: 7080 | F66: 50.62 | G66: 3583.9
A67: E1006601S725010022900020366300001 | B67: SoK111------04 | D67: 1377 | F67: 57.4 | G67: 790.4
A68: E1006601S725010022900030129700001 | B68: SgK330------09 | D68: 4868 | F68: 43.01 | G68: 2093.73
A69: E1006601S725010022900030129800001 | B69: SgK330------09 | D69: 4929 | F69: 43.01 | G69: 2119.96
A70: E1006001S725010022900060130300001 | B70: SgK330------11 | D70: 28351 | F70: 28.74 | G70: 8148.08
A71: E1006601S725010023500140143000001 | B71: SgK330------10 | D71: 14053 | F71: 39.14 | G71: 5500.34
A72: E1006001S725010023500240144600001 | B72: SgK33a2-----SV | D72: 2323 | F72: 0 | G72: 0
A73: E1006001S725010023500240144600001 | B73: SgK3220--Jul12 | D73: 9614.1 | F73: 18.92 | G73: 1818.99
A74: E1006001S725010023500240144600001 | B74: SgK3221--Jul12 | D74: 999.9 | F74: 17.95 | G74: 179.48
A75: E1006601S725010023500260144800001 | B75: SoK111------04 | D75: 6233 | F75: 57.4 | G75: 3577.74
A76: E1006601S725010023500280144900001 | B76: SgK330------09 | D76: 11351 | F76: 43.01 | G76: 4882.07
A77: E1006001S725010023500420000400001 | B77: SgK3220--Mai14 | D77: 3379 | F77: 13.14 | G77: 444
A78: E1006001S725010023500050000300001 | B78: SgK3220--Jan13 | D78: 6542 | F78: 17.02 | G78: 1113.45
A79: E1006601S725010023500090141700001 | B79: SoK111------07 | D79: 7588 | F79: 49.21 | G79: 3734.05
A80: E1006001S725010024100110000300001 | B80: SgK3220--Jun14 | D80: 5643 | F80: 13.01 | G80: 734.15
A81: E1006001S725010031100020000400001 | B81: SgK5120--Apr15 | D81: 3335 | F81: 12.47 | G81: 415.87
A82: E1006601S725010031100250191100001 | B82: SgK330---Okt10 | D82: 5854 | F82: 33.03 | G82: 1933.58
A83: E1006601S725010031100040188200001 | B83: SoK111------08 | D83: 6456 | F83: 46.75 | G83: 3018.18
A84: E1006601S725010031100040188300001 | B84: SgK330------09 | D84: 4497 | F84: 43.01 | G84: 1934.16
A85: E1006601S725010023900050149600001 | B85: SoK111------08 | D85: 8470 | F85: 46.75 | G85: 3959.73
A86: E1006601S725010020800130076900001 | B86: SgK330------10 | D86: 24016 | F86: 39.14 | G86: 9399.86
A87: E1006001S725010020800170000100001 | B87: SgK5120--Jun15 | D87: 1635 | F87: 12.4 | G87: 202.74
A88: E1006001S725010020800250079200001 | B88: SgK330------11 | D88: 6333 | F88: 28.74 | G88: 1820.1
A89: E1006001S725010020800080076100001 | B89: SgK330------11 | D89: 11480 | F89: 28.74 | G89: 3299.35
A90: E1006001S725010020100160057100001 | B90: SgK5120--Jun16 | D90: 860 | F90: 12.31 | G90: 105.87
A91: E1006601S725010022400110111500001 | B91: SgK330------11 | D91: 14632 | F91: 28.74 | G91: 4205.24
A92: E1006601S725010022400060111700001 | B92: SgK330------09 | D92: 12081 | F92: 43.01 | G92: 5196.04
A93: E1006001S725010022400090111200001 | B93: SgK3220--Dez12 | D93: 7231 | F93: 17.45 | G93: 1261.81
A94: E1006001S725010020900150082800001 | B94: SgK330------11 | D94: 19139 | F94: 28.74 | G94: 5500.55
A95: E1006601S725010040300050244300001 | B95: SoK111------08 | D95: 6617 | F95: 46.75 | G95: 3093.45
A96: E1006601S725010042000110307200001 | B96: SgK330------11 | D96: 8445 | F96: 28.74 | G96: 2427.09
A97: E1006001S725010042000120000500001 | B97: SgK330------12 | D97: 6019 | F97: 24.43 | G97: 1470.44
A98: E1006001S725010042000120000500001 | B98: SgK33410----12 | D98: 2857 | F98: 24.43 | G98: 697.97
A99: E1006001S725010042000120000500001 | B99: SgK33420----12 | D99: -2663 | F99: 16.38 | G99: -436.2
A100: E1006001S725010042000120000500001 | B100: SgK33430----12 | D100: -194 | F100: 12 | G100: -23.28
A101: E1006601S725010042000050346400001 | B101: SgK330------09 | D101: 6696 | F101: 43.01 | G101: 2879.95
A102: E1006601S725010030100220153900001 | B102: SoK111------06 | D102: 9542 | F102: 51.8 | G102: 4942.76
A103: E1006001S725010041600110000100001 | B103: SgK5120--Okt14 | D103: 2715 | F103: 12.65 | G103: 343.45
A104: E1006601S725010041600020296200001 | B104: SgK330------11 | D104: 13426 | F104: 28.74 | G104: 3858.63
A105: E1006601S725010041600040298200001 | B105: SgK330------09 | D105: 31791 | F105: 43.01 | G105: 13673.31
A106: E1006601S725010041600040298300001 | B106: SgK330------10 | D106: 10971 | F106: 39.14 | G106: 4294.05
A107: E1006601S725010041600060296800001 | B107: SgK330------09 | D107: 11761 | F107: 43.01 | G107: 5058.41
A108: E1006601S725010030400070167100001 | B108: SgK330------09 | D108: 5428 | F108: 43.01 | G108: 2334.58
A109: E1006001S725010042300020314500001 | B109: SgK5120--Jan16 | D109: 2715 | F109: 12.31 | G109: 334.22
A110: E1006601S725010030400080167200001 | B110: SgK330---Okt10 | D110: 7458 | F110: 33.03 | G110: 2463.38
A111: E1006601S725010042500100317400001 | B111: SgK330------10 | D111: 11126 | F111: 39.14 | G111: 4354.72
A112: E1006001S725010042500060362800001 | B112: SgK5120--Sep16 | D112: 586 | F112: 12.31 | G112: 72.14
A113: E1006601S725010042500140317800001 | B113: SoK111------04 | D113: 6257 | F113: 57.4 | G113: 3591.52
A114: E1006601S725010031550090197300001 | B114: SgK330------10 | D114: 13614 | F114: 39.14 | G114: 5328.52
A115: E1006001S725010010300070011500001 | B115: SgK5120--Aug16 | D115: 1677 | F115: 12.31 | G115: 206.44
A116: E1006601S725010042900010368900001 | B116: SoK81a------01 | D116: 3877 | F116: 50.62 | G116: 1962.54
A117: E1006001S725010042900070417700001 | B117: SgK330------12 | D117: 8876 | F117: 24.43 | G117: 2168.41
A118: E1006601S725010042900080389800001 | B118: SoK111------07 | D118: 4500 | F118: 49.21 | G118: 2214.45
A119: E1006601S725010042900080389900001 | B119: SgK330------10 | D119: 3374 | F119: 39.14 | G119: 1320.58
A120: E1006601S725010023000010000100001 | B120: SoK111------07 | D120: 27385 | F120: 49.21 | G120: 13476.16
A121: E1006601S725010021300100000100001 | B121: SoK111------08 | D121: 8595 | F121: 46.75 | G121: 4018.16
A122: E1006001S725010021300320093100001 | B122: SgK3220--Okt12 | D122: 6172.2 | F122: 18.36 | G122: 1133.22
A123: E1006001S725010021300320093100001 | B123: SgK3221--Okt12 | D123: 13689.8 | F123: 17.42 | G123: 2384.76
A124: E1006001S725010021300320093100001 | B124: SgK33a2-----SV | D124: 3320 | F124: 0 | G124: 0
A125: E1006601S725010021300340093200001 | B125: SoK111------06 | D125: 5571 | F125: 51.8 | G125: 2885.78
A126: E1006601S725010030600180404000001 | B126: SoK81a------02 | D126: 2405 | F126: 48.1 | G126: 1156.81
A127: E1006601S725010030600030176600001 | B127: SgK330------09 | D127: 7268 | F127: 43.01 | G127: 3125.97
A128: E1006601S725010030600090000900001 | B128: SoK111------08 | D128: 13366 | F128: 46.75 | G128: 6248.61
A129: E1006001S725010023800070149100001 | B129: SgK330------12 | D129: 8240 | F129: 24.43 | G129: 2013.03
A130: E1006001S725010023800070149100001 | B130: SgK33410----12 | D130: 1067 | F130: 24.43 | G130: 260.67
A131: E1006001S725010023800070149100001 | B131: SgK33420----12 | D131: -1067 | F131: 16.38 | G131: -174.77
A132: E1006601S725010010800230000100001 | B132: SoK111------04 | D132: 898 | F132: 57.4 | G132: 515.45
A133: E1006601S725010010800250000100001 | B133: SoK111------04 | D133: 662 | F133: 57.4 | G133: 379.99
A134: E1006601S725010022800170128600001 | B134: SgK330------09 | D134: 5928 | F134: 43.01 | G134: 2549.63
A135: E1006001S725010022800170128700001 | B135: SgK5120--Apr16 | D135: 2013 | F135: 12.31 | G135: 247.8
A136: E1006601S725010022800060127000001 | B136: SoK81a------03 | D136: 5588 | F136: 45.7 | G136: 2553.72
A137: E1006601S725010022800060127100001 | B137: SoK111------04 | D137: 1883 | F137: 57.4 | G137: 1080.84
A138: E1006601S725010024300020416100001 | B138: SoK111------07 | D138: 5679 | F138: 49.21 | G138: 2794.64
A139: E1006601S725010024300090410600001 | B139: SoK81a------03 | D139: 1540 | F139: 45.7 | G139: 703.78
A140: E1006601S725010040200060000100001 | B140: SgK330------10 | D140: 9590 | F140: 39.14 | G140: 3753.53
A141: E1006601S725010042100140358500001 | B141: SoK81a------01 | D141: 6938 | F141: 50.62 | G141: 3512.02
A142: E1006001S725010042100150418200001 | B142: SgK3220--Mrz13 | D142: 5389 | F142: 16.28 | G142: 877.33
A143: E1006001S725010042100200312600001 | B143: SgK3220--Mai12 | D143: 5067 | F143: 19.31 | G143: 978.44
A144: E1006601S725010024600020000200001 | B144: SoK111------07 | D144: 23678.2 | F144: 49.21 | G144: 11652.04
A145: E1006601S725010024600020000200001 | B145: SoK112------07 | D145: 6708.8 | F145: 46.82 | G145: 3141.06
A146: E1006601S725010020350100065300001 | B146: SgK330------10 | D146: 36097.8 | F146: 39.14 | G146: 14128.68
A147: E1006601S725010020350100065300001 | B147: SgK331------10 | D147: 34052.2 | F147: 37.23 | G147: 12677.63
A148: E1006601S725010020350020000200001 | B148: SgK330------10 | D148: 26569.4 | F148: 39.14 | G148: 10399.26
A149: E1006601S725010020350020000200001 | B149: SgK331------10 | D149: 61995.2 | F149: 37.23 | G149: 23080.81
A150: E1006601S725010020350020000200001 | B150: SgK332------10 | D150: 3985.4 | F150: 35.23 | G150: 1404.06
A151: E1006601S725010031600100215500001 | B151: SgK330------10 | D151: 8639 | F151: 39.14 | G151: 3381.3
A152: E1006001S725010031600110000100001 | B152: SgK5120--Dez14 | D152: 0 | F152: 12.59 | G152: 0
A153: E1006001S725010031600130000100001 | B153: SgK3220--Feb14 | D153: 5954 | F153: 13.55 | G153: 806.77
A154: E1006601S725010031600060215000001 | B154: SgK330---Jul10 | D154: 9251 | F154: 34.05 | G154: 3149.97
A155: E1006601S725010040600020250000001 | B155: SgK330---Okt10 | D155: 27020.6 | F155: 33.03 | G155: 8924.9
A156: E1006601S725010040600020250000001 | B156: SgK331---Okt10 | D156: 55779.4 | F156: 31.42 | G156: 17525.89
A157: E1006601S725010022000130104700001 | B157: SoK111------05 | D157: 5945 | F157: 54.53 | G157: 3241.81
A158: E1006601S725010022000070104000001 | B158: SgK330---Okt10 | D158: 4117 | F158: 33.03 | G158: 1359.85
A159: E1006601S725010022000070104000001 | B159: SgK33410-Okt10 | D159: 1342 | F159: 33.03 | G159: 443.26
A160: E1006601S725010022000070104000001 | B160: SgK33420-Okt10 | D160: -1342 | F160: 16.38 | G160: -219.82
A161: E1006601S725010031500110211100001 | B161: SgK330------09 | D161: 5959 | F161: 43.01 | G161: 2562.97
A162: E1006601S725010031500090210600001 | B162: SoK111------05 | D162: 4017 | F162: 54.53 | G162: 2190.47
A163: E1006601S725010020400050151200001 | B163: SgK330------09 | D163: 8490 | F163: 43.01 | G163: 3651.55
A164: E1006601S725010024000060151300001 | B164: SoK111------07 | D164: 10292 | F164: 49.21 | G164: 5064.69
A165: E1006601S725010024000060151400001 | B165: SgK330---Jul10 | D165: 6415 | F165: 34.05 | G165: 2184.31
A166: E1006001S725010024200110000300001 | B166: SgK5120--Dez14 | D166: 3314 | F166: 12.59 | G166: 417.23
A167: E1006001S725010024200040414700001 | B167: SgK3220--Mrz13 | D167: 6925 | F167: 16.28 | G167: 1127.39
A168: E1006001S725010024200060000200001 | B168: SgK330------11 | D168: 9241 | F168: 28.74 | G168: 2655.86
A169: E1006601S725010024200080000300001 | B169: SoK111------08 | D169: 6844 | F169: 46.75 | G169: 3199.57
A170: E1006601S725010022300070110200001 | B170: SgK330------10 | D170: 11950 | F170: 39.14 | G170: 4677.23
A171: E1006601S725010040800060251400001 | B171: SoK111------07 | D171: 24053 | F171: 49.21 | G171: 11836.48
A172: E1006001S725010040800270000400001 | B172: SgK5120--Okt16 | D172: 660.9 | F172: 12.31 | G172: 81.36
A173: E1006001S725010040800270000400001 | B173: SgK5121--Okt16 | D173: 1982.6 | F173: 11.97 | G173: 237.32
A174: E1006001S725010040800270000400001 | B174: SgK5122--Okt16 | D174: 2883.5 | F174: 10.71 | G174: 308.82
A175: E1006001S725010040800270000400001 | B175: SgK33a2-----SV | D175: 2692 | F175: 0 | G175: 0
A176: E1006001S725010031000010186300001 | B176: SgK330------11 | D176: 4307 | F176: 28.74 | G176: 1237.83
A177: E1006601S725010020400030000200001 | B177: SoK111------08 | D177: 21696.2 | F177: 46.75 | G177: 10142.97
A178: E1006601S725010020400030000200001 | B178: SoK112------08 | D178: 23447.8 | F178: 44.48 | G178: 10429.58
A179: E1006001S725010020400040065800001 | B179: SgK3220--Jul12 | D179: 8551 | F179: 18.92 | G179: 1617.85
A180: E1006601S725010041550110404700001 | B180: SoK81a------02 | D180: 3023 | F180: 48.1 | G180: 1454.06
A181: E1006601S725010041550140292700001 | B181: SgK330---Jul10 | D181: 14984 | F181: 34.05 | G181: 5102.05
A182: E1006601S725010041550150292800001 | B182: SoK111------06 | D182: 5045 | F182: 51.8 | G182: 2613.31
A183: E1006601S725010041550190293300001 | B183: SgK330------10 | D183: 9367 | F183: 39.14 | G183: 3666.24
A184: E1006601S725010041550340418800001 | B184: SoK81a------03 | D184: 1676 | F184: 45.7 | G184: 765.93
A185: E1006601S725010041550350294900001 | B185: SgK330------09 | D185: 10638 | F185: 43.01 | G185: 4575.4
A186: E1006601S725010041550040291300001 | B186: SgK330------09 | D186: 8827 | F186: 43.01 | G186: 3796.49
A187: E1006601S725010041550450295600001 | B187: SgK330------10 | D187: 9486 | F187: 39.14 | G187: 3712.82
A188: E1006601S725010041550050291400001 | B188: SgK330------11 | D188: 13191 | F188: 28.74 | G188: 3791.09
A189: E1006601S725010041550070291700001 | B189: SgK330------09 | D189: 12998 | F189: 43.01 | G189: 5590.44
A190: E1006601S725010041550080291800001 | B190: SoK111------06 | D190: 11426 | F190: 51.8 | G190: 5918.67
A191: E1006601S725010023700030147700001 | B191: SgK330------10 | D191: 10823 | F191: 39.14 | G191: 4236.12
A192: E1006001S725010023700050000100001 | B192: SgK330------11 | D192: 11996 | F192: 28.74 | G192: 3447.65
A193: E1006601S725010011100020387200001 | B193: SoK81a------02 | D193: 1939 | F193: 48.1 | G193: 932.66
A194: E1006601S725010011100020387200002 | B194: SoK111------04 | D194: 1939 | F194: 57.4 | G194: 1112.99
A195: E1006001S725010042700120319600001 | B195: SgK330------11 | D195: 11011 | F195: 28.74 | G195: 3164.56
A196: E1006601S725010042700170342900001 | B196: SgK330------09 | D196: 7894 | F196: 43.01 | G196: 3395.21
A197: E1006001S725010042700210000300001 | B197: SgK330------12 | D197: 11891 | F197: 24.43 | G197: 2904.97
A198: E1006001S725010042700210000300001 | B198: SgK33410----12 | D198: 2071 | F198: 24.43 | G198: 505.95
A199: E1006001S725010042700210000300001 | B199: SgK33420----12 | D199: -2071 | F199: 16.38 | G199: -339.23
A200: E1006601S725010022700240358500001 | B200: SgK330------10 | D200: 10114 | F200: 39.14 | G200: 3958.62
A201: E1006601S725010020200110058700001 | B201: SoK111------06 | D201: 8659 | F201: 51.8 | G201: 4485.36
A202: E1006601S725010020200150059000001 | B202: SgK330------10 | D202: 6430 | F202: 39.14 | G202: 2516.7
... 47 more rows

Sheet Ausfallvermarktung
G1: =Deckblatt!H1 -> 2017-05-05
A3: Netzbetreiber : | B3: =Deckblatt!C11 -> Gammertinger Energie- und Wasserversorgung GmbH
A5: Anlagenschlüssel | B5: Vergütungskategorie (Festvergütung in Ausnahmefällen) | C5: Monat, in dem Strommeng erzeugt bzw. gewälzt wurde | D5: erzeugte Strommenge in der jeweiligen Vergütungskategorie [kWh] | E5: tatsächlich ausbezahlte EEG-Mindestvergütung für Kategorien ohne festen Vergütungssatz [€] | F5: Vergütungssatz der angegebenen Kategorie [ct/kWh) | G5: berechnete EEG-Mindestvergütung [€]
A6: Pflichfeld | B6: Pflichtfeld (Kategorien | C6: Pflichtfeld bei Kategorien, die mit Marktwert zu vergüten sind (...MW) | D6: Pflichfeld | E6: Pflichtfeld bei Kategorien ohne festen Vergütungssatz

Sheet Preisblätter-vNE
E1: =Deckblatt!H1 -> 2017-05-05
B3: Netzbetreiber : | C3: =Deckblatt!C11 -> Gammertinger Energie- und Wasserversorgung GmbH
C5: Name des Netzgebiets bzw. gültiger Zeitraum des Preisblatts*
B6: Preisblatt 1 | F6: *Sofern Sie im Jahr 2016 mehrere gültige Preisblätter hatten (aufgrund von unterjährigen Anpassungen, bzw. mehreren Netzgebieten), sind die vermiedenen Netzentgelte für die unterschiedlichen Zeiträume bzw. Netzgebiete separat auszuweisen. Bei einer unterjährigen Anpassung Ihres Preisblattes sind die betroffenen Anlagen im Tabellenblatt "vNE" pro Zeitraum einmal aufzuführen und Vermeidungsarbeit und Vermeidungsleistung sinnvoll (entsprechend der von Ihnen vorgegebenen Berechnung der vNE) zu verteilen.
B7: Preisblatt 2
B8: Preisblatt 3
A10: Preisblatt 1 | B10: Korrekturfaktor im Falle von Rückspeisungen (> 0 und <= 1 mit max. 16 Nachkommastellen (= 1,00 sofern keine Angabe) | C10: Arbeitspreis** [ct/kWh] | D10: Leistungspreis** [€/kW*a] | E10: Anmerkungen | F10: **Preise gemäß Preisblatt für das Jahr 2016. Die für Ihr Netz vorgelagerten Netzebenen ist der Preis aus dem Preisblatt des vorgelagerten Netzbetreibers einzutragen. Die Preisblätter (auch das des vorgelagerten Netzbetreibers) sind uns zusammen mit der Jahresmeldung bis spätestens zum 31.05.2017 per E-Mail zuzusenden. Für den Fall, dass für die Berechnung der vNE nicht die direkt überlagerte Spannungsebene verwendet wurde, ist der verwendete Wert in die entsprechende Zeile der direkt überlagerten Ebene einzutragen - auch wenn der Preis im Preisblatt für eine höhere Ebene gilt. Dies ist entsprechend im Feld "Anmerkungen" kenntlich zu machen. Sofern es zu einer Rückspeisung in eine oder mehrere überlagerte Spannungsebenen gekommen ist und sich dadurch Auswirkungen auf die Berechnung der vermiedenen Netzentgelte einer Spannungsebene ergeben, ist in der Spalte B ein entsprechender Korrekturfaktor anzugeben.
A11: Spannungsebene: HöS
A12: Spannungsebene: Hös/HS
A13: Spannungsebene: HS
A14: Spannungsebene: HS/MS | C14: 0.29 | D14: 68.71 | E14: HS/MS Netze BW
A15: Spannungsebene: MS | C15: 0.81 | D15: 81.05 | E15: MS GEW
A16: Spannungsebene: MS/NS | C16: 1.03 | D16: 93.75 | E16: MS/NS GEW
A17: Spannungsebene: NS
A20: Preisblatt 2 | B20: Korrekturfaktor im Falle von Rückspeisungen (> 0 und <= 1 mit max 16 Nachkommastellen (= 1,00 sofern keine Angabe) | C20: Arbeitspreis** [ct/kWh] | D20: Leistungspreis** [€/kW*a] | E20: Anmerkungen | F20: **Preise gemäß Preisblatt für das Jahr 2016. Die für Ihr Netz vorgelagerten Netzebenen ist der Preis aus dem Preisblatt des vorgelagerten Netzbetreibers einzutragen. Die Preisblätter (auch das des vorgelagerten Netzbetreibers) sind uns zusammen mit der Jahresmeldung bis spätestens zum 31.05.2017 per E-Mail zuzusenden. Für den Fall, dass für die Berechnung der vNE nicht die direkt überlagerte Spannungsebene verwendet wurde, ist der verwendete Wert in die entsprechende Zeile der direkt überlagerten Ebene einzutragen - auch wenn der Preis im Preisblatt für eine höhere Ebene gilt. Dies ist entsprechend im Feld "Anmerkungen" kenntlich zu machen. Sofern es zu einer Rückspeisung in eine oder mehrere überlagerte Spannungsebenen gekommen ist und sich dadurch Auswirkungen auf die Berechnung der vermiedenen Netzentgelte einer Spannungsebene ergeben, ist in der Spalte B ein entsprechender Korrekturfaktor anzugeben.
A21: Spannungsebene: HöS
A22: Spannungsebene: Hös/HS
A23: Spannungsebene: HS
A24: Spannungsebene: HS/MS
A25: Spannungsebene: MS
A26: Spannungsebene: MS/NS
A27: Spannungsebene: NS
A30: Preisblatt 3 | B30: Korrekturfaktor im Falle von Rückspeisungen (> 0 und <= 1 mit max 16 Nachkommastellen (= 1,00 sofern keine Angabe) | C30: Arbeitspreis** [ct/kWh] | D30: Leistungspreis** [€/kW*a] | E30: Anmerkungen | F30: **Preise gemäß Preisblatt für das Jahr 2016. Die für Ihr Netz vorgelagerten Netzebenen ist der Preis aus dem Preisblatt des vorgelagerten Netzbetreibers einzutragen. Die Preisblätter (auch das des vorgelagerten Netzbetreibers) sind uns zusammen mit der Jahresmeldung bis spätestens zum 31.05.2017 per E-Mail zuzusenden. Für den Fall, dass für die Berechnung der vNE nicht die direkt überlagerte Spannungsebene verwendet wurde, ist der verwendete Wert in die entsprechende Zeile der direkt überlagerten Ebene einzutragen - auch wenn der Preis im Preisblatt für eine höhere Ebene gilt. Dies ist entsprechend im Feld "Anmerkungen" kenntlich zu machen. Sofern es zu einer Rückspeisung in eine oder mehrere überlagerte Spannungsebenen gekommen ist und sich dadurch Auswirkungen auf die Berechnung der vermiedenen Netzentgelte einer Spannungsebene ergeben, ist in der Spalte B ein entsprechender Korrekturfaktor anzugeben.
A31: Spannungsebene: HöS
A32: Spannungsebene: Hös/HS
A33: Spannungsebene: HS
A34: Spannungsebene: HS/MS
A35: Spannungsebene: MS
A36: Spannungsebene: MS/NS
A37: Spannungsebene: NS

Sheet vNE
H1: =Deckblatt!H1 -> 2017-05-05
A3: Netzbetreiber : | B3: =Deckblatt!C11 -> Gammertinger Energie- und Wasserversorgung GmbH
A5: Anlagenschlüssel | B5: vNE-Kategorie | C5: Für Angabe gültiges Preisblatt entsprechend Tabellenblatt "Preisblätter vNE" | D5: Leistungsanteil an den vNE* [€] | E5: Arbeitsanteil an den vNE [€] | F5: nur eingeschränkte Prüfung möglich optional - sofern Sondersachverhalte vorliegen | G5: Erläuterung für eingeschränkte Prüfung Plichtfeld sofern Spalte F befüllt ist | H5: berechnete vNE gesamt [€] | I5: *Pflichtfeld bei allen lastganggemessenen Anlagen.
A6: E1006601S725010021200160359400001 | B6: So-vNNe--SpE07 | C6: Preisblatt 1 | E6: 9.3009 | H6: 9.3
A7: E1006601S725010021200030087200001 | B7: Sg-vNNe--SpE07 | C7: Preisblatt 1 | E7: 117.9144 | H7: 117.91
A8: E1006601S725010021200050000200001 | B8: So-vNNe--SpE07 | C8: Preisblatt 1 | E8: 71.4511 | H8: 71.45
A9: E1006001S725010021200090088700001 | B9: Sg-vNNe--SpE07 | C9: Preisblatt 1 | E9: 33.8149 | H9: 33.81
A10: E1006601S725010041200040282000001 | B10: Sg-vNNe--SpE07 | C10: Preisblatt 1 | E10: 251.1449 | H10: 251.14
A11: E1006601S725010010100250003300001 | B11: So-vNNe--SpE07 | C11: Preisblatt 1 | E11: 60.5228 | H11: 60.52
A12: E1006601S725010010100080000100001 | B12: Sg-vNNe--SpE07 | C12: Preisblatt 1 | E12: 35.226 | H12: 35.23
A13: E1006001S725010021800030363100001 | B13: Sg-vNNe--SpE07 | C13: Preisblatt 1 | E13: 24.6582 | H13: 24.66
A14: E1006601S725010021800030363100001 | B14: So-vNNe--SpE07 | C14: Preisblatt 1 | E14: 21.8669 | H14: 21.87
A15: E1006601S725010021800050010400001 | B15: So-vNNe--SpE07 | C15: Preisblatt 1 | E15: 59.3589 | H15: 59.36
A16: E1006601S725010021800080100600001 | B16: Sg-vNNe--SpE07 | C16: Preisblatt 1 | E16: 83.1931 | H16: 83.19
A17: E1006601S725010010200100409400001 | B17: So-vNNe--SpE07 | C17: Preisblatt 1 | E17: 25.6985 | H17: 25.7
A18: E1006601S725010022600170117100001 | B18: So-vNNe--SpE07 | C18: Preisblatt 1 | E18: 41.7562 | H18: 41.76
A19: E1006601S725010022600290118700001 | B19: Sg-vNNe--SpE07 | C19: Preisblatt 1 | E19: 25.9766 | H19: 25.98
A20: E1006601S725010022600030114300001 | B20: So-vNNe--SpE07 | C20: Preisblatt 1 | E20: 16.9641 | H20: 16.96
A21: E1006601S725010022600060114900001 | B21: So-vNNe--SpE07 | C21: Preisblatt 1 | E21: 28.9739 | H21: 28.97
A22: E1006601S725010022600080345200001 | B22: So-vNNe--SpE07 | C22: Preisblatt 1 | E22: 17.3143 | H22: 17.31
A23: E1006601S725010022600080345200002 | B23: So-vNNe--SpE07 | C23: Preisblatt 1 | E23: 18.0147 | H23: 18.01
A24: E1006601S725010031700030232100001 | B24: So-vNNe--SpE07 | C24: Preisblatt 1 | E24: 32.8673 | H24: 32.87
A25: E1006001S725010021000130084900001 | B25: Sg-vNNe--SpE07 | C25: Preisblatt 1 | E25: 130.5525 | H25: 130.55
A26: E1006001S725010031400040202900001 | B26: Sg-vNNe--SpE07 | C26: Preisblatt 1 | E26: 95.3059 | H26: 95.31
A27: E1006001S725010022700190122600001 | B27: Sg-vNNe--SpE07 | C27: Preisblatt 1 | E27: 25.9663 | H27: 25.97
A28: E1006601S725010022700310125400001 | B28: Sg-vNNe--SpE07 | C28: Preisblatt 1 | E28: 59.3486 | H28: 59.35
A29: E1006001S725010022700070120500001 | B29: Sg-vNNe--SpE07 | C29: Preisblatt 1 | E29: 98.1178 | H29: 98.12
A30: E1006601S725010041700010385300001 | B30: So-vNNe--SpE07 | C30: Preisblatt 1 | E30: 19.3125 | H30: 19.31
A31: E1006601S725010041700160300700001 | B31: Sg-vNNe--SpE07 | C31: Preisblatt 1 | E31: 36.6989 | H31: 36.7
A32: E1006001S725010041700040299200001 | B32: Sg-vNNe--SpE07 | C32: Preisblatt 1 | E32: 90.3722 | H32: 90.37
A33: E1006601S725010041700050299200001 | B33: So-vNNe--SpE07 | C33: Preisblatt 1 | E33: 90.3207 | H33: 90.32
A34: E1006601S725010041700070299700001 | B34: So-vNNe--SpE07 | C34: Preisblatt 1 | E34: 20.1777 | H34: 20.18
A35: E1006601S725010021100100086100001 | B35: So-vNNe--SpE07 | C35: Preisblatt 1 | E35: 63.5304 | H35: 63.53
A36: E1006601S725010021100030085200001 | B36: Sg-vNNe--SpE07 | C36: Preisblatt 1 | E36: 79.4748 | H36: 79.47
A37: E1006601S725010023100140403100001 | B37: Sg-vNNe--SpE07 | C37: Preisblatt 1 | E37: 294.7654 | H37: 294.77
A38: E1006601S725010023100220000100001 | B38: Sg-vNNe--SpE07 | C38: Preisblatt 1 | D38: 2738.81 | E38: 792.07 | H38: 3530.88
A39: E1006601S725010023100220000300001 | B39: Sg-vNNe--SpE07 | C39: Preisblatt 1 | D39: 15007.66 | E39: 4805.98 | H39: 19813.64
A40: E1006001S725010023100050135800001 | B40: Sg-vNNe--SpE07 | C40: Preisblatt 1 | E40: 273.5474 | H40: 273.55
A41: E1006601S725010023100060000200001 | B41: Sg-vNNe--SpE07 | C41: Preisblatt 1 | E41: 312.6874 | H41: 312.69
A42: E1006601S725010023100080400000001 | B42: So-vNNe--SpE07 | C42: Preisblatt 1 | E42: 329.1468 | H42: 329.15
A43: E1006601S725010023100090405700001 | B43: Sg-vNNe--SpE07 | C43: Preisblatt 1 | E43: 122.1271 | H43: 122.13
A44: E1006001S725010042200010313800001 | B44: Sg-vNNe--SpE07 | C44: Preisblatt 1 | E44: 108.9637 | H44: 108.96
A45: E1006001S725010042200060314100001 | B45: Sg-vNNe--SpE07 | C45: Preisblatt 1 | E45: 39.6859 | H45: 39.69
A46: E1006001S725010020300060000100001 | B46: Sg-vNNe--SpE07 | C46: Preisblatt 1 | E46: 0.3193 | H46: 0.32
A47: E1006601S725010020300100064100001 | B47: So-vNNe--SpE07 | C47: Preisblatt 1 | E47: 48.7705 | H47: 48.77
A48: E1006601S725010020300100064200001 | B48: Sg-vNNe--SpE07 | C48: Preisblatt 1 | E48: 76.6011 | H48: 76.6
A49: E1006601S725010020300150064900001 | B49: So-vNNe--SpE07 | C49: Preisblatt 1 | E49: 135.3935 | H49: 135.39
A50: E1006601S725010020300150065000001 | B50: Sg-vNNe--SpE07 | C50: Preisblatt 1 | E50: 188.8093 | H50: 188.81
A51: E1006601S725010020300150065100001 | B51: Sg-vNNe--SpE07 | C51: Preisblatt 1 | E51: 91.1035 | H51: 91.1
A52: E1006001S725010020300030063100001 | B52: Sg-vNNe--SpE07 | C52: Preisblatt 1 | E52: 40.685 | H52: 40.69
A53: E1006001S725010022900020366400001 | B53: Sg-vNNe--SpE07 | C53: Preisblatt 1 | E53: 111.7962 | H53: 111.8
A54: E1006601S725010022900020366200001 | B54: So-vNNe--SpE07 | C54: Preisblatt 1 | E54: 72.924 | H54: 72.92
A55: E1006601S725010022900020366300001 | B55: So-vNNe--SpE07 | C55: Preisblatt 1 | E55: 14.1831 | H55: 14.18
A56: E1006601S725010022900030129700001 | B56: Sg-vNNe--SpE07 | C56: Preisblatt 1 | E56: 50.1404 | H56: 50.14
A57: E1006601S725010022900030129800001 | B57: Sg-vNNe--SpE07 | C57: Preisblatt 1 | E57: 50.7687 | H57: 50.77
A58: E1006001S725010022900060130300001 | B58: Sg-vNNe--SpE07 | C58: Preisblatt 1 | E58: 292.0153 | H58: 292.02
A59: E1006601S725010023500140143000001 | B59: Sg-vNNe--SpE07 | C59: Preisblatt 1 | E59: 144.7459 | H59: 144.75
A60: E1006001S725010023500240144600001 | B60: Sg-vNNe--SpE07 | C60: Preisblatt 1 | E60: 109.3242 | H60: 109.32
A61: E1006601S725010023500260144800001 | B61: So-vNNe--SpE07 | C61: Preisblatt 1 | E61: 64.1999 | H61: 64.2
A62: E1006601S725010023500280144900001 | B62: Sg-vNNe--SpE07 | C62: Preisblatt 1 | E62: 116.9153 | H62: 116.92
A63: E1006001S725010023500420000400001 | B63: Sg-vNNe--SpE07 | C63: Preisblatt 1 | E63: 34.8037 | H63: 34.8
A64: E1006001S725010023500050000300001 | B64: Sg-vNNe--SpE07 | C64: Preisblatt 1 | E64: 67.3826 | H64: 67.38
A65: E1006601S725010023500090141700001 | B65: So-vNNe--SpE07 | C65: Preisblatt 1 | E65: 78.1564 | H65: 78.16
A66: E1006001S725010024100110000300001 | B66: Sg-vNNe--SpE07 | C66: Preisblatt 1 | E66: 58.1229 | H66: 58.12
A67: E1006001S725010031100020000400001 | B67: Sg-vNNe--SpE07 | C67: Preisblatt 1 | E67: 34.3505 | H67: 34.35
A68: E1006601S725010031100250191100001 | B68: Sg-vNNe--SpE07 | C68: Preisblatt 1 | E68: 60.2962 | H68: 60.3
A69: E1006601S725010031100040188200001 | B69: So-vNNe--SpE07 | C69: Preisblatt 1 | E69: 66.4968 | H69: 66.5
A70: E1006601S725010031100040188300001 | B70: Sg-vNNe--SpE07 | C70: Preisblatt 1 | E70: 46.3191 | H70: 46.32
A71: E1006601S725010023900050149600001 | B71: So-vNNe--SpE07 | C71: Preisblatt 1 | E71: 87.241 | H71: 87.24
A72: E1006601S725010020800130076900001 | B72: Sg-vNNe--SpE07 | C72: Preisblatt 1 | E72: 247.3648 | H72: 247.36
A73: E1006001S725010020800170000100001 | B73: Sg-vNNe--SpE07 | C73: Preisblatt 1 | E73: 16.8405 | H73: 16.84
A74: E1006001S725010020800250079200001 | B74: Sg-vNNe--SpE07 | C74: Preisblatt 1 | E74: 65.2299 | H74: 65.23
A75: E1006001S725010020800080076100001 | B75: Sg-vNNe--SpE07 | C75: Preisblatt 1 | E75: 118.244 | H75: 118.24
A76: E1006001S725010020100160057100001 | B76: Sg-vNNe--SpE07 | C76: Preisblatt 1 | E76: 8.858 | H76: 8.86
A77: E1006601S725010022400110111500001 | B77: Sg-vNNe--SpE07 | C77: Preisblatt 1 | E77: 150.7096 | H77: 150.71
A78: E1006601S725010022400060111700001 | B78: Sg-vNNe--SpE07 | C78: Preisblatt 1 | E78: 124.4343 | H78: 124.43
A79: E1006001S725010022400090111200001 | B79: Sg-vNNe--SpE07 | C79: Preisblatt 1 | E79: 74.4793 | H79: 74.48
A80: E1006001S725010020900150082800001 | B80: Sg-vNNe--SpE07 | C80: Preisblatt 1 | E80: 197.1317 | H80: 197.13
A81: E1006601S725010040300050244300001 | B81: So-vNNe--SpE07 | C81: Preisblatt 1 | E81: 68.1551 | H81: 68.16
A82: E1006601S725010042000110307200001 | B82: Sg-vNNe--SpE07 | C82: Preisblatt 1 | E82: 86.9835 | H82: 86.98
A83: E1006001S725010042000120000500001 | B83: Sg-vNNe--SpE07 | C83: Preisblatt 1 | E83: 61.9957 | H83: 62
A84: E1006601S725010042000050346400001 | B84: Sg-vNNe--SpE07 | C84: Preisblatt 1 | E84: 68.9688 | H84: 68.97
A85: E1006601S725010030100220153900001 | B85: So-vNNe--SpE07 | C85: Preisblatt 1 | E85: 98.2826 | H85: 98.28
A86: E1006001S725010041600110000100001 | B86: Sg-vNNe--SpE07 | C86: Preisblatt 1 | E86: 27.9645 | H86: 27.96
A87: E1006601S725010041600020296200001 | B87: Sg-vNNe--SpE07 | C87: Preisblatt 1 | E87: 138.2878 | H87: 138.29
A88: E1006601S725010041600040298200001 | B88: Sg-vNNe--SpE07 | C88: Preisblatt 1 | E88: 327.4473 | H88: 327.45
A89: E1006601S725010041600040298300001 | B89: Sg-vNNe--SpE07 | C89: Preisblatt 1 | E89: 113.0013 | H89: 113
A90: E1006601S725010041600060296800001 | B90: Sg-vNNe--SpE07 | C90: Preisblatt 1 | E90: 121.1383 | H90: 121.14
A91: E1006601S725010030400070167100001 | B91: Sg-vNNe--SpE07 | C91: Preisblatt 1 | E91: 55.9084 | H91: 55.91
A92: E1006001S725010042300020314500001 | B92: Sg-vNNe--SpE07 | C92: Preisblatt 1 | E92: 27.9645 | H92: 27.96
A93: E1006601S725010030400080167200001 | B93: Sg-vNNe--SpE07 | C93: Preisblatt 1 | E93: 76.8174 | H93: 76.82
A94: E1006601S725010042500100317400001 | B94: Sg-vNNe--SpE07 | C94: Preisblatt 1 | E94: 114.5978 | H94: 114.6
A95: E1006001S725010042500060362800001 | B95: Sg-vNNe--SpE07 | C95: Preisblatt 1 | E95: 6.0358 | H95: 6.04
A96: E1006601S725010042500140317800001 | B96: So-vNNe--SpE07 | C96: Preisblatt 1 | E96: 64.4471 | H96: 64.45
A97: E1006601S725010031550090197300001 | B97: Sg-vNNe--SpE07 | C97: Preisblatt 1 | E97: 140.2242 | H97: 140.22
A98: E1006001S725010010300070011500001 | B98: Sg-vNNe--SpE07 | C98: Preisblatt 1 | E98: 17.2731 | H98: 17.27
A99: E1006601S725010042900010368900001 | B99: So-vNNe--SpE07 | C99: Preisblatt 1 | E99: 39.9331 | H99: 39.93
A100: E1006001S725010042900070417700001 | B100: Sg-vNNe--SpE07 | C100: Preisblatt 1 | E100: 91.4228 | H100: 91.42
A101: E1006601S725010042900080389800001 | B101: So-vNNe--SpE07 | C101: Preisblatt 1 | E101: 46.35 | H101: 46.35
A102: E1006601S725010042900080389900001 | B102: Sg-vNNe--SpE07 | C102: Preisblatt 1 | E102: 34.7522 | H102: 34.75
A103: E1006601S725010023000010000100001 | B103: So-vNNe--SpE07 | C103: Preisblatt 1 | E103: 282.0655 | H103: 282.07
A104: E1006601S725010021300100000100001 | B104: So-vNNe--SpE07 | C104: Preisblatt 1 | E104: 88.5285 | H104: 88.53
A105: E1006001S725010021300320093100001 | B105: Sg-vNNe--SpE07 | C105: Preisblatt 1 | E105: 204.5786 | H105: 204.58
A106: E1006601S725010021300340093200001 | B106: So-vNNe--SpE07 | C106: Preisblatt 1 | E106: 57.3813 | H106: 57.38
A107: E1006601S725010030600180404000001 | B107: So-vNNe--SpE07 | C107: Preisblatt 1 | E107: 24.7715 | H107: 24.77
A108: E1006601S725010030600030176600001 | B108: Sg-vNNe--SpE07 | C108: Preisblatt 1 | E108: 74.8604 | H108: 74.86
A109: E1006601S725010030600090000900001 | B109: So-vNNe--SpE07 | C109: Preisblatt 1 | E109: 137.6698 | H109: 137.67
A110: E1006001S725010023800070149100001 | B110: Sg-vNNe--SpE07 | C110: Preisblatt 1 | E110: 84.872 | H110: 84.87
A111: E1006601S725010010800230000100001 | B111: So-vNNe--SpE07 | C111: Preisblatt 1 | E111: 9.2494 | H111: 9.25
A112: E1006601S725010010800250000100001 | B112: So-vNNe--SpE07 | C112: Preisblatt 1 | E112: 6.8186 | H112: 6.82
A113: E1006601S725010022800170128600001 | B113: Sg-vNNe--SpE07 | C113: Preisblatt 1 | E113: 61.0584 | H113: 61.06
A114: E1006001S725010022800170128700001 | B114: Sg-vNNe--SpE07 | C114: Preisblatt 1 | E114: 20.7339 | H114: 20.73
A115: E1006601S725010022800060127000001 | B115: So-vNNe--SpE07 | C115: Preisblatt 1 | E115: 57.5564 | H115: 57.56
A116: E1006601S725010022800060127100001 | B116: So-vNNe--SpE07 | C116: Preisblatt 1 | E116: 19.3949 | H116: 19.39
A117: E1006601S725010024300020416100001 | B117: So-vNNe--SpE07 | C117: Preisblatt 1 | E117: 58.4937 | H117: 58.49
A118: E1006601S725010024300090410600001 | B118: So-vNNe--SpE07 | C118: Preisblatt 1 | E118: 15.862 | H118: 15.86
A119: E1006601S725010040200060000100001 | B119: Sg-vNNe--SpE07 | C119: Preisblatt 1 | E119: 98.777 | H119: 98.78
A120: E1006601S725010042100140358500001 | B120: So-vNNe--SpE07 | C120: Preisblatt 1 | E120: 71.4614 | H120: 71.46
A121: E1006001S725010042100150418200001 | B121: Sg-vNNe--SpE07 | C121: Preisblatt 1 | E121: 55.5067 | H121: 55.51
A122: E1006001S725010042100200312600001 | B122: Sg-vNNe--SpE07 | C122: Preisblatt 1 | E122: 52.1901 | H122: 52.19
A123: E1006601S725010024600020000200001 | B123: So-vNNe--SpE07 | C123: Preisblatt 1 | E123: 312.9861 | H123: 312.99
A124: E1006601S725010020350100065300001 | B124: Sg-vNNe--SpE07 | C124: Preisblatt 1 | D124: 0 | E124: 722.545 | H124: 722.55
A125: E1006601S725010020350020000200001 | B125: Sg-vNNe--SpE07 | C125: Preisblatt 1 | D125: 852.95 | E125: 953.265 | H125: 1806.22
A126: E1006601S725010031600100215500001 | B126: Sg-vNNe--SpE07 | C126: Preisblatt 1 | E126: 88.9817 | H126: 88.98
A127: E1006001S725010031600110000100001 | B127: Sg-vNNe--SpE07 | C127: Preisblatt 1 | E127: 0 | H127: 0
A128: E1006001S725010031600130000100001 | B128: Sg-vNNe--SpE07 | C128: Preisblatt 1 | E128: 61.3262 | H128: 61.33
A129: E1006601S725010031600060215000001 | B129: Sg-vNNe--SpE07 | C129: Preisblatt 1 | E129: 95.2853 | H129: 95.29
A130: E1006601S725010040600020250000001 | B130: Sg-vNNe--SpE07 | C130: Preisblatt 1 | D130: 0 | E130: 852.84 | H130: 852.84
A131: E1006601S725010022000130104700001 | B131: So-vNNe--SpE07 | C131: Preisblatt 1 | E131: 61.2335 | H131: 61.23
A132: E1006601S725010022000070104000001 | B132: Sg-vNNe--SpE07 | C132: Preisblatt 1 | E132: 42.4051 | H132: 42.41
A133: E1006601S725010031500110211100001 | B133: Sg-vNNe--SpE07 | C133: Preisblatt 1 | E133: 61.3777 | H133: 61.38
A134: E1006601S725010031500090210600001 | B134: So-vNNe--SpE07 | C134: Preisblatt 1 | E134: 41.3751 | H134: 41.38
A135: E1006601S725010020400050151200001 | B135: Sg-vNNe--SpE07 | C135: Preisblatt 1 | E135: 87.447 | H135: 87.45
A136: E1006601S725010024000060151300001 | B136: So-vNNe--SpE07 | C136: Preisblatt 1 | E136: 106.0076 | H136: 106.01
A137: E1006601S725010024000060151400001 | B137: Sg-vNNe--SpE07 | C137: Preisblatt 1 | E137: 66.0745 | H137: 66.07
A138: E1006001S725010024200110000300001 | B138: Sg-vNNe--SpE07 | C138: Preisblatt 1 | E138: 34.1342 | H138: 34.13
A139: E1006001S725010024200040414700001 | B139: Sg-vNNe--SpE07 | C139: Preisblatt 1 | E139: 71.3275 | H139: 71.33
A140: E1006001S725010024200060000200001 | B140: Sg-vNNe--SpE07 | C140: Preisblatt 1 | E140: 95.1823 | H140: 95.18
A141: E1006601S725010024200080000300001 | B141: So-vNNe--SpE07 | C141: Preisblatt 1 | E141: 70.4932 | H141: 70.49
A142: E1006601S725010022300070110200001 | B142: Sg-vNNe--SpE07 | C142: Preisblatt 1 | E142: 123.085 | H142: 123.09
A143: E1006601S725010040800060251400001 | B143: So-vNNe--SpE07 | C143: Preisblatt 1 | E143: 247.7459 | H143: 247.75
A144: E1006001S725010040800270000400001 | B144: Sg-vNNe--SpE07 | C144: Preisblatt 1 | E144: 56.9281 | H144: 56.93
A145: E1006001S725010031000010186300001 | B145: Sg-vNNe--SpE07 | C145: Preisblatt 1 | E145: 44.3621 | H145: 44.36
A146: E1006601S725010020400030000200001 | B146: So-vNNe--SpE07 | C146: Preisblatt 1 | E146: 464.9832 | H146: 464.98
A147: E1006001S725010020400040065800001 | B147: Sg-vNNe--SpE07 | C147: Preisblatt 1 | E147: 88.0753 | H147: 88.08
A148: E1006601S725010041550110404700001 | B148: So-vNNe--SpE07 | C148: Preisblatt 1 | E148: 31.1369 | H148: 31.14
A149: E1006601S725010041550140292700001 | B149: Sg-vNNe--SpE07 | C149: Preisblatt 1 | E149: 154.3352 | H149: 154.34
A150: E1006601S725010041550150292800001 | B150: So-vNNe--SpE07 | C150: Preisblatt 1 | E150: 51.9635 | H150: 51.96
A151: E1006601S725010041550190293300001 | B151: Sg-vNNe--SpE07 | C151: Preisblatt 1 | E151: 96.4801 | H151: 96.48
A152: E1006601S725010041550340418800001 | B152: So-vNNe--SpE07 | C152: Preisblatt 1 | E152: 17.2628 | H152: 17.26
A153: E1006601S725010041550350294900001 | B153: Sg-vNNe--SpE07 | C153: Preisblatt 1 | E153: 109.5714 | H153: 109.57
A154: E1006601S725010041550040291300001 | B154: Sg-vNNe--SpE07 | C154: Preisblatt 1 | E154: 90.9181 | H154: 90.92
A155: E1006601S725010041550450295600001 | B155: Sg-vNNe--SpE07 | C155: Preisblatt 1 | E155: 97.7058 | H155: 97.71
A156: E1006601S725010041550050291400001 | B156: Sg-vNNe--SpE07 | C156: Preisblatt 1 | E156: 135.8673 | H156: 135.87
A157: E1006601S725010041550070291700001 | B157: Sg-vNNe--SpE07 | C157: Preisblatt 1 | E157: 133.8794 | H157: 133.88
A158: E1006601S725010041550080291800001 | B158: So-vNNe--SpE07 | C158: Preisblatt 1 | E158: 117.6878 | H158: 117.69
A159: E1006601S725010023700030147700001 | B159: Sg-vNNe--SpE07 | C159: Preisblatt 1 | E159: 111.4769 | H159: 111.48
A160: E1006001S725010023700050000100001 | B160: Sg-vNNe--SpE07 | C160: Preisblatt 1 | E160: 123.5588 | H160: 123.56
A161: E1006601S725010011100020387200001 | B161: So-vNNe--SpE07 | C161: Preisblatt 1 | E161: 19.9717 | H161: 19.97
A162: E1006601S725010011100020387200002 | B162: So-vNNe--SpE07 | C162: Preisblatt 1 | E162: 19.9717 | H162: 19.97
A163: E1006001S725010042700120319600001 | B163: Sg-vNNe--SpE07 | C163: Preisblatt 1 | E163: 113.4133 | H163: 113.41
A164: E1006601S725010042700170342900001 | B164: Sg-vNNe--SpE07 | C164: Preisblatt 1 | E164: 81.3082 | H164: 81.31
A165: E1006001S725010042700210000300001 | B165: Sg-vNNe--SpE07 | C165: Preisblatt 1 | E165: 122.4773 | H165: 122.48
A166: E1006601S725010022700240358500001 | B166: Sg-vNNe--SpE07 | C166: Preisblatt 1 | E166: 104.1742 | H166: 104.17
A167: E1006601S725010020200110058700001 | B167: So-vNNe--SpE07 | C167: Preisblatt 1 | E167: 89.1877 | H167: 89.19
A168: E1006601S725010020200150059000001 | B168: Sg-vNNe--SpE07 | C168: Preisblatt 1 | E168: 66.229 | H168: 66.23
A169: E1006601S725010020200090058500001 | B169: So-vNNe--SpE07 | C169: Preisblatt 1 | E169: 77.4045 | H169: 77.4
A170: E1006601S725010030500010171400001 | B170: Sg-vNNe--SpE07 | C170: Preisblatt 1 | E170: 60.9554 | H170: 60.96
A171: E1006601S725010030500010171500001 | B171: Sg-vNNe--SpE07 | C171: Preisblatt 1 | E171: 60.5022 | H171: 60.5
A172: E1006601S725010030500190175400001 | B172: So-vNNe--SpE07 | C172: Preisblatt 1 | E172: 37.7598 | H172: 37.76
A173: E1006601S725010030500220176000001 | B173: So-vNNe--SpE07 | C173: Preisblatt 1 | E173: 71.9558 | H173: 71.96
A174: E1006601S725010030500050172100001 | B174: So-vNNe--SpE07 | C174: Preisblatt 1 | E174: 94.6158 | H174: 94.62
A175: E1006001S725010030500030171800001 | B175: Sg-vNNe--SpE07 | C175: Preisblatt 1 | E175: 66.9191 | H175: 66.92
A176: E1006001S725010011300060051900001 | B176: Sg-vNNe--SpE07 | C176: Preisblatt 1 | E176: 163.152 | H176: 163.15
A177: E1006601W725010011300060051800001 | B177: Wa-vNNe--SpE07 | C177: Preisblatt 1 | D177: 803.29 | E177: 1100.2254 | H177: 1903.52
A178: E1006001S725010023600110410000001 | B178: Sg-vNNe--SpE07 | C178: Preisblatt 1 | E178: 5.9637 | H178: 5.96
A179: E1006601S725010023600110409900001 | B179: So-vNNe--SpE07 | C179: Preisblatt 1 | E179: 31.518 | H179: 31.52
A180: E1006601S725010023600210146900001 | B180: Sg-vNNe--SpE07 | C180: Preisblatt 1 | E180: 171.4538 | H180: 171.45
A181: E1006001S725010040900350270800001 | B181: Sg-vNNe--SpE07 | C181: Preisblatt 1 | E181: 117.6569 | H181: 117.66
A182: E1006601S725010040900420000700001 | B182: Sg-vNNe--SpE07 | C182: Preisblatt 1 | E182: 503.8348 | H182: 503.83
A183: E1006601S725010040900440272500001 | B183: Sg-vNNe--SpE07 | C183: Preisblatt 1 | E183: 623.2015 | H183: 623.2
A184: E1006601S725010040900570274700001 | B184: So-vNNe--SpE07 | C184: Preisblatt 1 | E184: 63.2317 | H184: 63.23
A185: E1006601S725010040900570274800001 | B185: So-vNNe--SpE07 | C185: Preisblatt 1 | E185: 62.727 | H185: 62.73
A186: E1006601S725010040900570274900001 | B186: So-vNNe--SpE07 | C186: Preisblatt 1 | E186: 156.5909 | H186: 156.59
A187: E1006001S725010040900630275800001 | B187: Sg-vNNe--SpE07 | C187: Preisblatt 1 | E187: 55.6921 | H187: 55.69
A188: E1006601S725010040900730277100001 | B188: So-vNNe--SpE07 | C188: Preisblatt 1 | E188: 7.1276 | H188: 7.13
A189: E1006601S725010040900790278000001 | B189: So-vNNe--SpE07 | C189: Preisblatt 1 | E189: 255.4091 | H189: 255.41
A190: E1006601S725010040900790278200001 | B190: Sg-vNNe--SpE07 | C190: Preisblatt 1 | E190: 242.4208 | H190: 242.42
A191: E1006601S725010040900790278100001 | B191: Sg-vNNe--SpE07 | C191: Preisblatt 1 | E191: 105.4102 | H191: 105.41
A192: E1006001S725010031800150000100001 | B192: Sg-vNNe--SpE07 | C192: Preisblatt 1 | E192: 15.2749 | H192: 15.27
A193: E1006001S725010021900080101800001 | B193: Sg-vNNe--SpE07 | C193: Preisblatt 1 | E193: 38.1821 | H193: 38.18
A194: E1006601S725010022200080109300001 | B194: Sg-vNNe--SpE07 | C194: Preisblatt 1 | E194: 110.6838 | H194: 110.68
A195: E1006601S725010022200070000200001 | B195: Sg-vNNe--SpE05 | C195: Preisblatt 1 | D195: 0 | E195: 229.3726 | H195: 229.37
A196: E1006001S725010020600130072200001 | B196: Sg-vNNe--SpE07 | C196: Preisblatt 1 | E196: 78.4963 | H196: 78.5
A197: E1006601S725010022100180108000001 | B197: So-vNNe--SpE07 | C197: Preisblatt 1 | E197: 64.8282 | H197: 64.83
A198: E1006001S725010022100190108200001 | B198: Sg-vNNe--SpE07 | C198: Preisblatt 1 | E198: 36.6474 | H198: 36.65
A199: E1006001S725010022100220000200001 | B199: Sg-vNNe--SpE07 | C199: Preisblatt 1 | E199: 61.5837 | H199: 61.58
A200: E1006601S725010030800020183300001 | B200: So-vNNe--SpE07 | C200: Preisblatt 1 | E200: 73.5523 | H200: 73.55
A201: E1006601S725010030800060184200001 | B201: Sg-vNNe--SpE07 | C201: Preisblatt 1 | E201: 27.0993 | H201: 27.1
A202: E1006601S725010030300210163900001 | B202: Sg-vNNe--SpE07 | C202: Preisblatt 1 | E202: 86.7672 | H202: 86.77
... 2 more rows

Sheet Marktprämien
J1: =Deckblatt!H1 -> 42860
A3: Netzbetreiber : | B3: =Deckblatt!C11 -> Gammertinger Energie- und Wasserversorgung GmbH
A5: Anlagenschlüssel | B5: Vergütungskategorie, die mit dem Anlagenbetreiber abgerechnet worden wären, wenn die Anlage in der Festvergütung vergütet worden wäre | C5: Monat, in dem Strommenge über das Marktprämienmodell erzeugt bzw. direkt vermarktet wurde | D5: Fernsteuerbar (d.h. Verwendung der erhöhten Managementprämie) | E5: über das Marktprämienmodell direktvermarktete Strommenge [kWh] | F5: Ausbezahlte Marktprämie in [€] (nur für Kategorien ohne festen Vergütungssatz) | G5: anzulegender Wert [ct/kWh] | H5: Marktwert [ct/kWh] | I5: Managementprämie [ct/kWh] | J5: berechnete Marktprämie in [€]
A6: Pflichtfeld | B6: Pflichtfeld (Auswahlfeld - separate Zeile pro Monat) | C6: Pflichtfeld (Auswahlfeld - separate Zeile pro Monat) | D6: Pflichtfeld (Auswahlfeld - separate Zeile pro Monat - keine Angabe entspr. Nein) | E6: Pflichtfeld (separate Zeile pro Monat) | F6: Pflichtfeld bei Kategorien ohne festen Vergütungssatz

Sheet Flexibilitätsvergütung
E1: =Deckblatt!H1 -> 2017-05-05
A3: Netzbetreiber : | B3: =Deckblatt!C11 -> Gammertinger Energie- und Wasserversorgung GmbH
A5: Anlagenschlüssel | B5: Vergütungskategorie | C5: erzeugte Strommenge in der jeweiligen Kategorie [kWh] | D5: Zusatzleistung [kW] | E5: Flexibilitätsvergütung [€]
A6: Pflichtfeld | B6: Pflichtfeld | C6: nur erforderlich bei Flexibilitätsprämie | D6: nur erforderlich bei Flexibilitätsprämie | E6: Pflichtfeld

Sheet Eigenversorgung
H1: =Deckblatt!$H1 -> 2017-05-05
A3: Netzbetreiber : | B3: =Deckblatt!C11 -> Gammertinger Energie- und Wasserversorgung GmbH
C5: Eigenversorgung für 2016
A6: Anlagenschlüssel | B6: Anlagenart (EEG/Nicht-EEG) | C6: Umlagekategorie | D6: Strommenge [kWh] | E6: Erhaltene Zahlung vom Anlagenbetreiber [€] | F6: Sollzahlung [€] | G6: Noch ausstehende Zahlung [€] | H6: Erhaltene Zahlung [€]
A7: Pflichtfeld | B7: Pflichtfeld | C7: Pflichtfeld | D7: Pflichtfeld | E7: Pflichtfeld
A8: E1006001S725010040800270000400001 | B8: EEG-Anlagen | C8: EV6111-EEG-RED | D8: 2692 | E8: 59.87 | F8: 59.87 | G8: 0 | H8: 59.87

Sheet Nachträgliche EV-Korrekturen
E1: =Deckblatt!H1 -> 2017-05-05
A3: Netzbetreiber : | B3: =Deckblatt!C11 -> Gammertinger Energie- und Wasserversorgung GmbH
A5: EEG-Umlageart | B5: Anspruchsgrundlage für die Korrektur | C5: betrifft Kalenderjahr [JJJJ] | D5: ggf. Änderung der umlagepflichtigen Strommmengen [kWh] | E5: erhaltene Zahlung [EUR]

Sheet Nachträgliche Korrekturen
J1: =Deckblatt!H1 -> 2017-05-05
A3: Netzbetreiber : | C3: =Deckblatt!C11 -> Gammertinger Energie- und Wasserversorgung GmbH
A5: Anlagenschlüssel bzw. im Falle eines vollstreckbaren Titels nur Angabe des betroffenen Energieträgers in der Form "Energieträger: …." (z. B. Energieträger: Solar oder Energieträger: Wind...) | B5: Art der Förderung | C5: Anspruchsgrundlage für die Korrektur | D5: betrifft Abrechnung (Jahr) [JJJJ] | E5: ggf. Name [Gericht/Notar] | F5: Aktenzeichen/Urkundennummer | G5: Strommenge [kWh] | H5: finanzielle Förderung vor Abzug der vNE [EUR] | I5: vNE [EUR] | J5: finanzielle Förderung nach Abzug der vNE [EUR]

Sheet MPM_Ergebnissblatt
N1: =Deckblatt!H1 -> 2017-05-05
A3: Netzbetreiber : | B3: =Deckblatt!C11 -> Gammertinger Energie- und Wasserversorgung GmbH
A5: Anlagenschlüssel | B5: Marktprämie [€] | C5: Marktprämie [€] | D5: Marktprämie [€] | E5: Marktprämie [€] | F5: Marktprämie [€] | G5: Marktprämie [€] | H5: Marktprämie [€] | I5: Marktprämie [€] | J5: Marktprämie [€] | K5: Marktprämie [€] | L5: Marktprämie [€] | M5: Marktprämie [€] | N5: Marktprämie gesamt [€]
B6: Januar | C6: Februar | D6: März | E6: April | F6: Mai | G6: Juni | H6: Juli | I6: August | J6: September | K6: Oktober | L6: November | M6: Dezember | N6: 2015

Sheet Versionsübersicht
A1: Version | B1: Änderungen im Vergleich zur Vorversion | C1: Datum der Auslieferung
A2: 3.0 | B2: Änderungen für Jahresmeldung 2016 in 2017: Erweiterung der Zusammenfassung (Testatdaten) entsprechend den IDW-Vorgaben Ausgabe des betroffenen Anlagenschlüssels in separater Spalte im Fehlerprotokoll Eigenversorgung nur noch fürs Jahr der Jahresmeldung möglich (alle Korrekturen für Vorjahre müssen über die Korrekturjahresmeldung gemeldet werden) Leistungs- und Arbeitsnateil können bei vNE's nun auch in separaten Zeilen gemeldet werden (BugFix) Auch bei Anlagen mit Inbetriebnahme nach dem 1.8.2014 korrekte Berechnung der Marktprämie im Falle der Verwendung der Übergangskategorien für 2014 (BugFix) Volllasstundenprüfung bei PV-Anlagen mit Limit 1.500 h anstatt 1.800 h Korrekturfaktor für Berechnung des Arbeitsanteils bei VNE im Preisblatt (im Fall von Rückspeisungen) Neues Tabellenblatt für Zeitplan Neues Tabellenblatt für Versionshistorie Neues Tabellenblatt für Nachträgliche Korrekturen der Eigenversorgung aus Vorjahren (Daten können aus Ergebnis der Korrekturjahresmeldung übernommen werden) Tabellenblatt für Nachträgliche Korrekturen ergänzt um Art der Förderung (Daten können aus Ergebnis der Korrekturjahresmeldung übernommen werden) Als Ausgleichbilanzkreise sind nur noch echte Bilanzkreise zulässig, keine Lieferantenkonten Toleranz bei Validierung des vergüteten Selbstverabruchs von 0,001 kWh auf 1 kWh erhöht Stammdatenmeldung um neue Attribute (entsptr. neues Stammdatenformular) ergänzt Berücksichtigung der Stromsteuerbegünstigung gemäß §§71-73 EEG 2017 Plausibilisierung des Flexibilitätszuschlags und der Flexibilitätsprämie | C2: 2017-03-28
A3: 3.1 | B3: 3 fehlende Vergütungskategorien ergänzt und eine unnötige entfernt Föderart Einspeisevergütungen Singular Optimierung, Aktivierung bzw. Vervollständigung diverser Auswahllisten Korrektur der Berechnung der Marktprämie bei nach 8.2014 modernisierten Wasserkraftwerken (wegen fehlender Managementprämie) Fehlerhafte Prüfung der Zulässigkeit von Vergütungskategorien bei Gültigkeit im 1. bis 3. Quartal 2016 Umbennennung der Ergebnisblätter (und Aktualisierung des Zeitraums) | C3: 2017-04-07
A4: 3.2 | B4: Fehlerkorrekturen bei der Prüfung der Flexibilitätsprämie | C4: 2017-04-10
A5: 3.3 | B5: Vollstreckbare Titel mit ÜNB auch bei Daten Prüfungsvermerk (Nachträgliche Korrekturen) mit ausgeben Weitere Korrekturen bei der Prüfung der Flexibilitätsprämie | C5: 2017-04-11
A6: 3.4 | B6: Fehlerkorrekur bei der Verrabeitung der Nachträglichen Korrekturen (fehlender Objektverweis im Falle das nur vollstreckbare Titel ohne direkten Bezug zu einer Anlage gemeldet werden) unpassende Gültigkeitsprüfung bei Eingabe in Spalte A ("Anlagenschlüssel...") im Tabellenblatt "Nachträgliche Korekturen" entfernt | C6: 2017-04-19
A7: 3.5 | B7: Eigenversorgung wurde bei der Prüfung der Höchstbemessungsleistung noch nicht berücksichtigt -> korrigiert Fehlende Biomassekategorien ergänzt (BiK51nM1K16-02…) | C7: 2017-04-20
A8: 3.6 | B8: Zellenformat beim Gemeindeschlüssel war zum Teil fehlerhaft (Datum). Kann im Makro zu Überlauf führen | C8: 21.04.2017
A9: 3.7 | B9: Sondersachverhalt bei Anlagenzusammenfassung bei Prüfung der Flexibilitätsprämie berückischtigt technischer Fehler (Division durch 0) bei Angabe von Flexibilitätsprämie ohne Einspesiungen behoben | C9: 2017-04-26
A10: 3.8 | B10: AddIn integriert | C10: 2017-04-26
A11: 3.9 | B11: Korrekturen am AddIn (fehlende Art der Förderung) und Fehler bei Ausgabe der nachträglichen Korrekturen korrigiert (wenn ausschließlich Übergangsbestimmung und keine sonstigen Korrekturen) | C11: 2017-04-27
A12: 3.10 | B12: Fehler bei Saldobildung im Prüfungvermerk korrigiert: Nachträgliche Korrekturen von Eigenversorgern nach §61 Abs. 3 i.V.m. § 62 Abs. 2 EEG 2017 müssen abgezogen werden, nicht addiert Fehler bei Angabe der zu testierende Strommenge im Prüfungvermerk (betr. EEG-Umlage nach § 61 Abs. 1 Satz 2 EEG 2014 (volle Umlage)): Falscher Zellenbezug, daher Anzeige des Betrags anstatt der Menge Fehler bei Nichterfüllung technischer Vorgaben und Inbetriebnahme ab 8.2014: MW-Sanktion zulässig (vormalig nur 0-Sanktion) Bei allen aMW-Kategorien darf keine Monatsangabe verlangt werden (derzeit nur bei MIM-aMW) Verbesserte Fehlerbehandlung im Falle ungültiger Formeln im Eingabebereich (z.B. Rückgabewerte #NV oder #BEZUG) | C12: 2017-05-05

Sheet Marktwerte
A1: Monat | B1: Januar | C1: Februar | D1: März | E1: April | F1: Mai | G1: Juni | H1: Juli | I1: August | J1: September | K1: Oktober | L1: November | M1: Dezember
B2: 2016 | C2: =B2 -> 2016 | D2: =C2 -> 2016 | E2: 2016 | F2: 2016 | G2: 2016 | H2: 2016 | I2: 2016 | J2: 2016 | K2: 2016 | L2: 2016 | M2: 2016
A3: MW-EPEX (Marktwert-EPEX) | B3: 2.904 | C3: 2.199 | D3: 2.431 | E3: 2.421 | F3: 2.254 | G3: 2.769 | H3: 2.719 | I3: 2.718 | J3: 3.049 | K3: 3.713 | L3: 3.822 | M3: 3.748
A5: MW Wind (Marktwert Wind) | B5: 2.407 | C5: 1.831 | D5: 2.106 | E5: 2.325 | F5: 1.8 | G5: 2.672 | H5: 2.391 | I5: 2.533 | J5: 2.748 | K5: 3.403 | L5: 3.266 | M5: 2.403
A6: PM Wind (Managementprämie Wind) | B6: 0 | C6: =$B6 -> 0 | D6: =$B6 -> 0 | E6: 0 | F6: 0 | G6: 0 | H6: 0 | I6: 0 | J6: 0 | K6: 0 | L6: 0 | M6: 0
A7: PM Wind fst. (Managementprämie Wind fernsteuerbar) | B7: 0.4 | C7: =$B7 -> 0.4 | D7: 0.4 | E7: 0.4 | F7: 0.4 | G7: 0.4 | H7: 0.4 | I7: 0.4 | J7: 0.4 | K7: 0.4 | L7: 0.4 | M7: 0.4
A8: RW Wind (Referenzmarktwert Wind) | B8: =B5-B6 -> 2.407 | C8: =C5-C6 -> 1.831 | D8: 2.106 | E8: 2.325 | F8: 1.8 | G8: 2.672 | H8: 2.391 | I8: 2.533 | J8: 2.748 | K8: 3.403 | L8: 3.266 | M8: 2.403
A9: RW Wind (Referenzmarktwert Wind fernsteuerbar) | B9: =B5-B7 -> 2.007 | C9: =C5-C7 -> 1.431 | D9: 1.706 | E9: 1.925 | F9: 1.4 | G9: 2.272 | H9: 1.991 | I9: 2.133 | J9: 2.348 | K9: 3.003 | L9: 2.866 | M9: 2.003
A11: MW Solar (Marktwert Solar) | B11: 3.224 | C11: 2.405 | D11: 2.314 | E11: 2.344 | F11: 1.887 | G11: 2.821 | H11: 2.67 | I11: 2.616 | J11: 2.978 | K11: 3.763 | L11: 4.046 | M11: 4.352
A12: PM Solar (Managementprämie Solar) | B12: =B6 -> 0 | C12: =$B12 -> 0 | D12: =$B12 -> 0 | E12: 0 | F12: 0 | G12: 0 | H12: 0 | I12: 0 | J12: 0 | K12: 0 | L12: 0 | M12: 0
A13: PM Solar fst. (Managementprämie Solar fernsteuerbar) | B13: =B7 -> 0.4 | C13: =$B13 -> 0.4 | D13: 0.4 | E13: 0.4 | F13: 0.4 | G13: 0.4 | H13: 0.4 | I13: 0.4 | J13: 0.4 | K13: 0.4 | L13: 0.4 | M13: 0.4
A14: RW Solar (Referenzmarktwert Solar) | B14: =B11-B12 -> 3.224 | C14: 2.405 | D14: 2.314 | E14: 2.344 | F14: 1.887 | G14: 2.821 | H14: 2.67 | I14: 2.616 | J14: 2.978 | K14: 3.763 | L14: 4.046 | M14: 4.352
A15: RW Solar (Referenzmarktwert Solar fernsteuerbar) | B15: =B11-B13 -> 2.824 | C15: 2.005 | D15: 1.914 | E15: 1.944 | F15: 1.487 | G15: 2.421 | H15: 2.27 | I15: 2.216 | J15: 2.578 | K15: 3.363 | L15: 3.646 | M15: 3.952
A17: MW steuerbar (Marktwert steuerbar) | B17: =B3 -> 2.904 | C17: 2.199 | D17: 2.431 | E17: 2.421 | F17: 2.254 | G17: 2.769 | H17: 2.719 | I17: 2.718 | J17: 3.049 | K17: 3.713 | L17: 3.822 | M17: 3.748
A18: PM steuerbar (Managementprämie steuerbar) | B18: 0.2 | C18: =$B18 -> 0.2 | D18: =$B18 -> 0.2 | E18: 0.2 | F18: 0.2 | G18: 0.2 | H18: 0.2 | I18: 0.2 | J18: 0.2 | K18: 0.2 | L18: 0.2 | M18: 0.2
A19: PM steuerbar (Managementprämie fernsteuerbar) | B19: =B18 -> 0.2 | C19: =$B19 -> 0.2 | D19: 0.2 | E19: 0.2 | F19: 0.2 | G19: 0.2 | H19: 0.2 | I19: 0.2 | J19: 0.2 | K19: 0.2 | L19: 0.2 | M19: 0.2
A20: RW steuerbar (Referenzmarktwert steuerbar) | B20: =B17-B18 -> 2.704 | C20: 1.999 | D20: 2.231 | E20: 2.221 | F20: 2.054 | G20: 2.569 | H20: 2.519 | I20: 2.518 | J20: 2.849 | K20: 3.513 | L20: 3.622 | M20: 3.548
A21: RW steuerbar (Referenzmarktwert steuerbar fernsteuerbar) | B21: =B17-B19 -> 2.704 | C21: 1.999 | D21: 2.231 | E21: 2.221 | F21: 2.054 | G21: 2.569 | H21: 2.519 | I21: 2.518 | J21: 2.849 | K21: 3.513 | L21: 3.622 | M21: 3.548
A25: Legende:
A26: erfasste Daten
A27: berechnete Daten

Sheet Erläuterungen Kategorien (hidden)
A1: Erläuterungen zur EEG-Vergütungskategorientabelle bis einschl. Inbetriebnahmejahr 2011
A2: Informationen zu den Vergütungskategorien auf der gemeinsamen Internetseite der vier Übertragungsnetzbetreiber: www.eeg-kwk.net
A3: Bedeutung der farblichen Hinterlegung der Einträge:
A4: weiß | B4: Vergütungskategorie stimmt mit bisheriger Kategorie nach EEG 2004 überein
A5: grün | B5: Vergütungskategorie bestand bereits nach EEG 2004, Vergütung wird ab 1.1.2009 erhöht
A6: gelb | B6: Vergütungskategorie ist neu nach EEG 2009
A7: orange | B7: Vergütungskategorie ist 2012/2013 neu nach EEG 2009
A8: rosa | B8: Vergütungskategorie ist 2012 neu nach EEG 2012, nur auf Anlagen mit Inbetriebnahme nach 31.12.2011 anwendbar
A9: braun | B9: Vergütungskategorie ist 2012 neu nach EEG 2012, auch auf Anlagen mit Inbetriebnahme vor 1.1.2012 anwendbar
A10: rosa / braun | B10: Vergütungskategorie ist 2012 neu nach EEG 2012, Anwendbarkeit auf Anlagen mit Inbetriebnahme vor 1.1.2012 unsicher
A11: violett | B11: Vergütungskategorie ist 2012 neu nach EEG 2012 in der am 29.06.2012 beschlossenen Fassung (sogenannte PV-Novelle)
A12: blau | B12: Vergütungskategorie ist 2013 neu nach EEG 2012 und/oder der Managementprämienverordnung (MaPrV)
A13: blassblau | B13: Vergütungskategorie ist 2013 ergänzt worden
A15: Anmerkung: | B15: Sofern eine Unterscheidung zwischen dem EEG 2012 in der vom 01.01.2012 bis 31.03.2012 geltenden alten Fassung und der ab 01.04.2012 gelten neuen Fassung erforderlich ist, ist dies durch die Verwendung von EEG 2012 a.F. bzw. EEG 2012 n.F. gekennzeichnet.
A17: Bonusregeln für Anlagen bis einschließlich Inbetriebnahmejahr 2008
A18: aus EEG 2004 und EEG 2009
A19: Bonusregel a1: (§ 8 Abs. 2 Satz 1 EEG 2004) in Höhe von 6,0 ct/kWh für den Anteil der eingespeisten Wirkarbeit bis einschließlich 500 kW
A21: Bonusregel a2: (§ 8 Abs. 2 Satz 1 EEG 2004) in Höhe von 4,0 ct/kWh für den Anteil der eingespeisten Wirkarbeit oberhalb von 500 kW bis einschließlich 5 MW
A23: Bonusregeln a1 und a2 jeweils bei Anlagen mit ausschließlichem Einsatz von Biomasse aus: (a) Pflanzen oder Pflanzenbestandteilen ohne Aufbereitung im Sinne von § 8 Abs. 2 Satz 1 Nr. 1 EEG, (b) Gülle und Schlempe im Sinne von § 8 Abs. 2 Satz 1 Nr. 1 EEG oder (c) Stoffgemisch aus (a) und (b) sofern ein Tagebuch über den ausschließlichen Einsatz dieser Stoffe geführt wird oder eine Genehmigung der Anlage für den ausschließlichen Einsatz dieser Stoffe vorliegt, sowie keine Biomasseanlagen auf demselben Gelände betrieben werden, in denen Strom aus sonstigen Stoffen gewonnen wird.
A25: Bonusregel a3: (§ 8 Abs. 2 Satz 2 EEG 2004) in Höhe von 2,5 ct/kWh bei Verbrennung von Holz für den Anteil oberhalb von 500 kW bis einschließlich 5 MW.
A27: Weitere Nawaro-Bonusregeln G, M1, M2, L, X1, X2: siehe Erläuterungen unten für Inbetriebnahmejahre ab 2009.
A29: Bonusregel b: (§ 8 Abs. 4 EEG 2004) in Höhe von 2,0 ct/kWh für Anlagen, die auch in Kraft-Wärmekopplung betrieben werden, bei ausschließlicher Verwendung von Biomasse gemäß Biomasseverordnung und Umwandlung der Biomasse durch thermochemische Vergasung oder Trockenfermentation oder Aufarbeitung des Biogases auf Erdgasqualität oder Erzeugung des Stroms mittels Brennstoffzelle, Gasturbine, Dampfmotoren, Organic-Rankine-Anlagen, Mehrstoffgemisch-Anlagen (u.a. Kalina-Cycle-Anlagen) bzw. Stirling-Motoren für den Anteil bis einschließlich 5 MW.
A31: KWK-Bonusregeln (KWK, KA3, K09, K10, K11 und K12): Bonus KWK (§ 8 Abs. 3 EEG 2004) in Höhe von 2,0 ct/kWh bei ausschließlicher Verwendung von Biomasse gemäß Biomasseverordnung für Anlagen, die KWK-Anlage gemäß FW 308 sind und dies entsprechend nachweisen. Die Bonusregel gilt nur für den KWK-Anteil des erzeugten elektrischen Stroms. Bonus K09, K10, K11 und K12 (§ 66 Abs. 1 Nr. 3 Satz 1 EEG 2009): Für Biomasseanlagen, die vor dem 01.01.2009 in Betrieb genommen wurden und die nach dem 31.12.2008 erstmals in Kraft-Wärme-Kopplung nach Maßgabe der Anlage 3 zum EEG 2009 betrieben wurden, beträgt der KWK-Bonus 3,00 ct/kWh bei erstmaligem KWK-Betrieb in 2009 (Bonus K09), 2,97 ct/kWh bei erstmaligem KWK-Betrieb in 2010 (Bonus K10), 2,94 ct/kWh bei erstmaligem KWK-Betrieb in 2011 (Bonus K11) und 2,91 ct/kWh bei erstmaligem KWK-Betrieb in 2012 (Bonus K12). Bonus KA3 (§ 66 Abs. 1 Nr. 3 Satz 2 EEG 2009): Für Strom aus sonstigen Biomasseanlagen mit Inbetriebnahme vor dem 01.01.2009, der in Kraft-Wärme-Kopplung nach Maßgabe der Anlage 3 zum EEG 2009 erzeugt worden ist, beträgt der KWK-Bonus bis einschließlich einer Leistung von 500 Kilowatt 3,0 ct/kWh.
A33: Bonusregel y: (§ 66 Abs.1 Nr. 4a EEG 2009) Strom aus Biomasseanlagen bis zu einer Anlagenleistung von 500 KW, die Biogas einsetzen, erhalten eine um 1,0 ct/kWh höhere Vergütung, wenn entsprechende Formaldehydgrenzwerte nach TA Luft eingehalten werden (Bonus y).
A35: Bonusregel S: (§ 66 Abs. 1 Nr. 6 EEG 2009) Windenergieanlagen, die nach dem 31.12.2001 und vor dem 01.01.2009 in Betrieb genommen worden sind, erhalten einen Systemdienstleistungsbonus von 0,7 ct/kWh, wenn sie infolge einer Nachrüstung vor dem 01.01.2011 die Anforderungen der Verordnung nach § 64 Abs. 1 Nr. 1 EEG 2009 erstmals einhalten.
A38: Bonusregeln für Anlagen mit Inbetriebnahmejahr 2009, 2010, 2011, 2012
A39: aus EEG 2009
F40: Bonushöhe
A41: Bonusbezeichnung | B41: Beschreibung | C41: Einschränkung | D41: gesetzliche Norm | F41: IB in 2009 | G41: IB in 2010 | H41: IB in 2011 | I41: IB in 2012
A42: Immissionsbonus | C42: Biomasse
A43: i | B43: Immissionsschutzrechtlich genehmigte Anlagen | C43: < 0,5 MW | D43: § 27 Abs. 5 EEG | F43: 1 | G43: 0.99 | H43: 0.98
A45: Technologiebonus | C45: Deponiegas, Klärgas, Grubengas (nur t3), Biomasse
A46: t1 | B46: Technologiebonus Gasaufbereitung; | C46: < 5 MW, 0-350 Normkubikmeter pro Std. | D46: § 27 Abs. 4 Satz 1 Nr. 1 EEG; Anlage 1 Punkt I., 2a | F46: 2 | G46: 1,98 (Biom.) 1,97 (Gase) | H46: 1,96 (Biom.) 1,94 (Gase)
A47: t2 | B47: Technologiebonus Gasaufbereitung; | C47: < 5 MW, 350-700 Normkubikmeter pro Std. | D47: § 27 Abs. 4 Satz 1 Nr. 1 EEG; Anlage 1 Punkt I., 2b | F47: 1 | G47: 0.99 | H47: 0,98 (Biom.) 0,97 (Gase)
A48: t3 | B48: Technonogiebonus Innovative Anlagentechnik | C48: < 5 MW | D48: § 27 Abs. 4 Satz 1 Nr. 1 EEG; Anlage 1 Punkt II., 2 | F48: 2 | G48: 1,98 (Biom.) 1,97 (Gase) | H48: 1,96 (Biom.) 1,94 (Gase) | I48: 1,94 (Biom.)
A50: Nawarobonus | C50: Biomasse
A51: a1 | B51: Nawarobonus_allgemein | C51: <0,5 MW | D51: § 27 Abs. 4 Satz 1 Nr. 2 EEG; Anlage 2 Punkt VI., 1a (1) | F51: 6 | G51: 5.94 | H51: 5.88 | I51: 5.82
A52: a2 | B52: Nawarobonus_allgemein | C52: 0,5-5 MW | D52: § 27 Abs. 4 Satz 1 Nr. 2 EEG; Anlage 2 Punkt VI., 1a (2) | F52: 4 | G52: 3.96 | H52: 3.92 | I52: 3.88
A53: ah | B53: Nawarobonus_allgemein | C53: 0,5-5 MW; Einschränkung Holz | D53: § 27 Abs. 4 Satz 1 Nr. 2 EEG; Anlage 2 Punkt VI., 1b | F53: 2.5 | G53: 2.48 | H53: 2.45 | I53: 2.43
A55: G | B55: Nawarobonus_Biogas | C55: <0,5 MW; | D55: § 27 Abs. 4 Satz 1 Nr. 2 EEG; Anlage 2 Punkt VI., 2a | F55: 7 | G55: 6.93 | H55: 6.86
A56: M1 | B56: Nawarobonus_Biogas | C56: 0-0,150 MW; Gülleanteil > 30 % | D56: § 27 Abs. 4 Satz 1 Nr. 2 EEG; Anlage 2 Punkt VI., 2b (1) | F56: 11 | G56: 10.89 | H56: 10.78
A57: M2 | B57: Nawarobonus_Biogas | C57: 0,150-0,5 MW; Gülleanteil > 30 % | D57: § 27 Abs. 4 Satz 1 Nr. 2 EEG; Anlage 2 Punkt VI., 2b (2) | F57: 8 | G57: 7.92 | H57: 7.84
A59: L | B59: Nawarobonus_Biogas | C59: 0-0,5 MW; Landschaftspflege | D59: § 27 Abs. 4 Satz 1 Nr. 2 EEG; Anlage 2 Punkt VI., 2c | F59: 9 | G59: 8.91 | H59: 8.82
A60: X1 | B60: Nawarobonus_Biogas | C60: 0-0,150 MW; Landschaftspflege; Gülleanteil > 30 % | D60: § 27 Abs. 4 Satz 1 Nr. 2 EEG; Anlage 2 Punkt VI., 2b (1) und Punkt VI., 2c (Kombination aus Bonus M1 und Bonus L) | F60: 13 | G60: 12.87 | H60: 12.74
A61: X2 | B61: Nawarobonus_Biogas | C61: 0,150-0,5 MW; Landschaftspflege; Gülleanteil > 30 % | D61: § 27 Abs. 4 Satz 1 Nr. 2 EEG; Anlage 2 Punkt VI., 2b (2) und Punkt VI., 2c (Kombination aus Bonus M2 und Bonus L) | F61: 10 | G61: 9.9 | H61: 9.8
A63: KWK-Bonus | C63: Biomasse
A64: K | B64: KWK-Bonus | C64: Anteil KWK-Strom | D64: § 27 Abs. 4 Satz 1 Nr. 3 EEG | F64: 3 | G64: 2.97 | H64: 2.94 | I64: 2.91
A66: Wärmenutzungs-bonus | C66: Geothermie
A67: W | B67: Wärmenutzungsbonus | D67: § 28 Abs. 2 EEG; Anlage 4 | F67: 3 | G67: 2.97 | H67: 2.94
A69: Bonus für Einsatz petrothermaler Technik | C69: Geothermie
A70: P | B70: Bonus petrothermale Technik | D70: § 28 Abs. 3 EEG | F70: 4 | G70: 3.96 | H70: 3.92
A72: Systemdienst-leistungsbonus | C72: Wind
A73: S | B73: Systemdienstleistungs-bonus | D73: § 29 Abs. 2 EEG | F73: 0.5 | G73: 0.5 | H73: 0.49
A78: Hinweise zu den Bezeichnungen der Vergütungskategorien
A79: vgl. auch: Umsetzungshilfe zum EEG 2009, Version 1.1 vom 01.12.2009, Anhang 3, online unter http://www.bdew.de/bdew.nsf/id/DE_EEG-Verfahrensbeschreibun_und_-Umsetzungshilfen
A81: 1. Biomasseanlagen mit Inbetriebnahme bis Ende 2003
A82: und alle anderen Anlagen mit Inbetriebnahme bis Juli 2004
A83: Stellen 1-2: | B83: Energieart:
B84: Wa = Wasser,
B85: Bi = Biomasse,
B86: Ga = Deponie-, Klär- und Grubengas
B87: Ge = Geothermie
B88: Wi = Wind
B89: So = Solarenergie
A90: Stelle 3: | B90: „K“ für Kategorie
A91: Stelle 4 | B91: relevanter Paragraph aus dem EEG 2000:
B92: 4 für Wasserkraft sowie Deponie-, Klär- und Grubengas
B93: 5 für Biomasse
B94: 6 für Geothermie
B95: 7 für Windenergie
B96: 8 für Solarenergie
A97: Stelle 5 | B97: fortlaufende Nummer (i.d.R. entsprechende(r) Satz/ Ziffer innerhalb des Paragraphen) zur Angabe der jeweiligen Vergütungszone
A98: Stelle 6 | B98: „n“ bei Biomasseanlagen für die Vergütungszone 0-150 kW
B99: „a“ sonst
A100: Stellen 7-12 (Biomasse) | B100: Angabe der Bonusregelungen:
B101: Die Kürzel für die gewährten Vergütungsboni werden in den Stellen 7 bis 12 nach und nach in folgender Reihenfolge eingeführt:
B102: 1. NaWaRo-Bonus (a1, a2, a3, G, M1, M2, L, X1 oder X2)
B103: 2. KWK-Bonus (KWK, KA3 oder K09)
B104: 3. Formaldehyd-Bonus (y)
B105: Alle 3 Bonustypen sind – unter Beachtung der verschiedenen Geltungsbereiche (Vergütungszonen) – miteinander kombinierbar.
B106: Weitere, noch freie Stellen werden mit Minuszeichen aufgefüllt.
A107: Stellen 7-12 (außer Biomasse) | B107: Minuszeichen
A108: Stellen 13 bis 14: | B108: Inbetriebnahmejahr (2-stellig)
A111: 2. Biomasseanlagen des Inbetriebnahmezeitraums Januar 2004 bis Ende 2008
A112: und alle anderen Anlagen des Inbetriebnahmezeitraums August 2004 bis Ende 2008
A113: Stellen 1-2: | B113: Energieart (vgl. oben)
A114: Stelle 3: | B114: „K“ für Kategorie
A115: Stelle 4 (Wa, Ga, Bi, Ge) bzw. 4-5 (Wind, Solar) | B115: relevanter Paragraph aus dem EEG 2004:
B116: 6 für Wasserkraft
B117: 7 für Deponie-, Klär- und Grubengas
B118: 8 für Biomasse
B119: 9 für Geothermie
B120: 10 für Windenergie
B121: 11 für Solarenergie
A122: Stelle 5 (Wa, Ga, Bi, Ge) bzw. 6 (Wind, Solar) | B122: fortlaufende Nummer (i.d.R. entsprechende(r) Satz/ Ziffer innerhalb des Paragraphen zur Angabe der einzelnen Vergütungszone
B123: bzw. zur Darstellung weiterer vergütungsrelevanter Angaben:
B124: a) Zuschlag bei Gasen nach EEG 2004
B125: b) Wind: Unterscheidung zwischen Anfangs- und Endvergütung
B126: c) Solarenergie: Fassadenbonus
A127: Stellen 6 bis 12 (Biomasse) | B127: Angabe der Vergütungsboni bei Biomasseanlagen
B128: Die Kürzel für die gewährten Vergütungsboni werden in den Stellen 6 bis 12 nach und nach in folgender Reihenfolge eingeführt:
B129: 1. NaWaRo-Bonus (a1, a2, a3, G, M1, M2, L, X1 oder X2)
B130: 2. Technologiebonus (b)
B131: 3. Formaldehyd-Bonus (y)
B132: 4. KWK-Bonus (KWK, KA3, K09, K10, K11 oder K12)
B133: Alle 4 Bonustypen sind – unter Beachtung der verschiedenen Geltungsbereiche (Vergütungszonen) – miteinander kombinierbar.
B134: Freie Stellen bis Stelle 12 werden mit Minuszeichen aufgefüllt.
A135: Stellen 6 bis 7 (Geothermie) | B135: Angabe der Vergütungsboni bei Geothermieanlagen :
B136: Die Kürzel für die gewährten Vergütungsboni werden in den Stellen 6 bis 7 in folgender Reihenfolge eingeführt:
B137: 1. Wärmenutzungs-Bonus (W)
B138: 2. Bonus für petrothermale Techniken (P)
B139: Die Bonustypen sind miteinander kombinierbar.
B140: Freie Stellen bis Stelle 12 werden mit Minuszeichen aufgefüllt.
A141: Stelle 7 (Windenergie) | B141: Angabe des Systemdienstleistungs-Bonus (SDL-Bonus):
B142: „S“ bei Vorliegen der Voraussetzungen für den SDL-Bonus
B143: Alle weiteren Stellen bis Stelle 12 werden mit Minuszeichen aufgefüllt
A144: Stellen 13 bis 14: | B144: Inbetriebnahmejahr (2-stellig)
A147: 3. Anlagen mit Vergütung nach EEG 2009
A148: Stellen 1-2: | B148: Energieart:
B149: Wa = Wasser,
B150: Bi = Biomasse,
B151: De = Deponiegas (ab Inbetriebnahmejahr 2009)
B152: Kl = Klärgas (ab Inbetriebnahmejahr 2009)
B153: Gr = Grubengas (ab Inbetriebnahmejahr 2009)
B154: Ge = Geothermie
B155: Wn = Wind onshore (ab Inbetriebnahmejahr 2009)
B156: Wr = Wind Repowering (ab Inbetriebnahmejahr 2009)
B157: Wf = Wind offshore (ab Inbetriebnahmejahr 2009)
B158: So = Solarenergie-Freiflächenanlagen
B159: Sg = Solarenergie an oder auf Gebäuden (ab Inbetriebnahmejahr 2009)
A160: Stelle 3: | B160: „K“ für Kategorie
A161: Stellen 4-5 | B161: relevanter Paragraph aus dem EEG 2009:
B162: 23 für Wasserkraft
B163: 24 für Deponiegas
B164: 25 für Klärgas
B165: 26 für Grubengas
B166: 27 für Biomasse
B167: 28 für Geothermie
B168: 29 für Windenergie an Land
B169: 30 für Windenergie an Land Repowering
B170: 31 für Windenergie offshore
B171: 32 für Solarenergie (Freiflächenanlagen)
B172: 33 für Solarenergie an oder auf Gebäuden
A173: Stelle 6 | B173: fortlaufende Nummer (i.d.R. entsprechende(r) Satz/ Ziffer innerhalb des Paragraphen) zur Darstellung der jeweiligen Vergütungszone
B174: oder anderer vergütungsrelevanter Angaben:
B175: a) Wasserkraft: modernisierte Anlage oder Neubau
B176: b) Windenergie: Anfangs- oder Endvergütung
B177: c) Solarenergie: „normale“ Vergütung oder Eigenverbrauch
A178: Stelle 7-8 (Biomasse) | B178: Angabe der Vergütungsboni:
B179: Die Kürzel für die gewährten Vergütungsboni werden in den Stellen 7 bis 12 nach und nach in folgender Reihenfolge eingeführt:
B180: 1. Technologiebonus (t1, t2, t3)
B181: 2. NaWaRo-Bonus (a1, a2, ah, G, M1, M2, L, X1 oder X2)
B182: 3. Formaldehyd-Bonus (i)
B183: 4. KWK-Bonus (K)
B184: Alle 4 Bonustypen sind – unter Beachtung der verschiedenen Geltungsbereiche (Vergütungszonen) – miteinander kombinierbar.
A185: Stellen 7-8 (Geothermie) | B185: Angabe der Vergütungsboni:
B186: Die Kürzel für die gewährten Vergütungsboni werden in den Stellen 7 bis 8 in folgender Reihenfolge eingeführt:
B187: 1. Wärmenutzungs-Bonus (W)
B188: 2. Bonus für petrothermale Techniken (P)
B189: Die Bonustypen sind miteinander kombinierbar.
A190: Stelle 7 (Windenergie) | B190: Angabe des Systemdienstleistungs-Bonus (SDL-Bonus):
B191: „S“ bei Vorliegen der Voraussetzungen für den SDL-Bonus
A192: Stellen 7-8 (Solar) | B192: Angabe zum Solarstrom-Selbstverbrauch in Stelle 7:
B193: "1" - fiktive Einspeisung des selbstverbrauchten Stroms
B194: "2" - fiktive Rückspeisung des selbstverbrauchten Stroms, ggf. nur Anteil bis zu 30 % der Gesamterzeugung der Anlage im Kalenderjahr
B195: "3" - fiktive Rückspeisung des selbstverbrauchten Stroms über 30 % der Gesamterzeugung der Anlage im Kalenderjahr
B196: In Stelle 8 wird die Leistungsstufe (0 … 30 kW, 30 … 100 kW und 100 … 500 kW) unterschieden.
A197: Stellen 7-12 | B197: "BS" (teilweise nur "B") für Bestandsschutz: Durch Übergangsbestimmungen geregelter Investitionsschutz des Weitergeltens von Vergütungen
A198: Alle weiteren Stellen bis Stelle 12 werden mit Minuszeichen aufgefüllt, Ausnahmen:
B199: - unterjährig einsetzende neue Vergütungssätze (bei Photovoltaikanlagen ab Juli, September oder Oktober): Monatsangaben in den Stellen 10 bis 12
B200: - "BS" (teilweise nur "B") für Bestandsschutz: Durch Übergangsbestimmungen geregelter Investitionsschutz des Weitergeltens von Vergütungen
A201: Stellen 13 bis 14: | B201: Inbetriebnahmejahr (2-stellig)
A204: 4. Anlagen mit Vergütung nach EEG 2012
A205: Stellen 1-2: | B205: Energieart:
B206: Wa = Wasser,
B207: Bi = Biomasse,
B208: Ga = Deponie-, Klär- oder Grubengas (bis Inbetriebnahmejahr 2008)
B209: De = Deponiegas (ab Inbetriebnahmejahr 2009)
B210: Kl = Klärgas (ab Inbetriebnahmejahr 2009)
B211: Gr = Grubengas (ab Inbetriebnahmejahr 2009)
B212: Ge = Geothermie
B213: Wi = Wind (bis Inbetriebnahmejahr 2008)
B214: Wn = Wind onshore (ab Inbetriebnahmejahr 2009)
B215: Wr = Wind Repowering (ab Inbetriebnahmejahr 2009)
B216: Wf = Wind offshore (ab Inbetriebnahmejahr 2009)
B217: So = Solarenergie-Freiflächenanlagen (auch an oder auf Gebäuden bis Inbetriebnahmejahr 2008)
B218: Sg = Solarenergie an oder auf Gebäuden (ab Inbetriebnahmejahr 2009)
A219: Stelle 3: | B219: „K“ für Kategorie
A220: Stellen 4-5, teils 4-6 | B220: relevanter Paragraph aus dem EEG 2012:
B221: 17 für Verringerung des Vergütungsanspruchs (alle Energieträger)
B222: 23 für Wasserkraft
B223: 24 für Deponiegas
B224: 25 für Klärgas
B225: 26 für Grubengas
B226: 27 für Biomasse
B227: 27a für Vergärung von Bioabfällen (Energieträger Biomasse)
B228: 27b für Vergärung von Gülle (Energieträger Biomasse)
B229: 28 für Geothermie
B230: 29 für Windenergie an Land
B231: 30 für Windenergie an Land Repowering
... 74 more rows

Sheet Beispiel Solarstromeigenverbr. (hidden)
A1: Beispiel für den Solarstrom-Eigenverbrauch einer PV-Anlage
A3: Photovoltaikanlage an oder auf Gebäude, Inbetriebnahme im Juli 2010
A4: elektrische Leistung: 200 kW
A5: Von der gesamten im Kalenderjahr erzeugten Strommenge von 200.000 kWh werden zeitgleich 80.000 kWh nach § 33 Abs. 2 EEG selbst verbraucht.
A7: 1. Aufteilung auf die Leistungszonen
A9: Bei Photovoltaikanlagen erfolgt die Aufteilung der Einspeisung auf die Leistungszone entsprechend der installierten Leistung.
A11: Der Leistungszone 0-30 kW werden zugerechnet:
A12: 30 / 200 = 15 % der erzeugten und selbstverbrauchten Strommenge
B13: Gesamterzeugung: | D13: 30.000 kWh
B14: Selbstverbrauch: | D14: 12.000 kWh
B15: davon | C15: bis 30 % Gesamterzeugung: | D15: 9.000 kWh
C16: über 30 % Gesamterzeugung: | D16: 3.000 kWh
B17: Einspeisung ins Netz: | D17: 18.000 kWh
A19: Der Leistungszone 30-100 kW werden zugerechnet:
A20: 70 / 200 = 35 % der erzeugten und selbstverbrauchten Strommenge
B21: Gesamterzeugung: | D21: 70.000 kWh
B22: Selbstverbrauch: | D22: 28.000 kWh
B23: davon | C23: bis 30 % Gesamterzeugung: | D23: 21.000 kWh
C24: über 30 % Gesamterzeugung: | D24: 7.000 kWh
B25: Einspeisung ins Netz: | D25: 42.000 kWh
A27: Der Leistungszone 100-1000 kW werden zugerechnet:
A28: Rest: 100 / 200 = 50 % der erzeugten und selbstverbrauchten Strommenge
B29: Gesamterzeugung: | D29: 100.000 kWh
B30: Selbstverbrauch: | D30: 40.000 kWh
B31: davon | C31: bis 30 % Gesamterzeugung: | D31: 30.000 kWh
C32: über 30 % Gesamterzeugung: | D32: 10.000 kWh
B33: Einspeisung ins Netz: | D33: 60.000 kWh
A36: 2. Vergütungskategorien
A38: Aus diesen Angaben ergibt sich folgende Aufteilung der gesamten EEG-Strommenge auf die Vergütungskategorien:
A40: Vergütungskategorie | B40: Vergütungssatz der Vergütungskategorie | D40: Strommenge, die der jeweiligen Kategorie zugerechnet wird | F40: Vergütung | H40: Beschreibung der Vergütungskategorie
B41: (ct/kWh) | D41: (kWh) | F41: (Euro)
A43: SgK330---Jul10 | B43: 34.05 | D43: 18000 | F43: =D43*B43/100 -> 6129 | H43: 0-30 KW
A44: SgK33410-Jul10 | B44: 34.05 | D44: 12000 | F44: 4086 | H44: 0-30 KW, selbstverbrauchte Erzeugung
A45: SgK33420-Jul10 | B45: 16.38 | D45: -9000 | F45: -1474.2 | H45: 0-30 KW, Rückvergütung für Selbstverbrauch bis 30% der Gesamterzeugung der Anlage
A46: SgK33430-Jul10 | B46: 12 | D46: -3000 | F46: -360 | H46: 0-30 KW, Rückvergütung für Selbstverbrauch über 30% der Gesamterzeugung der Anlage
A47: SgK331---Jul10 | B47: 32.39 | D47: 42000 | F47: 13603.8 | H47: 30-100 KW
A48: SgK33411-Jul10 | B48: 32.39 | D48: 28000 | F48: 9069.2 | H48: 30-100 KW, selbstverbrauchte Erzeugung
A49: SgK33421-Jul10 | B49: 16.38 | D49: -21000 | F49: -3439.8 | H49: 30-100 KW, Rückvergütung für Selbstverbrauch bis 30% der Gesamterzeugung der Anlage
A50: SgK33431-Jul10 | B50: 12 | D50: -7000 | F50: -840 | H50: 30-100 KW, Rückvergütung für Selbstverbrauch über 30% der Gesamterzeugung der Anlage
A51: SgK332---Jul10 | B51: 30.65 | D51: 60000 | F51: 18390 | H51: 100 KW-1 MW
A52: SgK33412-Jul10 | B52: 30.65 | D52: 40000 | F52: 12260 | H52: 100-500 KW, selbstverbrauchte Erzeugung
A53: SgK33422-Jul10 | B53: 16.38 | D53: -30000 | F53: -4914 | H53: 100-500 KW, Rückvergütung für Selbstverbrauch bis 30% der Gesamterzeugung der Anlage
A54: SgK33432-Jul10 | B54: 12 | D54: -10000 | F54: -1200 | H54: 100-500 KW, Rückvergütung für Selbstverbrauch über 30% der Gesamterzeugung der Anlage
A56: Summe | D56: =SUM(D43:D54) -> 120000 | F56: =SUM(F43:F54) -> 51310
A58: Die summierte Strommenge von 120.000 kWh entspricht der tatsächlichen Netzeinspeisung.
A59: Diese Strommenge ist bei der Berechnung der vermiedenen Netzentgelte zugrunde zu legen.
A60: Das heißt, dass für den selbst verbrauchten Strom (im Beispiel 80.000 kWh) keine vermiedenen Netzentgelte berechnet werden.
A63: 3. Berechnung der vermiedenen Netzentgelte:
A65: Erfolgt die Einspeisung z.B. in Spannungsebene 5 (Mittelspannung), so werden die vermiedenen Netzentgelte in die vNNE-Kategorie
A66: der Spannungsebene 5 eingetragen:
A67: Sg-vNNe--SpE05
A69: Die Höhe der vermiedenen Netzentgelte bemisst sich allerdings nach den Netzentgelten (Leistungsanteil und Arbeitsanteil) der
A70: Spannungsebene, in der durch die EEG-Einspeisung Netznutzung vermieden wird.
A71: In der Regel ist dies die Netz- bzw. Umspannebene, die der Einspeiseebene direkt vorgelagert ist - in diesem Beispiel wäre demnach
A72: das Netzentgelt der Ebene 4 (HS/MS) für die Berechnung der vermiedenen Netzentgelte maßgeblich.

Sheet Beispiel Biomasseanlage (hidden)
A1: Beispiel für die Einordnung einer EEG-Anlage in die zutreffenden EEG-Vergütungskategorien
A3: Biomasseanlage, Inbetriebnahme in 2006
A4: elektrische Leistung: 400 kW
A5: Stromerzeugung erfolgt zu 30% in KWK-Betrieb, Anforderungen der Anlage 3 zum EEG werden erfüllt
A6: Die Anlage hat Anspruch auf den allgemeinen NaWaRo-Bonus a1
A8: Berechnung der EEG-Vergütung in 2009:
A10: 1. Berechnung der Leistung nach § 18 Abs. 2 EEG, die für die Aufteilung in die Vergütungszonen relevant ist ("Bemessungsleistung"):
A12: EEG-Strom-Erzeugung in 2009: | D12: W2009 = | E12: 3285000 | F12: kWh
A14: Anzahl der Stunden des Jahres 2009: | D14: n2009 = | E14: 8760 | F14: h
A16: Anzahl der Stunden von Jahresbeginn 2009 bis zur erstmaligen
A17: Erzeugung von Strom aus Erneuerbaren Energien | D17: n2009,vorEEGErzeugung = | E17: 0 | F17: h
A19: Anzahl der Stunden im Jahr 2009 von der endgültigen
A20: Stilllegung bis zum Ende des Kalenderjahres 2009: | D20: n2009,nachStillegung = | E20: 0 | F20: h
A22: Bemessungsleistung PB,i nach § 18 Abs. 2 EEG: | D22: PB,2009 = | E22: =E12/(E14-E17-E20) -> 375 | F22: kW
A24: Formel für PB,i allgemein (vgl. EEG-Verfahrensbeschreibung):
A31: 2. Aufteilung der Stromerzeugung auf die Vergütungskategorien:
A33: zu beachten: | B33: 1. Aufteilung auf die Leistungszonen 0-150 kW und 150-500 kW
B34: 2. Aufteilung zwischen KWK-Anteil und Nicht-KWK-Anteil
A36: Der Leistungszone 0-150 kW werden zugerechnet:
A37: 150 / 375 = 40 % der erzeugten Strommenge
A38: davon entfallen | B38: 70 % auf den Nicht-KWK-Anteil und
B39: 30 % auf den KWK-Anteil
A41: Der Leistungszone 150-500 kW werden zugerechnet:
A42: (375-150) / 375 = 60 % der erzeugten Strommenge
A43: davon entfallen | B43: 70 % auf den Nicht-KWK-Anteil und
B44: 30 % auf den KWK-Anteil
A47: Aus diesen Angaben ergibt sich folgende Aufteilung der gesamten EEG-Strommenge auf die Vergütungskategorien:
A49: Vergütungskategorie | B49: Anteil der gesamten Strom-erzeugung, der der jeweilig. Kategorie zugerechnet wird | D49: Strommenge, die der jeweiligen Kategorie zugerechnet wird | F49: Vergütungssatz der Vergütungskategorie | G49: Vergütung
E50: (kWh) | F50: (ct/kWh) | G50: (Euro)
A52: BiK81a1-----06 | B52: 40% * 70% = | C52: =0.4*0.7 -> 0.28 | D52: 28% von 3.285.000 = | E52: =C52*E$12 -> 919800 | F52: 17.67 | G52: =E52*F52/100 -> 162528.66
A53: BiK81a1KA3--06 | B53: 40% * 30% = | C53: =0.4*0.3 -> 0.12 | D53: 12% von 3.285.000 = | E53: =C53*E$12 -> 394200 | F53: 20.67 | G53: =E53*F53/100 -> 81481.14
A54: BiK82a1-----06 | B54: 60% * 70% = | C54: =0.6*0.7 -> 0.42 | D54: 42% von 3.285.000 = | E54: =C54*E$12 -> 1379700 | F54: 15.6 | G54: =E54*F54/100 -> 215233.2
A55: BiK82a1KA3--06 | B55: 60% * 30% = | C55: =0.6*0.3 -> 0.18 | D55: 18% von 3.285.000 = | E55: =C55*E$12 -> 591300 | F55: 18.6 | G55: =E55*F55/100 -> 109981.8
A57: Summe | C57: =SUM(C52:C55) -> 1 | E57: =SUM(E52:E55) -> 3285000 | G57: =SUM(G52:G55) -> 569224.8
A60: In Formelschreibweise lässt sich die Vergütungsberechnung für 2009 in diesem Beispiel wie folgt darstellen:
A75: = 162.528,66 Euro + 81.481.14 Euro + 215.233,20 Euro + 109.981,80 Euro
A77: = 569.224,80 Euro
A82: 3. Berechnung der vermiedenen Netzentgelte:
A84: Erfolgt die Einspeisung z.B. in Spannungsebene 5 (Mittelspannung), so werden die vermiedenen Netzentgelte in die vNNE-Kategorie
A85: der Spannungsebene 5 eingetragen:
A86: Bi-vNNe--SpE05
A88: Die Höhe der vermiedenen Netzentgelte bemisst sich allerdings nach den Netzentgelten (Leistungsanteil und Arbeitsanteil) der
A89: Spannungsebene, in der durch die EEG-Einspeisung Netznutzung vermieden wird.
A90: In der Regel ist dies die Netz- bzw. Umspannebene, die der Einspeiseebene direkt vorgelagert ist - in diesem Beispiel wäre demnach
A91: das Netzentgelt der Ebene 4 (HS/MS) für die Berechnung der vermiedenen Netzentgelte maßgeblich.

Sheet Konfiguration (hidden)
A1: Energieträger | B1: Typ | C1: Erlaubt in Stammdaten ? | D1: Code | E1: ShortCode | G1: Spannungsebenen | I1: Code | L1: Einspeisemanagement | M1: Code | N1: Erlaubt in Auswahl ? | P1: Bundesländer | Q1: Code | S1: Buchungstypen | U1: Prüfungsschritt/Fehlernummer: | V1: Fehlerbeschreibung | W1: Anlagenschlüssel (sofern möglich) | X1: Zeile (bei Schritt 1 u. 2) | Y1: Tabellenblatt (nur bei Schritt 1 und 2) | Z1: Spalte (nur bei Schritt 2, sofern möglich) | AC1: Inbetriebnahmejahre | AD1: Von | AE1: Bis | AG1: SORT_KEY | AH1: TYP | AI1: EEG_Kategorien | AJ1: VEG | AK1: VEG_KONTROLLE | AL1: VIN_Kontrolle | AM1: VIN | AN1: Leistungsgrenze Von | AO1: Leistungsgrenze Bis | AP1: Ergänzende Infos | AQ1: TEC-Bonus | AR1: KWK-Bonus | AS1: RV-Anteil | AT1: KWK | AU1: Anfangs (A) bzw. Endvergütung (Bei Wind) oder SV-kategorie (Sv) o. Spanungsebene (bei vNNE) o. nur Negative Vergütung (NegVerg) oder nur gegen Nachweis (NACHWEIS) oder Modernisierung (MOD) oder Marktintegrationsmodell (MIM/MIMA) oder Bemessungsleistung (BEM) oder Flexibilitätszuschalg (FLZ) oder Bezugsmonat bei DV oder Bedingung (PotMIM) für MIM bzw. Auschlusskriterium für MIM (NotMIM) | AV1: Vergütungssatz | AW1: Ausfallvergütung | AX1: anz-wert | AY1: Fernsteuerbar | BB1: MPM-Auswahl | BE1: AV-Ausswahl | BH1: Erläuterung der 3 Prüfungsschritte: | BW1: Legende zu Gründen für die nachträgliche Korrekturen nach § 62 EEG 2017 | BX1: ausführliche Gründe | BZ1: Ausnahmen | CB1: Ausnahmen vNE | CD1: ID | CE1: Kennung | CF1: Diskriminator | CG1: Unternehmen | CH1: BNetzA-Nr
A2: Wasser | B2: Wasserkraft | C2: Ja | D2: Wasser | E2: Wa | G2: HöS | H2: keine gültige Spannungsebene | I2: HOES | J2: - | L2: Nicht regelbar | M2: nr | N2: Ja | P2: Baden-Württemberg | Q2: BW | S2: BIL | AC2: Inbetriebnahme 01.01. bis 31.07.2004 | AD2: 2004-01-01 | AE2: 2004-07-31 | AG2: 1 | AH2: EEG | AI2: WaK41a------01 | AJ2: Wasser | AK2: =VLOOKUP(AJ2,ENERGIETRAEGER,1,FALSE) -> Wasser | AL2: =VLOOKUP(AM2,VIN,1,FALSE) -> Inbetriebnahme bis 2001 | AM2: Inbetriebnahme bis 2001 | AP2: 0-0,5 MW | AV2: 7.67 | AW2: 6.14 | AX2: 7.67 | BA2: EEG | BB2: WaK41a------01 | BD2: EEG | BE2: WaK41a------01 | BH2: Schritt 1 von 3 (Stammdatenprüfung): | BI2: Prüfung der Stammdaten (Tabellenblatt "Stammdaten") auf Vollständigkeit und Gültigkeit | BW2: 1a | BX2: 1 a) Rückforderungen mit Abwicklung auf Grund von § 57 Abs. 5 EEG 2017 (§62 Abs. 1 Nr. 1 EEG 2017) | BZ2: Volllaststunden | CB2: Abweichender Arbeitsanteil | CD2: 12223 | CE2: SCHORNDORF_VNB | CF2: N/A | CG2: Stadtwerke Schorndorf GmbH | CH2: 10000060
A3: Biomasse | B3: Biomasse | C3: Ja | D3: Biomasse | E3: Bi | G3: Hös/HS | H3: Spannungsebene: HöS | I3: HSHOES | J3: HOES | L3: regelbar nach § 9 Abs. 1 EEG 2014 | M3: P61 | N3: Ja | P3: Bayern | Q3: BY | S3: BIP | AC3: Inbetriebnahme 01-03/2012 | AD3: 2012-01-01 | AE3: 2012-03-31 | AG3: 2 | AH3: EEG | AI3: WaK42a------01 | AJ3: Wasser | AK3: Wasser | AL3: Inbetriebnahme bis 2001 | AM3: Inbetriebnahme bis 2001 | AP3: 0,5-5 MW | AV3: 6.65 | AW3: 5.32 | AX3: 6.65 | BA3: EEG | BB3: WaK42a------01 | BD3: EEG | BE3: WaK42a------01 | BH3: Schritt 2a von 3 (Bewegungsdatenprüfung ohne Marktprämie): | BI3: Prüfung der Angaben in den Tabellenblättern "Einspeisevergütung_Sonst", "Ausfallvermarktung", "Nachträgliche Korrekturen", "Eigenversorgung" und "vNE" auf Vollständigkeit und Gültigkeit (nur möglich, wenn die Stammdatenprüfung ohne Fehler durchlaufen wurde) | BW3: 1b | BX3: 1 b) Rückforderungen, die in einem vollstreckbaren Titel mit dem ÜNB berücksichtigt werden (§62 Abs. 1 Nr. 6 EEG 2017) | BZ3: Fehlende Bewegungsdaten | CB3: Abweichender Leistungsanteil | CD3: 12108 | CE3: STEIßLINGEN_VNB | CF3: N/A | CG3: Gemeindewerke Steißlingen | CH3: 10000062 | CI3: =EXACT(CH3,CH2) -> FALSE
A4: Geothermie | B4: Geothermie | C4: Ja | D4: Geothermie | E4: Ge | G4: HS | H4: Spannungsebene: Hös/HS | I4: HS | J4: HSHOES | L4: regelbar nach § 9 Abs. 2 EEG 2014 | M4: P62 | N4: Ja | P4: Hessen | Q4: HE | S4: GAL | AC4: Inbetriebnahme 01-06/2010 | AD4: 2010-01-01 | AE4: 2010-06-30 | AG4: 3 | AH4: EEG | AI4: WaK41a------02 | AJ4: Wasser | AK4: Wasser | AL4: Inbetriebnahme 2002 | AM4: Inbetriebnahme 2002 | AP4: 0-0,5 MW | AV4: 7.67 | AW4: 6.14 | AX4: 7.67 | BA4: EEG | BB4: WaK41a------02 | BD4: EEG | BE4: WaK41a------02 | BH4: Schritt 2b von 3 (Bewegungsdatenprüfung für Marktprämie): | BI4: Prüfung der Angaben zur Direktvermarktung vom Typ Marktprämie (Tabellenblätter "MPM_anzulegender_Wert" und "MPM_Monatswerte") auf Vollständigkeit und Gültigkeit (nur möglich, wenn die Stammdatenprüfung ohne Fehler durchlaufen wurde) | BW4: 2 | BX4: 2. rechtskräftige Gerichtsentscheidungen im Hauptsacheverfahren (§ 62 Abs. 1 Nr. 2 EEG 2017) | BZ4: Aufteilung des Selbstverbrauchs | CB4: Abweichender Arbeitsanteil / Abweichender Leistungsanteil | CD4: 12087 | CE4: GAMMERTINGEN_VNB | CF4: N/A | CG4: Gammertinger Energie- u. Wasserversorgung GmbH | CH4: 10000066 | CI4: FALSE
A5: Wind | B5: Windenergie an Land | C5: Ja | D5: Wind | E5: Wi | G5: HS/MS | H5: Spannungsebene: HS | I5: MSHS | J5: HS | L5: 70%-Begrenzung | M5: 70P | N5: Ja | P5: Rheinland-Pfalz | Q5: RP | S5: GAP | AC5: Inbetriebnahme 01-07/2004 | AD5: 2004-01-01 | AE5: 2004-07-31 | AG5: 4 | AH5: EEG | AI5: WaK42a------02 | AJ5: Wasser | AK5: Wasser | AL5: Inbetriebnahme 2002 | AM5: Inbetriebnahme 2002 | AP5: 0,5-5 MW | AV5: 6.65 | AW5: 5.32 | AX5: 6.65 | BA5: EEG | BB5: WaK42a------02 | BD5: EEG | BE5: WaK42a------02 | BH5: Schritt 3 von 3 (abschließende Prüfung) | BI5: Prüfung der Gesamtergebnisse auf Plausibilität und Vollständigkeit (nur möglich, wenn alle vorherigen Prüfungsschritte ohne Fehler durchlaufen wurden) | BW5: 3 | BX5: 3. Übermittlung und Abgleich von Daten nach § 73 Abs. 5 EEG 2017 (§62 Abs. 1 Nr. 3 EEG 2017) | BZ5: Volllaststunden u. Aufteilung des Selbstverbrauchs | CD5: 12022 | CE5: EG_HAUINGEN_VNB | CF5: N/A | CG5: Elektrizitäts-Genossenschaft Hauingen e.G. | CH5: 10000071 | CI5: FALSE
A6: Solar | B6: Solare Strahlungsenergie | C6: Ja | D6: Solar | E6: So | G6: MS | H6: Spannungsebene: HS/MS | I6: MS | J6: MSHS | L6: regelbar nach § 6 Abs. 1 EEG 2012 | M6: P61 | N6: Ja | S6: GEL | AC6: Inbetriebnahme 04/2012 | AD6: 2012-04-01 | AE6: 2012-04-30 | AG6: 5 | AH6: EEG | AI6: WaK41a------03 | AJ6: Wasser | AK6: Wasser | AL6: Inbetriebnahme 2003 | AM6: Inbetriebnahme 2003 | AP6: 0-0,5 MW | AV6: 7.67 | AW6: 6.14 | AX6: 7.67 | BA6: EEG | BB6: WaK41a------03 | BD6: EEG | BE6: WaK41a------03 | BW6: 4 | BX6: 4. Verfahren bei der Clearingstelle nach § 81 EEG 2017 (§ 62 Abs. 1 Nr. 4 EEG 2017) | BZ6: Flexibilitätsprämie | CD6: 12191 | CE6: GENGENBACH_VNB | CF6: N/A | CG6: Stadtwerke Gengenbach | CH6: 10000080 | CI6: FALSE
A7: Solar/Gebäude | B7: Solare Strahlungsenergie | C7: Ja | D7: SolarGebaeude | E7: Sg | G7: MS/NS | H7: Spannungsebene: MS | I7: NSMS | J7: MS | L7: regelbar nach § 6 Abs. 2 EEG 2012 | M7: P62 | N7: Ja | S7: GEP | AC7: Inbetriebnahme 04-06/2012 | AD7: 2012-04-01 | AE7: 2012-06-30 | AG7: 6 | AH7: EEG | AI7: WaK42a------03 | AJ7: Wasser | AK7: Wasser | AL7: Inbetriebnahme 2003 | AM7: Inbetriebnahme 2003 | AP7: 0,5-5 MW | AV7: 6.65 | AW7: 5.32 | AX7: 6.65 | BA7: EEG | BB7: WaK42a------03 | BD7: EEG | BE7: WaK42a------03 | BW7: 5 | BX7: 5. Entscheidungen der Bundesnetzagentur nach § 85 EEG 2017 (§ 62 Abs. 1 Nr. 5 EEG 2017) | BZ7: Volllaststunden und Flexibilitätsprämie | CD7: 12031 | CE7: KANDERN_VNB | CF7: N/A | CG7: Elektrizitätswerk Kandern Bissinger GmbH | CH7: 10000082 | CI7: FALSE
A8: Deponiegas | B8: Deponie-, Klär-, Grubengas | C8: Ja | D8: Deponiegas | E8: De | G8: NS | H8: Spannungsebene: MS/NS | I8: NS | J8: NSMS | L8: regelbar nach § 9 Abs. 1 EEG 2017 | M8: P61 | N8: Ja | S8: SOL | AC8: Inbetriebnahme 05/2012 | AD8: 2012-05-01 | AE8: 2012-05-31 | AG8: 7 | AH8: EEG | AI8: WaK41a------04 | AJ8: Wasser | AK8: Wasser | AL8: Inbetriebnahme 01-07/2004 | AM8: Inbetriebnahme 01-07/2004 | AP8: 0-0,5 MW | AV8: 7.67 | AW8: 6.14 | AX8: 7.67 | BA8: EEG | BB8: WaK41a------04 | BD8: EEG | BE8: WaK41a------04 | BW8: 6 | BX8: 6 a) vollstreckbarer Titel mit Anlagenbetreiber, der erst nach der Abrechnung nach § 58 Abs. 1 EEG 2017 ergangen ist (§ 62 Abs. 1 Nr. 6 EEG 2017) | BZ8: Marktintegrationsmodell | CD8: 12111 | CE8: ZWIEFALTEN_VNB | CF8: N/A | CG8: Getreidemühle Zwiefalten e.G. | CH8: 10000091 | CI8: FALSE
A9: Klärgas | B9: Deponie-, Klär-, Grubengas | C9: Ja | D9: Klaergas | E9: Kl | L9: regelbar nach § 9 Abs. 2 EEG 2017 | M9: P62 | N9: Ja | S9: SOP | AC9: Inbetriebnahme 06/2012 | AD9: 2012-06-01 | AE9: 2012-06-30 | AG9: 8 | AH9: EEG | AI9: WaK42a------04 | AJ9: Wasser | AK9: Wasser | AL9: Inbetriebnahme 01-07/2004 | AM9: Inbetriebnahme 01-07/2004 | AP9: 0,5-5 MW | AV9: 6.65 | AW9: 5.32 | AX9: 6.65 | BA9: EEG | BB9: WaK42a------04 | BD9: EEG | BE9: WaK42a------04 | BW9: 7 | BX9: 6 b) vollstreckbarer Titel mit ÜNB erforderlich | BZ9: Volllaststunden u. Marktintegrationsmodell | CD9: 12431 | CE9: RÖTHENBACH_VNB | CF9: N/A | CG9: Elektrizitäts-Genossenschaft Röthenbach eG | CH9: 10000118 | CI9: FALSE
A10: Grubengas | B10: Deponie-, Klär-, Grubengas | C10: Ja | D10: Grubengas | E10: Gr | L10: regelbar nach § 9 Abs. 1 | M10: P61 | N10: Ja | S10: SOT | AC10: Inbetriebnahme 07/2012 | AD10: 2012-07-01 | AE10: 2012-07-31 | AG10: 9 | AH10: EEG | AI10: WaK61-------04 | AJ10: Wasser | AK10: Wasser | AL10: Inbetriebnahme 08-12/2004 | AM10: Inbetriebnahme 08-12/2004 | AP10: 0-0,5 MW | AV10: 9.67 | AW10: 7.74 | AX10: 9.67 | BA10: EEG | BB10: WaK61-------04 | BD10: EEG | BE10: WaK61-------04 | BW10: 7a | BX10: 7. Zahlungen, die nach §26 Abs. 2 EEG 2017 zu einem späteren Zeitpunkt fällig geworden sind (§ 62 Abs. 1 Nr. 7 EEG 2017) | BZ10: Volllaststunden u. Marktintegrationsmodell bei < 10kWp (implizit angenommen) | CD10: 12100 | CE10: JESTETTEN_VNB | CF10: N/A | CG10: Strom- und Wasserversorgungsbetrieb der Gemeinde Jestetten | CH10: 10000125 | CI10: FALSE
A11: Wind onshore | B11: Windenergie an Land | C11: Ja | D11: WindOnshore | E11: Wn | L11: regelbar nach § 9 Abs. 2 | M11: P62 | N11: Ja | S11: WNL | AC11: Inbetriebnahme 07-09/2010 | AD11: 2010-07-01 | AE11: 2010-09-30 | AG11: 10 | AH11: EEG | AI11: WaK62-------04 | AJ11: Wasser | AK11: Wasser | AL11: Inbetriebnahme 08-12/2004 | AM11: Inbetriebnahme 08-12/2004 | AP11: 0,5-5 MW | AV11: 6.65 | AW11: 5.32 | AX11: 6.65 | BA11: EEG | BB11: WaK62-------04 | BD11: EEG | BE11: WaK62-------04 | BW11: 8a | BX11: 8 a) Nachträgliche finanzielle Förderung aufgrund einer Übergangsbestimmung: Erfolgte Meldung nach §71 Nr. 1 EEG 2017, unterlassene Meldung im Anlagenregister (§100 Abs. 1 Satz 5 i.V.m. §52 Abs. 3 EEG 2017) | BZ11: Marktintegrationsmodell bei < 10kWp (implizit angenommen) | CD11: 12186 | CE11: FELLBACH_VNB | CF11: N/A | CG11: Stadtwerke Fellbach GmbH | CH11: 10000154 | CI11: FALSE
A12: Wind Repowering | B12: Windenergie an Land | C12: Ja | D12: WindRepowering | E12: Wr | S12: WNP | AC12: Inbetriebnahme 08/2012 | AD12: 2012-08-01 | AE12: 2012-08-31 | AG12: 11 | AH12: EEG | AI12: WaK63-------04 | AJ12: Wasser | AK12: Wasser | AL12: Inbetriebnahme 08-12/2004 | AM12: Inbetriebnahme 08-12/2004 | AP12: >5 MW , Zubau 0-0,5 MW | AV12: 7.67 | AW12: 6.14 | AX12: 7.67 | BA12: EEG | BB12: WaK63-------04 | BD12: EEG | BE12: WaK63-------04 | BW12: 8b | BX12: 8 b) Nachträgliche finanzielle Förderung aufgrund einer Übergangsbestimmung: Bestandschutz für Biomasseanlagen mit Baugenehmigung vor dem 23.01.2014 (§100 Abs. 4 Satz 2 ggf. i.V.m. §50b Satz 4 EEG 2017) | CD12: 12023 | CE12: AACH_VNB | CF12: N/A | CG12: Elektrizitätswerk Aach eG | CH12: 10000190 | CI12: FALSE
A13: Deponie-,Klär-,Grubengas | B13: Deponie-, Klär-, Grubengas | C13: Nein | D13: Gas | E13: Ga | S13: WAL | AC13: Inbetriebnahme 08-12/2004 | AD13: 2004-08-01 | AE13: 2004-12-31 | AG13: 12 | AH13: EEG | AI13: WaK64-------04 | AJ13: Wasser | AK13: Wasser | AL13: Inbetriebnahme 08-12/2004 | AM13: Inbetriebnahme 08-12/2004 | AP13: >5 MW , Zubau 0,5-10 MW | AV13: 6.65 | AW13: 5.32 | AX13: 6.65 | BA13: EEG | BB13: WaK64-------04 | BD13: EEG | BE13: WaK64-------04 | CD13: 12069 | CE13: SÜDBAAR_VNB | CF13: N/A | CG13: Energieversorgung Südbaar GmbH & Co. KG | CH13: 10000223 | CI13: FALSE
S14: WAP | AC14: Inbetriebnahme 09/2012 | AD14: 2012-09-01 | AE14: 2012-09-30 | AG14: 13 | AH14: EEG | AI14: WaK65-------04 | AJ14: Wasser | AK14: Wasser | AL14: Inbetriebnahme 08-12/2004 | AM14: Inbetriebnahme 08-12/2004 | AP14: >5 MW , Zubau 10-20 MW | AV14: 6.1 | AW14: 4.88 | AX14: 6.1 | BA14: EEG | BB14: WaK65-------04 | BD14: EEG | BE14: WaK65-------04 | CD14: 12247 | CE14: SAIG_VNB | CF14: N/A | CG14: Strombezugsgenossenschaft Saig eG | CH14: 10000236 | CI14: FALSE
G15: SV | H15: Code | I15: Erlaubt in Auswahl ? | AC15: Inbetriebnahme 10/2012 | AD15: 2012-10-01 | AE15: 2012-10-31 | AG15: 14 | AH15: EEG | AI15: WaK66-------04 | AJ15: Wasser | AK15: Wasser | AL15: Inbetriebnahme 08-12/2004 | AM15: Inbetriebnahme 08-12/2004 | AP15: >5 MW , Zubau 20-50 MW | AV15: 4.56 | AW15: 3.65 | AX15: 4.56 | BA15: EEG | BB15: WaK66-------04 | BD15: EEG | BE15: WaK66-------04 | CD15: 12167 | CE15: ALTENSTEIG_VNB | CF15: N/A | CG15: Stadtwerke Altensteig | CH15: 10000245 | CI15: FALSE
G16: Nein | H16: NEIN | I16: Ja | AC16: Inbetriebnahme 10-12/2010 | AD16: 2010-10-01 | AE16: 2010-12-31 | AG16: 15 | AH16: EEG | AI16: WaK67-------04 | AJ16: Wasser | AK16: Wasser | AL16: Inbetriebnahme 08-12/2004 | AM16: Inbetriebnahme 08-12/2004 | AP16: >5 MW , Zubau 50-150 MW | AV16: 3.7 | AW16: 2.96 | AX16: 3.7 | BA16: EEG | BB16: WaK67-------04 | BD16: EEG | BE16: WaK67-------04 | CD16: 12039 | CE16: SCHÖNAU_VNB | CF16: N/A | CG16: Elektrizitätswerke Schönau Netze GmbH | CH16: 10000256 | CI16: FALSE
A17: EV-Anlagenarten | B17: Code | C17: DB-Code | G17: Ja (keine Belieferung Dritter) | H17: JA_OHNE_DRITTBELIEFERUNG | I17: Ja | AC17: Inbetriebnahme 11/2012 | AD17: 2012-11-01 | AE17: 2012-11-30 | AG17: 16 | AH17: EEG | AI17: WaK61-------05 | AJ17: Wasser | AK17: Wasser | AL17: Inbetriebnahme 2005 | AM17: Inbetriebnahme 2005 | AP17: 0-0,5 MW | AV17: 9.67 | AW17: 7.74 | AX17: 9.67 | BA17: EEG | BB17: WaK61-------05 | BD17: EEG | BE17: WaK61-------05 | CD17: 12183 | CE17: ENGEN_VNB | CF17: N/A | CG17: Stadtwerke Engen GmbH | CH17: 10000257 | CI17: FALSE
A18: EEG-Anlagen | B18: EEG | C18: EEG-Anlage | G18: Ja (mit Belieferung Dritter) | H18: JA_MIT_DRITTBELIEFERUNG | I18: Ja | AC18: Inbetriebnahme 12/2012 | AD18: 2012-12-01 | AE18: 2012-12-31 | AG18: 17 | AH18: EEG | AI18: WaK62-------05 | AJ18: Wasser | AK18: Wasser | AL18: Inbetriebnahme 2005 | AM18: Inbetriebnahme 2005 | AP18: 0,5-5 MW | AV18: 6.65 | AW18: 5.32 | AX18: 6.65 | BA18: EEG | BB18: WaK62-------05 | BD18: EEG | BE18: WaK62-------05 | CD18: 12106 | CE18: SCHUTTERWALD_VNB | CF18: N/A | CG18: Gemeindewerke Schutterwald | CH18: 10000259 | CI18: FALSE
A19: hocheffiziente KWK-Anlagen | B19: KWK | C19: hocheffiziente KWK-Anlage | G19: Ja (Lieferkonstellation unbekannt) | H19: JA_UNBEKANNT | I19: Ja | AC19: Inbetriebnahme 01/2013 | AD19: 2013-01-01 | AE19: 2013-01-31 | AG19: 18 | AH19: EEG | AI19: WaK63-------05 | AJ19: Wasser | AK19: Wasser | AL19: Inbetriebnahme 2005 | AM19: Inbetriebnahme 2005 | AP19: >5 MW , Zubau 0-0,5 MW | AV19: 7.59 | AW19: 6.07 | AX19: 7.59 | BA19: EEG | BB19: WaK63-------05 | BD19: EEG | BE19: WaK63-------05 | CD19: 12217 | CE19: RASTATT_VNB | CF19: N/A | CG19: star. Energiewerke GmbH & Co.KG | CH19: 10000284 | CI19: FALSE
A20: nicht hocheffiziente KWKG-Anlagen oder konventionelle Anlagen | B20: KONV | C20: konventionelle Anlage | AC20: Inbetriebnahme 02/2013 | AD20: 2013-02-01 | AE20: 2013-02-28 | AG20: 19 | AH20: EEG | AI20: WaK64-------05 | AJ20: Wasser | AK20: Wasser | AL20: Inbetriebnahme 2005 | AM20: Inbetriebnahme 2005 | AP20: >5 MW , Zubau 0,5-10 MW | AV20: 6.58 | AW20: 5.26 | AX20: 6.58 | BA20: EEG | BB20: WaK64-------05 | BD20: EEG | BE20: WaK64-------05 | CD20: 12213 | CE20: NÜRTINGEN_VNB | CF20: N/A | CG20: Stadtwerke Nürtingen GmbH | CH20: 10000295 | CI20: FALSE
A21: nicht hocheffiziente KWKG-Anlagen | B21: KONV | C21: konventionelle Anlage | G21: Ja | AC21: Inbetriebnahme 03/2013 | AD21: 2013-03-01 | AE21: 2013-03-31 | AG21: 20 | AH21: EEG | AI21: WaK65-------05 | AJ21: Wasser | AK21: Wasser | AL21: Inbetriebnahme 2005 | AM21: Inbetriebnahme 2005 | AP21: >5 MW , Zubau 10-20 MW | AV21: 6.04 | AW21: 4.83 | AX21: 6.04 | BA21: EEG | BB21: WaK65-------05 | BD21: EEG | BE21: WaK65-------05 | CD21: 12232 | CE21: ÜBERLINGEN_VNB | CF21: N/A | CG21: Stadtwerke Überlingen GmbH | CH21: 10000306 | CI21: FALSE
A22: konventionelle Anlagen | B22: KONV | C22: konventionelle Anlage | G22: Nein | AC22: Inbetriebnahme 04/2013 | AD22: 2013-04-01 | AE22: 2013-04-30 | AG22: 21 | AH22: EEG | AI22: WaK66-------05 | AJ22: Wasser | AK22: Wasser | AL22: Inbetriebnahme 2005 | AM22: Inbetriebnahme 2005 | AP22: >5 MW , Zubau 20-50 MW | AV22: 4.51 | AW22: 3.61 | AX22: 4.51 | BA22: EEG | BB22: WaK66-------05 | BD22: EEG | BE22: WaK66-------05 | CD22: 12176 | CE22: BUCHEN_VNB | CF22: N/A | CG22: Stadtwerke Buchen GmbH & Co. KG | CH22: 10000330 | CI22: FALSE
A23: Nicht-EEG-Anlagen | B23: NON-EEG | C23: konventionelle Anlage | AC23: Inbetriebnahme 05/2013 | AD23: 2013-05-01 | AE23: 2013-05-31 | AG23: 22 | AH23: EEG | AI23: WaK67-------05 | AJ23: Wasser | AK23: Wasser | AL23: Inbetriebnahme 2005 | AM23: Inbetriebnahme 2005 | AP23: >5 MW , Zubau 50-150 MW | AV23: 3.66 | AW23: 2.93 | AX23: 3.66 | BA23: EEG | BB23: WaK67-------05 | BD23: EEG | BE23: WaK67-------05 | CD23: 12118 | CE23: GEUDER_VNB | CF23: N/A | CG23: Hermann Geuder e.K. Elektrizitätswerk | CH23: 10000334 | CI23: FALSE
AC24: Inbetriebnahme 06/2013 | AD24: 2013-06-01 | AE24: 2013-06-30 | AG24: 23 | AH24: EEG | AI24: WaK61-------06 | AJ24: Wasser | AK24: Wasser | AL24: Inbetriebnahme 2006 | AM24: Inbetriebnahme 2006 | AP24: 0-0,5 MW | AV24: 9.67 | AW24: 7.74 | AX24: 9.67 | BA24: EEG | BB24: WaK61-------06 | BD24: EEG | BE24: WaK61-------06 | BW24: Legende zu Gründen für die nachträgliche Korrekturen der Eigenversorgung | BX24: ausführliche Gründe | CD24: 12209 | CE24: MÜHLACKER_VNB | CF24: N/A | CG24: Stadtwerke Mühlacker GmbH | CH24: 10000346 | CI24: FALSE
AC25: Inbetriebnahme 07/2013 | AD25: 2013-07-01 | AE25: 2013-07-31 | AG25: 24 | AH25: EEG | AI25: WaK62-------06 | AJ25: Wasser | AK25: Wasser | AL25: Inbetriebnahme 2006 | AM25: Inbetriebnahme 2006 | AP25: 0,5-5 MW | AV25: 6.65 | AW25: 5.32 | AX25: 6.65 | BA25: EEG | BB25: WaK62-------06 | BD25: EEG | BE25: WaK62-------06 | BW25: EV10 | BX25: Nachträglich von Eigenversorgern erhaltene EEG-Umlage für in Vorjahren gemeldete EEG-umlagepflichtige Strommengen | CD25: 12224 | CE25: SCHWÄBISCH_HALL_VNB | CF25: N/A | CG25: Stadtwerke Schwäbisch Hall GmbH | CH25: 10000349 | CI25: FALSE
A26: Umlagen | B26: Code EEG | C26: Code KWK | D26: Code KONV | E26: Code NON-EEG | F26: Preis | G26: Preis Vorjahr | H26: Verdichtung | AC26: Inbetriebnahme 08/2013 | AD26: 2013-08-01 | AE26: 2013-08-31 | AG26: 25 | AH26: EEG | AI26: WaK63-------06 | AJ26: Wasser | AK26: Wasser | AL26: Inbetriebnahme 2006 | AM26: Inbetriebnahme 2006 | AP26: >5 MW, Zubau 0-0,5 MW | AV26: 7.51 | AW26: 6.01 | AX26: 7.51 | BA26: EEG | BB26: WaK63-------06 | BD26: EEG | BE26: WaK63-------06 | BW26: EV20 | BX26: Nachträgliche Korrekturen von Eigenversorgern nach § 61 Abs. 3 i.V.m § 62 Abs. 2 EEG 2017 | CD26: 12038 | CE26: LEY_VNB | CF26: N/A | CG26: Elektrizitätswerk Ley | CH26: 10000358 | CI26: FALSE
A27: EV6111-EEG-RED | B27: EV6111-EEG-RED | C27: INVALID | D27: INVALID | E27: INVALID | F27: 2.2239 | G27: 1.851 | H27: EEG-Umlage nach § 61 Abs. 1 Satz 1 Nr. 1 EEG 2014 (35% der vollen Umlage) | AC27: Inbetriebnahme 09/2013 | AD27: 2013-09-01 | AE27: 2013-09-30 | AG27: 26 | AH27: EEG | AI27: WaK64-------06 | AJ27: Wasser | AK27: Wasser | AL27: Inbetriebnahme 2006 | AM27: Inbetriebnahme 2006 | AP27: >5 MW, Zubau 0,5-10 MW | AV27: 6.51 | AW27: 5.21 | AX27: 6.51 | BA27: EEG | BB27: WaK64-------06 | BD27: EEG | BE27: WaK64-------06 | CD27: 12753 | CE27: HELOG_VNB | CF27: N/A | CG27: Hellenstein-Energie-Logistik GmbH | CH27: 10000359 | CI27: FALSE
A28: EV6111NEEG-RED | B28: INVALID | C28: EV6111NEEG-RED | D28: INVALID | E28: EV6111NEEG-RED | F28: 2.2239 | G28: 1.851 | H28: EEG-Umlage nach § 61 Abs. 1 Satz 1 Nr. 1 EEG 2014 (35% der vollen Umlage) | AC28: Inbetriebnahme 10/2013 | AD28: 2013-10-01 | AE28: 2013-10-31 | AG28: 27 | AH28: EEG | AI28: WaK65-------06 | AJ28: Wasser | AK28: Wasser | AL28: Inbetriebnahme 2006 | AM28: Inbetriebnahme 2006 | AP28: >5 MW , Zubau 10-20 MW | AV28: 5.98 | AW28: 4.78 | AX28: 5.98 | BA28: EEG | BB28: WaK65-------06 | BD28: EEG | BE28: WaK65-------06 | CD28: 12255 | CE28: TWF_VNB | CF28: N/A | CG28: Technische Werke Friedrichshafen GmbH | CH28: 10000375 | CI28: FALSE
A29: EV61121NEEG100 | B29: INVALID | C29: INVALID | D29: EV61121NEEG100 | E29: EV61121NEEG100 | F29: 6.354 | G29: 6.17 | H29: EEG-Umlage nach § 61 Abs. 1 Satz 2 EEG 2014 (volle Umlage) | AC29: Inbetriebnahme 11/2013 | AD29: 2013-11-01 | AE29: 2013-11-30 | AG29: 28 | AH29: EEG | AI29: WaK66-------06 | AJ29: Wasser | AK29: Wasser | AL29: Inbetriebnahme 2006 | AM29: Inbetriebnahme 2006 | AP29: >5 MW , Zubau 20-50 MW | AV29: 4.46 | AW29: 3.57 | AX29: 4.46 | BA29: EEG | BB29: WaK66-------06 | BD29: EEG | BE29: WaK66-------06 | CD29: 12174 | CE29: BIETIGHEIM_BISSINGEN_VNB | CF29: Bietigheim | CG29: Stadtwerke Bietigheim-Bissingen GmbH | CH29: 10000386 | CI29: FALSE
A30: EV61122-EEG100 | B30: EV61122-EEG100 | C30: INVALID | D30: INVALID | E30: INVALID | F30: 6.354 | G30: 6.17 | H30: EEG-Umlage nach § 61 Abs. 1 Satz 2 EEG 2014 (volle Umlage) | AC30: Inbetriebnahme 12/2013 | AD30: 2013-12-01 | AE30: 2013-12-31 | AG30: 29 | AH30: EEG | AI30: WaK67-------06 | AJ30: Wasser | AK30: Wasser | AL30: Inbetriebnahme 2006 | AM30: Inbetriebnahme 2006 | AP30: >5 MW , Zubau 50-150 MW | AV30: 3.62 | AW30: 2.9 | AX30: 3.62 | BA30: EEG | BB30: WaK67-------06 | BD30: EEG | BE30: WaK67-------06 | CD30: 33264 | CE30: OBERRIEXINGEN_VNB | CF30: Oberriexingen | CG30: Stadtwerke Bietigheim-Bissingen GmbH | CH30: 10000386 | CI30: TRUE
A31: EV61122NEEG100 | B31: INVALID | C31: EV61122NEEG100 | D31: INVALID | E31: EV61122NEEG100 | F31: 6.354 | G31: 6.17 | H31: EEG-Umlage nach § 61 Abs. 1 Satz 2 EEG 2014 (volle Umlage) | AC31: Inbetriebnahme 01/2014 | AD31: 2014-01-01 | AE31: 2014-01-31 | AG31: 30 | AH31: EEG | AI31: WaK61-------07 | AJ31: Wasser | AK31: Wasser | AL31: Inbetriebnahme 2007 | AM31: Inbetriebnahme 2007 | AP31: 0-0,5 MW | AV31: 9.67 | AW31: 7.74 | AX31: 9.67 | BA31: EEG | BB31: WaK61-------07 | BD31: EEG | BE31: WaK61-------07 | CD31: 12002 | CE31: ALBWERK_GEISLINGEN_VNB | CF31: N/A | CG31: Albwerk GmbH & Co. KG | CH31: 10000414 | CI31: FALSE
A32: EV6124-EEG---0 | B32: EV6124-EEG---0 | C32: INVALID | D32: INVALID | E32: INVALID | F32: 0 | G32: 0 | H32: EEG-Umlage nach § 61 Abs. 2 Nr. 4 EEG 2014 (keine Umlage) | AC32: Inbetriebnahme 02/2014 | AD32: 2014-02-01 | AE32: 2014-02-28 | AG32: 31 | AH32: EEG | AI32: WaK62-------07 | AJ32: Wasser | AK32: Wasser | AL32: Inbetriebnahme 2007 | AM32: Inbetriebnahme 2007 | AP32: 0,5-5 MW | AV32: 6.65 | AW32: 5.32 | AX32: 6.65 | BA32: EEG | BB32: WaK62-------07 | BD32: EEG | BE32: WaK62-------07 | CD32: 12227 | CE32: SINDELFINGEN_VNB | CF32: N/A | CG32: Stadtwerke Sindelfingen GmbH | CH32: 10000431 | CI32: FALSE
A33: EV6124NEEG---0 | B33: INVALID | C33: EV6124NEEG---0 | D33: EV6124NEEG---0 | E33: EV6124NEEG---0 | F33: 0 | G33: 0 | H33: EEG-Umlage nach § 61 Abs. 2 Nr. 4 EEG 2014 (keine Umlage) | AC33: Inbetriebnahme 03/2014 | AD33: 2014-03-01 | AE33: 2014-03-31 | AG33: 32 | AH33: EEG | AI33: WaK63-------07 | AJ33: Wasser | AK33: Wasser | AL33: Inbetriebnahme 2007 | AM33: Inbetriebnahme 2007 | AP33: >5 MW , Zubau 0-0,5 MW | AV33: 7.43 | AW33: 5.94 | AX33: 7.43 | BA33: EEG | BB33: WaK63-------07 | BD33: EEG | BE33: WaK63-------07 | BW33: Arten der Förderung | BX33: Code | CD33: 12230 | CE33: TÜBINGEN_VNB | CF33: N/A | CG33: Stadtwerke Tübingen GmbH | CH33: 10000434 | CI33: FALSE
A34: EV604-EEG-ZINS | B34: EV604-EEG-ZINS | C34: INVALID | D34: INVALID | E34: INVALID | H34: Zinsbetrag entsprechend § 60 Abs. 4 EEG i. V. m. § 7 Abs. 4 AusglMechV | AC34: Inbetriebnahme 04/2014 | AD34: 2014-04-01 | AE34: 2014-04-30 | AG34: 33 | AH34: EEG | AI34: WaK64-------07 | AJ34: Wasser | AK34: Wasser | AL34: Inbetriebnahme 2007 | AM34: Inbetriebnahme 2007 | AP34: >5 MW , Zubau 0,5-10 MW | AV34: 6.44 | AW34: 5.15 | AX34: 6.44 | BA34: EEG | BB34: WaK64-------07 | BD34: EEG | BE34: WaK64-------07 | BW34: Marktprämie | BX34: MP | CD34: 12212 | CE34: NEUFFEN_VNB | CF34: N/A | CG34: Stadtwerke Neuffen AG | CH34: 10000441 | CI34: FALSE
A35: EV604NEEG-ZINS | B35: INVALID | C35: EV604NEEG-ZINS | D35: EV604NEEG-ZINS | E35: EV604NEEG-ZINS | H35: Zinsbetrag entsprechend § 60 Abs. 4 EEG i. V. m. § 7 Abs. 4 AusglMechV | AC35: Inbetriebnahme 05/2014 | AD35: 2014-05-01 | AE35: 2014-05-31 | AG35: 34 | AH35: EEG | AI35: WaK65-------07 | AJ35: Wasser | AK35: Wasser | AL35: Inbetriebnahme 2007 | AM35: Inbetriebnahme 2007 | AP35: >5 MW , Zubau 10-20 MW | AV35: 5.92 | AW35: 4.74 | AX35: 5.92 | BA35: EEG | BB35: WaK65-------07 | BD35: EEG | BE35: WaK65-------07 | BW35: Einspeisevergütung | BX35: EEGEV | CD35: 12169 | CE35: TAUBERFRANKEN_VNB | CF35: N/A | CG35: Stadtwerk Tauberfranken GmbH | CH35: 10000460 | CI35: FALSE
AC36: Inbetriebnahme 06/2014 | AD36: 2014-06-01 | AE36: 2014-06-30 | AG36: 35 | AH36: EEG | AI36: WaK66-------07 | AJ36: Wasser | AK36: Wasser | AL36: Inbetriebnahme 2007 | AM36: Inbetriebnahme 2007 | AP36: >5 MW , Zubau 20-50 MW | AV36: 4.42 | AW36: 3.54 | AX36: 4.42 | BA36: EEG | BB36: WaK66-------07 | BD36: EEG | BE36: WaK66-------07 | BW36: Grünstromprivileg | BX36: GSP | CD36: 12248 | CE36: SCHWÄBISCH_GMÜND_VNB | CF36: N/A | CG36: Stadtwerke Schwäbisch Gmünd GmbH | CH36: 10000462 | CI36: FALSE
AC37: Inbetriebnahme 07/2014 | AD37: 2014-07-01 | AE37: 2014-07-31 | AG37: 36 | AH37: EEG | AI37: WaK67-------07 | AJ37: Wasser | AK37: Wasser | AL37: Inbetriebnahme 2007 | AM37: Inbetriebnahme 2007 | AP37: >5 MW , Zubau 50-150 MW | AV37: 3.58 | AW37: 2.86 | AX37: 3.58 | BA37: EEG | BB37: WaK67-------07 | BD37: EEG | BE37: WaK67-------07 | BW37: Förderung für Flexibilität | BX37: FLEXIBILITAET | CD37: 12242 | CE37: WEINHEIM_VNB | CF37: N/A | CG37: Stadtwerke Weinheim GmbH | CH37: 10000469 | CI37: FALSE
AC38: Inbetriebnahme 08/2014 | AD38: 2014-08-01 | AE38: 2014-08-31 | AG38: 37 | AH38: EEG | AI38: WaK61-------08 | AJ38: Wasser | AK38: Wasser | AL38: Inbetriebnahme 2008 | AM38: Inbetriebnahme 2008 | AP38: 0-0,5 MW | AV38: 9.67 | AW38: 7.74 | AX38: 9.67 | BA38: EEG | BB38: WaK61-------08 | BD38: EEG | BE38: WaK61-------08 | CD38: 12458 | CE38: eneRegio_VNB | CF38: N/A | CG38: eneREGIO GmbH | CH38: 10000480 | CI38: FALSE
AC39: Inbetriebnahme 09/2014 | AD39: 2014-09-01 | AE39: 2014-09-30 | AG39: 38 | AH39: EEG | AI39: WaK62-------08 | AJ39: Wasser | AK39: Wasser | AL39: Inbetriebnahme 2008 | AM39: Inbetriebnahme 2008 | AP39: 0,5-5 MW | AV39: 6.65 | AW39: 5.32 | AX39: 6.65 | BA39: EEG | BB39: WaK62-------08 | BD39: EEG | BE39: WaK62-------08 | CD39: 12249 | CE39: SULZ_VNB | CF39: N/A | CG39: Stromversorgung Sulz GmbH | CH39: 10000497 | CI39: FALSE
AC40: Inbetriebnahme 10/2014 | AD40: 2014-10-01 | AE40: 2014-10-31 | AG40: 39 | AH40: EEG | AI40: WaK63-------08 | AJ40: Wasser | AK40: Wasser | AL40: Inbetriebnahme 2008 | AM40: Inbetriebnahme 2008 | AP40: >5 MW , Zubau 0-0,5 MW | AV40: 7.36 | AW40: 5.89 | AX40: 7.36 | BA40: EEG | BB40: WaK63-------08 | BD40: EEG | BE40: WaK63-------08 | CD40: 12875 | CE40: ENBW_TNG_VNB | CF40: N/A | CG40: TransnetBW GmbH | CH40: 10000502 | CI40: FALSE
AC41: Inbetriebnahme 11/2014 | AD41: 2014-11-01 | AE41: 2014-11-30 | AG41: 40 | AH41: EEG | AI41: WaK64-------08 | AJ41: Wasser | AK41: Wasser | AL41: Inbetriebnahme 2008 | AM41: Inbetriebnahme 2008 | AP41: >5 MW , Zubau 0,5-10 MW | AV41: 6.38 | AW41: 5.1 | AX41: 6.38 | BA41: EEG | BB41: WaK64-------08 | BD41: EEG | BE41: WaK64-------08 | CD41: 12238 | CE41: WALDKIRCH_VNB | CF41: N/A | CG41: Stadtwerke Waldkirch GmbH | CH41: 10000533 | CI41: FALSE
A42: Liefermonate | AC42: Inbetriebnahme 12/2014 | AD42: 2014-12-01 | AE42: 2014-12-31 | AG42: 41 | AH42: EEG | AI42: WaK65-------08 | AJ42: Wasser | AK42: Wasser | AL42: Inbetriebnahme 2008 | AM42: Inbetriebnahme 2008 | AP42: >5 MW , Zubau 10-20 MW | AV42: 5.86 | AW42: 4.69 | AX42: 5.86 | BA42: EEG | BB42: WaK65-------08 | BD42: EEG | BE42: WaK65-------08 | CD42: 12188 | CE42: FREUDENSTADT_VNB | CF42: N/A | CG42: Stadtwerke Freudenstadt GmbH & Co. KG | CH42: 10000555 | CI42: FALSE
A43: Januar | B43: 1 | AC43: Inbetriebnahme 01/2015 | AD43: 2015-01-01 | AE43: 2015-01-31 | AG43: 42 | AH43: EEG | AI43: WaK66-------08 | AJ43: Wasser | AK43: Wasser | AL43: Inbetriebnahme 2008 | AM43: Inbetriebnahme 2008 | AP43: >5 MW , Zubau 20-50 MW | AV43: 4.38 | AW43: 3.5 | AX43: 4.38 | BA43: EEG | BB43: WaK66-------08 | BD43: EEG | BE43: WaK66-------08 | CD43: 12107 | CE43: SINZHEIM_VNB | CF43: N/A | CG43: Gemeindewerke Sinzheim | CH43: 10000569 | CI43: FALSE
A44: Februar | B44: 2 | AC44: Inbetriebnahme 02/2015 | AD44: 2015-02-01 | AE44: 2015-02-28 | AG44: 43 | AH44: EEG | AI44: WaK67-------08 | AJ44: Wasser | AK44: Wasser | AL44: Inbetriebnahme 2008 | AM44: Inbetriebnahme 2008 | AP44: >5 MW , Zubau 50-150 MW | AV44: 3.54 | AW44: 2.83 | AX44: 3.54 | BA44: EEG | BB44: WaK67-------08 | BD44: EEG | BE44: WaK67-------08 | CD44: 12180 | CE44: EBERBACH_VNB | CF44: N/A | CG44: Stadtwerke Eberbach | CH44: 10000580 | CI44: FALSE
A45: März | B45: 3 | AC45: Inbetriebnahme 03/2015 | AD45: 2015-03-01 | AE45: 2015-03-31 | AG45: 44 | AH45: EEG | AI45: WaK230------09 | AJ45: Wasser | AK45: Wasser | AL45: Inbetriebnahme 2009 | AM45: Inbetriebnahme 2009 | AP45: 0-0,5 MW, Anlage < 5 MW | AV45: 12.67 | AW45: 10.14 | AX45: 12.67 | BA45: EEG | BB45: WaK230------09 | BD45: EEG | BE45: WaK230------09 | CD45: 12041 | CE45: TAUBERRETTERSHEIM_VNB | CF45: N/A | CG45: Müller - Mühle GmbH & Co. KG | CH45: 10000583 | CI45: FALSE
A46: April | B46: 4 | AC46: Inbetriebnahme 04/2015 | AD46: 2015-04-01 | AE46: 2015-04-30 | AG46: 45 | AH46: EEG | AI46: WaK231------09 | AJ46: Wasser | AK46: Wasser | AL46: Inbetriebnahme 2009 | AM46: Inbetriebnahme 2009 | AP46: 0-0,5 MW, Anlage < 5 MW, Modernisierung | AU46: MOD | AV46: 11.67 | AW46: 9.34 | AX46: 11.67 | BA46: EEG | BB46: WaK231------09 | BD46: EEG | BE46: WaK231------09 | CD46: 12067 | CE46: EOW_VNB | CF46: N/A | CG46: EOW Energieversorgung Oberes Wiesental GmbH | CH46: 10000598 | CI46: FALSE
A47: Mai | B47: 5 | G47: Speicher | H47: Code | I47: Erlaubt in Auswahl ? | AC47: Inbetriebnahme 05/2015 | AD47: 2015-05-01 | AE47: 2015-05-31 | AG47: 46 | AH47: EEG | AI47: WaK232------09 | AJ47: Wasser | AK47: Wasser | AL47: Inbetriebnahme 2009 | AM47: Inbetriebnahme 2009 | AP47: 0,5-2 MW, Anlage < 5 MW | AV47: 8.65 | AW47: 6.92 | AX47: 8.65 | BA47: EEG | BB47: WaK232------09 | BD47: EEG | BE47: WaK232------09 | CD47: 12214 | CE47: OBERKIRCH_VNB | CF47: N/A | CG47: Stadtwerke Oberkirch GmbH | CH47: 10000618 | CI47: FALSE
A48: Juni | B48: 6 | G48: Ja | H48: J | I48: Ja | AC48: Inbetriebnahme 06/2015 | AD48: 2015-06-01 | AE48: 2015-06-30 | AG48: 47 | AH48: EEG | AI48: WaK233------09 | AJ48: Wasser | AK48: Wasser | AL48: Inbetriebnahme 2009 | AM48: Inbetriebnahme 2009 | AP48: 2-5 MW, Anlage < 5 MW | AV48: 7.65 | AW48: 6.12 | AX48: 7.65 | BA48: EEG | BB48: WaK233------09 | BD48: EEG | BE48: WaK233------09 | CD48: 12195 | CE48: HASLACH_VNB | CF48: N/A | CG48: Stadtwerke Haslach | CH48: 10000626 | CI48: FALSE
A49: Juli | B49: 7 | G49: Nein | H49: N | I49: Ja | AC49: Inbetriebnahme 07/2015 | AD49: 2015-07-01 | AE49: 2015-07-31 | AG49: 48 | AH49: EEG | AI49: WaK234------09 | AJ49: Wasser | AK49: Wasser | AL49: Inbetriebnahme 2009 | AM49: Inbetriebnahme 2009 | AP49: 0,5-5 MW, Anlage < 5 MW, Modernisierung | AU49: MOD | AV49: 8.65 | AW49: 6.92 | AX49: 8.65 | BA49: EEG | BB49: WaK234------09 | BD49: EEG | BE49: WaK234------09 | CD49: 12182 | CE49: ELZACH_VNB | CF49: N/A | CG49: Stadtwerke Elzach | CH49: 10000627 | CI49: FALSE
A50: August | B50: 8 | G50: Nicht bekannt | H50: N/A | I50: Ja | AC50: Inbetriebnahme 08/2015 | AD50: 2015-08-01 | AE50: 2015-08-31 | AG50: 49 | AH50: EEG | AI50: WaK235------09 | AJ50: Wasser | AK50: Wasser | AL50: Inbetriebnahme 2009 | AM50: Inbetriebnahme 2009 | AP50: >5 MW, Zubau 0-0,5 MW | AV50: 7.29 | AW50: 5.83 | AX50: 7.29 | BA50: EEG | BB50: WaK235------09 | BD50: EEG | BE50: WaK235------09 | CD50: 12229 | CE50: TROSSINGEN_VNB | CF50: N/A | CG50: Energieversorgung Trossingen GmbH (EnTro) | CH50: 10000641 | CI50: FALSE
A51: September | B51: 9 | AC51: Inbetriebnahme 09/2015 | AD51: 2015-09-01 | AE51: 2015-09-30 | AG51: 50 | AH51: EEG | AI51: WaK236------09 | AJ51: Wasser | AK51: Wasser | AL51: Inbetriebnahme 2009 | AM51: Inbetriebnahme 2009 | AP51: >5 MW, Zubau 0,5-10 MW | AV51: 6.32 | AW51: 5.06 | AX51: 6.32 | BA51: EEG | BB51: WaK236------09 | BD51: EEG | BE51: WaK236------09 | CD51: 12101 | CE51: KIRCHZARTEN_VNB | CF51: N/A | CG51: Energie- und Wasserversorgung Kirchzarten GmbH | CH51: 10000658 | CI51: FALSE
A52: Oktober | B52: 10 | AC52: Inbetriebnahme 10/2015 | AD52: 2015-10-01 | AE52: 2015-10-31 | AG52: 51 | AH52: EEG | AI52: WaK237------09 | AJ52: Wasser | AK52: Wasser | AL52: Inbetriebnahme 2009 | AM52: Inbetriebnahme 2009 | AP52: >5 MW, Zubau 10-20 MW | AV52: 5.8 | AW52: 4.64 | AX52: 5.8 | BA52: EEG | BB52: WaK237------09 | BD52: EEG | BE52: WaK237------09 | CD52: 12199 | CE52: HÜFINGEN_VNB | CF52: N/A | CG52: Stadtwerke Hüfingen | CH52: 10000682 | CI52: FALSE
A53: November | B53: 11 | AC53: Inbetriebnahme 11/2015 | AD53: 2015-11-01 | AE53: 2015-11-30 | AG53: 52 | AH53: EEG | AI53: WaK238------09 | AJ53: Wasser | AK53: Wasser | AL53: Inbetriebnahme 2009 | AM53: Inbetriebnahme 2009 | AP53: >5 MW, Zubau 20-50 MW | AV53: 4.34 | AW53: 3.47 | AX53: 4.34 | BA53: EEG | BB53: WaK238------09 | BD53: EEG | BE53: WaK238------09 | CD53: 12097 | CE53: GUNDELFINGEN_VNB | CF53: N/A | CG53: Gemeindewerke Gundelfingen GmbH | CH53: 10000708 | CI53: FALSE
A54: Dezember | B54: 12 | AC54: Inbetriebnahme 12/2015 | AD54: 2015-12-01 | AE54: 2015-12-31 | AG54: 53 | AH54: EEG | AI54: WaK239------09 | AJ54: Wasser | AK54: Wasser | AL54: Inbetriebnahme 2009 | AM54: Inbetriebnahme 2009 | AP54: >5 MW, Zubau >50 MW | AV54: 3.5 | AW54: 2.8 | AX54: 3.5 | BA54: EEG | BB54: WaK239------09 | BD54: EEG | BE54: WaK239------09 | CD54: 12237 | CE54: WAIBLINGEN_VNB | CF54: N/A | CG54: Stadtwerke Waiblingen GmbH | CH54: 10000726 | CI54: FALSE
G55: EV_BILANZ | H55: Code | I55: Erlaubt in Auswahl ? | AC55: Inbetriebnahme 2002 | AD55: 2002-01-01 | AE55: 2002-12-31 | AG55: 54 | AH55: EEG | AI55: WaK230------10 | AJ55: Wasser | AK55: Wasser | AL55: Inbetriebnahme 2010 | AM55: Inbetriebnahme 2010 | AP55: 0-0,5 MW, Anlage < 5 MW | AV55: 12.67 | AW55: 10.14 | AX55: 12.67 | BA55: EEG | BB55: WaK230------10 | BD55: EEG | BE55: WaK230------10 | CD55: 12222 | CE55: SAULGAU_VNB | CF55: N/A | CG55: Stadtwerke Bad Saulgau | CH55: 10000729 | CI55: FALSE
G56: Leistungsband | H56: LEIB | I56: Ja | AC56: Inbetriebnahme 2003 | AD56: 2003-01-01 | AE56: 2003-12-31 | AG56: 55 | AH56: EEG | AI56: WaK231------10 | AJ56: Wasser | AK56: Wasser | AL56: Inbetriebnahme 2010 | AM56: Inbetriebnahme 2010 | AP56: 0-0,5 MW, Anlage < 5 MW, Modernisierung | AU56: MOD | AV56: 11.67 | AW56: 9.34 | AX56: 11.67 | BA56: EEG | BB56: WaK231------10 | BD56: EEG | BE56: WaK231------10 | CD56: 12190 | CE56: GAGGENAU_VNB | CF56: N/A | CG56: Stadtwerke Gaggenau | CH56: 10000786 | CI56: FALSE
G57: Prozentual | H57: PROZ | I57: Ja | AC57: Inbetriebnahme 2004 | AD57: 2004-01-01 | AE57: 2004-12-31 | AG57: 56 | AH57: EEG | AI57: WaK232------10 | AJ57: Wasser | AK57: Wasser | AL57: Inbetriebnahme 2010 | AM57: Inbetriebnahme 2010 | AP57: 0,5-2 MW, Anlage < 5 MW | AV57: 8.65 | AW57: 6.92 | AX57: 8.65 | BA57: EEG | BB57: WaK232------10 | BD57: EEG | BE57: WaK232------10 | CD57: 12099 | CE57: HOHENTENGEN_VNB | CF57: N/A | CG57: Gemeindewerke der Gemeinde Hohentengen | CH57: 10000805 | CI57: FALSE
G58: Standardprofil | H58: STDP | I58: Ja | AC58: Inbetriebnahme 2005 | AD58: 2005-01-01 | AE58: 2005-12-31 | AG58: 57 | AH58: EEG | AI58: WaK233------10 | AJ58: Wasser | AK58: Wasser | AL58: Inbetriebnahme 2010 | AM58: Inbetriebnahme 2010 | AP58: 2-5 MW, Anlage < 5 MW | AV58: 7.65 | AW58: 6.12 | AX58: 7.65 | BA58: EEG | BB58: WaK233------10 | BD58: EEG | BE58: WaK233------10 | CD58: 12243 | CE58: WERTHEIM_VNB | CF58: N/A | CG58: Stadtwerke Wertheim GmbH | CH58: 10000806 | CI58: FALSE
G59: Sonstiges | H59: SNST | I59: Ja | AC59: Inbetriebnahme 2006 | AD59: 2006-01-01 | AE59: 2006-12-31 | AG59: 58 | AH59: EEG | AI59: WaK234------10 | AJ59: Wasser | AK59: Wasser | AL59: Inbetriebnahme 2010 | AM59: Inbetriebnahme 2010 | AP59: 0,5-5 MW, Anlage < 5 MW, Modernisierung | AU59: MOD | AV59: 8.65 | AW59: 6.92 | AX59: 8.65 | BA59: EEG | BB59: WaK234------10 | BD59: EEG | BE59: WaK234------10 | CD59: 12096 | CE59: HARDT_VNB | CF59: N/A | CG59: Gemeindewerke Hardt | CH59: 10000809 | CI59: FALSE
A60: Umlagen für Korrekturen | B60: Code | G60: Keine Berücksichtigung | H60: KBER | I60: Ja | AC60: Inbetriebnahme 2007 | AD60: 2007-01-01 | AE60: 2007-12-31 | AG60: 59 | AH60: EEG | AI60: WaK235------10 | AJ60: Wasser | AK60: Wasser | AL60: Inbetriebnahme 2010 | AM60: Inbetriebnahme 2010 | AP60: >5 MW, Zubau 0-0,5 MW | AV60: 7.22 | AW60: 5.78 | AX60: 7.22 | BA60: EEG | BB60: WaK235------10 | BD60: EEG | BE60: WaK235------10 | CD60: 12171 | CE60: BADEN_BADEN_VNB | CF60: N/A | CG60: Stadtwerke Baden-Baden | CH60: 10000831 | CI60: FALSE
A61: EEG-Umlage nach § 61 Abs. 1 Satz 1 Nr. 1 EEG 2014 (30% der vollen Umlage) | B61: RED | G61: Keine Angabe | H61: N/A | I61: Nein | AC61: Inbetriebnahme 2008 | AD61: 2008-01-01 | AE61: 2008-12-31 | AG61: 60 | AH61: EEG | AI61: WaK236------10 | AJ61: Wasser | AK61: Wasser | AL61: Inbetriebnahme 2010 | AM61: Inbetriebnahme 2010 | AP61: >5 MW, Zubau 0,5-10 MW | AV61: 6.26 | AW61: 5.01 | AX61: 6.26 | BA61: EEG | BB61: WaK236------10 | BD61: EEG | BE61: WaK236------10 | CD61: 12425 | CE61: BADEN_REBLAND_VNB | CF61: N/A | CG61: Baden-Baden Rebland | CH61: 10000831 | CI61: TRUE
A62: EEG-Umlage nach § 61 Abs. 1 Satz 2 EEG 2014 (volle Umlage) | B62: VOLL | AC62: Inbetriebnahme 2009 | AD62: 2009-01-01 | AE62: 2009-12-31 | AG62: 61 | AH62: EEG | AI62: WaK237------10 | AJ62: Wasser | AK62: Wasser | AL62: Inbetriebnahme 2010 | AM62: Inbetriebnahme 2010 | AP62: >5 MW, Zubau 10-20 MW | AV62: 5.74 | AW62: 4.59 | AX62: 5.74 | BA62: EEG | BB62: WaK237------10 | BD62: EEG | BE62: WaK237------10 | CD62: 12053 | CE62: ENBW_REGIONAL_VNB | CF62: N/A | CG62: Netze BW GmbH | CH62: 10000843 | CI62: FALSE
A63: EEG-Umlage nach § 61 Abs. 2 Nr. 4 EEG 2014 (keine Umlage) | B63: NULL | G63: AENDERUNG | H63: Code | I63: Erlaubt in Auswahl ? | AC63: Inbetriebnahme 2010 | AD63: 2010-01-01 | AE63: 2010-12-31 | AG63: 62 | AH63: EEG | AI63: WaK238------10 | AJ63: Wasser | AK63: Wasser | AL63: Inbetriebnahme 2010 | AM63: Inbetriebnahme 2010 | AP63: >5 MW, Zubau 20-50 MW | AV63: 4.3 | AW63: 3.44 | AX63: 4.3 | BA63: EEG | BB63: WaK238------10 | BD63: EEG | BE63: WaK238------10 | CD63: 12178 | CE63: CRAILSHEIM_VNB | CF63: N/A | CG63: Stadtwerke Crailsheim GmbH | CH63: 10000844 | CI63: FALSE
G64: Fehlerkorrektur | H64: FEKO | I64: Ja | AC64: Inbetriebnahme 2011 | AD64: 2011-01-01 | AE64: 2011-12-31 | AG64: 63 | AH64: EEG | AI64: WaK239------10 | AJ64: Wasser | AK64: Wasser | AL64: Inbetriebnahme 2010 | AM64: Inbetriebnahme 2010 | AP64: >5 MW, Zubau >50 MW | AV64: 3.47 | AW64: 2.78 | AX64: 3.47 | BA64: EEG | BB64: WaK239------10 | BD64: EEG | BE64: WaK239------10 | CD64: 12273 | CE64: EHINGER ENERGIE_VNB | CF64: N/A | CG64: Ehinger Energie GmbH & Co. KG | CH64: 10000849 | CI64: FALSE
G65: Anlagenerweiterung | H65: AERW | I65: Ja | AC65: Inbetriebnahme 2012 | AD65: 2012-01-01 | AE65: 2012-12-31 | AG65: 64 | AH65: EEG | AI65: WaK230------11 | AJ65: Wasser | AK65: Wasser | AL65: Inbetriebnahme 2011 | AM65: Inbetriebnahme 2011 | AP65: 0-0,5 MW, Anlage < 5 MW | AV65: 12.67 | AW65: 10.14 | AX65: 12.67 | BA65: EEG | BB65: WaK230------11 | BD65: EEG | BE65: WaK230------11 | CD65: 12216 | CE65: RADOLFZELL_VNB | CF65: N/A | CG65: Stadtwerke Radolfzell GmbH | CH65: 10000883 | CI65: FALSE
G66: Anlagenrückbau | H66: ARÜB | I66: Ja | AC66: Inbetriebnahme 2013 | AD66: 2013-01-01 | AE66: 2013-12-31 | AG66: 65 | AH66: EEG | AI66: WaK231------11 | AJ66: Wasser | AK66: =VLOOKUP(AJ66,ENERGIETRAEGER,1,FALSE) -> Wasser | AL66: =VLOOKUP(AM66,VIN,1,FALSE) -> Inbetriebnahme 2011 | AM66: Inbetriebnahme 2011 | AP66: 0-0,5 MW, Anlage < 5 MW, Modernisierung | AU66: MOD | AV66: 11.67 | AW66: 9.34 | AX66: 11.67 | BA66: EEG | BB66: WaK231------11 | BD66: EEG | BE66: WaK231------11 | CD66: 12032 | CE66: KAPPELRODECK_VNB | CF66: N/A | CG66: Ziegler GmbH & Co. KG | CH66: 10000899 | CI66: FALSE
G67: Anlagenteilung | H67: ATLG | I67: Ja | AC67: Inbetriebnahme 2014 | AD67: 2014-01-01 | AE67: 2014-12-31 | AG67: 66 | AH67: EEG | AI67: WaK232------11 | AJ67: Wasser | AK67: Wasser | AL67: Inbetriebnahme 2011 | AM67: Inbetriebnahme 2011 | AP67: 0,5-2 MW, Anlage < 5 MW | AV67: 8.65 | AW67: 6.92 | AX67: 8.65 | BA67: EEG | BB67: WaK232------11 | BD67: EEG | BE67: WaK232------11 | CD67: 12177 | CE67: BÜHL_VNB | CF67: N/A | CG67: Stadtwerke Bühl GmbH | CH67: 10000951 | CI67: =EXACT(CH67,CH66) -> FALSE
G68: Umbau der Anlage | H68: AUMB | I68: Ja | AC68: Inbetriebnahme 08-12/2014 | AD68: 2014-08-01 | AE68: 2014-12-31 | AG68: 67 | AH68: EEG | AI68: WaK233------11 | AJ68: Wasser | AK68: Wasser | AL68: Inbetriebnahme 2011 | AM68: Inbetriebnahme 2011 | AP68: 2-5 MW, Anlage < 5 MW | AV68: 7.65 | AW68: 6.12 | AX68: 7.65 | BA68: EEG | BB68: WaK233------11 | BD68: EEG | BE68: WaK233------11 | CD68: 12231 | CE68: TUTTLINGEN_VNB | CF68: N/A | CG68: Stadtwerke Tuttlingen GmbH | CH68: 10000979 | CI68: FALSE
G69: Sonstiges | H69: SNST | I69: Ja | AC69: Inbetriebnahme 2015 | AD69: 2015-01-01 | AE69: 2015-12-31 | AG69: 68 | AH69: EEG | AI69: WaK234------11 | AJ69: Wasser | AK69: Wasser | AL69: Inbetriebnahme 2011 | AM69: Inbetriebnahme 2011 | AP69: 0,5-5 MW, Anlage < 5 MW, Modernisierung | AU69: MOD | AV69: 8.65 | AW69: 6.92 | AX69: 8.65 | BA69: EEG | BB69: WaK234------11 | BD69: EEG | BE69: WaK234------11 | CD69: 12215 | CE69: PFORZHEIM_VNB | CF69: N/A | CG69: SWP Stadtwerke Pforzheim GmbH & Co.KG | CH69: 10000996 | CI69: FALSE
AC70: Inbetriebnahme 2016 | AD70: 2016-01-01 | AE70: 2016-12-31 | AG70: 69 | AH70: EEG | AI70: WaK235------11 | AJ70: Wasser | AK70: Wasser | AL70: Inbetriebnahme 2011 | AM70: Inbetriebnahme 2011 | AP70: >5 MW, Zubau 0-0,5 MW | AV70: 7.14 | AW70: 5.71 | AX70: 7.14 | BA70: EEG | BB70: WaK235------11 | BD70: EEG | BE70: WaK235------11 | CD70: 12163 | CE70: BRÄUNLINGEN_VNB | CF70: N/A | CG70: Stadtwerke Bräunlingen | CH70: 10001011 | CI70: FALSE
AC71: Inbetriebnahme 01/2016 | AD71: 2016-01-01 | AE71: 2016-01-31 | AG71: 70 | AH71: EEG | AI71: WaK236------11 | AJ71: Wasser | AK71: Wasser | AL71: Inbetriebnahme 2011 | AM71: Inbetriebnahme 2011 | AP71: >5 MW, Zubau 0,5-10 MW | AV71: 6.19 | AW71: 4.95 | AX71: 6.19 | BA71: EEG | BB71: WaK236------11 | BD71: EEG | BE71: WaK236------11 | CD71: 12009 | CE71: ENSINGER_VNB | CF71: N/A | CG71: C. Ensinger GmbH & Co. KG | CH71: 10001032 | CI71: FALSE
AC72: Inbetriebnahme 02/2016 | AD72: 2016-02-01 | AE72: 2016-02-29 | AG72: 71 | AH72: EEG | AI72: WaK237------11 | AJ72: Wasser | AK72: Wasser | AL72: Inbetriebnahme 2011 | AM72: Inbetriebnahme 2011 | AP72: >5 MW, Zubau 10-20 MW | AV72: 5.68 | AW72: 4.54 | AX72: 5.68 | BA72: EEG | BB72: WaK237------11 | BD72: EEG | BE72: WaK237------11 | CD72: 12207 | CE72: MOSBACH_VNB | CF72: N/A | CG72: Stadtwerke Mosbach GmbH | CH72: 10001054 | CI72: FALSE
G73: int. Messsysteme | H73: Code | I73: Erlaubt in Auswahl ? | AC73: Inbetriebnahme 03/2016 | AD73: 2016-03-01 | AE73: 2016-03-31 | AG73: 72 | AH73: EEG | AI73: WaK238------11 | AJ73: Wasser | AK73: Wasser | AL73: Inbetriebnahme 2011 | AM73: Inbetriebnahme 2011 | AP73: >5 MW, Zubau 20-50 MW | AV73: 4.25 | AW73: 3.4 | AX73: 4.25 | BA73: EEG | BB73: WaK238------11 | BD73: EEG | BE73: WaK238------11 | CD73: 12225 | CE73: SIGMARINGEN_VNB | CF73: N/A | CG73: Stadtwerke Sigmaringen | CH73: 10001057 | CI73: FALSE
G74: Nicht bekannt | H74: N/A | I74: Ja | AC74: Inbetriebnahme 04/2016 | AD74: 2016-04-01 | AE74: 2016-04-30 | AG74: 73 | AH74: EEG | AI74: WaK239------11 | AJ74: Wasser | AK74: Wasser | AL74: Inbetriebnahme 2011 | AM74: Inbetriebnahme 2011 | AP74: >5 MW, Zubau >50 MW | AV74: 3.43 | AW74: 2.74 | AX74: 3.43 | BA74: EEG | BB74: WaK239------11 | BD74: EEG | BE74: WaK239------11 | CD74: 12202 | CE74: KONSTANZ_VNB | CF74: N/A | CG74: Stadtwerke Konstanz GmbH | CH74: 10001064 | CI74: FALSE
G75: Ja | H75: J | I75: Ja | AC75: Inbetriebnahme 05/2016 | AD75: 2016-05-01 | AE75: 2016-05-31 | AG75: 74 | AH75: EEG | AI75: WaK230BS----12 | AJ75: Wasser | AK75: Wasser | AL75: Inbetriebnahme 2012 | AM75: Inbetriebnahme 2012 | AP75: 0-0,5 MW, Anlage 0,5-5 MW, wasserrechtliche Genehmigung vor 01.01.2012 (Bestandsschutz nach § 66 Abs. 5 EEG 2012) | AV75: 12.67 | AW75: 10.14 | AX75: 12.67 | BA75: EEG | BB75: WaK230BS----12 | BD75: EEG | BE75: WaK230BS----12 | CD75: 12043 | CE75: WENNENMÜHLE_VNB | CF75: N/A | CG75: Elektrizitätswerk Wennenmühle Schörger KG | CH75: 10001066 | CI75: FALSE
G76: Nein | H76: N | I76: Ja | AC76: Inbetriebnahme 06/2016 | AD76: 2016-06-01 | AE76: 2016-06-30 | AG76: 75 | AH76: EEG | AI76: WaK231BS----12 | AJ76: Wasser | AK76: Wasser | AL76: Modernisierung 2012 | AM76: Modernisierung 2012 | AP76: 0-0,5 MW, Anlage < 5 MW mit IB vor 01.08.2004, Modernisierung (Bestandsschutz nach § 66 Abs. 14 EEG 2012) | AV76: 11.67 | AW76: 9.34 | AX76: 11.67 | BA76: EEG | BB76: WaK231BS----12 | BD76: EEG | BE76: WaK231BS----12 | CD76: 12235 | CE76: VIERNHEIM_VNB | CF76: N/A | CG76: Stadtwerke Viernheim Netz GmbH | CH76: 10001072 | CI76: FALSE
AC77: Inbetriebnahme 07/2016 | AD77: 2016-07-01 | AE77: 2016-07-31 | AG77: 76 | AH77: EEG | AI77: WaK232BS----12 | AJ77: Wasser | AK77: Wasser | AL77: Inbetriebnahme 2012 | AM77: Inbetriebnahme 2012 | AP77: 0,5-2 MW, Anlage 0,5-5 MW, wasserrechtliche Genehmigung vor 01.01.2012 (Bestandsschutz nach § 66 Abs. 5 EEG 2012) | AV77: 8.65 | AW77: 6.92 | AX77: 8.65 | BA77: EEG | BB77: WaK232BS----12 | BD77: EEG | BE77: WaK232BS----12 | CD77: 12220 | CE77: RÖTTINGEN_VNB | CF77: N/A | CG77: Versorgungsbetriebe Röttingen | CH77: 10001075 | CI77: FALSE
AC78: Inbetriebnahme 08/2016 | AD78: 2016-08-01 | AE78: 2016-08-31 | AG78: 77 | AH78: EEG | AI78: WaK233BS----12 | AJ78: Wasser | AK78: Wasser | AL78: Inbetriebnahme 2012 | AM78: Inbetriebnahme 2012 | AP78: 2-5 MW, Anlage 0,5-5 MW, wasserrechtliche Genehmigung vor 01.01.2012 (Bestandsschutz nach § 66 Abs. 5 EEG 2012) | AV78: 7.65 | AW78: 6.12 | AX78: 7.65 | BA78: EEG | BB78: WaK233BS----12 | BD78: EEG | BE78: WaK233BS----12 | CD78: 12033 | CE78: STENGLE_VNB | CF78: N/A | CG78: Karl Stengle GmbH & Co. KG | CH78: 10001090 | CI78: FALSE
AC79: Inbetriebnahme 09/2016 | AD79: 2016-09-01 | AE79: 2016-09-30 | AG79: 78 | AH79: EEG | AI79: WaK234BS----12 | AJ79: Wasser | AK79: Wasser | AL79: Modernisierung 2012 | AM79: Modernisierung 2012 | AP79: 0,5-5 MW, Anlage < 5 MW mit IB vor 01.08.2004, Modernisierung (Bestandsschutz nach § 66 Abs. 14 EEG 2012) | AU79: MOD | AV79: 8.65 | AW79: 6.92 | AX79: 8.65 | BA79: EEG | BB79: WaK234BS----12 | BD79: EEG | BE79: WaK234BS----12 | CD79: 12181 | CE79: PFULLENDORF_VNB | CF79: N/A | CG79: Stadtwerke Pfullendorf GmbH | CH79: 10001132 | CI79: FALSE
AC80: Inbetriebnahme 10/2016 | AD80: 2016-10-01 | AE80: 2016-10-31 | AG80: 79 | AH80: EEG | AI80: WaK230------12 | AJ80: Wasser | AK80: Wasser | AL80: Inbetriebnahme 2012 | AM80: Inbetriebnahme 2012 | AP80: 0-0,5 MW | AV80: 12.7 | AW80: 10.16 | AX80: 12.7 | BA80: EEG | BB80: WaK230------12 | BD80: EEG | BE80: WaK230------12 | CD80: 12091 | CE80: MILLER_VNB | CF80: N/A | CG80: Gebrüder Miller GmbH & Co. KG | CH80: 10001133 | CI80: FALSE
AC81: Inbetriebnahme 11/2016 | AD81: 2016-11-01 | AE81: 2016-11-30 | AG81: 80 | AH81: EEG | AI81: WaK231------12 | AJ81: Wasser | AK81: Wasser | AL81: Inbetriebnahme 2012 | AM81: Inbetriebnahme 2012 | AP81: 0,5-2 MW | AV81: 8.3 | AW81: 6.64 | AX81: 8.3 | BA81: EEG | BB81: WaK231------12 | BD81: EEG | BE81: WaK231------12 | CD81: 12722 | CE81: EMMENDINGEN_VNB | CF81: N/A | CG81: Stadtwerke Emmendingen GmbH | CH81: 10001137 | CI81: FALSE
AC82: Inbetriebnahme 12/2016 | AD82: 2016-12-01 | AE82: 2016-12-31 | AG82: 81 | AH82: EEG | AI82: WaK232------12 | AJ82: Wasser | AK82: Wasser | AL82: Inbetriebnahme 2012 | AM82: Inbetriebnahme 2012 | AP82: 2-5 MW | AV82: 6.3 | AW82: 5.04 | AX82: 6.3 | BA82: EEG | BB82: WaK232------12 | BD82: EEG | BE82: WaK232------12 | CD82: 12059 | CE82: BRUCHSAL_VNB | CF82: N/A | CG82: Energie- und Wasserversorgung Bruchsal GmbH (ewb) | CH82: 10001144 | CI82: FALSE
AC83: Inbetriebnahme 01-03/2016 | AD83: 2016-01-01 | AE83: 2016-03-31 | AG83: 82 | AH83: EEG | AI83: WaK233------12 | AJ83: Wasser | AK83: Wasser | AL83: Inbetriebnahme 2012 | AM83: Inbetriebnahme 2012 | AP83: 5-10 MW | AV83: 5.5 | AW83: 4.4 | AX83: 5.5 | BA83: EEG | BB83: WaK233------12 | BD83: EEG | BE83: WaK233------12 | CD83: 12496 | CE83: SCHRAMBERG_VNB | CF83: N/A | CG83: Stadtwerke Schramberg GmbH & Co. KG | CH83: 10001185 | CI83: FALSE
AC84: Inbetriebnahme 04-06/2016 | AD84: 2016-04-01 | AE84: 2016-06-30 | AG84: 83 | AH84: EEG | AI84: WaK234------12 | AJ84: Wasser | AK84: Wasser | AL84: Inbetriebnahme 2012 | AM84: Inbetriebnahme 2012 | AP84: 10-20 MW | AV84: 5.3 | AW84: 4.24 | AX84: 5.3 | BA84: EEG | BB84: WaK234------12 | BD84: EEG | BE84: WaK234------12 | CD84: 12198 | CE84: HOCKENHEIM_VNB | CF84: N/A | CG84: Stadtwerke Hockenheim | CH84: 10001208 | CI84: FALSE
AC85: Inbetriebnahme 07-09/2016 | AD85: 2016-07-01 | AE85: 2016-09-30 | AG85: 84 | AH85: EEG | AI85: WaK235------12 | AJ85: Wasser | AK85: Wasser | AL85: Inbetriebnahme 2012 | AM85: Inbetriebnahme 2012 | AP85: 20-50 MW | AV85: 4.2 | AW85: 3.36 | AX85: 4.2 | BA85: EEG | BB85: WaK235------12 | BD85: EEG | BE85: WaK235------12 | CD85: 12098 | CE85: HERMARINGEN_VNB | CF85: N/A | CG85: Gemeindewerke Hermaringen GmbH | CH85: 10001254 | CI85: FALSE
AC86: Inbetriebnahme 10-12/2016 | AD86: 2016-10-01 | AE86: 2016-12-31 | AG86: 85 | AH86: EEG | AI86: WaK236------12 | AJ86: Wasser | AK86: Wasser | AL86: Inbetriebnahme 2012 | AM86: Inbetriebnahme 2012 | AP86: > 50 MW | AV86: 3.4 | AW86: 2.72 | AX86: 3.4 | BA86: EEG | BB86: WaK236------12 | BD86: EEG | BE86: WaK236------12 | CD86: 12233 | CE86: SWU_VNB | CF86: N/A | CG86: Stadtwerke Ulm/Neu-Ulm Netze GmbH | CH86: 10001254 | CI86: TRUE
AC87: Inbetriebnahme 30.06. bis 31.12.2006 | AD87: 2006-06-30 | AE87: 2006-12-31 | AG87: 86 | AH87: EEG | AI87: WaK230M-----12 | AJ87: Wasser | AK87: Wasser | AL87: Modernisierung 2012 | AM87: Modernisierung 2012 | AP87: 0-0,5 MW, IB vor 01.01.2009, Modernisierung 2012 | AU87: MOD | AV87: 12.7 | AW87: 10.16 | AX87: 12.7 | BA87: EEG | BB87: WaK230M-----12 | BD87: EEG | BE87: WaK230M-----12 | CD87: 12124 | CE87: MARKELSHEIM_VNB | CF87: N/A | CG87: TauberEnergie Kuhn, Karl und Andreas Kuhn OHG | CH87: 10001265 | CI87: FALSE
AC88: Inbetriebnahme bis 2001 | AE88: 2001-12-31 | AG88: 87 | AH88: EEG | AI88: WaK231M-----12 | AJ88: Wasser | AK88: Wasser | AL88: Modernisierung 2012 | AM88: Modernisierung 2012 | AP88: 0,5-2 MW, IB vor 01.01.2009, Modernisierung 2012 | AU88: MOD | AV88: 8.3 | AW88: 6.64 | AX88: 8.3 | BA88: EEG | BB88: WaK231M-----12 | BD88: EEG | BE88: WaK231M-----12 | CD88: 12102 | CE88: KLETTGAU_VNB | CF88: N/A | CG88: Gemeindewerke Klettgau | CH88: 10001326 | CI88: FALSE
AC89: Inbetriebnahme bis 2012 | AE89: 2012-12-31 | AG89: 88 | AH89: EEG | AI89: WaK232M-----12 | AJ89: Wasser | AK89: Wasser | AL89: Modernisierung 2012 | AM89: Modernisierung 2012 | AP89: 2-5 MW, IB vor 01.01.2009, Modernisierung 2012 | AU89: MOD | AV89: 6.3 | AW89: 5.04 | AX89: 6.3 | BA89: EEG | BB89: WaK232M-----12 | BD89: EEG | BE89: WaK232M-----12 | CD89: 12236 | CE89: VILLINGEN_SCHWENNINGEN_VNB | CF89: N/A | CG89: Stadtwerke Villingen-Schwenningen GmbH | CH89: 10001344 | CI89: FALSE
AC90: Modernisierung 2012 | AD90: 2012-01-01 | AE90: 2012-12-31 | AG90: 89 | AH90: EEG | AI90: WaK233M-----12 | AJ90: Wasser | AK90: Wasser | AL90: Modernisierung 2012 | AM90: Modernisierung 2012 | AP90: 5-10 MW, IB vor 01.01.2009, Modernisierung 2012 | AU90: MOD | AV90: 5.5 | AW90: 4.4 | AX90: 5.5 | BA90: EEG | BB90: WaK233M-----12 | BD90: EEG | BE90: WaK233M-----12 | CD90: 12239 | CE90: WALDSHUT_TIENGEN_VNB | CF90: N/A | CG90: Stadtwerke Waldshut-Tiengen GmbH | CH90: 10001346 | CI90: FALSE
AC91: Modernisierung 2013 | AD91: 2013-01-01 | AE91: 2013-12-31 | AG91: 90 | AH91: EEG | AI91: WaK234M-----12 | AJ91: Wasser | AK91: Wasser | AL91: Modernisierung 2012 | AM91: Modernisierung 2012 | AP91: 10-20 MW, IB vor 01.01.2009, Modernisierung 2012 | AU91: MOD | AV91: 5.3 | AW91: 4.24 | AX91: 5.3 | BA91: EEG | BB91: WaK234M-----12 | BD91: EEG | BE91: WaK234M-----12 | CD91: 12429 | CE91: OTTENHÖFEN_MOSER_VNB | CF91: N/A | CG91: Elektrizitätswerk Ottenhöfen Moser OHG | CH91: 10001348 | CI91: FALSE
AC92: Modernisierung 2014 | AD92: 2014-01-01 | AE92: 2014-07-31 | AG92: 91 | AH92: EEG | AI92: WaK235M-----12 | AJ92: Wasser | AK92: Wasser | AL92: Modernisierung 2012 | AM92: Modernisierung 2012 | AP92: 20-50 MW, IB vor 01.01.2009, Modernisierung 2012 | AU92: MOD | AV92: 4.2 | AW92: 3.36 | AX92: 4.2 | BA92: EEG | BB92: WaK235M-----12 | BD92: EEG | BE92: WaK235M-----12 | CD92: 12166 | CE92: ALBSTADT_VNB | CF92: N/A | CG92: Albstadtwerke GmbH | CH92: 10001350 | CI92: FALSE
AC93: Modernisierung 08-12/2014 | AD93: 2014-08-01 | AE93: 2014-12-31 | AG93: 92 | AH93: EEG | AI93: WaK236M-----12 | AJ93: Wasser | AK93: Wasser | AL93: Modernisierung 2012 | AM93: Modernisierung 2012 | AP93: > 50 MW, IB vor 01.01.2009, Modernisierung 2012 | AU93: MOD | AV93: 3.4 | AW93: 2.72 | AX93: 3.4 | BA93: EEG | BB93: WaK236M-----12 | BD93: EEG | BE93: WaK236M-----12 | CD93: 12095 | CE93: BITZ_VNB | CF93: N/A | CG93: Energie und Wasserversorgung Bitz GmbH | CH93: 10001352 | CI93: FALSE
AC94: Modernisierung 2015 | AD94: 2015-01-01 | AE94: 2015-12-31 | AG94: 93 | AH94: EEG | AI94: WaK230BS----13 | AJ94: Wasser | AK94: Wasser | AL94: Inbetriebnahme 2013 | AM94: Inbetriebnahme 2013 | AP94: 0-0,5 MW, Anlage 0,5-5 MW, wasserrechtliche Genehmigung vor 01.01.2012 (Bestandsschutz nach § 66 Abs. 5 EEG 2012) | AV94: 12.67 | AW94: 10.14 | AX94: 12.67 | BA94: EEG | BB94: WaK230BS----13 | BD94: EEG | BE94: WaK230BS----13 | CD94: 12208 | CE94: MÖSSINGEN_VNB | CF94: N/A | CG94: Stadtwerke Mössingen | CH94: 10001360 | CI94: FALSE
AC95: Modernisierung 2016 | AD95: 2016-01-01 | AE95: 2016-12-31 | AG95: 94 | AH95: EEG | AI95: WaK231BS----13 | AJ95: Wasser | AK95: Wasser | AL95: Modernisierung 2013 | AM95: Modernisierung 2013 | AP95: 0-0,5 MW, Anlage < 5 MW mit IB vor 01.08.2004, Modernisierung (Bestandsschutz nach § 66 Abs. 14 EEG 2012) | AV95: 11.67 | AW95: 9.34 | AX95: 11.67 | BA95: EEG | BB95: WaK231BS----13 | BD95: EEG | BE95: WaK231BS----13 | CD95: 12018 | CE95: EGT_VNB | CF95: N/A | CG95: EGT Energie GmbH | CH95: 10001370 | CI95: FALSE
AC96: Inbetriebnahme 07-09/2012 | AD96: 2012-07-01 | AE96: 2012-09-30 | AG96: 95 | AH96: EEG | AI96: WaK232BS----13 | AJ96: Wasser | AK96: Wasser | AL96: Inbetriebnahme 2013 | AM96: Inbetriebnahme 2013 | AP96: 0,5-2 MW, Anlage 0,5-5 MW, wasserrechtliche Genehmigung vor 01.01.2012 (Bestandsschutz nach § 66 Abs. 5 EEG 2012) | AV96: 8.65 | AW96: 6.92 | AX96: 8.65 | BA96: EEG | BB96: WaK232BS----13 | BD96: EEG | BE96: WaK232BS----13 | CD96: 12094 | CE96: NIEFERN_ÖSCHELBRONN_VNB | CF96: N/A | CG96: Gemeindewerke Niefern-Öschelbronn | CH96: 10001377 | CI96: FALSE
AC97: Inbetriebnahme bis 31.07.2014 | AE97: 2014-07-31 | AG97: 96 | AH97: EEG | AI97: WaK233BS----13 | AJ97: Wasser | AK97: Wasser | AL97: Inbetriebnahme 2013 | AM97: Inbetriebnahme 2013 | AP97: 2-5 MW, Anlage 0,5-5 MW, wasserrechtliche Genehmigung vor 01.01.2012 (Bestandsschutz nach § 66 Abs. 5 EEG 2012) | AV97: 7.65 | AW97: 6.12 | AX97: 7.65 | BA97: EEG | BB97: WaK233BS----13 | BD97: EEG | BE97: WaK233BS----13 | CD97: 12170 | CE97: BAD_SÄCKINGEN_VNB | CF97: N/A | CG97: Stadtwerke Bad Säckingen GmbH | CH97: 10001386 | CI97: FALSE
AC98: Inbetriebnahme ab 08.2014 | AD98: 2014-08-01 | AG98: 97 | AH98: EEG | AI98: WaK234BS----13 | AJ98: Wasser | AK98: Wasser | AL98: Modernisierung 2013 | AM98: Modernisierung 2013 | AP98: 0,5-5 MW, Anlage < 5 MW mit IB vor 01.08.2004, Modernisierung (Bestandsschutz nach § 66 Abs. 14 EEG 2012) | AV98: 8.65 | AW98: 6.92 | AX98: 8.65 | BA98: EEG | BB98: WaK234BS----13 | BD98: EEG | BE98: WaK234BS----13 | CD98: 12175 | CE98: BRETTEN_VNB | CF98: N/A | CG98: Stadtwerke Bretten GmbH | CH98: 10001391 | CI98: FALSE
AC99: Inbetriebnahme ab 09.2015 | AD99: 2015-09-01 | AG99: 98 | AH99: EEG | AI99: WaK230------13 | AJ99: Wasser | AK99: Wasser | AL99: Inbetriebnahme 2013 | AM99: Inbetriebnahme 2013 | AP99: 0-0,5 MW | AV99: 12.57 | AW99: 10.06 | AX99: 12.57 | BA99: EEG | BB99: WaK230------13 | BD99: EEG | BE99: WaK230------13 | CD99: 12257 | CE99: EPPLER_VNB | CF99: N/A | CG99: Überlandwerk Eppler GmbH | CH99: 10001398 | CI99: FALSE
AG100: 99 | AH100: EEG | AI100: WaK231------13 | AJ100: Wasser | AK100: Wasser | AL100: Inbetriebnahme 2013 | AM100: Inbetriebnahme 2013 | AP100: 0,5-2 MW | AV100: 8.22 | AW100: 6.58 | AX100: 8.22 | BA100: EEG | BB100: WaK231------13 | BD100: EEG | BE100: WaK231------13 | CD100: 12034 | CE100: LEITLEIN_VNB | CF100: N/A | CG100: Elektrizitätswerk Leitlein GmbH & Co. KG | CH100: 10001407 | CI100: FALSE
AG101: 100 | AH101: EEG | AI101: WaK232------13 | AJ101: Wasser | AK101: Wasser | AL101: Inbetriebnahme 2013 | AM101: Inbetriebnahme 2013 | AP101: 2-5 MW | AV101: 6.24 | AW101: 4.99 | AX101: 6.24 | BA101: EEG | BB101: WaK232------13 | BD101: EEG | BE101: WaK232------13 | CD101: 12156 | CE101: MAIER_EW_VNB | CF101: N/A | CG101: Philipp Maier jr. Säge- und Elektrizitätswerk | CH101: 10001408 | CI101: FALSE
AG102: 101 | AH102: EEG | AI102: WaK233------13 | AJ102: Wasser | AK102: Wasser | AL102: Inbetriebnahme 2013 | AM102: Inbetriebnahme 2013 | AP102: 5-10 MW | AV102: 5.45 | AW102: 4.36 | AX102: 5.45 | BA102: EEG | BB102: WaK233------13 | BD102: EEG | BE102: WaK233------13 | CD102: 12030 | CE102: HEINZELMANN_VNB | CF102: N/A | CG102: Elektrizitätswerk Heinzelmann GmbH & Co. KG | CH102: 10001410 | CI102: FALSE
AG103: 102 | AH103: EEG | AI103: WaK234------13 | AJ103: Wasser | AK103: Wasser | AL103: Inbetriebnahme 2013 | AM103: Inbetriebnahme 2013 | AP103: 10-20 MW | AV103: 5.25 | AW103: 4.2 | AX103: 5.25 | BA103: EEG | BB103: WaK234------13 | BD103: EEG | BE103: WaK234------13 | CD103: 12556 | CE103: ENERGIEDIENST_NETZE_VNB | CF103: N/A | CG103: ED Netze GmbH | CH103: 10001411 | CI103: FALSE
AG104: 103 | AH104: EEG | AI104: WaK235------13 | AJ104: Wasser | AK104: Wasser | AL104: Inbetriebnahme 2013 | AM104: Inbetriebnahme 2013 | AP104: 20-50 MW | AV104: 4.16 | AW104: 3.33 | AX104: 4.16 | BA104: EEG | BB104: WaK235------13 | BD104: EEG | BE104: WaK235------13 | CD104: 12205 | CE104: LÖFFINGEN_VNB | CF104: N/A | CG104: Stadtwerke Löffingen | CH104: 10001418 | CI104: FALSE
AG105: 104 | AH105: EEG | AI105: WaK236------13 | AJ105: Wasser | AK105: Wasser | AL105: Inbetriebnahme 2013 | AM105: Inbetriebnahme 2013 | AP105: > 50 MW | AV105: 3.37 | AW105: 2.7 | AX105: 3.37 | BA105: EEG | BB105: WaK236------13 | BD105: EEG | BE105: WaK236------13 | CD105: 12221 | CE105: ENRW_VNB | CF105: N/A | CG105: ENRW Energieversorgung Rottweil GmbH & Co. KG | CH105: 10001429 | CI105: FALSE
AG106: 105 | AH106: EEG | AI106: WaK230M-----13 | AJ106: Wasser | AK106: Wasser | AL106: Modernisierung 2013 | AM106: Modernisierung 2013 | AP106: 0-0,5 MW, IB vor 01.01.2009, Modernisierung 2013 | AU106: MOD | AV106: 12.57 | AW106: 10.06 | AX106: 12.57 | BA106: EEG | BB106: WaK230M-----13 | BD106: EEG | BE106: WaK230M-----13 | CD106: 12104 | CE106: LOTTSTETTEN_VNB | CF106: N/A | CG106: Gemeindewerke Lottstetten | CH106: 10001437 | CI106: FALSE
AG107: 106 | AH107: EEG | AI107: WaK231M-----13 | AJ107: Wasser | AK107: Wasser | AL107: Modernisierung 2013 | AM107: Modernisierung 2013 | AP107: 0,5-2 MW, IB vor 01.01.2009, Modernisierung 2013 | AU107: MOD | AV107: 8.22 | AW107: 6.58 | AX107: 8.22 | BA107: EEG | BB107: WaK231M-----13 | BD107: EEG | BE107: WaK231M-----13 | CD107: 12027 | CE107: CALW_VNB | CF107: N/A | CG107: Energie Calw GmbH | CH107: 10001468 | CI107: FALSE
AG108: 107 | AH108: EEG | AI108: WaK232M-----13 | AJ108: Wasser | AK108: Wasser | AL108: Modernisierung 2013 | AM108: Modernisierung 2013 | AP108: 2-5 MW, IB vor 01.01.2009, Modernisierung 2013 | AU108: MOD | AV108: 6.24 | AW108: 4.99 | AX108: 6.24 | BA108: EEG | BB108: WaK232M-----13 | BD108: EEG | BE108: WaK232M-----13 | CD108: 31314 | CE108: SCHAFFHAUSEN_VNB | CF108: N/A | CG108: Elektrizitätswerk des Kantons Schaffhausen AG | CH108: 10001486 | CI108: FALSE
AG109: 108 | AH109: EEG | AI109: WaK233M-----13 | AJ109: Wasser | AK109: Wasser | AL109: Modernisierung 2013 | AM109: Modernisierung 2013 | AP109: 5-10 MW, IB vor 01.01.2009, Modernisierung 2013 | AU109: MOD | AV109: 5.45 | AW109: 4.36 | AX109: 5.45 | BA109: EEG | BB109: WaK233M-----13 | BD109: EEG | BE109: WaK233M-----13 | CD109: 12816 | CE109: SÜWAG_ÜWA_VNB | CF109: N/A | CG109: Syna GmbH | CH109: 10001495 | CI109: FALSE
AG110: 109 | AH110: EEG | AI110: WaK234M-----13 | AJ110: Wasser | AK110: Wasser | AL110: Modernisierung 2013 | AM110: Modernisierung 2013 | AP110: 10-20 MW, IB vor 01.01.2009, Modernisierung 2013 | AU110: MOD | AV110: 5.25 | AW110: 4.2 | AX110: 5.25 | BA110: EEG | BB110: WaK234M-----13 | BD110: EEG | BE110: WaK234M-----13 | CD110: 12130 | CE110: RHEINFELDEN_VNB | CF110: N/A | CG110: Energiedienst AG | CH110: 10001502 | CI110: FALSE
AG111: 110 | AH111: EEG | AI111: WaK235M-----13 | AJ111: Wasser | AK111: Wasser | AL111: Modernisierung 2013 | AM111: Modernisierung 2013 | AP111: 20-50 MW, IB vor 01.01.2009, Modernisierung 2013 | AU111: MOD | AV111: 4.16 | AW111: 3.33 | AX111: 4.16 | BA111: EEG | BB111: WaK235M-----13 | BD111: EEG | BE111: WaK235M-----13 | CD111: 12093 | CE111: BAIERSBRONN_VNB | CF111: N/A | CG111: Gemeindewerke Baiersbronn | CH111: 10001510 | CI111: =EXACT(CH111,CH110) -> FALSE
AG112: 111 | AH112: EEG | AI112: WaK236M-----13 | AJ112: Wasser | AK112: Wasser | AL112: Modernisierung 2013 | AM112: Modernisierung 2013 | AP112: > 50 MW, IB vor 01.01.2009, Modernisierung 2013 | AU112: MOD | AV112: 3.37 | AW112: 2.7 | AX112: 3.37 | BA112: EEG | BB112: WaK236M-----13 | BD112: EEG | BE112: WaK236M-----13 | CD112: 12228 | CE112: STOCKACH_VNB | CF112: N/A | CG112: Stadtwerke Stockach GmbH | CH112: 10001521 | CI112: FALSE
AG113: 112 | AH113: EEG | AI113: WaK230------14 | AJ113: Wasser | AK113: Wasser | AL113: Inbetriebnahme 2014 | AM113: Inbetriebnahme 2014 | AP113: 0-0,5 MW | AV113: 12.45 | AW113: 9.96 | AX113: 12.45 | BA113: EEG | BB113: WaK230------14 | BD113: EEG | BE113: WaK230------14 | CD113: 12206 | CE113: MENGEN_VNB | CF113: N/A | CG113: Stadtwerke Mengen | CH113: 10001553 | CI113: FALSE
AG114: 113 | AH114: EEG | AI114: WaK231------14 | AJ114: Wasser | AK114: Wasser | AL114: Inbetriebnahme 2014 | AM114: Inbetriebnahme 2014 | AP114: 0,5-2 MW | AV114: 8.13 | AW114: 6.5 | AX114: 8.13 | BA114: EEG | BB114: WaK231------14 | BD114: EEG | BE114: WaK231------14 | CD114: 12109 | CE114: UNTERKIRNACH_VNB | CF114: N/A | CG114: Energie-Gesellschaft Unterkirnach mbH | CH114: 10001570 | CI114: FALSE
AG115: 114 | AH115: EEG | AI115: WaK232------14 | AJ115: Wasser | AK115: Wasser | AL115: Inbetriebnahme 2014 | AM115: Inbetriebnahme 2014 | AP115: 2-5 MW | AV115: 6.17 | AW115: 4.94 | AX115: 6.17 | BA115: EEG | BB115: WaK232------14 | BD115: EEG | BE115: WaK232------14 | CD115: 12203 | CE115: SW_LAUFENBURG_VNB | CF115: N/A | CG115: Stadtwerke Laufenburg | CH115: 10001572 | CI115: FALSE
AG116: 115 | AH116: EEG | AI116: WaK233------14 | AJ116: Wasser | AK116: Wasser | AL116: Inbetriebnahme 2014 | AM116: Inbetriebnahme 2014 | AP116: 5-10 MW | AV116: 5.39 | AW116: 4.31 | AX116: 5.39 | BA116: EEG | BB116: WaK233------14 | BD116: EEG | BE116: WaK233------14 | CD116: 13295 | CE116: EBT_VNB | CF116: N/A | CG116: Elektrizitätswerk Braunsbach - Tullau GmbH (EBT) | CH116: 10001599 | CI116: FALSE
AG117: 116 | AH117: EEG | AI117: WaK234------14 | AJ117: Wasser | AK117: Wasser | AL117: Inbetriebnahme 2014 | AM117: Inbetriebnahme 2014 | AP117: 10-20 MW | AV117: 5.19 | AW117: 4.15 | AX117: 5.19 | BA117: EEG | BB117: WaK234------14 | BD117: EEG | BE117: WaK234------14 | CD117: 12125 | CE117: TULLAU_VNB | CF117: N/A | CG117: Elektrizitätswerk Tullau GmbH | CH117: 10001600 | CI117: FALSE
AG118: 117 | AH118: EEG | AI118: WaK235------14 | AJ118: Wasser | AK118: Wasser | AL118: Inbetriebnahme 2014 | AM118: Inbetriebnahme 2014 | AP118: 20-50 MW | AV118: 4.12 | AW118: 3.3 | AX118: 4.12 | BA118: EEG | BB118: WaK235------14 | BD118: EEG | BE118: WaK235------14 | CD118: 12103 | CE118: KRAUCHENWIES_VNB | CF118: N/A | CG118: Gemeindewerke Krauchenwies | CH118: 10001603 | CI118: FALSE
AG119: 118 | AH119: EEG | AI119: WaK236------14 | AJ119: Wasser | AK119: Wasser | AL119: Inbetriebnahme 2014 | AM119: Inbetriebnahme 2014 | AP119: > 50 MW | AV119: 3.33 | AW119: 2.66 | AX119: 3.33 | BA119: EEG | BB119: WaK236------14 | BD119: EEG | BE119: WaK236------14 | CD119: 12065 | CE119: GAILDORF_VNB | CF119: N/A | CG119: Energieversorgung Gaildorf OHG | CH119: 10001604 | CI119: FALSE
AG120: 119 | AH120: EEG | AI120: WaK230M-----14 | AJ120: Wasser | AK120: Wasser | AL120: Modernisierung 2014 | AM120: Modernisierung 2014 | AP120: 0-0,5 MW, IB vor 01.01.2009, Modernisierung 2014 | AU120: MOD | AV120: 12.45 | AW120: 9.96 | AX120: 12.45 | BA120: EEG | BB120: WaK230M-----14 | BD120: EEG | BE120: WaK230M-----14 | CD120: 12165 | CE120: AALEN_VNB | CF120: N/A | CG120: Stadtwerke Aalen GmbH | CH120: 10001635 | CI120: FALSE
AG121: 120 | AH121: EEG | AI121: WaK231M-----14 | AJ121: Wasser | AK121: Wasser | AL121: Modernisierung 2014 | AM121: Modernisierung 2014 | AP121: 0,5-2 MW, IB vor 01.01.2009, Modernisierung 2014 | AU121: MOD | AV121: 8.13 | AW121: 6.5 | AX121: 8.13 | BA121: EEG | BB121: WaK231M-----14 | BD121: EEG | BE121: WaK231M-----14 | CD121: 12132 | CE121: RT_KFURT_VNB | CF121: N/A | CG121: Kraftwerk Reutlingen-Kirchentellinsfurt AG | CH121: 10001644 | CI121: FALSE
AG122: 121 | AH122: EEG | AI122: WaK232M-----14 | AJ122: Wasser | AK122: Wasser | AL122: Modernisierung 2014 | AM122: Modernisierung 2014 | AP122: 2-5 MW, IB vor 01.01.2009, Modernisierung 2014 | AU122: MOD | AV122: 6.17 | AW122: 4.94 | AX122: 6.17 | BA122: EEG | BB122: WaK232M-----14 | BD122: EEG | BE122: WaK232M-----14 | CD122: 12433 | CE122: SCHLACHTERS_VNB | CF122: N/A | CG122: Elektrizitätsgenossenschaft Schlachters e.G. | CH122: 10001666 | CI122: FALSE
AG123: 122 | AH123: EEG | AI123: WaK233M-----14 | AJ123: Wasser | AK123: Wasser | AL123: Modernisierung 2014 | AM123: Modernisierung 2014 | AP123: 5-10 MW, IB vor 01.01.2009, Modernisierung 2014 | AU123: MOD | AV123: 5.39 | AW123: 4.31 | AX123: 5.39 | BA123: EEG | BB123: WaK233M-----14 | BD123: EEG | BE123: WaK233M-----14 | CD123: 12172 | CE123: BALINGEN_VNB | CF123: N/A | CG123: Stadtwerke Balingen | CH123: 10001667 | CI123: FALSE
AG124: 123 | AH124: EEG | AI124: WaK234M-----14 | AJ124: Wasser | AK124: Wasser | AL124: Modernisierung 2014 | AM124: Modernisierung 2014 | AP124: 10-20 MW, IB vor 01.01.2009, Modernisierung 2014 | AU124: MOD | AV124: 5.19 | AW124: 4.15 | AX124: 5.19 | BA124: EEG | BB124: WaK234M-----14 | BD124: EEG | BE124: WaK234M-----14 | CD124: 12269 | CE124: VKW_VNB | CF124: N/A | CG124: Elektrizitätsnetze Allgäu GmbH | CH124: 10001685 | CI124: FALSE
AG125: 124 | AH125: EEG | AI125: WaK235M-----14 | AJ125: Wasser | AK125: Wasser | AL125: Modernisierung 2014 | AM125: Modernisierung 2014 | AP125: 20-50 MW, IB vor 01.01.2009, Modernisierung 2014 | AU125: MOD | AV125: 4.12 | AW125: 3.3 | AX125: 4.12 | BA125: EEG | BB125: WaK235M-----14 | BD125: EEG | BE125: WaK235M-----14 | CD125: 12092 | CE125: EIRICH_VNB | CF125: N/A | CG125: Gebrüder Eirich GmbH & Co KG | CH125: 10001712 | CI125: FALSE
AG126: 125 | AH126: EEG | AI126: WaK236M-----14 | AJ126: Wasser | AK126: Wasser | AL126: Modernisierung 2014 | AM126: Modernisierung 2014 | AP126: > 50 MW, IB vor 01.01.2009, Modernisierung 2014 | AU126: MOD | AV126: 3.33 | AW126: 2.66 | AX126: 3.33 | BA126: EEG | BB126: WaK236M-----14 | BD126: EEG | BE126: WaK236M-----14 | CD126: 12244 | CE126: BAD_WILDBAD_VNB | CF126: N/A | CG126: Stadtwerke Bad Wildbad GmbH & Co. KG | CH126: 10001715 | CI126: FALSE
AG127: 126 | AH127: EEG | AI127: WaK400------14 | AJ127: Wasser | AK127: Wasser | AL127: Inbetriebnahme 08-12/2014 | AM127: Inbetriebnahme 08-12/2014 | AP127: 0-0,5 MW | AV127: 12.32 | AW127: 10.02 | AX127: 12.52 | BA127: EEG | BB127: WaK400------14 | BD127: EEG | BE127: WaK400------14 | CD127: 12131 | CE127: KÖHLGARTENWIESE_VNB | CF127: N/A | CG127: Kraftwerk Köhlgartenwiese GmbH | CH127: 10001720 | CI127: FALSE
AG128: 127 | AH128: EEG | AI128: WaK401------14 | AJ128: Wasser | AK128: Wasser | AL128: Inbetriebnahme 08-12/2014 | AM128: Inbetriebnahme 08-12/2014 | AP128: 0,5-2 MW | AV128: 8.05 | AW128: 6.6 | AX128: 8.25 | BA128: EEG | BB128: WaK401------14 | BD128: EEG | BE128: WaK401------14 | CD128: 12241 | CE128: WALLDÜRN_VNB | CF128: N/A | CG128: Stadtwerke Walldürn GmbH | CH128: 10001723 | CI128: FALSE
AG129: 128 | AH129: EEG | AI129: WaK402------14 | AJ129: Wasser | AK129: Wasser | AL129: Inbetriebnahme 08-12/2014 | AM129: Inbetriebnahme 08-12/2014 | AP129: 2-5 MW | AV129: 6.11 | AW129: 5.05 | AX129: 6.31 | BA129: EEG | BB129: WaK402------14 | BD129: EEG | BE129: WaK402------14 | CD129: 12168 | CE129: BAD_HERRENALB_VNB | CF129: N/A | CG129: Stadtwerke Bad Herrenalb GmbH | CH129: 10001726 | CI129: FALSE
AG130: 129 | AH130: EEG | AI130: WaK403------14 | AJ130: Wasser | AK130: =VLOOKUP(AJ130,ENERGIETRAEGER,1,FALSE) -> Wasser | AL130: =VLOOKUP(AM130,VIN,1,FALSE) -> Inbetriebnahme 08-12/2014 | AM130: Inbetriebnahme 08-12/2014 | AP130: 5-10 MW | AV130: 5.34 | AW130: 4.43 | AX130: 5.54 | BA130: EEG | BB130: WaK403------14 | BD130: EEG | BE130: WaK403------14 | CD130: 12240 | CE130: WALLDORF_VNB | CF130: N/A | CG130: Stadtwerke Walldorf GmbH & Co. KG | CH130: 10001727 | CI130: =EXACT(CH130,CH129) -> FALSE
AG131: 130 | AH131: EEG | AI131: WaK404------14 | AJ131: Wasser | AK131: Wasser | AL131: Inbetriebnahme 08-12/2014 | AM131: Inbetriebnahme 08-12/2014 | AP131: 10-20 MW | AV131: 5.14 | AW131: 4.27 | AX131: 5.34 | BA131: EEG | BB131: WaK404------14 | BD131: EEG | BE131: WaK404------14 | CD131: 12204 | CE131: LINDAU_VNB | CF131: N/A | CG131: Stadtwerke Lindau GmbH & Co.KG | CH131: 10001733 | CI131: FALSE
AG132: 131 | AH132: EEG | AI132: WaK405------14 | AJ132: Wasser | AK132: Wasser | AL132: Inbetriebnahme 08-12/2014 | AM132: Inbetriebnahme 08-12/2014 | AP132: 20-50 MW | AV132: 4.08 | AW132: 3.42 | AX132: 4.28 | BA132: EEG | BB132: WaK405------14 | BD132: EEG | BE132: WaK405------14 | CD132: 12162 | CE132: RHEIN_NECKAR_HAFEN_VNB | CF132: N/A | CG132: Staatl. Rhein-Neckar Hafengesellschaft mbH | CH132: 10001780 | CI132: =EXACT(CH132,CH131) -> FALSE
AG133: 132 | AH133: EEG | AI133: WaK406------14 | AJ133: Wasser | AK133: Wasser | AL133: Inbetriebnahme 08-12/2014 | AM133: Inbetriebnahme 08-12/2014 | AP133: > 50 MW | AV133: 3.3 | AW133: 2.8 | AX133: 3.5 | BA133: EEG | BB133: WaK406------14 | BD133: EEG | BE133: WaK406------14 | CD133: 12543 | CE133: FREUDENBERG_SERVICE_VNB | CF133: N/A | CG133: Freudenberg Service KG | CH133: 10001849 | CI133: =EXACT(CH133,CH132) -> FALSE
AG134: 133 | AH134: EEG | AI134: WaK400M-----14 | AJ134: Wasser | AK134: Wasser | AL134: Modernisierung 08-12/2014 | AM134: Modernisierung 08-12/2014 | AP134: 0-0,5 MW, IB vor 01.01.2009, Modernisierung 2014 | AU134: MOD | AV134: 12.52 | AW134: 10.02 | AX134: 12.52 | BA134: EEG | BB134: WaK400M-----14 | BD134: EEG | BE134: WaK400M-----14 | CD134: 12219 | CE134: ROTTENBURG_VNB | CF134: N/A | CG134: Energieversorgung Rottenburg am Neckar GmbH | CH134: 10001877 | CI134: FALSE
AG135: 134 | AH135: EEG | AI135: WaK401M-----14 | AJ135: Wasser | AK135: Wasser | AL135: Modernisierung 08-12/2014 | AM135: Modernisierung 08-12/2014 | AP135: 0,5-2 MW, IB vor 01.01.2009, Modernisierung 2014 | AU135: MOD | AV135: 8.25 | AW135: 6.6 | AX135: 8.25 | BA135: EEG | BB135: WaK401M-----14 | BD135: EEG | BE135: WaK401M-----14 | CD135: 12258 | CE135: SCHÄFTERSHEIM_VNB | CF135: N/A | CG135: MDN Main-Donau Netzgesellschaft mbH | CH135: 10001884 | CI135: FALSE
AG136: 135 | AH136: EEG | AI136: WaK402M-----14 | AJ136: Wasser | AK136: Wasser | AL136: Modernisierung 08-12/2014 | AM136: Modernisierung 08-12/2014 | AP136: 2-5 MW, IB vor 01.01.2009, Modernisierung 2014 | AU136: MOD | AV136: 6.31 | AW136: 5.05 | AX136: 6.31 | BA136: EEG | BB136: WaK402M-----14 | BD136: EEG | BE136: WaK402M-----14 | CD136: 12036 | CE136: MITTELBADEN_VNB | CF136: N/A | CG136: Netze Mittelbaden GmbH & Co. KG | CH136: 10001904 | CI136: FALSE
AG137: 136 | AH137: EEG | AI137: WaK403M-----14 | AJ137: Wasser | AK137: Wasser | AL137: Modernisierung 08-12/2014 | AM137: Modernisierung 08-12/2014 | AP137: 5-10 MW, IB vor 01.01.2009, Modernisierung 2014 | AU137: MOD | AV137: 5.54 | AW137: 4.43 | AX137: 5.54 | BA137: EEG | BB137: WaK403M-----14 | BD137: EEG | BE137: WaK403M-----14 | CD137: 12089 | CE137: OETTINGEN_VNB | CF137: N/A | CG137: MDN Main-Donau Netzgesellschaft mbH | CH137: 10001915 | CI137: FALSE
AG138: 137 | AH138: EEG | AI138: WaK404M-----14 | AJ138: Wasser | AK138: Wasser | AL138: Modernisierung 08-12/2014 | AM138: Modernisierung 08-12/2014 | AP138: 10-20 MW, IB vor 01.01.2009, Modernisierung 2014 | AU138: MOD | AV138: 5.34 | AW138: 4.27 | AX138: 5.34 | BA138: EEG | BB138: WaK404M-----14 | BD138: EEG | BE138: WaK404M-----14 | CD138: 12201 | CE138: KARLSRUHE_VNB | CF138: N/A | CG138: Stadtwerke Karlsruhe Netzservice GmbH | CH138: 10002798 | CI138: FALSE
AG139: 138 | AH139: EEG | AI139: WaK405M-----14 | AJ139: Wasser | AK139: Wasser | AL139: Modernisierung 08-12/2014 | AM139: Modernisierung 08-12/2014 | AP139: 20-50 MW, IB vor 01.01.2009, Modernisierung 2014 | AU139: MOD | AV139: 4.28 | AW139: 3.42 | AX139: 4.28 | BA139: EEG | BB139: WaK405M-----14 | BD139: EEG | BE139: WaK405M-----14 | CD139: 12140 | CE139: MVV_VNB | CF139: N/A | CG139: Netrion GmbH | CH139: 10002846 | CI139: FALSE
AG140: 139 | AH140: EEG | AI140: WaK406M-----14 | AJ140: Wasser | AK140: Wasser | AL140: Modernisierung 08-12/2014 | AM140: Modernisierung 08-12/2014 | AP140: > 50 MW, IB vor 01.01.2009, Modernisierung 2014 | AU140: MOD | AV140: 3.5 | AW140: 2.8 | AX140: 3.5 | BA140: EEG | BB140: WaK406M-----14 | BD140: EEG | BE140: WaK406M-----14 | CD140: 12088 | CE140: SINGEN_VNB | CF140: N/A | CG140: Thüga Energienetze GmbH | CH140: 10002915 | CI140: FALSE
AG141: 140 | AH141: EEG | AI141: WaK400------15 | AJ141: Wasser | AK141: Wasser | AL141: Inbetriebnahme 2015 | AM141: Inbetriebnahme 2015 | AP141: 0-0,5 MW | AV141: 12.32 | AW141: 10.02 | AX141: 12.52 | BA141: EEG | BB141: WaK400------15 | BD141: EEG | BE141: WaK400------15 | CD141: 15363 | CE141: SINGEN_VNB Schweiz | CF141: N/A | CG141: Thüga Energienetze GmbH Netzgebiet Schweiz VNB | CH141: 10002915 | CI141: TRUE
AG142: 141 | AH142: EEG | AI142: WaK401------15 | AJ142: Wasser | AK142: Wasser | AL142: Inbetriebnahme 2015 | AM142: Inbetriebnahme 2015 | AP142: 0,5-2 MW | AV142: 8.05 | AW142: 6.6 | AX142: 8.25 | BA142: EEG | BB142: WaK401------15 | BD142: EEG | BE142: WaK401------15 | CD142: 12444 | CE142: HAID_VNB | CF142: N/A | CG142: Haid-Energie GmbH | CH142: 10002935 | CI142: FALSE
AG143: 142 | AH143: EEG | AI143: WaK402------15 | AJ143: Wasser | AK143: Wasser | AL143: Inbetriebnahme 2015 | AM143: Inbetriebnahme 2015 | AP143: 2-5 MW | AV143: 6.11 | AW143: 5.05 | AX143: 6.31 | BA143: EEG | BB143: WaK402------15 | BD143: EEG | BE143: WaK402------15 | CD143: 12274 | CE143: WILLY_VON_BERG_VNB | CF143: N/A | CG143: Stromversorgung von Berg GmbH | CH143: 10002965 | CI143: FALSE
AG144: 143 | AH144: EEG | AI144: WaK403------15 | AJ144: Wasser | AK144: Wasser | AL144: Inbetriebnahme 2015 | AM144: Inbetriebnahme 2015 | AP144: 5-10 MW | AV144: 5.34 | AW144: 4.43 | AX144: 5.54 | BA144: EEG | BB144: WaK403------15 | BD144: EEG | BE144: WaK403------15 | CD144: 12024 | CE144: TRÜCK_VNB | CF144: N/A | CG144: Elektro-Trück GmbH | CH144: 10002968 | CI144: FALSE
AG145: 144 | AH145: EEG | AI145: WaK404------15 | AJ145: Wasser | AK145: Wasser | AL145: Inbetriebnahme 2015 | AM145: Inbetriebnahme 2015 | AP145: 10-20 MW | AV145: 5.14 | AW145: 4.27 | AX145: 5.34 | BA145: EEG | BB145: WaK404------15 | BD145: EEG | BE145: WaK404------15 | CD145: 12277 | CE145: ZEAG_VNB | CF145: N/A | CG145: NHF Netzgesellschaft Heilbronn-Franken mbH | CH145: 10002970 | CI145: FALSE
AG146: 145 | AH146: EEG | AI146: WaK405------15 | AJ146: Wasser | AK146: Wasser | AL146: Inbetriebnahme 2015 | AM146: Inbetriebnahme 2015 | AP146: 20-50 MW | AV146: 4.08 | AW146: 3.42 | AX146: 4.28 | BA146: EEG | BB146: WaK405------15 | BD146: EEG | BE146: WaK405------15 | CD146: 12151 | CE146: ENBW_ODR_VNB | CF146: N/A | CG146: Netze NGO GmbH | CH146: 10002974 | CI146: FALSE
AG147: 146 | AH147: EEG | AI147: WaK406------15 | AJ147: Wasser | AK147: Wasser | AL147: Inbetriebnahme 2015 | AM147: Inbetriebnahme 2015 | AP147: > 50 MW | AV147: 3.3 | AW147: 2.8 | AX147: 3.5 | BA147: EEG | BB147: WaK406------15 | BD147: EEG | BE147: WaK406------15 | CD147: 12536 | CE147: BADENOVA_VNB | CF147: N/A | CG147: bnNETZE GmbH | CH147: 10003005 | CI147: FALSE
AG148: 147 | AH148: EEG | AI148: WaK400M-----15 | AJ148: Wasser | AK148: Wasser | AL148: Modernisierung 2015 | AM148: Modernisierung 2015 | AP148: 0-0,5 MW, IB vor 01.01.2009, Modernisierung 2015 | AU148: MOD | AV148: 12.52 | AW148: 10.02 | AX148: 12.52 | BA148: EEG | BB148: WaK400M-----15 | BD148: EEG | BE148: WaK400M-----15 | CD148: 14049 | CE148: NHF_VNB | CF148: N/A | CG148: NHF Netzgesellschaft Heilbronn-Franken mbH | CH148: 10003031 | CI148: FALSE
AG149: 148 | AH149: EEG | AI149: WaK401M-----15 | AJ149: Wasser | AK149: Wasser | AL149: Modernisierung 2015 | AM149: Modernisierung 2015 | AP149: 0,5-2 MW, IB vor 01.01.2009, Modernisierung 2015 | AU149: MOD | AV149: 8.25 | AW149: 6.6 | AX149: 8.25 | BA149: EEG | BB149: WaK401M-----15 | BD149: EEG | BE149: WaK401M-----15 | CD149: 12159 | CE149: RIEGER_VNB | CF149: N/A | CG149: EWR Netze GmbH | CH149: 10003090 | CI149: FALSE
AG150: 149 | AH150: EEG | AI150: WaK402M-----15 | AJ150: Wasser | AK150: Wasser | AL150: Modernisierung 2015 | AM150: Modernisierung 2015 | AP150: 2-5 MW, IB vor 01.01.2009, Modernisierung 2015 | AU150: MOD | AV150: 6.31 | AW150: 5.05 | AX150: 6.31 | BA150: EEG | BB150: WaK402M-----15 | BD150: EEG | BE150: WaK402M-----15 | CD150: 13817 | CE150: TWS_NETZE_GMBH_VNB | CF150: N/A | CG150: TWS Netz GmbH | CH150: 10003091 | CI150: FALSE
AG151: 150 | AH151: EEG | AI151: WaK403M-----15 | AJ151: Wasser | AK151: Wasser | AL151: Modernisierung 2015 | AM151: Modernisierung 2015 | AP151: 5-10 MW, IB vor 01.01.2009, Modernisierung 2015 | AU151: MOD | AV151: 5.54 | AW151: 4.43 | AX151: 5.54 | BA151: EEG | BB151: WaK403M-----15 | BD151: EEG | BE151: WaK403M-----15 | CD151: 12490 | CE151: EWARISS_VNB | CF151: N/A | CG151: e.wa riss Netze GmbH | CH151: 10003099 | CI151: FALSE
AG152: 151 | AH152: EEG | AI152: WaK404M-----15 | AJ152: Wasser | AK152: Wasser | AL152: Modernisierung 2015 | AM152: Modernisierung 2015 | AP152: 10-20 MW, IB vor 01.01.2009, Modernisierung 2015 | AU152: MOD | AV152: 5.34 | AW152: 4.27 | AX152: 5.34 | BA152: EEG | BB152: WaK404M-----15 | BD152: EEG | BE152: WaK404M-----15 | CD152: 13749 | CE152: LUDWIGSBURG_VNB | CF152: N/A | CG152: Stadtwerke Ludwigsburg-Kornwestheim GmbH | CH152: 10003102 | CI152: FALSE
AG153: 152 | AH153: EEG | AI153: WaK405M-----15 | AJ153: Wasser | AK153: Wasser | AL153: Modernisierung 2015 | AM153: Modernisierung 2015 | AP153: 20-50 MW, IB vor 01.01.2009, Modernisierung 2015 | AU153: MOD | AV153: 4.28 | AW153: 3.42 | AX153: 4.28 | BA153: EEG | BB153: WaK405M-----15 | BD153: EEG | BE153: WaK405M-----15 | CD153: 12086 | CE153: FÜRSTLICH_WALDBURG_ZEILSCHE_HV_VNB | CF153: N/A | CG153: Fürstl. Waldburg-Zeil`sche Hauptverwaltung | CH153: 10003163 | CI153: FALSE
AG154: 153 | AH154: EEG | AI154: WaK406M-----15 | AJ154: Wasser | AK154: Wasser | AL154: Modernisierung 2015 | AM154: Modernisierung 2015 | AP154: > 50 MW, IB vor 01.01.2009, Modernisierung 2015 | AU154: MOD | AV154: 3.5 | AW154: 2.8 | AX154: 3.5 | BA154: EEG | BB154: WaK406M-----15 | BD154: EEG | BE154: WaK406M-----15 | CD154: 12196 | CE154: HEIDELBERG_VNB | CF154: N/A | CG154: Stadtwerke Heidelberg Netze GmbH | CH154: 10003223 | CI154: FALSE
AG155: 154 | AH155: EEG | AI155: WaK400------16 | AJ155: Wasser | AK155: =VLOOKUP(AJ155,ENERGIETRAEGER,1,FALSE) -> Wasser | AL155: Inbetriebnahme 2016 | AM155: Inbetriebnahme 2016 | AP155: 0-0,5 MW | AV155: 12.26 | AW155: 9.97 | AX155: 12.46 | BA155: EEG | BB155: WaK400------16 | BD155: EEG | BE155: WaK400------16 | CD155: 30736 | CE155: STADTWERK_KÜLSHEIM_VNB | CF155: N/A | CG155: Stadtwerk Külsheim GmbH | CH155: 10003282 | CI155: FALSE
AG156: 155 | AH156: EEG | AI156: WaK401------16 | AJ156: Wasser | AK156: Wasser | AL156: Inbetriebnahme 2016 | AM156: Inbetriebnahme 2016 | AP156: 0,5-2 MW | AV156: 8.01 | AW156: 6.57 | AX156: 8.21 | BA156: EEG | BB156: WaK401------16 | BD156: EEG | BE156: WaK401------16 | CD156: 17213 | CE156: SWÜ_NETZ_VNB | CF156: N/A | CG156: SWÜ Netz GmbH | CH156: 10003335 | CI156: FALSE
AG157: 156 | AH157: EEG | AI157: WaK402------16 | AJ157: Wasser | AK157: Wasser | AL157: Inbetriebnahme 2016 | AM157: Inbetriebnahme 2016 | AP157: 2-5 MW | AV157: 6.08 | AW157: 5.02 | AX157: 6.28 | BA157: EEG | BB157: WaK402------16 | BD157: EEG | BE157: WaK402------16 | CD157: 17174 | CE157: SW_SINSHEIM_VNB | CF157: N/A | CG157: Stadtwerke Sinsheim Versorgungs GmbH & Co. KG | CH157: 10003336 | CI157: FALSE
AG158: 157 | AH158: EEG | AI158: WaK403------16 | AJ158: Wasser | AK158: Wasser | AL158: Inbetriebnahme 2016 | AM158: Inbetriebnahme 2016 | AP158: 5-10 MW | AV158: 5.31 | AW158: 4.41 | AX158: 5.51 | BA158: EEG | BB158: WaK403------16 | BD158: EEG | BE158: WaK403------16 | CD158: 17027 | CE158: GW_UMKIRCH_VNB | CF158: N/A | CG158: Gemeindewerke Umkirch GmbH | CH158: 10003371 | CI158: FALSE
AG159: 158 | AH159: EEG | AI159: WaK404------16 | AJ159: Wasser | AK159: Wasser | AL159: Inbetriebnahme 2016 | AM159: Inbetriebnahme 2016 | AP159: 10-20 MW | AV159: 5.11 | AW159: 4.25 | AX159: 5.31 | BA159: EEG | BB159: WaK404------16 | BD159: EEG | BE159: WaK404------16 | CD159: 30764 | CE159: ODENWALD_NETZ_VNB | CF159: N/A | CG159: Odenwald Netzgesellschaft GmbH & Co.KG | CH159: 10003422 | CI159: FALSE
AG160: 159 | AH160: EEG | AI160: WaK405------16 | AJ160: Wasser | AK160: Wasser | AL160: Inbetriebnahme 2016 | AM160: Inbetriebnahme 2016 | AP160: 20-50 MW | AV160: 4.06 | AW160: 3.41 | AX160: 4.26 | BA160: EEG | BB160: WaK405------16 | BD160: EEG | BE160: WaK405------16 | CD160: 30763 | CE160: STROMNETZ_HERRENBERG_VNB | CF160: N/A | CG160: Stromnetzgesellschaft Herrenberg mbH & Co. KG | CH160: 10003426 | CI160: FALSE
AG161: 160 | AH161: EEG | AI161: WaK406------16 | AJ161: Wasser | AK161: Wasser | AL161: Inbetriebnahme 2016 | AM161: Inbetriebnahme 2016 | AP161: > 50 MW | AV161: 3.28 | AW161: 2.78 | AX161: 3.48 | BA161: EEG | BB161: WaK406------16 | BD161: EEG | BE161: WaK406------16 | CD161: 30831 | CE161: HECHINGEN_VNB | CF161: N/A | CG161: Stromnetzgesellschaft Hechingen GmbH & Co. KG | CH161: 10003521 | CI161: FALSE
AG162: 161 | AH162: EEG | AI162: WaK400M-----16 | AJ162: Wasser | AK162: Wasser | AL162: Modernisierung 2016 | AM162: Modernisierung 2016 | AP162: 0-0,5 MW, IB vor 01.01.2009, Modernisierung 2016 | AU162: MOD | AV162: 12.46 | AW162: 9.97 | AX162: 12.46 | BA162: EEG | BB162: WaK400M-----16 | BD162: EEG | BE162: WaK400M-----16 | CD162: 12184 | CE162: ETTLINGEN_VNB | CF162: N/A | CG162: SWE Netz GmbH | CH162: 10003627 | CI162: FALSE
AG163: 162 | AH163: EEG | AI163: WaK401M-----16 | AJ163: Wasser | AK163: Wasser | AL163: Modernisierung 2016 | AM163: Modernisierung 2016 | AP163: 0,5-2 MW, IB vor 01.01.2009, Modernisierung 2016 | AU163: MOD | AV163: 8.21 | AW163: 6.57 | AX163: 8.21 | BA163: EEG | BB163: WaK401M-----16 | BD163: EEG | BE163: WaK401M-----16 | CD163: 30843 | CE163: TITISEE_NEUSTADT_EV_VNB | CF163: N/A | CG163: Energieversorgung Titisee-Neustadt GmbH | CH163: 10003638 | CI163: FALSE
AG164: 163 | AH164: EEG | AI164: WaK402M-----16 | AJ164: Wasser | AK164: Wasser | AL164: Modernisierung 2016 | AM164: Modernisierung 2016 | AP164: 2-5 MW, IB vor 01.01.2009, Modernisierung 2016 | AU164: MOD | AV164: 6.28 | AW164: 5.02 | AX164: 6.28 | BA164: EEG | BB164: WaK402M-----16 | BD164: EEG | BE164: WaK402M-----16 | CD164: 30886 | CE164: STADTWERK_AM_SEE_VNB | CF164: N/A | CG164: Stadtwerk am See GmbH & Co. KG | CH164: 10003707 | CI164: FALSE
AG165: 164 | AH165: EEG | AI165: WaK403M-----16 | AJ165: Wasser | AK165: Wasser | AL165: Modernisierung 2016 | AM165: Modernisierung 2016 | AP165: 5-10 MW, IB vor 01.01.2009, Modernisierung 2016 | AU165: MOD | AV165: 5.51 | AW165: 4.41 | AX165: 5.51 | BA165: EEG | BB165: WaK403M-----16 | BD165: EEG | BE165: WaK403M-----16 | CD165: 31019 | CE165: FREUDENBERG_STADTWERK_VNB | CF165: N/A | CG165: Stadtwerke Freudenberg GmbH | CH165: 10003827 | CI165: FALSE
AG166: 165 | AH166: EEG | AI166: WaK404M-----16 | AJ166: Wasser | AK166: Wasser | AL166: Modernisierung 2016 | AM166: Modernisierung 2016 | AP166: 10-20 MW, IB vor 01.01.2009, Modernisierung 2016 | AU166: MOD | AV166: 5.31 | AW166: 4.25 | AX166: 5.31 | BA166: EEG | BB166: WaK404M-----16 | BD166: EEG | BE166: WaK404M-----16 | CD166: 30852 | CE166: LINZGAU_REGIONALNETZE_VNB | CF166: N/A | CG166: Regionalnetze Linzgau GmbH | CH166: 10003828 | CI166: FALSE
AG167: 166 | AH167: EEG | AI167: WaK405M-----16 | AJ167: Wasser | AK167: Wasser | AL167: Modernisierung 2016 | AM167: Modernisierung 2016 | AP167: 20-50 MW, IB vor 01.01.2009, Modernisierung 2016 | AU167: MOD | AV167: 4.26 | AW167: 3.41 | AX167: 4.26 | BA167: EEG | BB167: WaK405M-----16 | BD167: EEG | BE167: WaK405M-----16 | CD167: 31158 | CE167: EV_FILSTAL_VNB | CF167: N/A | CG167: Energieversorgung Filstal GmbH & Co. KG | CH167: 10003890 | CI167: FALSE
AG168: 167 | AH168: EEG | AI168: WaK406M-----16 | AJ168: Wasser | AK168: Wasser | AL168: Modernisierung 2016 | AM168: Modernisierung 2016 | AP168: > 50 MW, IB vor 01.01.2009, Modernisierung 2016 | AU168: MOD | AV168: 3.48 | AW168: 2.78 | AX168: 3.48 | BA168: EEG | BB168: WaK406M-----16 | BD168: EEG | BE168: WaK406M-----16 | CD168: 31308 | CE168: KLETTGAU_RHEINTAL_EV_VNB | CF168: N/A | CG168: Energieversorgung Klettgau-Rheintal GmbH & Co. KG | CH168: 10006778 | CI168: FALSE
AG169: 168 | AH169: EEG | AI169: BiK51n------01 | AJ169: Biomasse | AK169: =VLOOKUP(AJ169,ENERGIETRAEGER,1,FALSE) -> Biomasse | AL169: =VLOOKUP(AM169,VIN,1,FALSE) -> Inbetriebnahme bis 2001 | AM169: Inbetriebnahme bis 2001 | AP169: 0-0,150 MW | AR169: =IF(ISERR(FIND("Anteil KWK",AT169)),"","Ja") ->  | AT169: Anteil Nicht-KWK | AV169: 11.67 | AW169: 9.34 | AX169: 11.67 | BA169: EEG | BB169: BiK51n------01 | BD169: EEG | BE169: BiK51n------01 | CD169: 16640 | CE169: REGIONALWERK_BODENSEE_VNB | CF169: N/A | CG169: Regionalwerk Bodensee Netze GmbH & Co. KG | CH169: 10006789 | CI169: FALSE
AG170: 169 | AH170: EEG | AI170: BiK51nKA3---01 | AJ170: Biomasse | AK170: Biomasse | AL170: Inbetriebnahme bis 2001 | AM170: Inbetriebnahme bis 2001 | AP170: 0-0,150 MW, Bonusregel K wenn Anlage 3 erfüllt | AR170: =IF(ISERR(FIND("Anteil KWK",AT170)),"","Ja") -> Ja | AT170: Anteil KWK gemäß Anlage 3 | AV170: 14.67 | AW170: 11.74 | AX170: 14.67 | BA170: EEG | BB170: BiK51nKA3---01 | BD170: EEG | BE170: BiK51nKA3---01 | CD170: 30853 | CE170: HIRSCHBERG_VIERNHEIM_VNB | CF170: N/A | CG170: Netzbetrieb Hirschberg GmbH & Co. KG | CH170: 10006792 | CI170: FALSE
AG171: 170 | AH171: EEG | AI171: BiK51nK09---01 | AJ171: Biomasse | AK171: Biomasse | AL171: Inbetriebnahme bis 2001 | AM171: Inbetriebnahme bis 2001 | AP171: 0-0,150 MW, Bonusregel K erstmals 2009 | AR171: Ja | AT171: Anteil KWK, erstmals 2009 | AV171: 14.67 | AW171: 11.74 | AX171: 14.67 | BA171: EEG | BB171: BiK51nK09---01 | BD171: EEG | BE171: BiK51nK09---01 | CD171: 30842 | CE171: VERSORGUNGSWERKE_HEDDESHEIM_VNB | CF171: N/A | CG171: VersorgungsWerke Heddesheim GmbH & Co. KG | CH171: 10006798 | CI171: FALSE
AG172: 171 | AH172: EEG | AI172: BiK51nK10---01 | AJ172: Biomasse | AK172: Biomasse | AL172: Inbetriebnahme bis 2001 | AM172: Inbetriebnahme bis 2001 | AP172: 0-0,150 MW, Bonusregel K erstmals 2010 | AR172: Ja | AT172: Anteil KWK, erstmals 2010 | AV172: 14.64 | AW172: 11.71 | AX172: 14.64 | BA172: EEG | BB172: BiK51nK10---01 | BD172: EEG | BE172: BiK51nK10---01 | CD172: 12459 | CE172: FAIR_ENERGIE_VNB | CF172: N/A | CG172: FairNetz GmbH | CH172: 10006804 | CI172: FALSE
AG173: 172 | AH173: EEG | AI173: BiK51nK11---01 | AJ173: Biomasse | AK173: Biomasse | AL173: Inbetriebnahme bis 2001 | AM173: Inbetriebnahme bis 2001 | AP173: 0-0,150 MW, Bonusregel K erstmals 2011 | AR173: Ja | AT173: Anteil KWK, erstmals 2011 | AV173: 14.61 | AW173: 11.69 | AX173: 14.61 | BA173: EEG | BB173: BiK51nK11---01 | BD173: EEG | BE173: BiK51nK11---01 | CD173: 33208 | CE173: STUTTGART_NETZE_BETRIEB_VNB | CF173: N/A | CG173: Stuttgart Netze Betrieb GmbH EEG | CH173: 10007065 | CI173: FALSE
AG174: 173 | AH174: EEG | AI174: BiK51nK12---01 | AJ174: Biomasse | AK174: Biomasse | AL174: Inbetriebnahme bis 2001 | AM174: Inbetriebnahme bis 2001 | AP174: 0-0,150 MW, Bonusregel K erstmals 2012 | AR174: Ja | AT174: Anteil KWK, erstmals 2012 | AV174: 14.58 | AW174: 11.66 | AX174: 14.58 | BA174: EEG | BB174: BiK51nK12---01 | BD174: EEG | BE174: BiK51nK12---01 | CD174: 33198 | CE174: METZINGEN_VNB | CF174: N/A | CG174: Stadtwerke Metzingen | CH174: 10007134 | CI174: FALSE
AG175: 174 | AH175: EEG | AI175: BiK51ny-----01 | AJ175: Biomasse | AK175: Biomasse | AL175: Inbetriebnahme bis 2001 | AM175: Inbetriebnahme bis 2001 | AP175: 0-0,150 MW, Bonusregel y | AT175: Anteil Nicht-KWK | AV175: 12.67 | AW175: 10.14 | AX175: 12.67 | BA175: EEG | BB175: BiK51ny-----01 | BD175: EEG | BE175: BiK51ny-----01 | CD175: 33705 | CE175: REMSTALWERK_NETZ_VNB | CF175: N/A | CG175: Remstalwerk Netzgesellschaft GmbH | CH175: 10008368 | CI175: FALSE
AG176: 175 | AH176: EEG | AI176: BiK51nKA3y--01 | AJ176: Biomasse | AK176: Biomasse | AL176: Inbetriebnahme bis 2001 | AM176: Inbetriebnahme bis 2001 | AP176: 0-0,150 MW, Bonusregeln y und K wenn Anlage 3 erfüllt | AR176: Ja | AT176: Anteil KWK gemäß Anlage 3 | AV176: 15.67 | AW176: 12.54 | AX176: 15.67 | BA176: EEG | BB176: BiK51nKA3y--01 | BD176: EEG | BE176: BiK51nKA3y--01
AG177: 176 | AH177: EEG | AI177: BiK51nK09y--01 | AJ177: Biomasse | AK177: Biomasse | AL177: Inbetriebnahme bis 2001 | AM177: Inbetriebnahme bis 2001 | AP177: 0-0,150 MW, Bonusregeln y und K erstmals 2009 | AR177: Ja | AT177: Anteil KWK, erstmals 2009 | AV177: 15.67 | AW177: 12.54 | AX177: 15.67 | BA177: EEG | BB177: BiK51nK09y--01 | BD177: EEG | BE177: BiK51nK09y--01
AG178: 177 | AH178: EEG | AI178: BiK51nK10y--01 | AJ178: Biomasse | AK178: Biomasse | AL178: Inbetriebnahme bis 2001 | AM178: Inbetriebnahme bis 2001 | AP178: 0-0,150 MW, Bonusregeln y und K erstmals 2010 | AR178: Ja | AT178: Anteil KWK, erstmals 2010 | AV178: 15.64 | AW178: 12.51 | AX178: 15.64 | BA178: EEG | BB178: BiK51nK10y--01 | BD178: EEG | BE178: BiK51nK10y--01
AG179: 178 | AH179: EEG | AI179: BiK51nK11y--01 | AJ179: Biomasse | AK179: Biomasse | AL179: Inbetriebnahme bis 2001 | AM179: Inbetriebnahme bis 2001 | AP179: 0-0,150 MW, Bonusregeln y und K erstmals 2011 | AR179: Ja | AT179: Anteil KWK, erstmals 2011 | AV179: 15.61 | AW179: 12.49 | AX179: 15.61 | BA179: EEG | BB179: BiK51nK11y--01 | BD179: EEG | BE179: BiK51nK11y--01
AG180: 179 | AH180: EEG | AI180: BiK51nK12y--01 | AJ180: Biomasse | AK180: Biomasse | AL180: Inbetriebnahme bis 2001 | AM180: Inbetriebnahme bis 2001 | AP180: 0-0,150 MW, Bonusregeln y und K erstmals 2012 | AR180: Ja | AT180: Anteil KWK, erstmals 2012 | AV180: 15.58 | AW180: 12.46 | AX180: 15.58 | BA180: EEG | BB180: BiK51nK12y--01 | BD180: EEG | BE180: BiK51nK12y--01
AG181: 180 | AH181: EEG | AI181: BiK51na1----01 | AJ181: Biomasse | AK181: Biomasse | AL181: Inbetriebnahme bis 2001 | AM181: Inbetriebnahme bis 2001 | AP181: 0-0,150 MW; Bonusregel a1 | AT181: Anteil Nicht-KWK | AV181: 17.67 | AW181: 14.14 | AX181: 17.67 | BA181: EEG | BB181: BiK51na1----01 | BD181: EEG | BE181: BiK51na1----01
AG182: 181 | AH182: EEG | AI182: BiK51na1KA3-01 | AJ182: Biomasse | AK182: Biomasse | AL182: Inbetriebnahme bis 2001 | AM182: Inbetriebnahme bis 2001 | AP182: 0-0,150 MW, Bonusregeln a1, K wenn Anlage 3 erfüllt | AR182: Ja | AT182: Anteil KWK gemäß Anlage 3 | AV182: 20.67 | AW182: 16.54 | AX182: 20.67 | BA182: EEG | BB182: BiK51na1KA3-01 | BD182: EEG | BE182: BiK51na1KA3-01
AG183: 182 | AH183: EEG | AI183: BiK51na1K09-01 | AJ183: Biomasse | AK183: Biomasse | AL183: Inbetriebnahme bis 2001 | AM183: Inbetriebnahme bis 2001 | AP183: 0-0,150 MW, Bonusregeln a1, K erstmals 2009 | AR183: Ja | AT183: Anteil KWK, erstmals 2009 | AV183: 20.67 | AW183: 16.54 | AX183: 20.67 | BA183: EEG | BB183: BiK51na1K09-01 | BD183: EEG | BE183: BiK51na1K09-01
AG184: 183 | AH184: EEG | AI184: BiK51na1K10-01 | AJ184: Biomasse | AK184: Biomasse | AL184: Inbetriebnahme bis 2001 | AM184: Inbetriebnahme bis 2001 | AP184: 0-0,150 MW, Bonusregeln a1, K erstmals 2010 | AR184: Ja | AT184: Anteil KWK, erstmals 2010 | AV184: 20.64 | AW184: 16.51 | AX184: 20.64 | BA184: EEG | BB184: BiK51na1K10-01 | BD184: EEG | BE184: BiK51na1K10-01
AG185: 184 | AH185: EEG | AI185: BiK51na1K11-01 | AJ185: Biomasse | AK185: Biomasse | AL185: Inbetriebnahme bis 2001 | AM185: Inbetriebnahme bis 2001 | AP185: 0-0,150 MW, Bonusregeln a1, K erstmals 2011 | AR185: Ja | AT185: Anteil KWK, erstmals 2011 | AV185: 20.61 | AW185: 16.49 | AX185: 20.61 | BA185: EEG | BB185: BiK51na1K11-01 | BD185: EEG | BE185: BiK51na1K11-01
AG186: 185 | AH186: EEG | AI186: BiK51na1K12-01 | AJ186: Biomasse | AK186: =VLOOKUP(AJ186,ENERGIETRAEGER,1,FALSE) -> Biomasse | AL186: =VLOOKUP(AM186,VIN,1,FALSE) -> Inbetriebnahme bis 2001 | AM186: Inbetriebnahme bis 2001 | AP186: 0-0,150 MW, Bonusregeln a1, K erstmals 2012 | AR186: Ja | AT186: Anteil KWK, erstmals 2012 | AV186: 20.58 | AW186: 16.46 | AX186: 20.58 | BA186: EEG | BB186: BiK51na1K12-01 | BD186: EEG | BE186: BiK51na1K12-01
AG187: 186 | AH187: EEG | AI187: BiK51na1y---01 | AJ187: Biomasse | AK187: Biomasse | AL187: Inbetriebnahme bis 2001 | AM187: Inbetriebnahme bis 2001 | AP187: 0-0,150 MW; Bonusregeln a1, y | AT187: Anteil Nicht-KWK | AV187: 18.67 | AW187: 14.94 | AX187: 18.67 | BA187: EEG | BB187: BiK51na1y---01 | BD187: EEG | BE187: BiK51na1y---01
AG188: 187 | AH188: EEG | AI188: BiK51na1KA3y01 | AJ188: Biomasse | AK188: Biomasse | AL188: Inbetriebnahme bis 2001 | AM188: Inbetriebnahme bis 2001 | AP188: 0-0,150 MW, Bonusregeln a1, y und K wenn Anlage 3 erfüllt | AR188: Ja | AT188: Anteil KWK gemäß Anlage 3 | AV188: 21.67 | AW188: 17.34 | AX188: 21.67 | BA188: EEG | BB188: BiK51na1KA3y01 | BD188: EEG | BE188: BiK51na1KA3y01
AG189: 188 | AH189: EEG | AI189: BiK51na1K09y01 | AJ189: Biomasse | AK189: Biomasse | AL189: Inbetriebnahme bis 2001 | AM189: Inbetriebnahme bis 2001 | AP189: 0-0,150 MW, Bonusregeln a1, y und K erstmals 2009 | AR189: Ja | AT189: Anteil KWK, erstmals 2009 | AV189: 21.67 | AW189: 17.34 | AX189: 21.67 | BA189: EEG | BB189: BiK51na1K09y01 | BD189: EEG | BE189: BiK51na1K09y01
AG190: 189 | AH190: EEG | AI190: BiK51na1K10y01 | AJ190: Biomasse | AK190: Biomasse | AL190: Inbetriebnahme bis 2001 | AM190: Inbetriebnahme bis 2001 | AP190: 0-0,150 MW, Bonusregeln a1, y und K erstmals 2010 | AR190: Ja | AT190: Anteil KWK, erstmals 2010 | AV190: 21.64 | AW190: 17.31 | AX190: 21.64 | BA190: EEG | BB190: BiK51na1K10y01 | BD190: EEG | BE190: BiK51na1K10y01
AG191: 190 | AH191: EEG | AI191: BiK51na1K11y01 | AJ191: Biomasse | AK191: Biomasse | AL191: Inbetriebnahme bis 2001 | AM191: Inbetriebnahme bis 2001 | AP191: 0-0,150 MW, Bonusregeln a1, y und K erstmals 2011 | AR191: Ja | AT191: Anteil KWK, erstmals 2011 | AV191: 21.61 | AW191: 17.29 | AX191: 21.61 | BA191: EEG | BB191: BiK51na1K11y01 | BD191: EEG | BE191: BiK51na1K11y01
AG192: 191 | AH192: EEG | AI192: BiK51na1K12y01 | AJ192: Biomasse | AK192: Biomasse | AL192: Inbetriebnahme bis 2001 | AM192: Inbetriebnahme bis 2001 | AP192: 0-0,150 MW, Bonusregeln a1, y und K erstmals 2012 | AR192: Ja | AT192: Anteil KWK, erstmals 2012 | AV192: 21.58 | AW192: 17.26 | AX192: 21.58 | BA192: EEG | BB192: BiK51na1K12y01 | BD192: EEG | BE192: BiK51na1K12y01
AG193: 192 | AH193: EEG | AI193: BiK51nG-----01 | AJ193: Biomasse | AK193: Biomasse | AL193: Inbetriebnahme bis 2001 | AM193: Inbetriebnahme bis 2001 | AP193: 0-0,15 MW, Bonusregel G | AT193: Anteil Nicht-KWK | AV193: 18.67 | AW193: 14.94 | AX193: 18.67 | BA193: EEG | BB193: BiK51nG-----01 | BD193: EEG | BE193: BiK51nG-----01
AG194: 193 | AH194: EEG | AI194: BiK51nGKA3--01 | AJ194: Biomasse | AK194: Biomasse | AL194: Inbetriebnahme bis 2001 | AM194: Inbetriebnahme bis 2001 | AP194: 0-0,15 MW, Bonusregeln G und K wenn Anlage 3 erfüllt | AR194: Ja | AT194: Anteil KWK gemäß Anlage 3 | AV194: 21.67 | AW194: 17.34 | AX194: 21.67 | BA194: EEG | BB194: BiK51nGKA3--01 | BD194: EEG | BE194: BiK51nGKA3--01
AG195: 194 | AH195: EEG | AI195: BiK51nGK09--01 | AJ195: Biomasse | AK195: Biomasse | AL195: Inbetriebnahme bis 2001 | AM195: Inbetriebnahme bis 2001 | AP195: 0-0,15 MW, Bonusregeln G und K erstmals 2009 | AR195: Ja | AT195: Anteil KWK, erstmals 2009 | AV195: 21.67 | AW195: 17.34 | AX195: 21.67 | BA195: EEG | BB195: BiK51nGK09--01 | BD195: EEG | BE195: BiK51nGK09--01
AG196: 195 | AH196: EEG | AI196: BiK51nGK10--01 | AJ196: Biomasse | AK196: Biomasse | AL196: Inbetriebnahme bis 2001 | AM196: Inbetriebnahme bis 2001 | AP196: 0-0,15 MW, Bonusregeln G und K erstmals 2010 | AR196: Ja | AT196: Anteil KWK, erstmals 2010 | AV196: 21.64 | AW196: 17.31 | AX196: 21.64 | BA196: EEG | BB196: BiK51nGK10--01 | BD196: EEG | BE196: BiK51nGK10--01
AG197: 196 | AH197: EEG | AI197: BiK51nGK11--01 | AJ197: Biomasse | AK197: Biomasse | AL197: Inbetriebnahme bis 2001 | AM197: Inbetriebnahme bis 2001 | AP197: 0-0,15 MW, Bonusregeln G und K erstmals 2011 | AR197: Ja | AT197: Anteil KWK, erstmals 2011 | AV197: 21.61 | AW197: 17.29 | AX197: 21.61 | BA197: EEG | BB197: BiK51nGK11--01 | BD197: EEG | BE197: BiK51nGK11--01
AG198: 197 | AH198: EEG | AI198: BiK51nGK12--01 | AJ198: Biomasse | AK198: Biomasse | AL198: Inbetriebnahme bis 2001 | AM198: Inbetriebnahme bis 2001 | AP198: 0-0,15 MW, Bonusregeln G und K erstmals 2012 | AR198: Ja | AT198: Anteil KWK, erstmals 2012 | AV198: 21.58 | AW198: 17.26 | AX198: 21.58 | BA198: EEG | BB198: BiK51nGK12--01 | BD198: EEG | BE198: BiK51nGK12--01
AG199: 198 | AH199: EEG | AI199: BiK51nGy----01 | AJ199: Biomasse | AK199: Biomasse | AL199: Inbetriebnahme bis 2001 | AM199: Inbetriebnahme bis 2001 | AP199: 0-0,15 MW, Bonusregel G, y | AT199: Anteil Nicht-KWK | AV199: 19.67 | AW199: 15.74 | AX199: 19.67 | BA199: EEG | BB199: BiK51nGy----01 | BD199: EEG | BE199: BiK51nGy----01
AG200: 199 | AH200: EEG | AI200: BiK51nGKA3y-01 | AJ200: Biomasse | AK200: Biomasse | AL200: Inbetriebnahme bis 2001 | AM200: Inbetriebnahme bis 2001 | AP200: 0-0,15 MW, Bonusregeln G, y und K wenn Anlage 3 erfüllt | AR200: Ja | AT200: Anteil KWK gemäß Anlage 3 | AV200: 22.67 | AW200: 18.14 | AX200: 22.67 | BA200: EEG | BB200: BiK51nGKA3y-01 | BD200: EEG | BE200: BiK51nGKA3y-01
... 918 more rows

Sheet Änderungsdokumentation (intern) (hidden)
A1: Version (Makro/AddIn) | B1: Änderung zum Vorgänger | C1: Datum der Auslieferung
A2: 1.11 (2014) | B2: -Neue Spezialvergütunsgkategorie eingebaut -Fehlermeldung bei Prüfung DV ohne Angaben zur Direktvermarktung angepasst | C2: 2014-03-14
A3: 1.12 (2014) | B3: -Fehlerhafte Kennzeichnung einer "fernsteuerbaren" Marktprämienkategorie korrigiert | C3: 2014-02-19
A4: 1.13 (2014) | B4: -Ausnahmetext für SV/RV-Prüfung wurde nicht korrekt berücksichtigt -> korrigiert | C4: 2014-04-24
A5: 1.14 (2014) | B5: -ungültige vNE-Kategorien (kein Eintarg aus der Liste) führte zu Programmabbruch -> korrigiert -Änderungsdokumentation nachgezogen | C5: 2014-05-16
A6: 1.0 (2015) | B6: Anpassungen für Jahresmeldungen 2014: neue Kategorien, Nachträgliche Korrekturen, Ausfallvermarktung, Flexibilitätszuschlag (mit Prüfung), Prüfung von MIM und Höchstebemessungsleistung Änderunge bei Modernvisierung von Wasserkraftanlagen verändertes Layout der Testateblätter Liste der Ausnahmen | C6: 2015-03-18
A7: 1.1 (2015) | B7: div. Fehlerkorrekuren | C7: 2015-03-19
A8: 1.2 (2015) | B8: 2 fehlende Kats hinzugefügt, unteres Limit für Flexzuschalg auf 0 gesetzt und Marktwerte eingepflegt | C8: 2015-03-19
A9: 1.3 (2015) | B9: MW-Sanktionen bei Managementprämien hinzugefügt/Fehler in Ausfallvermarktung korrigiert | C9: 2015-03-20
A10: 1.4 (2015) | B10: Buttons geändert | C10: 2015-03-20
A11: 1.5 (2015) | B11: - Korrektur bei der Berechnung der Bemessungleistung und - 1kW Toleranz bei Prüfung Verstoß Höchtsbemessungsleistung - Fehler bei fehlender Angabe zum Einspeisemanagement obowhl zuläsig (wegen Anlagen vor 2012) | C11: 2015-03-23
A12: 1.6 (2015) | B12: Fehlermeldung bei Einspeisemanagement angepasst, Stichtag für PV > 30 kWp = 01.01.2009 anstatt 01.01.2003 | C12: 2015-03-23
A13: 1.7 (2015) | B13: Ausgleichsbilanzkreis mit Validierung | C13: 2015-03-24
A14: 1.8 (2015) | B14: Prüfung Höchstbemessungsleistung <= inst. leistung entfernt | C14: 2015-03-26
A15: 1.9 (2015) | B15: Prüfung MiM-Kategorie erst ab > 10 kW entfernt (wegen Anlagenzusammenfassung); Korrektur eines Fehlers bei MiM-Prüfung (MiMa-Sanktion wurde nicht korrekt erkannt) | C15: 2015-04-07
A16: 1.10 (2015) | B16: Weitere Anpassungen an MiM-Prüfung wegen Anlagenzusammenfassung (impllizite Ausnahmen) | C16: 2015-04-08
A17: 1.11 (2015) | B17: Weitere Anpassungen an MiM-Prüfung wegen Anlagenzusammenfassung (explizite Ausnahme auch bei > 10 kW zulassen) | C17: 2015-04-10
A18: 1.12/1.12 (2015) | B18: Typ bei GSP-Doppelvermarktung auf GSP geändert Inbetriebnahme 2014 bis 31.12.2014 gültig >500 kW Prüfung abhängig von Vergütungsaktgeorie (Datum), nicht Inbetreibnahme AddIn-Logik integriert | C18: 2015-04-14
A19: 1.13/1.13 (2015) | B19: Vertauschung von Sonstige und GSP-Direktvermarktung in Testatblatt bereinigt 2 fehlende Biomassekatgorien hinzugefügt Check-Testatdaten in AddIn ergänzt | C19: 2015-04-20
A20: 1.14/1.14 (2015) | B20: Im AddIn auf nachträgliche Korrekturen hinweisen Prüfung EEG-Einspeisvergütung bei > 500 kW/>100 kW bei EEG for MPM unterlassen | C20: 2015-04-27
A21: 1.14/1.15 (2015) | B21: Im AddIn fehlenden Zählpunkt abgefangen und Hockommas gegen - ersetzt und Volllasstunden wegen Import auf Volllasstunden OK weil geändert | C21: 2015-04-27
A22: 1.14/1.16 (2015) | B22: Im AddIn bei inst. Leistung als Text Tausendertrennzeichen nicht in XML schreiben | C22: 2015-04-28
A23: 1.15/1.17 (2015) | B23: Aktenzeichen kein Pflichfeld mehr (wenn 0 oder leer, dann "nicht definiert" in XML, da NOT NULL in DB) | C23: 2015-05-05
A24: 1.15/1.18 (2015) | B24: Notar wir bei fehlender Angabe ebnefalls mit "nicht definiert" in XML geschrieben, da NOT NULL in DB) | C24: 2015-05-07
A25: 1.15/1.19 (2015) | B25: Im AddIn fehlende Strasse abgefangen und Konfiguration bei GSP-Kategorien angepasst (sonst fälschlicherwiese beim Import als Sanktion erkannt, was infolgedessen zu einem Importfehler geführt hat) | C25: 2015-06-08
A26: 2.0/2.0 | B26: Anpassungen für 2015 (siehe RQ241) | C26: 2016-02-19
A27: 2.1/2.1 | B27: Korrekturen bei Berechnung der Marktprämie im Falle von MW-Sanktionen Prüfung Endvergütung nicht vor Anfangsvergütung weitere Anlagentypen und Umlagenkategorien bei Eigenversorgung Monat bei Marktprämie generell erzwingen (für alle Monate mit Anteilen) | C27: 2016-02-22
A28: 2.2/2.2 | B28: Korrekturen bei Beschriftungen (2014 -> 2015) und Fehlermeldungen | C28: 2016-02-23
A29: 2.3/2.3 | B29: -Bei Abgleich EV zu SV alle SV-Kategorien berücksichtigen, auch saktionierten und vergüteten Selbstverbrauch und Abgleich erfolgt nur, wenn Eigenversorgung gemeldet wurde - Zusätzeliche Prüfung bei EV: keine negativen Mengen und Beträge zulässig - Fehler bereingt: Nachträgliche Korrekturen wurden im Deckblatt nicht ausgewiesen - Zeile 19 mit Abrechnungszeitraum aus Deckblatt entfernt | C29: 2016-06-26
A30: 2.4/2.4 | B30: - Fehler bei EV-Kategorien (Leerzeichen am Ende) korrigiert - Beidseitiger Abgleich zwischen SV und EV nur für EEG-Anlagen mit Inbetriebnahme ab 8.2014 und > 10 kW(p) - sonst nur Fehler bei Abweichungen, sofern EV-Meldung vorhanden - Nicht-EEG-Eigenversorgungsanlagen dürfen keinen EEG-Anlagenschlüssel verwenden | C30: 2016-03-24
A31: 2.5/2.5 | B31: - Beidseitiger Abgleich zwischen SV und EV für EEG-Anlagen mit Inbetriebnahme ab 8.2014 und > 10 kW(p) funktioniert nicht wegen Drittbelieferung, daher raus - Bei MIM-Prüfung Abweichungen bis max 1 kWh zulassen - Änderung der Anlagenarten inkl. Nicht EEG = Konventionell oder hocheffiziente KWK-Anlage - neue Kategorien hinzugefügt | C31: 2016-04-05
A32: 2.6/2.6 | B32: Fehlerhafte Vergütungssätze korrigiert | C32: 2016-04-07
A33: 2.7/2.7 | B33: Weitere Fehler bereinigt: - Eigenversorgung wurde nicht im Testatblatt ausgegegeben, wenn stillgelegte Anlagen gemeldet wurden (gefixt) - Nachträgliche Korrekturen wurden fälschlicherwiese abgewiesen, wenn die Anlage in 2015 nicht aktiv bzw. nicht zugeordnet war -> nun muss die Anlage im gemeldeten Korrekturjahr aktiv und zugeordbnet sein - Bei Eigenversorgung dürfen Nicht-EEG Anlagen jetzt eine für EEG-Anlagenschlüssel reservierte Kennung haben, sofern diese Anlage nicht in den Stammdaten gemeldet wurde - Gültigkeitsprüfung bei Nachträglichen Korrekturen hatte das Korrekturjahr 2014 noch nicht zugelassen | C33: 2016-04-13
A34: 2.8/.2.8 | B34: Weitere Fehler bereinigt: - Eigenversorgung in 2014 wurde auch mit Umlagen von 2015 nachberechnet | C34: 2016-04-18
A35: 2.9/2.9 | B35: Anpassung: Nur Fehler melden, wenn abgerechnete Eigenversorgung > gemeldeter Selbstverbrauch (weniger ist zulässig) | C35: 2016-04-29
A36: 2.10/2.10 | B36: Bei 100% DV bzw. AV trotdzem nicht vergüteten Selbstverbrauch zulassen | C36: 2016-05-06
A37: 2.11/2.11 | B37: -Pflicht zur Direktvermarktung abhängig von Inbetriebnahme der Anlage - Buchungstyp immer Großgeschrieben in XML schreiben - GSP und sonstige DV nicht montscharf in XML-schreiben | C37: 2016-05-13
A38: 2.12/2.12 | B38: - technischer Fehler bei Ausfallvermarktung behoben im Fall von SV-Kategorien bzw. pot. Erzeugung bei pot. SV | C38: 2016-05-30
A39: 2.13/2.13 | B39: - Konfigurationfehler bei EV-Kategorien (keine Umlage) behoben (ohne funktionale Konsequenzen) - Fehler bei AddIn behoben (Auswirkungen wenn von einem VNB die gleiche EV-Anlage in verschiedenen Jahren mit verschiedene Umlagen gemeldet wurden) | C39: 2016-07-05
A40: 3.0/3.0 | B40: Änderungen für Jahresabrechnung 2016
